Workbook

Sheet מסך פתיחה
C3: =CONCATENATE("דוח איכות סביבה ",MID(Count!F4,11,4)) -> דוח איכות סביבה 2024
C4: =ForbDraft!C7 -> אור - יהודה - מי שקמה | E4: =Count!B2 -> Creation Date09/03/2025 15:00:57
C6: דיווחי דיגומים, חריגים ואסורים
C7: תקופת ביצוע הדיגומים | D7: =Count!F4 -> From01/01/2024 00:00:00To01/01/2025 00:00:00
C9: דיווח כספי שנתי
C10: תקופת חיובי חריגים | D10: =ExcCharge!F4 -> From19/03/2024 00:01:00To30/01/2025 23:59:59
C11: תקופת חיובי אסורים | D11: =ForbCharge!F4 -> From19/03/2024 00:01:00To30/01/2025 23:59:59
C12: =IF(D10=D11,"","תקופות החיוב של חריגים ואסורים אינן זהות. עלולים להיות נתוני חיוב חסרים בדיווח הכספי") -> 
C13: מומלץ לשמור עותק לגיבוי לפני ניקוי הנוסחאות

Sheet Template history (hidden)
A1: ver 8 | B1: ver
A2: 5.1.8.12 | B2: iGreen
A3: 03.03.2025 | B3: date
C5: הערות
C6: 2018-11-22 | D6: דיווח חריגים - ממוצע- ההפרש מחושב לפי ערך הסף כולל אי ודאות. זו הצורה שבה הוא חושב בדוח החריגים במהלך 2018
C7: 2018-11-22 | D7: דיווח חריגים- ערך סף המוצג הינו הערך האחרון, לפי נתונים עדכניים של ראובן. אי הודאות כנראה השתנה, עדיין לא ידוע מה הוא במדוייק (ממתינה תשובה של רות). כרגע הוזנו ערכי אי ודאות בנוסחא ולא בדוח הפנימי בצורה כזו שתגיע לערכי הסף המעודכנים שראובן מסר
C8: 2018-11-22 | D8: ישנן דגימות שלא מופיעות בדוח בגלל שהכנסיו להן ערכים דרך חדש ולא דרך היסטוריה. נשלחה רשימה של 26 מפעלים אפשריים בכל האיגוד.
C9: 2019-02-01 | D9: כל הגליונות יהיו לפי גליון מגזרים שמכיל את כל המפעלים של האיגוד
C10: 2020-03-20 | D10: גליון דיגומים לפי תוכנית שנתית- לאחר שיחה מול ראובן: היות ונמצאו מפעלים שיש להם דגימות אבל אין להם תוכנית עבודה, הוחלט שנציג את כל המפעלים הפעילים בתאגיד, והמהנדסים יידעו להשלים חוסרים ולהסיר מפעלים לא רלוונטיים | E10: חשוב- יש לתקן את הדוח של שנה הבאה לתוכנית ללא תחזוקה!
D11: גליון חריגים, וגליון כספים מושתתים על גליון דיגומים
D12: גליון סיכום חריגות הפך להיות דיווח אסורים בלבד
D13: גליום GENERAL שמציג את כל מפעלי התאגיד- בוטל
D14: גליות סכום כספים שהיה דוח שאילתא- בול
D15: נוספו 2 דוחות חדשים של חיוב חריגים וחיוג אסורים לפי הטבלאות החדשים של פירוט חיובים
D16: ההערה של טופס משמורת מוצגת בגליון דיווח דיגומים
C17: 2021-01-24 | D17: גליון הסיכום- תיקון עיצוב תא כמויות המים - היה מעוצב עם ש"ח
D18: גיליון הסיכום- סכום כספים של חריגים היה ללא שח
D19: הגיליון הראשי של תיכנון מול ביצוע הישן הופך להיות לא רלוונטי מבחינת הנתונים. הוא קיים רק לצורך קביעת התקופה הראשית. הסיבה שהוא נשאר היא על מנת שלא אצתרך לבנות כרגע את כל הדוחות מחדש. גיליון הנתונים הראשי יהיה דוח השאילתא של תכנון מול ביצוע החדש- ספירת תוכניות עבודה
D20: לאחר דיון מול ראובן ברייב: כמות ביקורים בפועל= כל הדגימות הלא מבוטלות, כולל הכל. ספירת כמות חריגים / אסורים/ ללא- רק דגימות סגורות ונשלחות. יצרתי דוח פנימי חדשה שמבוסס על דוח הראשי של תכנון מול ביצוע 2020. הוא מכיל ספירת האסורים חריגים וללא. הסרתי את הדוח הפנימי bit0
D21: הסרתי את הדוח הפנימי "מגזר"- זה כעת בגיליון של הכתובות
D22: הוספת דוח פנימי של ההערות
D23: הוספתי דוח פנימי של רשימת מפעלים פעילים- הוא יהיה הרשימה המובילה של רשימת המפעלים של כל הדוח
D24: הוספתי דוח פנימי של ספירת תוכניות עבודה
D25: תיקון מאקרו של PTשל חריגים ואסורים חיובים: בעבר כותרת של טבלה הכילה גם תווים char 13 & char 10. לאחר התיקון זה מכיל רק את 10 (לא ברור לי מה הם תווים אלו, אבל התיקון עבד)
D26: גיליון כספים הוספת מ"ק לעמודות כמויות המים
B27: Ver 5 | C27: מרץ 2022: העברת הדוח ל-WEB | D27: פיצול תקופות: חישוב הכספים יחושב לפי תקופה שונה מזו של הדיגמות הראשית. משמעות: המשתמשים יגדרו תקופה לדוחות הפנימיים ידנית, והגדרות ניהול הגליונות של הדוח אני אשים את החישוב לפי תקופת דוח פנימי ולא לפי תקופה ראשית.
D28: 07/03/22: לאחר בירור מול קארין. למרות שפיצלנו את תקופת הכספים מתקופת הדיגמום- בגליון הכספי- כמות המים הינה הכמות השנתית כפי שמוצגת בגליון "דיווח דיגומים". כלומר לפי תקופת הדגימות, ולא לפי תקופת החיובים.
D29: Count=גליון ראשי. דוח שאילתא "איכות סביבה ביצועים" 1178 הדוח תואם לכל התאגידים לפי תאריך הדגימה.
D30: בניית דוח חדש של דגימות שחוייבו. הנתונים יכנסו לגליות ForbDraft
D31: מחקתי את גליון table. הגליון הראשי יהיה של count
D32: אין צורך יותר בנתוני דוח חיוב חריגים. מסירה את הקישור לגליון ExcDraft
D33: מוסיפה דוח פנימי של היתרים. מתנבת אותו לגליון החישובים ExcCalc לעמודה של בדיקת מפעלים שיש להם היתרים
D34: מוסיפה גליון של path שמקשר בין יחידה לנתיב שלה. מאפשר להתשמש בדוח השוואת יחידות לכמויות מים
D35: גליון ExcCalc הסרתי את רשימת המפעלים שיש להם היתרים. החיפוש יעשה ישירות מדוח השאילתא החדש שיושב בגליון ExcPermit
D36: גליון החישובים ForbAndExc השתנה להכיל רק מידע על אסורים. שיניתי את שמו ל ForbCalc. הגיליון נועד לתקן את שם התצוגה של PH לבדיקת גבול, ולשים ערך מוחלט עליו (הוא שלילי לבדיקת גבול תחתון)
D37: הסרת המאקרו של חישובי PV: ישנה הגדרה שמאפשרת לעדכן את החישוב בכל פתיחה מחדש של הקובץ. אין צורך בכפתור המאקרו הראשון
D38: שינוי הדוח של ערכי סף תקן חריגים- דוח השוואת יחידות שנותן את הערך האחרון, במקום דוח ערכים, ונוסחא שמחשבת את הערך האחרון.
D39: עיצוב הגליונות לפי עיצוב מותנה, ולא דרך מאקרו
D40: שורת סיכום- דרך נוסחאות ולא דרך מאקרו
D41: מאקרו שנשאר: מיון גליון אסורים, שמירה כערך, מחיקת גליונות, מחיקת כפתור הניקוי
D42: גרסה 5 ייושמה על סביבת QA3 עם מסד נתונים עדכני של איגודן, לצורך הפקת הדוחות, ללא ביצוע שדרוג ל 5.0.8. גרסה 6 יושמה עם התיקון הבא בסביבה החיה של האיגוד
B43: Ver6 | C43: מרץ 2022- תיקוני אפיון לאחר בדיקות דוחות של 2021 | D43: דיווח דיגומים- ביקשו שיכיל רק מפעלים שיש להם תוכניות עבודה. משמעות:
D44: (1) להעביר את הדוח הראשי להיות שאילתא חדשה של תוכניות עבודה רק של התאגיד.
D45: (2) לשנות את הדוח של COUNT להיות דוח פנימי- מספר 972. להשאיר אותו כדוח כללי לכל התאגידים
D46: (3) להסיר את הדוח הפנימי של מפעלים פעילים. לכוון את דיווח דיגומים לדוח הראשי שהוא יהיה ה-PLANNING החדש

Sheet Index (hidden)
B1: גיליונות גרסה 7 | K1: סוגי גליונות | M1: מאקרו | R1: מגזרים | S1: הערות
C2: שם גליון | D2: סוג | E2: כללי / פר תאגיד | F2: ID דוח פנימי | G2: תקופה | H2: מיקום הדוח הפנימי | I2: הערות | K2: דוח פנימי: שאילתא | M2: שם מאקרו | N2: מטרה | O2: טריגר | P2: הערות | R2: אולמות אירועים, מסעדות, קניונים
A3: גליון סופי | B3: 1 | C3: מסך פתיחה | D3: תבנית- דוח סופי | E3: - | F3: - | G3: - | H3: - | I3: Macro=sheet9 | K3: דוח פנימי: דוחות מערכת | M3: Sort3 | N3: מיון מפעלים בגליון דיווח אסורים לפי שם מפעל | O3: מערכת? | P3: שלב ראשון- פילטור ללא ריקים (אחרת הוא ממיין את הריקים למעלה). שלב שני- מיון, שלב שלישי - הסרת הפילטור (בשביל שהמאקרו של מחיקת הנוסחאות יעבוד) | R3: אכיפה- מי תהום
B4: 2 | C4: Summary | D4: חישובים ועיבודים | E4: - | F4: - | G4: - | H4: - | I4: שורת סיכום של גליון דיווח דיגומים וגליון דיווח כספי. מעבד את נתונים הסיכום.ומועבר דרך נוסחא לדיווח דיגומים ודיווח כספים | K4: חישובים ועיבודים | M4: ClearFormulas | N4: שמירת ערכים במקום נוסחאות | O4: כפתור | P4: התראת האם אתה בטוח. קורא למאקרו של מחיקה אם מדובר בקובץ גיבוי, המחיקה לא תתאפשר (נועד למנוע שמירה אוטומטית של קבצים שIOSIGHT מפיקים) לפי גליון Summary | R4: אכיפה- ציפוי מתכות וטיפול פני שטח
B5: 3 | C5: Template history | D5: Meta data | E5: - | F5: - | G5: - | H5: - | I5: היסטורית שינויים של קובץ התבנית | K5: Pivot table \ Meta data | M5: DeleteSheets | N5: מחיקת גליונות+ כפתור | O5: מאקרו ClearFormulas | R5: בתי דפוס
B6: 4 | C6: Index | D6: Meta data | E6: - | F6: - | G6: - | H6: - | I6: הסבר על גליונות ומאקרו | K6: תבנית- דוח סופי | R6: בתי חולים
A7: גליון סופי | B7: 5 | C7: דיווח דיגומים | D7: תבנית- דוח סופי | E7: - | F7: - | G7: - | H7: - | I7: Macro=sheet1 | R7: בתי מלון
A8: גליון סופי | B8: 6 | C8: דיווח חריגים | D8: תבנית- דוח סופי | E8: - | F8: - | G8: - | H8: - | I8: Macro=sheet2 | R8: בתי מלון - אילת
A9: גליון סופי | B9: 7 | C9: דיווח אסורים | D9: תבנית- דוח סופי | E9: - | F9: - | G9: - | H9: - | I9: Macro=sheet3 | R9: טקסטיל בלא הלבנה או צביעה
A10: גליון סופי | B10: 8 | C10: דיווח כספי שנתי | D10: תבנית- דוח סופי | E10: - | F10: - | G10: - | H10: - | I10: Macro=sheet15 | R10: טקסטיל כולל הלבנה או צביעה
A11: דוח ראשי | B11: 9 | C11: Planning | D11: דוח פנימי: שאילתא | E11: #תאגיד# | F11: #חדש# | G11: ראשית | H11: /איכות סביבה/תאגידים/{שם תאגיד} | I11: ספירת תוכניות העבודה לתאגיד, רק למפעלים שיש להם תוכניות עבודה. שיכתוב של דוח 972 מספירת תוכנית העבודה של תכנון מול ביצוע. | R11: מוסכים
B12: 10 | C12: Count | D12: דוח פנימי: שאילתא | E12: כללי | F12: 1178 | G12: ראשית | H12: /איכות סביבה/דוחות פנימיים | I12: ספירת ביצוע דגימות של כל המפעלים. הספירה כוללת דגימות מכל הסטטוסים פרט למבוטל | R12: מוסכים - אילת
B13: 11 | C13: Address | D13: דוח פנימי: שאילתא | E13: כללי | F13: 710 | G13: ללא | H13: /כללי | R13: מי רקע אכיפה- מי תהום
B14: 12 | C14: Comments | D14: דוח פנימי: שאילתא | E14: כללי | F14: 1155 | G14: ראשית | H14: /תכנון מול ביצוע/דוחות פנימיים | I14: הערות טופס משמורת למפעלים | R14: מי רקע אכיפה- ציפוי מתכות וטיפול פני שטח | S14: לא רלוונטי, אכיפה בכלל לא אמור להופיע בדוח
B15: 13 | C15: ExcValue | D15: דוח פנימי: שאילתא | E15: #תאגיד# | F15: #841 | G15: ראשית | H15: /איכות סביבה/דוחות פנימיים | I15: דוח שאילתא השולף רשימת ערכים לפי דגימה. כתוב בנפרד לכל תאגיד. *מבוסס על דוח ערכים שבניתי לכל תאגיד בנפרד *ערכי פרמטרים של חריגים בלבד. | R15: מי תהום דיגומים
B16: 14 | C16: ExcPermit | D16: דוח פנימי: שאילתא | E16: כללי | F16: 1233 | G16: ראשית | H16: /כללי | I16: רשימת מפעלים בכל התאגיד להם יש היתרי חריגים פעילים בתקופה המבוקשת. הדוח מפרט תאריכי הדלקה והערכים שלהם, ומועד סיום. | R16: מכבסות
B17: 15 | C17: Path | D17: דוח פנימי: שאילתא | E17: כללי | F17: 1232 | G17: ללא | H17: /כללי | I17: נתיב מלא של יחידות פעילות . נבנה לצורך עבודה עם דוח השוואת יחידות המציג נתיב מלא או שם יחידה, אבל לא מספר מזהה שלה. | R17: מכבסות - אילת
B18: 16 | C18: WQ | D18: דוח פנימי:השוואת יחידות | E18: כללי | F18: 1231 | G18: ראשית | H18: /דוחות מים | I18: דוח השוואת יחידות. קטגוריה : מונה כמות מים 67 פונקציה: InterpolatedQuantity | R18: מסעדות וקניונים - אילת
B19: 17 | C19: ForbDraft | D19: דוח פנימי: אסורים- דגימות שחוייבו | E19: #תאגיד# | F19: (2221) #חדש# | G19: ראשית | H19: /איכות סביבה/דוחות פנימיים | I19: דוח מסוג חדש "דגימות שחוייבו". מחליף את דוח החיובים הישן לסדר את התיקיה: כרגע מרוכז תחת התאגיד, תחת דוחות פנימיים. | R19: מפעל תעשייתי – מזון
B20: 18 | C20: ExcCharge | D20: דוח פנימי: דוח ערכים | E20: #תאגיד# | F20: #1071 | G20: דוח משני | H20: /איכות סביבה/תאגידים/{שם תאגיד} | I20: סכומי חיבים לפי טעינת קבצי חיוב אקסל. תקופה מותאמת אישית. חריגים (דוח ערכים) דורש עיבוד PT לפי מפעל | R20: מפעלי חומרי בנייה
B21: 19 | C21: ForbCharge | D21: דוח פנימי: דוח ערכים | E21: #תאגיד# | F21: #1072 | G21: דוח משני | H21: /איכות סביבה/תאגידים/{שם תאגיד} | I21: סכומי חיבים לפי טעינת קבצי חיוב אקסל. תקופה מותאמת אישית. אסורים (דוח ערכים). דורש עיבוד PT לפי מפעל | R21: מפעלי כימיה
B22: 20 | C22: ExcLimit | D22: דוח פנימי:השוואת יחידות | E22: כללי | F22: 1230 | G22: ראשית | H22: /כללי | I22: ערכי סף אפקטיביים של ערכי חריגים (אפקטיביים- ללא התחשבות במי רקע). נועד לחישוב ממוצעים של חריגים בגליון "דיווח חריגים". יחידה: ערכי סף אפקטיביים חריגים LOW קטגוריות: COD, TSS, חנקן קלדל, זרחן | R22: מפעלי מזון ומשקאות
B23: 21 | C23: ExcCalc | D23: חישובים ועיבודים | E23: - | F23: - | G23: - | H23: - | I23: מעבד נתונים מגיליון ExcValue - מועבר לגליון דיווח חריגים | R23: מפעלי עיבוד עורות
B24: 22 | C24: ForbCalc | D24: חישובים ועיבודים | E24: - | F24: - | G24: - | H24: - | I24: מעבד נתונים מגליון ForbDraft- תיקון ערך ושם תצוגה של תג ה-pH לבדיקת גבול (ערך מוחלט, ושם רק pH). מועבר לגליון דיווח אסורים | R24: מפעלי ציפוי מתכות וטיפול פני שטח | S24: לא צריך להופיע ערך של גבול TSS בגליון דיווח חריגים
B25: 23 | C25: WQ_UnitID | D25: חישובים ועיבודים | E25: - | F25: - | G25: - | H25: - | I25: מעבד את נתוני כמויות המים- מקשר בין הנתיב של היחידה בדוח כמויות המים למספר מזהה של המפעל. מועבר לגליון דיווח דיגומים, דיווח חריגים, ודיווח כספי | R25: מפעלים ביטחוניים
B26: 24 | C26: PT_ExcValue | D26: Pivot table | E26: - | F26: - | G26: - | H26: - | I26: מעבד נתונים מגיליון ExcCalc- מקבץ לפי מפעל, ומחזיר ל- ExcCalc חזרה | R26: משחטות, בתי מטבחיים, בתי נחירה, עיבוד דגים
B27: 25 | C27: PT_Charge_Exc | D27: Pivot table | E27: - | F27: - | G27: - | H27: - | I27: מעבד נתונים מגליון ExcCharge , מקבץ לפי מפעל ומועבר לגליון דיווח כספי שנתי. | R27: נא להגדיר מגזר
B28: 26 | C28: PT_Charge_Forb | D28: Pivot table | E28: - | F28: - | G28: - | H28: - | I28: מעבד נתונים מגליון ForbCharge , מקבץ לפי מפעל ומועבר לגליון דיווח כספי שנתי. | R28: קוסמטיקה ותמרוקים
R29: רפת או לול
R30: שפכים חריגים
R31: שפכים חריגים -אילת
R32: תחנות מעבר לפסולת
R33: תחנות רחיצת רכב
R34: תחנות תדלוק
R35: תחנות תדלוק - אילת

Sheet Summary (hidden)
A1: סיכומים | C1: גובץ גיבוי: | D1: FALSE
A2: שורה אחרונה של נתונים | B2: =VALUE(MATCH("סך הכל",'דיווח דיגומים'!B1:B600,0))-2 -> 30
A3: מספר מפעלים | B3: =COUNT('דיווח דיגומים'!B:B) -> 26
A4: מספר מפעלים שחוייבו | B4: =COUNTIF(#REF!,">0")-1 -> 
A5: דיווח דיגומים
A6: טקסט | B6: =CONCATENATE(B3," מפעלים",) -> 26 מפעלים
A7: כמות מים/שפכים שנתית | B7: =SUM(INDIRECT("'דיווח דיגומים'!G5:G" &B2)) -> 314200.6969
A8: מספר בדיקות שנתי מתוכנן עפ"י תכנית הדיגום | B8: =SUM(INDIRECT("'דיווח דיגומים'!H5:H" &B2)) -> 78
A9: מספר בדיקות בפועל | B9: =SUM(INDIRECT("'דיווח דיגומים'!I5:I" &B2)) -> 43
A10: מספר דיגומים שנמצאו שפכים חריגים | B10: =SUM(INDIRECT("'דיווח דיגומים'!K5:K" &B2)) -> 22
A11: מספר דיגומים שנמצאו שפכים אסורים | B11: =SUM(INDIRECT("'דיווח דיגומים'!L5:L" &B2)) -> 15
A12: מספר הדיגומים שלא נמצאו חריגות (אסורים או חריגים) | B12: =SUM(INDIRECT("'דיווח דיגומים'!M5:M" &B2)) -> 8
A13: דיווח כספי שנתי
A14: טקסט | B14: =CONCATENATE("חוייבו ",B4," מפעלים מתוך ",B3) -> 
A15: כמות מים/שפכים שנתית שנצרכה (מ"ק) | B15: =SUM(INDIRECT("'דיווח כספי שנתי'!D5:D" &$B$2)) -> 
A16: כמות מים חריגים | B16: =SUM(INDIRECT("'דיווח כספי שנתי'!E5:E" &$B$2)) -> 
A17: סכום חיוב חריגים | B17: =SUM(INDIRECT("'דיווח כספי שנתי'!F5:F" &$B$2)) -> 
A18: כמות מים אסורים | B18: =SUM(INDIRECT("'דיווח כספי שנתי'!G5:G" &$B$2)) -> 
A19: סכום חיוב אסורים | B19: =SUM(INDIRECT("'דיווח כספי שנתי'!H5:H" &$B$2)) -> 
A20: סכום חיוב שנתי | B20: =SUM(INDIRECT("'דיווח כספי שנתי'!I5:I" &$B$2)) -> 

Sheet דיווח דיגומים
C1: ='מסך פתיחה'!$C$3 -> דוח איכות סביבה 2024 | D1: דיווח דיגומים | E1: ='מסך פתיחה'!D7 -> From01/01/2024 00:00:00To01/01/2025 00:00:00 | I1: =#REF! -> 
C2: ='מסך פתיחה'!$C$4 -> אור - יהודה - מי שקמה
B4: אקודן | C4: שם מפעל | D4: כתובת המפעל | E4: מגזר תעשייתי לפי התוספת השלישית | F4: אופן הדיגום (חטף/מורכב) | G4: כמות מים/שפכים שנתית (מ"ק) | H4: מספר בדיקות שנתי מתוכנן עפ"י תכנית הדיגום | I4: מספר בדיקות בפועל | J4: האם יש הסכם להזרמת שפכים חריגים כן/לא | K4: מספר דיגומים שנמצאו שפכים חריגים | L4: מספר דיגומים שנמצאו שפכים אסורים | M4: מספר הדיגומים שלא נמצאו חריגות (אסורים או חריגים) | N4: הערות
B5: =IF(AND(B3<>"",ISNUMBER(B3),B4=""),"סך הכל",IF(Planning!A8="","",Planning!A8)) -> 30305 | C5: =IFERROR(_xlfn.IFS(B5="סך הכל",Summary!$B$6,Planning!C8<>"",Planning!C8),"") -> אולמי דניאל | D5: =IFERROR(VLOOKUP(B5,Address!B:G,5,FALSE),"") -> הסדנא 14, אור יהודה | E5: =IFERROR(VLOOKUP(B5,Address!B:L,11,FALSE),"") -> אולמות אירועים, מסעדות, קניונים | F5: =IF(ISNUMBER(B5),"חטף","") -> חטף | G5: =IF(B5="סך הכל",Summary!$B$7,IF(F5="","",IF(VLOOKUP(B5,WQ_UnitID!B:C,2,FALSE)=0,"",VLOOKUP(B5,WQ_UnitID!B:C,2,FALSE)))) -> 5487.254946 | H5: =IF(B5="סך הכל",Summary!$B$8,IF(F5="","",IFERROR(VLOOKUP(B5,Planning!A:B,2,FALSE),0))) -> 4 | I5: =IF(B5="סך הכל",Summary!$B$9,IF(F5="","",IFERROR(VLOOKUP(B5,Count!A:B,2,FALSE),0))) -> 2 | J5: =IF(F5="","",(IF(ISNUMBER(MATCH(B5,ExcPermit!$H$8:$H$1000,0)),"כן","לא"))) -> לא | K5: =IF(B5="סך הכל",Summary!$B$10,IF(F5="","",IFERROR(VLOOKUP(B5,Count!A:J,8,FALSE),0))) -> 2 | L5: =IF(B5="סך הכל",Summary!$B$11,IF(F5="","",IFERROR(VLOOKUP(B5,Count!A:J,9,FALSE),0))) -> 2 | M5: =IF(B5="סך הכל",Summary!$B$12,IF(F5="","",IFERROR(VLOOKUP(B5,Count!A:J,10,FALSE),0))) -> 0 | N5: =IF(O5=0,"",O5) ->  | O5: =IFERROR(VLOOKUP(B5,Comments!A:B,2,FALSE),"") -> 0
B6: =IF(AND(B4<>"",ISNUMBER(B4),B5=""),"סך הכל",IF(Planning!A9="","",Planning!A9)) -> 38947 | C6: =IFERROR(_xlfn.IFS(B6="סך הכל",Summary!$B$6,Planning!C9<>"",Planning!C9),"") -> אחוזת אייל (בתי אבות נאות אבי - א. פ.) | D6: =IFERROR(VLOOKUP(B6,Address!B:G,5,FALSE),"") -> כביש לוד 11, אור יהודה | E6: =IFERROR(VLOOKUP(B6,Address!B:L,11,FALSE),"") -> בתי מלון | F6: חטף | G6: =IF(B6="סך הכל",Summary!$B$7,IF(F6="","",IF(VLOOKUP(B6,WQ_UnitID!B:C,2,FALSE)=0,"",VLOOKUP(B6,WQ_UnitID!B:C,2,FALSE)))) -> 185.8032787 | H6: =IF(B6="סך הכל",Summary!$B$8,IF(F6="","",IFERROR(VLOOKUP(B6,Planning!A:B,2,FALSE),0))) -> 4 | I6: =IF(B6="סך הכל",Summary!$B$9,IF(F6="","",IFERROR(VLOOKUP(B6,Count!A:B,2,FALSE),0))) -> 1 | J6: =IF(F6="","",(IF(ISNUMBER(MATCH(B6,ExcPermit!$H$8:$H$1000,0)),"כן","לא"))) -> לא | K6: =IF(B6="סך הכל",Summary!$B$10,IF(F6="","",IFERROR(VLOOKUP(B6,Count!A:J,8,FALSE),0))) -> 1 | L6: =IF(B6="סך הכל",Summary!$B$11,IF(F6="","",IFERROR(VLOOKUP(B6,Count!A:J,9,FALSE),0))) -> 0 | M6: =IF(B6="סך הכל",Summary!$B$12,IF(F6="","",IFERROR(VLOOKUP(B6,Count!A:J,10,FALSE),0))) -> 0 | N6: ביקור ראשון; | O6: =IFERROR(VLOOKUP(B6,Comments!A:B,2,FALSE),"") -> ביקור ראשון;
B7: =IF(AND(B5<>"",ISNUMBER(B5),B6=""),"סך הכל",IF(Planning!A10="","",Planning!A10)) -> 8272 | C7: =IFERROR(_xlfn.IFS(B7="סך הכל",Summary!$B$6,Planning!C10<>"",Planning!C10),"") -> אצל התורקי | D7: =IFERROR(VLOOKUP(B7,Address!B:G,5,FALSE),"") -> הראשונים 2, אור יהודה | E7: =IFERROR(VLOOKUP(B7,Address!B:L,11,FALSE),"") -> אולמות אירועים, מסעדות, קניונים | F7: חטף | G7: =IF(B7="סך הכל",Summary!$B$7,IF(F7="","",IF(VLOOKUP(B7,WQ_UnitID!B:C,2,FALSE)=0,"",VLOOKUP(B7,WQ_UnitID!B:C,2,FALSE)))) -> 2794.645161 | H7: =IF(B7="סך הכל",Summary!$B$8,IF(F7="","",IFERROR(VLOOKUP(B7,Planning!A:B,2,FALSE),0))) -> 4 | I7: =IF(B7="סך הכל",Summary!$B$9,IF(F7="","",IFERROR(VLOOKUP(B7,Count!A:B,2,FALSE),0))) -> 2 | J7: =IF(F7="","",(IF(ISNUMBER(MATCH(B7,ExcPermit!$H$8:$H$1000,0)),"כן","לא"))) -> לא | K7: =IF(B7="סך הכל",Summary!$B$10,IF(F7="","",IFERROR(VLOOKUP(B7,Count!A:J,8,FALSE),0))) -> 1 | L7: =IF(B7="סך הכל",Summary!$B$11,IF(F7="","",IFERROR(VLOOKUP(B7,Count!A:J,9,FALSE),0))) -> 0 | M7: =IF(B7="סך הכל",Summary!$B$12,IF(F7="","",IFERROR(VLOOKUP(B7,Count!A:J,10,FALSE),0))) -> 1 | O7: =IFERROR(VLOOKUP(B7,Comments!A:B,2,FALSE),"") -> 0
B8: =IF(AND(B6<>"",ISNUMBER(B6),B7=""),"סך הכל",IF(Planning!A11="","",Planning!A11)) -> 38962 | C8: =IFERROR(_xlfn.IFS(B8="סך הכל",Summary!$B$6,Planning!C11<>"",Planning!C11),"") -> ארי יוסף אירוע בע"מ | D8: =IFERROR(VLOOKUP(B8,Address!B:G,5,FALSE),"") -> פלדה 1, אור יהודה | E8: =IFERROR(VLOOKUP(B8,Address!B:L,11,FALSE),"") -> אולמות אירועים, מסעדות, קניונים | F8: חטף | G8: =IF(B8="סך הכל",Summary!$B$7,IF(F8="","",IF(VLOOKUP(B8,WQ_UnitID!B:C,2,FALSE)=0,"",VLOOKUP(B8,WQ_UnitID!B:C,2,FALSE)))) -> 3024.200396 | H8: =IF(B8="סך הכל",Summary!$B$8,IF(F8="","",IFERROR(VLOOKUP(B8,Planning!A:B,2,FALSE),0))) -> 2 | I8: =IF(B8="סך הכל",Summary!$B$9,IF(F8="","",IFERROR(VLOOKUP(B8,Count!A:B,2,FALSE),0))) -> 2 | J8: =IF(F8="","",(IF(ISNUMBER(MATCH(B8,ExcPermit!$H$8:$H$1000,0)),"כן","לא"))) -> לא | K8: =IF(B8="סך הכל",Summary!$B$10,IF(F8="","",IFERROR(VLOOKUP(B8,Count!A:J,8,FALSE),0))) -> 1 | L8: =IF(B8="סך הכל",Summary!$B$11,IF(F8="","",IFERROR(VLOOKUP(B8,Count!A:J,9,FALSE),0))) -> 0 | M8: =IF(B8="סך הכל",Summary!$B$12,IF(F8="","",IFERROR(VLOOKUP(B8,Count!A:J,10,FALSE),0))) -> 0 | N8: אין גישה לשוחה לא ניתן לבצע דיגום | O8: =IFERROR(VLOOKUP(B8,Comments!A:B,2,FALSE),"") -> אין גישה לשוחה לא ניתן לבצע דיגום
B9: =IF(AND(B7<>"",ISNUMBER(B7),B8=""),"סך הכל",IF(Planning!A12="","",Planning!A12)) -> 30030 | C9: =IFERROR(_xlfn.IFS(B9="סך הכל",Summary!$B$6,Planning!C12<>"",Planning!C12),"") -> בית סיעודי - צומת סביון | D9: =IFERROR(VLOOKUP(B9,Address!B:G,5,FALSE),"") -> איריס 9, אור יהודה | E9: =IFERROR(VLOOKUP(B9,Address!B:L,11,FALSE),"") -> בתי מלון | F9: חטף | G9: =IF(B9="סך הכל",Summary!$B$7,IF(F9="","",IF(VLOOKUP(B9,WQ_UnitID!B:C,2,FALSE)=0,"",VLOOKUP(B9,WQ_UnitID!B:C,2,FALSE)))) -> 10394.53763 | H9: =IF(B9="סך הכל",Summary!$B$8,IF(F9="","",IFERROR(VLOOKUP(B9,Planning!A:B,2,FALSE),0))) -> 4 | I9: =IF(B9="סך הכל",Summary!$B$9,IF(F9="","",IFERROR(VLOOKUP(B9,Count!A:B,2,FALSE),0))) -> 2 | J9: =IF(F9="","",(IF(ISNUMBER(MATCH(B9,ExcPermit!$H$8:$H$1000,0)),"כן","לא"))) -> לא | K9: =IF(B9="סך הכל",Summary!$B$10,IF(F9="","",IFERROR(VLOOKUP(B9,Count!A:J,8,FALSE),0))) -> 2 | L9: =IF(B9="סך הכל",Summary!$B$11,IF(F9="","",IFERROR(VLOOKUP(B9,Count!A:J,9,FALSE),0))) -> 0 | M9: =IF(B9="סך הכל",Summary!$B$12,IF(F9="","",IFERROR(VLOOKUP(B9,Count!A:J,10,FALSE),0))) -> 0 | O9: =IFERROR(VLOOKUP(B9,Comments!A:B,2,FALSE),"") -> 0
B10: =IF(AND(B8<>"",ISNUMBER(B8),B9=""),"סך הכל",IF(Planning!A13="","",Planning!A13)) -> 7918 | C10: =IFERROR(_xlfn.IFS(B10="סך הכל",Summary!$B$6,Planning!C13<>"",Planning!C13),"") -> בכור כהן מוטורס | D10: =IFERROR(VLOOKUP(B10,Address!B:G,5,FALSE),"") -> ההגנה 18, אור יהודה | E10: =IFERROR(VLOOKUP(B10,Address!B:L,11,FALSE),"") -> מוסכים | F10: חטף | G10: =IF(B10="סך הכל",Summary!$B$7,IF(F10="","",IF(VLOOKUP(B10,WQ_UnitID!B:C,2,FALSE)=0,"",VLOOKUP(B10,WQ_UnitID!B:C,2,FALSE)))) -> 654.6107971 | H10: =IF(B10="סך הכל",Summary!$B$8,IF(F10="","",IFERROR(VLOOKUP(B10,Planning!A:B,2,FALSE),0))) -> 2 | I10: =IF(B10="סך הכל",Summary!$B$9,IF(F10="","",IFERROR(VLOOKUP(B10,Count!A:B,2,FALSE),0))) -> 2 | J10: =IF(F10="","",(IF(ISNUMBER(MATCH(B10,ExcPermit!$H$8:$H$1000,0)),"כן","לא"))) -> לא | K10: =IF(B10="סך הכל",Summary!$B$10,IF(F10="","",IFERROR(VLOOKUP(B10,Count!A:J,8,FALSE),0))) -> 0 | L10: =IF(B10="סך הכל",Summary!$B$11,IF(F10="","",IFERROR(VLOOKUP(B10,Count!A:J,9,FALSE),0))) -> 0 | M10: =IF(B10="סך הכל",Summary!$B$12,IF(F10="","",IFERROR(VLOOKUP(B10,Count!A:J,10,FALSE),0))) -> 0 | N10: המו,ך יבש. קיים בור שנשאב אחת לתקופה. לבריו של אבי;בוצע ביקורת בלבד ; | O10: =IFERROR(VLOOKUP(B10,Comments!A:B,2,FALSE),"") -> המו,ך יבש. קיים בור שנשאב אחת לתקופה. לבריו של אבי;בוצע ביקורת בלבד ;
B11: =IF(AND(B9<>"",ISNUMBER(B9),B10=""),"סך הכל",IF(Planning!A14="","",Planning!A14)) -> 38345 | C11: =IFERROR(_xlfn.IFS(B11="סך הכל",Summary!$B$6,Planning!C14<>"",Planning!C14),"") -> דור אלון ניהול מתחמים קמעונאיים | D11: =IFERROR(VLOOKUP(B11,Address!B:G,5,FALSE),"") -> המסגר 8, אור יהודה | E11: =IFERROR(VLOOKUP(B11,Address!B:L,11,FALSE),"") -> תחנות תדלוק | F11: חטף | G11: =IF(B11="סך הכל",Summary!$B$7,IF(F11="","",IF(VLOOKUP(B11,WQ_UnitID!B:C,2,FALSE)=0,"",VLOOKUP(B11,WQ_UnitID!B:C,2,FALSE)))) -> 73.82023742 | H11: =IF(B11="סך הכל",Summary!$B$8,IF(F11="","",IFERROR(VLOOKUP(B11,Planning!A:B,2,FALSE),0))) -> 1 | I11: =IF(B11="סך הכל",Summary!$B$9,IF(F11="","",IFERROR(VLOOKUP(B11,Count!A:B,2,FALSE),0))) -> 1 | J11: =IF(F11="","",(IF(ISNUMBER(MATCH(B11,ExcPermit!$H$8:$H$1000,0)),"כן","לא"))) -> לא | K11: =IF(B11="סך הכל",Summary!$B$10,IF(F11="","",IFERROR(VLOOKUP(B11,Count!A:J,8,FALSE),0))) -> 0 | L11: =IF(B11="סך הכל",Summary!$B$11,IF(F11="","",IFERROR(VLOOKUP(B11,Count!A:J,9,FALSE),0))) -> 0 | M11: =IF(B11="סך הכל",Summary!$B$12,IF(F11="","",IFERROR(VLOOKUP(B11,Count!A:J,10,FALSE),0))) -> 0 | N11: סתימה בתעלות ובכניסה למפריד שמן; | O11: =IFERROR(VLOOKUP(B11,Comments!A:B,2,FALSE),"") -> סתימה בתעלות ובכניסה למפריד שמן;
B12: =IF(AND(B10<>"",ISNUMBER(B10),B11=""),"סך הכל",IF(Planning!A15="","",Planning!A15)) -> 31558 | C12: =IFERROR(_xlfn.IFS(B12="סך הכל",Summary!$B$6,Planning!C15<>"",Planning!C15),"") -> האחים שקורי בשרים | D12: =IFERROR(VLOOKUP(B12,Address!B:G,5,FALSE),"") -> אליהו סעדון 130, אור יהודה | E12: =IFERROR(VLOOKUP(B12,Address!B:L,11,FALSE),"") -> משחטות, בתי מטבחיים, בתי נחירה, עיבוד דגים | F12: חטף | G12: =IF(B12="סך הכל",Summary!$B$7,IF(F12="","",IF(VLOOKUP(B12,WQ_UnitID!B:C,2,FALSE)=0,"",VLOOKUP(B12,WQ_UnitID!B:C,2,FALSE)))) -> 489.7007786 | H12: =IF(B12="סך הכל",Summary!$B$8,IF(F12="","",IFERROR(VLOOKUP(B12,Planning!A:B,2,FALSE),0))) -> 4 | I12: =IF(B12="סך הכל",Summary!$B$9,IF(F12="","",IFERROR(VLOOKUP(B12,Count!A:B,2,FALSE),0))) -> 1 | J12: =IF(F12="","",(IF(ISNUMBER(MATCH(B12,ExcPermit!$H$8:$H$1000,0)),"כן","לא"))) -> לא | K12: =IF(B12="סך הכל",Summary!$B$10,IF(F12="","",IFERROR(VLOOKUP(B12,Count!A:J,8,FALSE),0))) -> 0 | L12: =IF(B12="סך הכל",Summary!$B$11,IF(F12="","",IFERROR(VLOOKUP(B12,Count!A:J,9,FALSE),0))) -> 0 | M12: =IF(B12="סך הכל",Summary!$B$12,IF(F12="","",IFERROR(VLOOKUP(B12,Count!A:J,10,FALSE),0))) -> 0 | N12: סתימה בקו. לא ניתן לדגום; | O12: =IFERROR(VLOOKUP(B12,Comments!A:B,2,FALSE),"") -> סתימה בקו. לא ניתן לדגום;
B13: =IF(AND(B11<>"",ISNUMBER(B11),B12=""),"סך הכל",IF(Planning!A16="","",Planning!A16)) -> 8416 | C13: =IFERROR(_xlfn.IFS(B13="סך הכל",Summary!$B$6,Planning!C16<>"",Planning!C16),"") -> חיים לגזיאל מעדני בשר | D13: =IFERROR(VLOOKUP(B13,Address!B:G,5,FALSE),"") -> התעשייה 14, אור יהודה | E13: =IFERROR(VLOOKUP(B13,Address!B:L,11,FALSE),"") -> משחטות, בתי מטבחיים, בתי נחירה, עיבוד דגים | F13: חטף | G13: =IF(B13="סך הכל",Summary!$B$7,IF(F13="","",IF(VLOOKUP(B13,WQ_UnitID!B:C,2,FALSE)=0,"",VLOOKUP(B13,WQ_UnitID!B:C,2,FALSE)))) -> 457.4821933 | H13: =IF(B13="סך הכל",Summary!$B$8,IF(F13="","",IFERROR(VLOOKUP(B13,Planning!A:B,2,FALSE),0))) -> 4 | I13: =IF(B13="סך הכל",Summary!$B$9,IF(F13="","",IFERROR(VLOOKUP(B13,Count!A:B,2,FALSE),0))) -> 2 | J13: =IF(F13="","",(IF(ISNUMBER(MATCH(B13,ExcPermit!$H$8:$H$1000,0)),"כן","לא"))) -> לא | K13: =IF(B13="סך הכל",Summary!$B$10,IF(F13="","",IFERROR(VLOOKUP(B13,Count!A:J,8,FALSE),0))) -> 2 | L13: =IF(B13="סך הכל",Summary!$B$11,IF(F13="","",IFERROR(VLOOKUP(B13,Count!A:J,9,FALSE),0))) -> 0 | M13: =IF(B13="סך הכל",Summary!$B$12,IF(F13="","",IFERROR(VLOOKUP(B13,Count!A:J,10,FALSE),0))) -> 0 | O13: =IFERROR(VLOOKUP(B13,Comments!A:B,2,FALSE),"") -> 0
B14: =IF(AND(B12<>"",ISNUMBER(B12),B13=""),"סך הכל",IF(Planning!A17="","",Planning!A17)) -> 38926 | C14: =IFERROR(_xlfn.IFS(B14="סך הכל",Summary!$B$6,Planning!C17<>"",Planning!C17),"") -> חיריה | D14: =IFERROR(VLOOKUP(B14,Address!B:G,5,FALSE),"") -> 0 | E14: =IFERROR(VLOOKUP(B14,Address!B:L,11,FALSE),"") -> תחנות מעבר לפסולת | F14: חטף | G14: =IF(B14="סך הכל",Summary!$B$7,IF(F14="","",IF(VLOOKUP(B14,WQ_UnitID!B:C,2,FALSE)=0,"",VLOOKUP(B14,WQ_UnitID!B:C,2,FALSE)))) -> 26969.78689 | H14: =IF(B14="סך הכל",Summary!$B$8,IF(F14="","",IFERROR(VLOOKUP(B14,Planning!A:B,2,FALSE),0))) -> 4 | I14: =IF(B14="סך הכל",Summary!$B$9,IF(F14="","",IFERROR(VLOOKUP(B14,Count!A:B,2,FALSE),0))) -> 4 | J14: =IF(F14="","",(IF(ISNUMBER(MATCH(B14,ExcPermit!$H$8:$H$1000,0)),"כן","לא"))) -> לא | K14: =IF(B14="סך הכל",Summary!$B$10,IF(F14="","",IFERROR(VLOOKUP(B14,Count!A:J,8,FALSE),0))) -> 4 | L14: =IF(B14="סך הכל",Summary!$B$11,IF(F14="","",IFERROR(VLOOKUP(B14,Count!A:J,9,FALSE),0))) -> 4 | M14: =IF(B14="סך הכל",Summary!$B$12,IF(F14="","",IFERROR(VLOOKUP(B14,Count!A:J,10,FALSE),0))) -> 0 | O14: =IFERROR(VLOOKUP(B14,Comments!A:B,2,FALSE),"") -> 0
B15: =IF(AND(B13<>"",ISNUMBER(B13),B14=""),"סך הכל",IF(Planning!A18="","",Planning!A18)) -> 38932 | C15: =IFERROR(_xlfn.IFS(B15="סך הכל",Summary!$B$6,Planning!C18<>"",Planning!C18),"") -> לה סלטה בע"מ | D15: =IFERROR(VLOOKUP(B15,Address!B:G,5,FALSE),"") -> הפלדה 1, אור יהודה | E15: =IFERROR(VLOOKUP(B15,Address!B:L,11,FALSE),"") -> אולמות אירועים, מסעדות, קניונים | F15: חטף | G15: =IF(B15="סך הכל",Summary!$B$7,IF(F15="","",IF(VLOOKUP(B15,WQ_UnitID!B:C,2,FALSE)=0,"",VLOOKUP(B15,WQ_UnitID!B:C,2,FALSE)))) -> 1107.659695 | H15: =IF(B15="סך הכל",Summary!$B$8,IF(F15="","",IFERROR(VLOOKUP(B15,Planning!A:B,2,FALSE),0))) -> 1 | I15: =IF(B15="סך הכל",Summary!$B$9,IF(F15="","",IFERROR(VLOOKUP(B15,Count!A:B,2,FALSE),0))) -> 0 | J15: =IF(F15="","",(IF(ISNUMBER(MATCH(B15,ExcPermit!$H$8:$H$1000,0)),"כן","לא"))) -> לא | K15: =IF(B15="סך הכל",Summary!$B$10,IF(F15="","",IFERROR(VLOOKUP(B15,Count!A:J,8,FALSE),0))) -> 0 | L15: =IF(B15="סך הכל",Summary!$B$11,IF(F15="","",IFERROR(VLOOKUP(B15,Count!A:J,9,FALSE),0))) -> 0 | M15: =IF(B15="סך הכל",Summary!$B$12,IF(F15="","",IFERROR(VLOOKUP(B15,Count!A:J,10,FALSE),0))) -> 0 | O15: =IFERROR(VLOOKUP(B15,Comments!A:B,2,FALSE),"") -> 
B16: =IF(AND(B14<>"",ISNUMBER(B14),B15=""),"סך הכל",IF(Planning!A19="","",Planning!A19)) -> 38950 | C16: =IFERROR(_xlfn.IFS(B16="סך הכל",Summary!$B$6,Planning!C19<>"",Planning!C19),"") -> מ. יוחננוף ובניו בע"מ | D16: =IFERROR(VLOOKUP(B16,Address!B:G,5,FALSE),"") -> המפעל 2, אור יהודה | E16: =IFERROR(VLOOKUP(B16,Address!B:L,11,FALSE),"") -> אולמות אירועים, מסעדות, קניונים | F16: חטף | G16: =IF(B16="סך הכל",Summary!$B$7,IF(F16="","",IF(VLOOKUP(B16,WQ_UnitID!B:C,2,FALSE)=0,"",VLOOKUP(B16,WQ_UnitID!B:C,2,FALSE)))) -> 4571.618711 | H16: =IF(B16="סך הכל",Summary!$B$8,IF(F16="","",IFERROR(VLOOKUP(B16,Planning!A:B,2,FALSE),0))) -> 4 | I16: =IF(B16="סך הכל",Summary!$B$9,IF(F16="","",IFERROR(VLOOKUP(B16,Count!A:B,2,FALSE),0))) -> 1 | J16: =IF(F16="","",(IF(ISNUMBER(MATCH(B16,ExcPermit!$H$8:$H$1000,0)),"כן","לא"))) -> לא | K16: =IF(B16="סך הכל",Summary!$B$10,IF(F16="","",IFERROR(VLOOKUP(B16,Count!A:J,8,FALSE),0))) -> 1 | L16: =IF(B16="סך הכל",Summary!$B$11,IF(F16="","",IFERROR(VLOOKUP(B16,Count!A:J,9,FALSE),0))) -> 1 | M16: =IF(B16="סך הכל",Summary!$B$12,IF(F16="","",IFERROR(VLOOKUP(B16,Count!A:J,10,FALSE),0))) -> 0 | N16: תא דיגום; | O16: =IFERROR(VLOOKUP(B16,Comments!A:B,2,FALSE),"") -> תא דיגום;
B17: =IF(AND(B15<>"",ISNUMBER(B15),B16=""),"סך הכל",IF(Planning!A20="","",Planning!A20)) -> 7993 | C17: =IFERROR(_xlfn.IFS(B17="סך הכל",Summary!$B$6,Planning!C20<>"",Planning!C20),"") -> מאפית וינסטו השלום | D17: =IFERROR(VLOOKUP(B17,Address!B:G,5,FALSE),"") -> היוזמים 10, אור יהודה | E17: =IFERROR(VLOOKUP(B17,Address!B:L,11,FALSE),"") -> מפעלי מזון ומשקאות | F17: חטף | G17: =IF(B17="סך הכל",Summary!$B$7,IF(F17="","",IF(VLOOKUP(B17,WQ_UnitID!B:C,2,FALSE)=0,"",VLOOKUP(B17,WQ_UnitID!B:C,2,FALSE)))) -> 857.5215338 | H17: =IF(B17="סך הכל",Summary!$B$8,IF(F17="","",IFERROR(VLOOKUP(B17,Planning!A:B,2,FALSE),0))) -> 4 | I17: =IF(B17="סך הכל",Summary!$B$9,IF(F17="","",IFERROR(VLOOKUP(B17,Count!A:B,2,FALSE),0))) -> 2 | J17: =IF(F17="","",(IF(ISNUMBER(MATCH(B17,ExcPermit!$H$8:$H$1000,0)),"כן","לא"))) -> לא | K17: =IF(B17="סך הכל",Summary!$B$10,IF(F17="","",IFERROR(VLOOKUP(B17,Count!A:J,8,FALSE),0))) -> 1 | L17: =IF(B17="סך הכל",Summary!$B$11,IF(F17="","",IFERROR(VLOOKUP(B17,Count!A:J,9,FALSE),0))) -> 0 | M17: =IF(B17="סך הכל",Summary!$B$12,IF(F17="","",IFERROR(VLOOKUP(B17,Count!A:J,10,FALSE),0))) -> 1 | O17: =IFERROR(VLOOKUP(B17,Comments!A:B,2,FALSE),"") -> 0
B18: =IF(AND(B16<>"",ISNUMBER(B16),B17=""),"סך הכל",IF(Planning!A21="","",Planning!A21)) -> 29048 | C18: =IFERROR(_xlfn.IFS(B18="סך הכל",Summary!$B$6,Planning!C21<>"",Planning!C21),"") -> מגדלי הים התיכון | D18: =IFERROR(VLOOKUP(B18,Address!B:G,5,FALSE),"") -> האיריס 9, אור יהודה | E18: =IFERROR(VLOOKUP(B18,Address!B:L,11,FALSE),"") -> בתי מלון | F18: חטף | G18: =IF(B18="סך הכל",Summary!$B$7,IF(F18="","",IF(VLOOKUP(B18,WQ_UnitID!B:C,2,FALSE)=0,"",VLOOKUP(B18,WQ_UnitID!B:C,2,FALSE)))) -> 14080.94426 | H18: =IF(B18="סך הכל",Summary!$B$8,IF(F18="","",IFERROR(VLOOKUP(B18,Planning!A:B,2,FALSE),0))) -> 4 | I18: =IF(B18="סך הכל",Summary!$B$9,IF(F18="","",IFERROR(VLOOKUP(B18,Count!A:B,2,FALSE),0))) -> 2 | J18: =IF(F18="","",(IF(ISNUMBER(MATCH(B18,ExcPermit!$H$8:$H$1000,0)),"כן","לא"))) -> לא | K18: =IF(B18="סך הכל",Summary!$B$10,IF(F18="","",IFERROR(VLOOKUP(B18,Count!A:J,8,FALSE),0))) -> 0 | L18: =IF(B18="סך הכל",Summary!$B$11,IF(F18="","",IFERROR(VLOOKUP(B18,Count!A:J,9,FALSE),0))) -> 0 | M18: =IF(B18="סך הכל",Summary!$B$12,IF(F18="","",IFERROR(VLOOKUP(B18,Count!A:J,10,FALSE),0))) -> 2 | O18: =IFERROR(VLOOKUP(B18,Comments!A:B,2,FALSE),"") -> 0
B19: =IF(AND(B17<>"",ISNUMBER(B17),B18=""),"סך הכל",IF(Planning!A22="","",Planning!A22)) -> 8332 | C19: =IFERROR(_xlfn.IFS(B19="סך הכל",Summary!$B$6,Planning!C22<>"",Planning!C22),"") -> מוסך א.מ.ואחיו | D19: =IFERROR(VLOOKUP(B19,Address!B:G,5,FALSE),"") -> הסדנא 4, א.ת. ישן, אור יהודה | E19: =IFERROR(VLOOKUP(B19,Address!B:L,11,FALSE),"") -> מוסכים | F19: חטף | G19: =IF(B19="סך הכל",Summary!$B$7,IF(F19="","",IF(VLOOKUP(B19,WQ_UnitID!B:C,2,FALSE)=0,"",VLOOKUP(B19,WQ_UnitID!B:C,2,FALSE)))) -> 113.9739966 | H19: =IF(B19="סך הכל",Summary!$B$8,IF(F19="","",IFERROR(VLOOKUP(B19,Planning!A:B,2,FALSE),0))) -> 2 | I19: =IF(B19="סך הכל",Summary!$B$9,IF(F19="","",IFERROR(VLOOKUP(B19,Count!A:B,2,FALSE),0))) -> 3 | J19: =IF(F19="","",(IF(ISNUMBER(MATCH(B19,ExcPermit!$H$8:$H$1000,0)),"כן","לא"))) -> לא | K19: =IF(B19="סך הכל",Summary!$B$10,IF(F19="","",IFERROR(VLOOKUP(B19,Count!A:J,8,FALSE),0))) -> 0 | L19: =IF(B19="סך הכל",Summary!$B$11,IF(F19="","",IFERROR(VLOOKUP(B19,Count!A:J,9,FALSE),0))) -> 0 | M19: =IF(B19="סך הכל",Summary!$B$12,IF(F19="","",IFERROR(VLOOKUP(B19,Count!A:J,10,FALSE),0))) -> 0 | N19: סתימה בשוחה העירונית. לא ניתן לדגום;לא בוצע דיגום שוחה סתומה לגמרי;לא ניתן לדגום שוחה סתומה; | O19: =IFERROR(VLOOKUP(B19,Comments!A:B,2,FALSE),"") -> סתימה בשוחה העירונית. לא ניתן לדגום;לא בוצע דיגום שוחה סתומה לגמרי;לא ניתן לדגום שוחה סתומה;
B20: =IF(AND(B18<>"",ISNUMBER(B18),B19=""),"סך הכל",IF(Planning!A23="","",Planning!A23)) -> 7937 | C20: =IFERROR(_xlfn.IFS(B20="סך הכל",Summary!$B$6,Planning!C23<>"",Planning!C23),"") -> מוסך וולבו חנן שפיק | D20: =IFERROR(VLOOKUP(B20,Address!B:G,5,FALSE),"") -> חטיבת אלכסנדרוני 3, אור יהודה | E20: =IFERROR(VLOOKUP(B20,Address!B:L,11,FALSE),"") -> מוסכים | F20: חטף | G20: =IF(B20="סך הכל",Summary!$B$7,IF(F20="","",IF(VLOOKUP(B20,WQ_UnitID!B:C,2,FALSE)=0,"",VLOOKUP(B20,WQ_UnitID!B:C,2,FALSE)))) -> 641.9626908 | H20: =IF(B20="סך הכל",Summary!$B$8,IF(F20="","",IFERROR(VLOOKUP(B20,Planning!A:B,2,FALSE),0))) -> 2 | I20: =IF(B20="סך הכל",Summary!$B$9,IF(F20="","",IFERROR(VLOOKUP(B20,Count!A:B,2,FALSE),0))) -> 2 | J20: =IF(F20="","",(IF(ISNUMBER(MATCH(B20,ExcPermit!$H$8:$H$1000,0)),"כן","לא"))) -> לא | K20: =IF(B20="סך הכל",Summary!$B$10,IF(F20="","",IFERROR(VLOOKUP(B20,Count!A:J,8,FALSE),0))) -> 0 | L20: =IF(B20="סך הכל",Summary!$B$11,IF(F20="","",IFERROR(VLOOKUP(B20,Count!A:J,9,FALSE),0))) -> 2 | M20: =IF(B20="סך הכל",Summary!$B$12,IF(F20="","",IFERROR(VLOOKUP(B20,Count!A:J,10,FALSE),0))) -> 0 | O20: =IFERROR(VLOOKUP(B20,Comments!A:B,2,FALSE),"") -> 0
B21: =IF(AND(B19<>"",ISNUMBER(B19),B20=""),"סך הכל",IF(Planning!A24="","",Planning!A24)) -> 38929 | C21: =IFERROR(_xlfn.IFS(B21="סך הכל",Summary!$B$6,Planning!C24<>"",Planning!C24),"") -> מחנה מש"א | D21: =IFERROR(VLOOKUP(B21,Address!B:G,5,FALSE),"") -> ניקוז בסיס תל השומר | E21: =IFERROR(VLOOKUP(B21,Address!B:L,11,FALSE),"") -> מפעלי ציפוי מתכות וטיפול פני שטח | F21: חטף | G21: =IF(B21="סך הכל",Summary!$B$7,IF(F21="","",IF(VLOOKUP(B21,WQ_UnitID!B:C,2,FALSE)=0,"",VLOOKUP(B21,WQ_UnitID!B:C,2,FALSE)))) -> 208699.8304 | H21: =IF(B21="סך הכל",Summary!$B$8,IF(F21="","",IFERROR(VLOOKUP(B21,Planning!A:B,2,FALSE),0))) -> 2 | I21: =IF(B21="סך הכל",Summary!$B$9,IF(F21="","",IFERROR(VLOOKUP(B21,Count!A:B,2,FALSE),0))) -> 0 | J21: =IF(F21="","",(IF(ISNUMBER(MATCH(B21,ExcPermit!$H$8:$H$1000,0)),"כן","לא"))) -> לא | K21: =IF(B21="סך הכל",Summary!$B$10,IF(F21="","",IFERROR(VLOOKUP(B21,Count!A:J,8,FALSE),0))) -> 0 | L21: =IF(B21="סך הכל",Summary!$B$11,IF(F21="","",IFERROR(VLOOKUP(B21,Count!A:J,9,FALSE),0))) -> 0 | M21: =IF(B21="סך הכל",Summary!$B$12,IF(F21="","",IFERROR(VLOOKUP(B21,Count!A:J,10,FALSE),0))) -> 0 | O21: =IFERROR(VLOOKUP(B21,Comments!A:B,2,FALSE),"") -> 
B22: =IF(AND(B20<>"",ISNUMBER(B20),B21=""),"סך הכל",IF(Planning!A25="","",Planning!A25)) -> 29453 | C22: =IFERROR(_xlfn.IFS(B22="סך הכל",Summary!$B$6,Planning!C25<>"",Planning!C25),"") -> סיטי סטאר | D22: =IFERROR(VLOOKUP(B22,Address!B:G,5,FALSE),"") -> הסדנא 6, אור יהודה | E22: =IFERROR(VLOOKUP(B22,Address!B:L,11,FALSE),"") -> אולמות אירועים, מסעדות, קניונים | F22: חטף | G22: =IF(B22="סך הכל",Summary!$B$7,IF(F22="","",IF(VLOOKUP(B22,WQ_UnitID!B:C,2,FALSE)=0,"",VLOOKUP(B22,WQ_UnitID!B:C,2,FALSE)))) -> 1603.70944 | H22: =IF(B22="סך הכל",Summary!$B$8,IF(F22="","",IFERROR(VLOOKUP(B22,Planning!A:B,2,FALSE),0))) -> 4 | I22: =IF(B22="סך הכל",Summary!$B$9,IF(F22="","",IFERROR(VLOOKUP(B22,Count!A:B,2,FALSE),0))) -> 2 | J22: =IF(F22="","",(IF(ISNUMBER(MATCH(B22,ExcPermit!$H$8:$H$1000,0)),"כן","לא"))) -> לא | K22: =IF(B22="סך הכל",Summary!$B$10,IF(F22="","",IFERROR(VLOOKUP(B22,Count!A:J,8,FALSE),0))) -> 2 | L22: =IF(B22="סך הכל",Summary!$B$11,IF(F22="","",IFERROR(VLOOKUP(B22,Count!A:J,9,FALSE),0))) -> 2 | M22: =IF(B22="סך הכל",Summary!$B$12,IF(F22="","",IFERROR(VLOOKUP(B22,Count!A:J,10,FALSE),0))) -> 0 | O22: =IFERROR(VLOOKUP(B22,Comments!A:B,2,FALSE),"") -> 0
B23: =IF(AND(B21<>"",ISNUMBER(B21),B22=""),"סך הכל",IF(Planning!A26="","",Planning!A26)) -> 7777 | C23: =IFERROR(_xlfn.IFS(B23="סך הכל",Summary!$B$6,Planning!C26<>"",Planning!C26),"") -> עדי קייטרינג | D23: =IFERROR(VLOOKUP(B23,Address!B:G,5,FALSE),"") -> המלאכה 4/2, אור יהודה | E23: =IFERROR(VLOOKUP(B23,Address!B:L,11,FALSE),"") -> מפעלי מזון ומשקאות | F23: חטף | G23: =IF(B23="סך הכל",Summary!$B$7,IF(F23="","",IF(VLOOKUP(B23,WQ_UnitID!B:C,2,FALSE)=0,"",VLOOKUP(B23,WQ_UnitID!B:C,2,FALSE)))) -> 75.92292206 | H23: =IF(B23="סך הכל",Summary!$B$8,IF(F23="","",IFERROR(VLOOKUP(B23,Planning!A:B,2,FALSE),0))) -> 1 | I23: =IF(B23="סך הכל",Summary!$B$9,IF(F23="","",IFERROR(VLOOKUP(B23,Count!A:B,2,FALSE),0))) -> 1 | J23: =IF(F23="","",(IF(ISNUMBER(MATCH(B23,ExcPermit!$H$8:$H$1000,0)),"כן","לא"))) -> לא | K23: =IF(B23="סך הכל",Summary!$B$10,IF(F23="","",IFERROR(VLOOKUP(B23,Count!A:J,8,FALSE),0))) -> 0 | L23: =IF(B23="סך הכל",Summary!$B$11,IF(F23="","",IFERROR(VLOOKUP(B23,Count!A:J,9,FALSE),0))) -> 0 | M23: =IF(B23="סך הכל",Summary!$B$12,IF(F23="","",IFERROR(VLOOKUP(B23,Count!A:J,10,FALSE),0))) -> 0 | N23: העסק סגור. שכנים העידו שעבר בספטמבר לחולון; | O23: =IFERROR(VLOOKUP(B23,Comments!A:B,2,FALSE),"") -> העסק סגור. שכנים העידו שעבר בספטמבר לחולון;
B24: =IF(AND(B22<>"",ISNUMBER(B22),B23=""),"סך הכל",IF(Planning!A27="","",Planning!A27)) -> 32583 | C24: =IFERROR(_xlfn.IFS(B24="סך הכל",Summary!$B$6,Planning!C27<>"",Planning!C27),"") -> עוזי מרכז העוגיות בע"מ (מאפיית הכוהנים) | D24: =IFERROR(VLOOKUP(B24,Address!B:G,5,FALSE),"") -> ההגנה 12, אור יהודה | E24: =IFERROR(VLOOKUP(B24,Address!B:L,11,FALSE),"") -> מפעלי מזון ומשקאות | F24: חטף | G24: =IF(B24="סך הכל",Summary!$B$7,IF(F24="","",IF(VLOOKUP(B24,WQ_UnitID!B:C,2,FALSE)=0,"",VLOOKUP(B24,WQ_UnitID!B:C,2,FALSE)))) -> 343.111645 | H24: =IF(B24="סך הכל",Summary!$B$8,IF(F24="","",IFERROR(VLOOKUP(B24,Planning!A:B,2,FALSE),0))) -> 4 | I24: =IF(B24="סך הכל",Summary!$B$9,IF(F24="","",IFERROR(VLOOKUP(B24,Count!A:B,2,FALSE),0))) -> 2 | J24: =IF(F24="","",(IF(ISNUMBER(MATCH(B24,ExcPermit!$H$8:$H$1000,0)),"כן","לא"))) -> לא | K24: =IF(B24="סך הכל",Summary!$B$10,IF(F24="","",IFERROR(VLOOKUP(B24,Count!A:J,8,FALSE),0))) -> 2 | L24: =IF(B24="סך הכל",Summary!$B$11,IF(F24="","",IFERROR(VLOOKUP(B24,Count!A:J,9,FALSE),0))) -> 2 | M24: =IF(B24="סך הכל",Summary!$B$12,IF(F24="","",IFERROR(VLOOKUP(B24,Count!A:J,10,FALSE),0))) -> 0 | O24: =IFERROR(VLOOKUP(B24,Comments!A:B,2,FALSE),"") -> 0
B25: =IF(AND(B23<>"",ISNUMBER(B23),B24=""),"סך הכל",IF(Planning!A28="","",Planning!A28)) -> 29939 | C25: =IFERROR(_xlfn.IFS(B25="סך הכל",Summary!$B$6,Planning!C28<>"",Planning!C28),"") -> פארק אריאל שרון | D25: =IFERROR(VLOOKUP(B25,Address!B:G,5,FALSE),"") -> אתר חיריה כביש 4 ליד מחלף גנות | E25: =IFERROR(VLOOKUP(B25,Address!B:L,11,FALSE),"") -> תחנות מעבר לפסולת | F25: חטף | G25: =IF(B25="סך הכל",Summary!$B$7,IF(F25="","",IF(VLOOKUP(B25,WQ_UnitID!B:C,2,FALSE)=0,"",VLOOKUP(B25,WQ_UnitID!B:C,2,FALSE)))) -> 28900.88525 | H25: =IF(B25="סך הכל",Summary!$B$8,IF(F25="","",IFERROR(VLOOKUP(B25,Planning!A:B,2,FALSE),0))) -> 5 | I25: =IF(B25="סך הכל",Summary!$B$9,IF(F25="","",IFERROR(VLOOKUP(B25,Count!A:B,2,FALSE),0))) -> 2 | J25: =IF(F25="","",(IF(ISNUMBER(MATCH(B25,ExcPermit!$H$8:$H$1000,0)),"כן","לא"))) -> לא | K25: =IF(B25="סך הכל",Summary!$B$10,IF(F25="","",IFERROR(VLOOKUP(B25,Count!A:J,8,FALSE),0))) -> 2 | L25: =IF(B25="סך הכל",Summary!$B$11,IF(F25="","",IFERROR(VLOOKUP(B25,Count!A:J,9,FALSE),0))) -> 2 | M25: =IF(B25="סך הכל",Summary!$B$12,IF(F25="","",IFERROR(VLOOKUP(B25,Count!A:J,10,FALSE),0))) -> 0 | O25: =IFERROR(VLOOKUP(B25,Comments!A:B,2,FALSE),"") -> 0
B26: =IF(AND(B24<>"",ISNUMBER(B24),B25=""),"סך הכל",IF(Planning!A29="","",Planning!A29)) -> 8378 | C26: =IFERROR(_xlfn.IFS(B26="סך הכל",Summary!$B$6,Planning!C29<>"",Planning!C29),"") -> קייטרינג עבדאללה ובניו | D26: =IFERROR(VLOOKUP(B26,Address!B:G,5,FALSE),"") -> הסדנא 12/5 , א. ת. אור יהודה | E26: =IFERROR(VLOOKUP(B26,Address!B:L,11,FALSE),"") -> אולמות אירועים, מסעדות, קניונים | F26: חטף | G26: =IF(B26="סך הכל",Summary!$B$7,IF(F26="","",IF(VLOOKUP(B26,WQ_UnitID!B:C,2,FALSE)=0,"",VLOOKUP(B26,WQ_UnitID!B:C,2,FALSE)))) -> 590.6331261 | H26: =IF(B26="סך הכל",Summary!$B$8,IF(F26="","",IFERROR(VLOOKUP(B26,Planning!A:B,2,FALSE),0))) -> 4 | I26: =IF(B26="סך הכל",Summary!$B$9,IF(F26="","",IFERROR(VLOOKUP(B26,Count!A:B,2,FALSE),0))) -> 3 | J26: =IF(F26="","",(IF(ISNUMBER(MATCH(B26,ExcPermit!$H$8:$H$1000,0)),"כן","לא"))) -> לא | K26: =IF(B26="סך הכל",Summary!$B$10,IF(F26="","",IFERROR(VLOOKUP(B26,Count!A:J,8,FALSE),0))) -> 1 | L26: =IF(B26="סך הכל",Summary!$B$11,IF(F26="","",IFERROR(VLOOKUP(B26,Count!A:J,9,FALSE),0))) -> 0 | M26: =IF(B26="סך הכל",Summary!$B$12,IF(F26="","",IFERROR(VLOOKUP(B26,Count!A:J,10,FALSE),0))) -> 1 | N26: לא בוצע דיגום | O26: =IFERROR(VLOOKUP(B26,Comments!A:B,2,FALSE),"") -> לא בוצע דיגום
B27: =IF(AND(B25<>"",ISNUMBER(B25),B26=""),"סך הכל",IF(Planning!A30="","",Planning!A30)) -> 38935 | C27: =IFERROR(_xlfn.IFS(B27="סך הכל",Summary!$B$6,Planning!C30<>"",Planning!C30),"") -> שיראל גלאט כשר בע"מ (מסעדת פארוק) | D27: =IFERROR(VLOOKUP(B27,Address!B:G,5,FALSE),"") -> שד בן פורת מרדכי 70, אור יהודה | E27: =IFERROR(VLOOKUP(B27,Address!B:L,11,FALSE),"") -> אולמות אירועים, מסעדות, קניונים | F27: חטף | G27: =IF(B27="סך הכל",Summary!$B$7,IF(F27="","",IF(VLOOKUP(B27,WQ_UnitID!B:C,2,FALSE)=0,"",VLOOKUP(B27,WQ_UnitID!B:C,2,FALSE)))) -> 1564.354839 | H27: =IF(B27="סך הכל",Summary!$B$8,IF(F27="","",IFERROR(VLOOKUP(B27,Planning!A:B,2,FALSE),0))) -> 4 | I27: =IF(B27="סך הכל",Summary!$B$9,IF(F27="","",IFERROR(VLOOKUP(B27,Count!A:B,2,FALSE),0))) -> 1 | J27: =IF(F27="","",(IF(ISNUMBER(MATCH(B27,ExcPermit!$H$8:$H$1000,0)),"כן","לא"))) -> לא | K27: =IF(B27="סך הכל",Summary!$B$10,IF(F27="","",IFERROR(VLOOKUP(B27,Count!A:J,8,FALSE),0))) -> 0 | L27: =IF(B27="סך הכל",Summary!$B$11,IF(F27="","",IFERROR(VLOOKUP(B27,Count!A:J,9,FALSE),0))) -> 0 | M27: =IF(B27="סך הכל",Summary!$B$12,IF(F27="","",IFERROR(VLOOKUP(B27,Count!A:J,10,FALSE),0))) -> 0 | N27: לא ניתן לדגום, השוחה חסומה וגם איזור של המפתח; | O27: =IFERROR(VLOOKUP(B27,Comments!A:B,2,FALSE),"") -> לא ניתן לדגום, השוחה חסומה וגם איזור של המפתח;
B28: =IF(AND(B26<>"",ISNUMBER(B26),B27=""),"סך הכל",IF(Planning!A31="","",Planning!A31)) -> 28548 | C28: =IFERROR(_xlfn.IFS(B28="סך הכל",Summary!$B$6,Planning!C31<>"",Planning!C31),"") -> תחנת דלק פז אור יהודה | D28: =IFERROR(VLOOKUP(B28,Address!B:G,5,FALSE),"") -> יונתן נתניהו 6, אור יהודה | E28: =IFERROR(VLOOKUP(B28,Address!B:L,11,FALSE),"") -> תחנות תדלוק | F28: חטף | G28: =IF(B28="סך הכל",Summary!$B$7,IF(F28="","",IF(VLOOKUP(B28,WQ_UnitID!B:C,2,FALSE)=0,"",VLOOKUP(B28,WQ_UnitID!B:C,2,FALSE)))) ->  | H28: =IF(B28="סך הכל",Summary!$B$8,IF(F28="","",IFERROR(VLOOKUP(B28,Planning!A:B,2,FALSE),0))) -> 2 | I28: =IF(B28="סך הכל",Summary!$B$9,IF(F28="","",IFERROR(VLOOKUP(B28,Count!A:B,2,FALSE),0))) -> 1 | J28: =IF(F28="","",(IF(ISNUMBER(MATCH(B28,ExcPermit!$H$8:$H$1000,0)),"כן","לא"))) -> לא | K28: =IF(B28="סך הכל",Summary!$B$10,IF(F28="","",IFERROR(VLOOKUP(B28,Count!A:J,8,FALSE),0))) -> 0 | L28: =IF(B28="סך הכל",Summary!$B$11,IF(F28="","",IFERROR(VLOOKUP(B28,Count!A:J,9,FALSE),0))) -> 0 | M28: =IF(B28="סך הכל",Summary!$B$12,IF(F28="","",IFERROR(VLOOKUP(B28,Count!A:J,10,FALSE),0))) -> 1 | O28: =IFERROR(VLOOKUP(B28,Comments!A:B,2,FALSE),"") -> 0
B29: =IF(AND(B27<>"",ISNUMBER(B27),B28=""),"סך הכל",IF(Planning!A32="","",Planning!A32)) -> 8277 | C29: =IFERROR(_xlfn.IFS(B29="סך הכל",Summary!$B$6,Planning!C32<>"",Planning!C32),"") -> תחנת תדלוק דור אלון | D29: =IFERROR(VLOOKUP(B29,Address!B:G,5,FALSE),"") -> החרושת 27, א.ת. חדש, אור יהודה | E29: =IFERROR(VLOOKUP(B29,Address!B:L,11,FALSE),"") -> תחנות תדלוק | F29: חטף | G29: =IF(B29="סך הכל",Summary!$B$7,IF(F29="","",IF(VLOOKUP(B29,WQ_UnitID!B:C,2,FALSE)=0,"",VLOOKUP(B29,WQ_UnitID!B:C,2,FALSE)))) -> 190.9547096 | H29: =IF(B29="סך הכל",Summary!$B$8,IF(F29="","",IFERROR(VLOOKUP(B29,Planning!A:B,2,FALSE),0))) -> 1 | I29: =IF(B29="סך הכל",Summary!$B$9,IF(F29="","",IFERROR(VLOOKUP(B29,Count!A:B,2,FALSE),0))) -> 1 | J29: =IF(F29="","",(IF(ISNUMBER(MATCH(B29,ExcPermit!$H$8:$H$1000,0)),"כן","לא"))) -> לא | K29: =IF(B29="סך הכל",Summary!$B$10,IF(F29="","",IFERROR(VLOOKUP(B29,Count!A:J,8,FALSE),0))) -> 0 | L29: =IF(B29="סך הכל",Summary!$B$11,IF(F29="","",IFERROR(VLOOKUP(B29,Count!A:J,9,FALSE),0))) -> 0 | M29: =IF(B29="סך הכל",Summary!$B$12,IF(F29="","",IFERROR(VLOOKUP(B29,Count!A:J,10,FALSE),0))) -> 1 | O29: =IFERROR(VLOOKUP(B29,Comments!A:B,2,FALSE),"") -> 0
B30: =IF(AND(B28<>"",ISNUMBER(B28),B29=""),"סך הכל",IF(Planning!A33="","",Planning!A33)) -> 8110 | C30: =IFERROR(_xlfn.IFS(B30="סך הכל",Summary!$B$6,Planning!C33<>"",Planning!C33),"") -> תחנת תדלוק סונול קרן | D30: =IFERROR(VLOOKUP(B30,Address!B:G,5,FALSE),"") -> החרושת 2, אור יהודה | E30: =IFERROR(VLOOKUP(B30,Address!B:L,11,FALSE),"") -> תחנות תדלוק | F30: חטף | G30: =IF(B30="סך הכל",Summary!$B$7,IF(F30="","",IF(VLOOKUP(B30,WQ_UnitID!B:C,2,FALSE)=0,"",VLOOKUP(B30,WQ_UnitID!B:C,2,FALSE)))) -> 325.7713254 | H30: =IF(B30="סך הכל",Summary!$B$8,IF(F30="","",IFERROR(VLOOKUP(B30,Planning!A:B,2,FALSE),0))) -> 1 | I30: =IF(B30="סך הכל",Summary!$B$9,IF(F30="","",IFERROR(VLOOKUP(B30,Count!A:B,2,FALSE),0))) -> 1 | J30: =IF(F30="","",(IF(ISNUMBER(MATCH(B30,ExcPermit!$H$8:$H$1000,0)),"כן","לא"))) -> לא | K30: =IF(B30="סך הכל",Summary!$B$10,IF(F30="","",IFERROR(VLOOKUP(B30,Count!A:J,8,FALSE),0))) -> 0 | L30: =IF(B30="סך הכל",Summary!$B$11,IF(F30="","",IFERROR(VLOOKUP(B30,Count!A:J,9,FALSE),0))) -> 0 | M30: =IF(B30="סך הכל",Summary!$B$12,IF(F30="","",IFERROR(VLOOKUP(B30,Count!A:J,10,FALSE),0))) -> 1 | O30: =IFERROR(VLOOKUP(B30,Comments!A:B,2,FALSE),"") -> 0
B31: =IF(AND(B29<>"",ISNUMBER(B29),B30=""),"סך הכל",IF(Planning!A34="","",Planning!A34)) ->  | C31: =IFERROR(_xlfn.IFS(B31="סך הכל",Summary!$B$6,Planning!C34<>"",Planning!C34),"") ->  | D31: =IFERROR(VLOOKUP(B31,Address!B:G,5,FALSE),"") ->  | E31: =IFERROR(VLOOKUP(B31,Address!B:L,11,FALSE),"") ->  | G31: =IF(B31="סך הכל",Summary!$B$7,IF(F31="","",IF(VLOOKUP(B31,WQ_UnitID!B:C,2,FALSE)=0,"",VLOOKUP(B31,WQ_UnitID!B:C,2,FALSE)))) ->  | H31: =IF(B31="סך הכל",Summary!$B$8,IF(F31="","",IFERROR(VLOOKUP(B31,Planning!A:B,2,FALSE),0))) ->  | I31: =IF(B31="סך הכל",Summary!$B$9,IF(F31="","",IFERROR(VLOOKUP(B31,Count!A:B,2,FALSE),0))) ->  | J31: =IF(F31="","",(IF(ISNUMBER(MATCH(B31,ExcPermit!$H$8:$H$1000,0)),"כן","לא"))) ->  | K31: =IF(B31="סך הכל",Summary!$B$10,IF(F31="","",IFERROR(VLOOKUP(B31,Count!A:J,8,FALSE),0))) ->  | L31: =IF(B31="סך הכל",Summary!$B$11,IF(F31="","",IFERROR(VLOOKUP(B31,Count!A:J,9,FALSE),0))) ->  | M31: =IF(B31="סך הכל",Summary!$B$12,IF(F31="","",IFERROR(VLOOKUP(B31,Count!A:J,10,FALSE),0))) ->  | O31: =IFERROR(VLOOKUP(B31,Comments!A:B,2,FALSE),"") -> 
B32: =IF(AND(B30<>"",ISNUMBER(B30),B31=""),"סך הכל",IF(Planning!A35="","",Planning!A35)) -> סך הכל | C32: =IFERROR(_xlfn.IFS(B32="סך הכל",Summary!$B$6,Planning!C35<>"",Planning!C35),"") -> 26 מפעלים | D32: =IFERROR(VLOOKUP(B32,Address!B:G,5,FALSE),"") ->  | E32: =IFERROR(VLOOKUP(B32,Address!B:L,11,FALSE),"") ->  | G32: =IF(B32="סך הכל",Summary!$B$7,IF(F32="","",IF(VLOOKUP(B32,WQ_UnitID!B:C,2,FALSE)=0,"",VLOOKUP(B32,WQ_UnitID!B:C,2,FALSE)))) -> 314200.6969 | H32: =IF(B32="סך הכל",Summary!$B$8,IF(F32="","",IFERROR(VLOOKUP(B32,Planning!A:B,2,FALSE),0))) -> 78 | I32: =IF(B32="סך הכל",Summary!$B$9,IF(F32="","",IFERROR(VLOOKUP(B32,Count!A:B,2,FALSE),0))) -> 43 | J32: =IF(F32="","",(IF(ISNUMBER(MATCH(B32,ExcPermit!$H$8:$H$1000,0)),"כן","לא"))) ->  | K32: =IF(B32="סך הכל",Summary!$B$10,IF(F32="","",IFERROR(VLOOKUP(B32,Count!A:J,8,FALSE),0))) -> 22 | L32: =IF(B32="סך הכל",Summary!$B$11,IF(F32="","",IFERROR(VLOOKUP(B32,Count!A:J,9,FALSE),0))) -> 15 | M32: =IF(B32="סך הכל",Summary!$B$12,IF(F32="","",IFERROR(VLOOKUP(B32,Count!A:J,10,FALSE),0))) -> 8 | O32: =IFERROR(VLOOKUP(B32,Comments!A:B,2,FALSE),"") -> 
B33: =IF(AND(B31<>"",ISNUMBER(B31),B32=""),"סך הכל",IF(Planning!A36="","",Planning!A36)) ->  | C33: =IFERROR(_xlfn.IFS(B33="סך הכל",Summary!$B$6,Planning!C36<>"",Planning!C36),"") ->  | D33: =IFERROR(VLOOKUP(B33,Address!B:G,5,FALSE),"") ->  | E33: =IFERROR(VLOOKUP(B33,Address!B:L,11,FALSE),"") ->  | G33: =IF(B33="סך הכל",Summary!$B$7,IF(F33="","",IF(VLOOKUP(B33,WQ_UnitID!B:C,2,FALSE)=0,"",VLOOKUP(B33,WQ_UnitID!B:C,2,FALSE)))) ->  | H33: =IF(B33="סך הכל",Summary!$B$8,IF(F33="","",IFERROR(VLOOKUP(B33,Planning!A:B,2,FALSE),0))) ->  | I33: =IF(B33="סך הכל",Summary!$B$9,IF(F33="","",IFERROR(VLOOKUP(B33,Count!A:B,2,FALSE),0))) ->  | J33: =IF(F33="","",(IF(ISNUMBER(MATCH(B33,ExcPermit!$H$8:$H$1000,0)),"כן","לא"))) ->  | K33: =IF(B33="סך הכל",Summary!$B$10,IF(F33="","",IFERROR(VLOOKUP(B33,Count!A:J,8,FALSE),0))) ->  | L33: =IF(B33="סך הכל",Summary!$B$11,IF(F33="","",IFERROR(VLOOKUP(B33,Count!A:J,9,FALSE),0))) ->  | M33: =IF(B33="סך הכל",Summary!$B$12,IF(F33="","",IFERROR(VLOOKUP(B33,Count!A:J,10,FALSE),0))) ->  | O33: =IFERROR(VLOOKUP(B33,Comments!A:B,2,FALSE),"") -> 
B34: =IF(AND(B32<>"",ISNUMBER(B32),B33=""),"סך הכל",IF(Planning!A37="","",Planning!A37)) ->  | C34: =IFERROR(_xlfn.IFS(B34="סך הכל",Summary!$B$6,Planning!C37<>"",Planning!C37),"") ->  | D34: =IFERROR(VLOOKUP(B34,Address!B:G,5,FALSE),"") ->  | E34: =IFERROR(VLOOKUP(B34,Address!B:L,11,FALSE),"") ->  | G34: =IF(B34="סך הכל",Summary!$B$7,IF(F34="","",IF(VLOOKUP(B34,WQ_UnitID!B:C,2,FALSE)=0,"",VLOOKUP(B34,WQ_UnitID!B:C,2,FALSE)))) ->  | H34: =IF(B34="סך הכל",Summary!$B$8,IF(F34="","",IFERROR(VLOOKUP(B34,Planning!A:B,2,FALSE),0))) ->  | I34: =IF(B34="סך הכל",Summary!$B$9,IF(F34="","",IFERROR(VLOOKUP(B34,Count!A:B,2,FALSE),0))) ->  | J34: =IF(F34="","",(IF(ISNUMBER(MATCH(B34,ExcPermit!$H$8:$H$1000,0)),"כן","לא"))) ->  | K34: =IF(B34="סך הכל",Summary!$B$10,IF(F34="","",IFERROR(VLOOKUP(B34,Count!A:J,8,FALSE),0))) ->  | L34: =IF(B34="סך הכל",Summary!$B$11,IF(F34="","",IFERROR(VLOOKUP(B34,Count!A:J,9,FALSE),0))) ->  | M34: =IF(B34="סך הכל",Summary!$B$12,IF(F34="","",IFERROR(VLOOKUP(B34,Count!A:J,10,FALSE),0))) ->  | O34: =IFERROR(VLOOKUP(B34,Comments!A:B,2,FALSE),"") -> 
B35: =IF(AND(B33<>"",ISNUMBER(B33),B34=""),"סך הכל",IF(Planning!A38="","",Planning!A38)) ->  | C35: =IFERROR(_xlfn.IFS(B35="סך הכל",Summary!$B$6,Planning!C38<>"",Planning!C38),"") ->  | D35: =IFERROR(VLOOKUP(B35,Address!B:G,5,FALSE),"") ->  | E35: =IFERROR(VLOOKUP(B35,Address!B:L,11,FALSE),"") ->  | G35: =IF(B35="סך הכל",Summary!$B$7,IF(F35="","",IF(VLOOKUP(B35,WQ_UnitID!B:C,2,FALSE)=0,"",VLOOKUP(B35,WQ_UnitID!B:C,2,FALSE)))) ->  | H35: =IF(B35="סך הכל",Summary!$B$8,IF(F35="","",IFERROR(VLOOKUP(B35,Planning!A:B,2,FALSE),0))) ->  | I35: =IF(B35="סך הכל",Summary!$B$9,IF(F35="","",IFERROR(VLOOKUP(B35,Count!A:B,2,FALSE),0))) ->  | J35: =IF(F35="","",(IF(ISNUMBER(MATCH(B35,ExcPermit!$H$8:$H$1000,0)),"כן","לא"))) ->  | K35: =IF(B35="סך הכל",Summary!$B$10,IF(F35="","",IFERROR(VLOOKUP(B35,Count!A:J,8,FALSE),0))) ->  | L35: =IF(B35="סך הכל",Summary!$B$11,IF(F35="","",IFERROR(VLOOKUP(B35,Count!A:J,9,FALSE),0))) ->  | M35: =IF(B35="סך הכל",Summary!$B$12,IF(F35="","",IFERROR(VLOOKUP(B35,Count!A:J,10,FALSE),0))) ->  | O35: =IFERROR(VLOOKUP(B35,Comments!A:B,2,FALSE),"") -> 
B36: =IF(AND(B34<>"",ISNUMBER(B34),B35=""),"סך הכל",IF(Planning!A39="","",Planning!A39)) ->  | C36: =IFERROR(_xlfn.IFS(B36="סך הכל",Summary!$B$6,Planning!C39<>"",Planning!C39),"") ->  | D36: =IFERROR(VLOOKUP(B36,Address!B:G,5,FALSE),"") ->  | E36: =IFERROR(VLOOKUP(B36,Address!B:L,11,FALSE),"") ->  | G36: =IF(B36="סך הכל",Summary!$B$7,IF(F36="","",IF(VLOOKUP(B36,WQ_UnitID!B:C,2,FALSE)=0,"",VLOOKUP(B36,WQ_UnitID!B:C,2,FALSE)))) ->  | H36: =IF(B36="סך הכל",Summary!$B$8,IF(F36="","",IFERROR(VLOOKUP(B36,Planning!A:B,2,FALSE),0))) ->  | I36: =IF(B36="סך הכל",Summary!$B$9,IF(F36="","",IFERROR(VLOOKUP(B36,Count!A:B,2,FALSE),0))) ->  | J36: =IF(F36="","",(IF(ISNUMBER(MATCH(B36,ExcPermit!$H$8:$H$1000,0)),"כן","לא"))) ->  | K36: =IF(B36="סך הכל",Summary!$B$10,IF(F36="","",IFERROR(VLOOKUP(B36,Count!A:J,8,FALSE),0))) ->  | L36: =IF(B36="סך הכל",Summary!$B$11,IF(F36="","",IFERROR(VLOOKUP(B36,Count!A:J,9,FALSE),0))) ->  | M36: =IF(B36="סך הכל",Summary!$B$12,IF(F36="","",IFERROR(VLOOKUP(B36,Count!A:J,10,FALSE),0))) ->  | O36: =IFERROR(VLOOKUP(B36,Comments!A:B,2,FALSE),"") -> 
B37: =IF(AND(B35<>"",ISNUMBER(B35),B36=""),"סך הכל",IF(Planning!A40="","",Planning!A40)) ->  | C37: =IFERROR(_xlfn.IFS(B37="סך הכל",Summary!$B$6,Planning!C40<>"",Planning!C40),"") ->  | D37: =IFERROR(VLOOKUP(B37,Address!B:G,5,FALSE),"") ->  | E37: =IFERROR(VLOOKUP(B37,Address!B:L,11,FALSE),"") ->  | G37: =IF(B37="סך הכל",Summary!$B$7,IF(F37="","",IF(VLOOKUP(B37,WQ_UnitID!B:C,2,FALSE)=0,"",VLOOKUP(B37,WQ_UnitID!B:C,2,FALSE)))) ->  | H37: =IF(B37="סך הכל",Summary!$B$8,IF(F37="","",IFERROR(VLOOKUP(B37,Planning!A:B,2,FALSE),0))) ->  | I37: =IF(B37="סך הכל",Summary!$B$9,IF(F37="","",IFERROR(VLOOKUP(B37,Count!A:B,2,FALSE),0))) ->  | J37: =IF(F37="","",(IF(ISNUMBER(MATCH(B37,ExcPermit!$H$8:$H$1000,0)),"כן","לא"))) ->  | K37: =IF(B37="סך הכל",Summary!$B$10,IF(F37="","",IFERROR(VLOOKUP(B37,Count!A:J,8,FALSE),0))) ->  | L37: =IF(B37="סך הכל",Summary!$B$11,IF(F37="","",IFERROR(VLOOKUP(B37,Count!A:J,9,FALSE),0))) ->  | M37: =IF(B37="סך הכל",Summary!$B$12,IF(F37="","",IFERROR(VLOOKUP(B37,Count!A:J,10,FALSE),0))) ->  | O37: =IFERROR(VLOOKUP(B37,Comments!A:B,2,FALSE),"") -> 
B38: =IF(AND(B36<>"",ISNUMBER(B36),B37=""),"סך הכל",IF(Planning!A41="","",Planning!A41)) ->  | C38: =IFERROR(_xlfn.IFS(B38="סך הכל",Summary!$B$6,Planning!C41<>"",Planning!C41),"") ->  | D38: =IFERROR(VLOOKUP(B38,Address!B:G,5,FALSE),"") ->  | E38: =IFERROR(VLOOKUP(B38,Address!B:L,11,FALSE),"") ->  | G38: =IF(B38="סך הכל",Summary!$B$7,IF(F38="","",IF(VLOOKUP(B38,WQ_UnitID!B:C,2,FALSE)=0,"",VLOOKUP(B38,WQ_UnitID!B:C,2,FALSE)))) ->  | H38: =IF(B38="סך הכל",Summary!$B$8,IF(F38="","",IFERROR(VLOOKUP(B38,Planning!A:B,2,FALSE),0))) ->  | I38: =IF(B38="סך הכל",Summary!$B$9,IF(F38="","",IFERROR(VLOOKUP(B38,Count!A:B,2,FALSE),0))) ->  | J38: =IF(F38="","",(IF(ISNUMBER(MATCH(B38,ExcPermit!$H$8:$H$1000,0)),"כן","לא"))) ->  | K38: =IF(B38="סך הכל",Summary!$B$10,IF(F38="","",IFERROR(VLOOKUP(B38,Count!A:J,8,FALSE),0))) ->  | L38: =IF(B38="סך הכל",Summary!$B$11,IF(F38="","",IFERROR(VLOOKUP(B38,Count!A:J,9,FALSE),0))) ->  | M38: =IF(B38="סך הכל",Summary!$B$12,IF(F38="","",IFERROR(VLOOKUP(B38,Count!A:J,10,FALSE),0))) ->  | O38: =IFERROR(VLOOKUP(B38,Comments!A:B,2,FALSE),"") -> 
B39: =IF(AND(B37<>"",ISNUMBER(B37),B38=""),"סך הכל",IF(Planning!A42="","",Planning!A42)) ->  | C39: =IFERROR(_xlfn.IFS(B39="סך הכל",Summary!$B$6,Planning!C42<>"",Planning!C42),"") ->  | D39: =IFERROR(VLOOKUP(B39,Address!B:G,5,FALSE),"") ->  | E39: =IFERROR(VLOOKUP(B39,Address!B:L,11,FALSE),"") ->  | G39: =IF(B39="סך הכל",Summary!$B$7,IF(F39="","",IF(VLOOKUP(B39,WQ_UnitID!B:C,2,FALSE)=0,"",VLOOKUP(B39,WQ_UnitID!B:C,2,FALSE)))) ->  | H39: =IF(B39="סך הכל",Summary!$B$8,IF(F39="","",IFERROR(VLOOKUP(B39,Planning!A:B,2,FALSE),0))) ->  | I39: =IF(B39="סך הכל",Summary!$B$9,IF(F39="","",IFERROR(VLOOKUP(B39,Count!A:B,2,FALSE),0))) ->  | J39: =IF(F39="","",(IF(ISNUMBER(MATCH(B39,ExcPermit!$H$8:$H$1000,0)),"כן","לא"))) ->  | K39: =IF(B39="סך הכל",Summary!$B$10,IF(F39="","",IFERROR(VLOOKUP(B39,Count!A:J,8,FALSE),0))) ->  | L39: =IF(B39="סך הכל",Summary!$B$11,IF(F39="","",IFERROR(VLOOKUP(B39,Count!A:J,9,FALSE),0))) ->  | M39: =IF(B39="סך הכל",Summary!$B$12,IF(F39="","",IFERROR(VLOOKUP(B39,Count!A:J,10,FALSE),0))) ->  | O39: =IFERROR(VLOOKUP(B39,Comments!A:B,2,FALSE),"") -> 
B40: =IF(AND(B38<>"",ISNUMBER(B38),B39=""),"סך הכל",IF(Planning!A43="","",Planning!A43)) ->  | C40: =IFERROR(_xlfn.IFS(B40="סך הכל",Summary!$B$6,Planning!C43<>"",Planning!C43),"") ->  | D40: =IFERROR(VLOOKUP(B40,Address!B:G,5,FALSE),"") ->  | E40: =IFERROR(VLOOKUP(B40,Address!B:L,11,FALSE),"") ->  | G40: =IF(B40="סך הכל",Summary!$B$7,IF(F40="","",IF(VLOOKUP(B40,WQ_UnitID!B:C,2,FALSE)=0,"",VLOOKUP(B40,WQ_UnitID!B:C,2,FALSE)))) ->  | H40: =IF(B40="סך הכל",Summary!$B$8,IF(F40="","",IFERROR(VLOOKUP(B40,Planning!A:B,2,FALSE),0))) ->  | I40: =IF(B40="סך הכל",Summary!$B$9,IF(F40="","",IFERROR(VLOOKUP(B40,Count!A:B,2,FALSE),0))) ->  | J40: =IF(F40="","",(IF(ISNUMBER(MATCH(B40,ExcPermit!$H$8:$H$1000,0)),"כן","לא"))) ->  | K40: =IF(B40="סך הכל",Summary!$B$10,IF(F40="","",IFERROR(VLOOKUP(B40,Count!A:J,8,FALSE),0))) ->  | L40: =IF(B40="סך הכל",Summary!$B$11,IF(F40="","",IFERROR(VLOOKUP(B40,Count!A:J,9,FALSE),0))) ->  | M40: =IF(B40="סך הכל",Summary!$B$12,IF(F40="","",IFERROR(VLOOKUP(B40,Count!A:J,10,FALSE),0))) ->  | O40: =IFERROR(VLOOKUP(B40,Comments!A:B,2,FALSE),"") -> 
B41: =IF(AND(B39<>"",ISNUMBER(B39),B40=""),"סך הכל",IF(Planning!A44="","",Planning!A44)) ->  | C41: =IFERROR(_xlfn.IFS(B41="סך הכל",Summary!$B$6,Planning!C44<>"",Planning!C44),"") ->  | D41: =IFERROR(VLOOKUP(B41,Address!B:G,5,FALSE),"") ->  | E41: =IFERROR(VLOOKUP(B41,Address!B:L,11,FALSE),"") ->  | G41: =IF(B41="סך הכל",Summary!$B$7,IF(F41="","",IF(VLOOKUP(B41,WQ_UnitID!B:C,2,FALSE)=0,"",VLOOKUP(B41,WQ_UnitID!B:C,2,FALSE)))) ->  | H41: =IF(B41="סך הכל",Summary!$B$8,IF(F41="","",IFERROR(VLOOKUP(B41,Planning!A:B,2,FALSE),0))) ->  | I41: =IF(B41="סך הכל",Summary!$B$9,IF(F41="","",IFERROR(VLOOKUP(B41,Count!A:B,2,FALSE),0))) ->  | J41: =IF(F41="","",(IF(ISNUMBER(MATCH(B41,ExcPermit!$H$8:$H$1000,0)),"כן","לא"))) ->  | K41: =IF(B41="סך הכל",Summary!$B$10,IF(F41="","",IFERROR(VLOOKUP(B41,Count!A:J,8,FALSE),0))) ->  | L41: =IF(B41="סך הכל",Summary!$B$11,IF(F41="","",IFERROR(VLOOKUP(B41,Count!A:J,9,FALSE),0))) ->  | M41: =IF(B41="סך הכל",Summary!$B$12,IF(F41="","",IFERROR(VLOOKUP(B41,Count!A:J,10,FALSE),0))) ->  | O41: =IFERROR(VLOOKUP(B41,Comments!A:B,2,FALSE),"") -> 
B42: =IF(AND(B40<>"",ISNUMBER(B40),B41=""),"סך הכל",IF(Planning!A45="","",Planning!A45)) ->  | C42: =IFERROR(_xlfn.IFS(B42="סך הכל",Summary!$B$6,Planning!C45<>"",Planning!C45),"") ->  | D42: =IFERROR(VLOOKUP(B42,Address!B:G,5,FALSE),"") ->  | E42: =IFERROR(VLOOKUP(B42,Address!B:L,11,FALSE),"") ->  | G42: =IF(B42="סך הכל",Summary!$B$7,IF(F42="","",IF(VLOOKUP(B42,WQ_UnitID!B:C,2,FALSE)=0,"",VLOOKUP(B42,WQ_UnitID!B:C,2,FALSE)))) ->  | H42: =IF(B42="סך הכל",Summary!$B$8,IF(F42="","",IFERROR(VLOOKUP(B42,Planning!A:B,2,FALSE),0))) ->  | I42: =IF(B42="סך הכל",Summary!$B$9,IF(F42="","",IFERROR(VLOOKUP(B42,Count!A:B,2,FALSE),0))) ->  | J42: =IF(F42="","",(IF(ISNUMBER(MATCH(B42,ExcPermit!$H$8:$H$1000,0)),"כן","לא"))) ->  | K42: =IF(B42="סך הכל",Summary!$B$10,IF(F42="","",IFERROR(VLOOKUP(B42,Count!A:J,8,FALSE),0))) ->  | L42: =IF(B42="סך הכל",Summary!$B$11,IF(F42="","",IFERROR(VLOOKUP(B42,Count!A:J,9,FALSE),0))) ->  | M42: =IF(B42="סך הכל",Summary!$B$12,IF(F42="","",IFERROR(VLOOKUP(B42,Count!A:J,10,FALSE),0))) ->  | O42: =IFERROR(VLOOKUP(B42,Comments!A:B,2,FALSE),"") -> 
B43: =IF(AND(B41<>"",ISNUMBER(B41),B42=""),"סך הכל",IF(Planning!A46="","",Planning!A46)) ->  | C43: =IFERROR(_xlfn.IFS(B43="סך הכל",Summary!$B$6,Planning!C46<>"",Planning!C46),"") ->  | D43: =IFERROR(VLOOKUP(B43,Address!B:G,5,FALSE),"") ->  | E43: =IFERROR(VLOOKUP(B43,Address!B:L,11,FALSE),"") ->  | G43: =IF(B43="סך הכל",Summary!$B$7,IF(F43="","",IF(VLOOKUP(B43,WQ_UnitID!B:C,2,FALSE)=0,"",VLOOKUP(B43,WQ_UnitID!B:C,2,FALSE)))) ->  | H43: =IF(B43="סך הכל",Summary!$B$8,IF(F43="","",IFERROR(VLOOKUP(B43,Planning!A:B,2,FALSE),0))) ->  | I43: =IF(B43="סך הכל",Summary!$B$9,IF(F43="","",IFERROR(VLOOKUP(B43,Count!A:B,2,FALSE),0))) ->  | J43: =IF(F43="","",(IF(ISNUMBER(MATCH(B43,ExcPermit!$H$8:$H$1000,0)),"כן","לא"))) ->  | K43: =IF(B43="סך הכל",Summary!$B$10,IF(F43="","",IFERROR(VLOOKUP(B43,Count!A:J,8,FALSE),0))) ->  | L43: =IF(B43="סך הכל",Summary!$B$11,IF(F43="","",IFERROR(VLOOKUP(B43,Count!A:J,9,FALSE),0))) ->  | M43: =IF(B43="סך הכל",Summary!$B$12,IF(F43="","",IFERROR(VLOOKUP(B43,Count!A:J,10,FALSE),0))) ->  | O43: =IFERROR(VLOOKUP(B43,Comments!A:B,2,FALSE),"") -> 
B44: =IF(AND(B42<>"",ISNUMBER(B42),B43=""),"סך הכל",IF(Planning!A47="","",Planning!A47)) ->  | C44: =IFERROR(_xlfn.IFS(B44="סך הכל",Summary!$B$6,Planning!C47<>"",Planning!C47),"") ->  | D44: =IFERROR(VLOOKUP(B44,Address!B:G,5,FALSE),"") ->  | E44: =IFERROR(VLOOKUP(B44,Address!B:L,11,FALSE),"") ->  | G44: =IF(B44="סך הכל",Summary!$B$7,IF(F44="","",IF(VLOOKUP(B44,WQ_UnitID!B:C,2,FALSE)=0,"",VLOOKUP(B44,WQ_UnitID!B:C,2,FALSE)))) ->  | H44: =IF(B44="סך הכל",Summary!$B$8,IF(F44="","",IFERROR(VLOOKUP(B44,Planning!A:B,2,FALSE),0))) ->  | I44: =IF(B44="סך הכל",Summary!$B$9,IF(F44="","",IFERROR(VLOOKUP(B44,Count!A:B,2,FALSE),0))) ->  | J44: =IF(F44="","",(IF(ISNUMBER(MATCH(B44,ExcPermit!$H$8:$H$1000,0)),"כן","לא"))) ->  | K44: =IF(B44="סך הכל",Summary!$B$10,IF(F44="","",IFERROR(VLOOKUP(B44,Count!A:J,8,FALSE),0))) ->  | L44: =IF(B44="סך הכל",Summary!$B$11,IF(F44="","",IFERROR(VLOOKUP(B44,Count!A:J,9,FALSE),0))) ->  | M44: =IF(B44="סך הכל",Summary!$B$12,IF(F44="","",IFERROR(VLOOKUP(B44,Count!A:J,10,FALSE),0))) ->  | O44: =IFERROR(VLOOKUP(B44,Comments!A:B,2,FALSE),"") -> 
B45: =IF(AND(B43<>"",ISNUMBER(B43),B44=""),"סך הכל",IF(Planning!A48="","",Planning!A48)) ->  | C45: =IFERROR(_xlfn.IFS(B45="סך הכל",Summary!$B$6,Planning!C48<>"",Planning!C48),"") ->  | D45: =IFERROR(VLOOKUP(B45,Address!B:G,5,FALSE),"") ->  | E45: =IFERROR(VLOOKUP(B45,Address!B:L,11,FALSE),"") ->  | G45: =IF(B45="סך הכל",Summary!$B$7,IF(F45="","",IF(VLOOKUP(B45,WQ_UnitID!B:C,2,FALSE)=0,"",VLOOKUP(B45,WQ_UnitID!B:C,2,FALSE)))) ->  | H45: =IF(B45="סך הכל",Summary!$B$8,IF(F45="","",IFERROR(VLOOKUP(B45,Planning!A:B,2,FALSE),0))) ->  | I45: =IF(B45="סך הכל",Summary!$B$9,IF(F45="","",IFERROR(VLOOKUP(B45,Count!A:B,2,FALSE),0))) ->  | J45: =IF(F45="","",(IF(ISNUMBER(MATCH(B45,ExcPermit!$H$8:$H$1000,0)),"כן","לא"))) ->  | K45: =IF(B45="סך הכל",Summary!$B$10,IF(F45="","",IFERROR(VLOOKUP(B45,Count!A:J,8,FALSE),0))) ->  | L45: =IF(B45="סך הכל",Summary!$B$11,IF(F45="","",IFERROR(VLOOKUP(B45,Count!A:J,9,FALSE),0))) ->  | M45: =IF(B45="סך הכל",Summary!$B$12,IF(F45="","",IFERROR(VLOOKUP(B45,Count!A:J,10,FALSE),0))) ->  | O45: =IFERROR(VLOOKUP(B45,Comments!A:B,2,FALSE),"") -> 
B46: =IF(AND(B44<>"",ISNUMBER(B44),B45=""),"סך הכל",IF(Planning!A49="","",Planning!A49)) ->  | C46: =IFERROR(_xlfn.IFS(B46="סך הכל",Summary!$B$6,Planning!C49<>"",Planning!C49),"") ->  | D46: =IFERROR(VLOOKUP(B46,Address!B:G,5,FALSE),"") ->  | E46: =IFERROR(VLOOKUP(B46,Address!B:L,11,FALSE),"") ->  | G46: =IF(B46="סך הכל",Summary!$B$7,IF(F46="","",IF(VLOOKUP(B46,WQ_UnitID!B:C,2,FALSE)=0,"",VLOOKUP(B46,WQ_UnitID!B:C,2,FALSE)))) ->  | H46: =IF(B46="סך הכל",Summary!$B$8,IF(F46="","",IFERROR(VLOOKUP(B46,Planning!A:B,2,FALSE),0))) ->  | I46: =IF(B46="סך הכל",Summary!$B$9,IF(F46="","",IFERROR(VLOOKUP(B46,Count!A:B,2,FALSE),0))) ->  | J46: =IF(F46="","",(IF(ISNUMBER(MATCH(B46,ExcPermit!$H$8:$H$1000,0)),"כן","לא"))) ->  | K46: =IF(B46="סך הכל",Summary!$B$10,IF(F46="","",IFERROR(VLOOKUP(B46,Count!A:J,8,FALSE),0))) ->  | L46: =IF(B46="סך הכל",Summary!$B$11,IF(F46="","",IFERROR(VLOOKUP(B46,Count!A:J,9,FALSE),0))) ->  | M46: =IF(B46="סך הכל",Summary!$B$12,IF(F46="","",IFERROR(VLOOKUP(B46,Count!A:J,10,FALSE),0))) ->  | O46: =IFERROR(VLOOKUP(B46,Comments!A:B,2,FALSE),"") -> 
B47: =IF(AND(B45<>"",ISNUMBER(B45),B46=""),"סך הכל",IF(Planning!A50="","",Planning!A50)) ->  | C47: =IFERROR(_xlfn.IFS(B47="סך הכל",Summary!$B$6,Planning!C50<>"",Planning!C50),"") ->  | D47: =IFERROR(VLOOKUP(B47,Address!B:G,5,FALSE),"") ->  | E47: =IFERROR(VLOOKUP(B47,Address!B:L,11,FALSE),"") ->  | G47: =IF(B47="סך הכל",Summary!$B$7,IF(F47="","",IF(VLOOKUP(B47,WQ_UnitID!B:C,2,FALSE)=0,"",VLOOKUP(B47,WQ_UnitID!B:C,2,FALSE)))) ->  | H47: =IF(B47="סך הכל",Summary!$B$8,IF(F47="","",IFERROR(VLOOKUP(B47,Planning!A:B,2,FALSE),0))) ->  | I47: =IF(B47="סך הכל",Summary!$B$9,IF(F47="","",IFERROR(VLOOKUP(B47,Count!A:B,2,FALSE),0))) ->  | J47: =IF(F47="","",(IF(ISNUMBER(MATCH(B47,ExcPermit!$H$8:$H$1000,0)),"כן","לא"))) ->  | K47: =IF(B47="סך הכל",Summary!$B$10,IF(F47="","",IFERROR(VLOOKUP(B47,Count!A:J,8,FALSE),0))) ->  | L47: =IF(B47="סך הכל",Summary!$B$11,IF(F47="","",IFERROR(VLOOKUP(B47,Count!A:J,9,FALSE),0))) ->  | M47: =IF(B47="סך הכל",Summary!$B$12,IF(F47="","",IFERROR(VLOOKUP(B47,Count!A:J,10,FALSE),0))) ->  | O47: =IFERROR(VLOOKUP(B47,Comments!A:B,2,FALSE),"") -> 
B48: =IF(AND(B46<>"",ISNUMBER(B46),B47=""),"סך הכל",IF(Planning!A51="","",Planning!A51)) ->  | C48: =IFERROR(_xlfn.IFS(B48="סך הכל",Summary!$B$6,Planning!C51<>"",Planning!C51),"") ->  | D48: =IFERROR(VLOOKUP(B48,Address!B:G,5,FALSE),"") ->  | E48: =IFERROR(VLOOKUP(B48,Address!B:L,11,FALSE),"") ->  | G48: =IF(B48="סך הכל",Summary!$B$7,IF(F48="","",IF(VLOOKUP(B48,WQ_UnitID!B:C,2,FALSE)=0,"",VLOOKUP(B48,WQ_UnitID!B:C,2,FALSE)))) ->  | H48: =IF(B48="סך הכל",Summary!$B$8,IF(F48="","",IFERROR(VLOOKUP(B48,Planning!A:B,2,FALSE),0))) ->  | I48: =IF(B48="סך הכל",Summary!$B$9,IF(F48="","",IFERROR(VLOOKUP(B48,Count!A:B,2,FALSE),0))) ->  | J48: =IF(F48="","",(IF(ISNUMBER(MATCH(B48,ExcPermit!$H$8:$H$1000,0)),"כן","לא"))) ->  | K48: =IF(B48="סך הכל",Summary!$B$10,IF(F48="","",IFERROR(VLOOKUP(B48,Count!A:J,8,FALSE),0))) ->  | L48: =IF(B48="סך הכל",Summary!$B$11,IF(F48="","",IFERROR(VLOOKUP(B48,Count!A:J,9,FALSE),0))) ->  | M48: =IF(B48="סך הכל",Summary!$B$12,IF(F48="","",IFERROR(VLOOKUP(B48,Count!A:J,10,FALSE),0))) ->  | O48: =IFERROR(VLOOKUP(B48,Comments!A:B,2,FALSE),"") -> 
B49: =IF(AND(B47<>"",ISNUMBER(B47),B48=""),"סך הכל",IF(Planning!A52="","",Planning!A52)) ->  | C49: =IFERROR(_xlfn.IFS(B49="סך הכל",Summary!$B$6,Planning!C52<>"",Planning!C52),"") ->  | D49: =IFERROR(VLOOKUP(B49,Address!B:G,5,FALSE),"") ->  | E49: =IFERROR(VLOOKUP(B49,Address!B:L,11,FALSE),"") ->  | G49: =IF(B49="סך הכל",Summary!$B$7,IF(F49="","",IF(VLOOKUP(B49,WQ_UnitID!B:C,2,FALSE)=0,"",VLOOKUP(B49,WQ_UnitID!B:C,2,FALSE)))) ->  | H49: =IF(B49="סך הכל",Summary!$B$8,IF(F49="","",IFERROR(VLOOKUP(B49,Planning!A:B,2,FALSE),0))) ->  | I49: =IF(B49="סך הכל",Summary!$B$9,IF(F49="","",IFERROR(VLOOKUP(B49,Count!A:B,2,FALSE),0))) ->  | J49: =IF(F49="","",(IF(ISNUMBER(MATCH(B49,ExcPermit!$H$8:$H$1000,0)),"כן","לא"))) ->  | K49: =IF(B49="סך הכל",Summary!$B$10,IF(F49="","",IFERROR(VLOOKUP(B49,Count!A:J,8,FALSE),0))) ->  | L49: =IF(B49="סך הכל",Summary!$B$11,IF(F49="","",IFERROR(VLOOKUP(B49,Count!A:J,9,FALSE),0))) ->  | M49: =IF(B49="סך הכל",Summary!$B$12,IF(F49="","",IFERROR(VLOOKUP(B49,Count!A:J,10,FALSE),0))) ->  | O49: =IFERROR(VLOOKUP(B49,Comments!A:B,2,FALSE),"") -> 
B50: =IF(AND(B48<>"",ISNUMBER(B48),B49=""),"סך הכל",IF(Planning!A53="","",Planning!A53)) ->  | C50: =IFERROR(_xlfn.IFS(B50="סך הכל",Summary!$B$6,Planning!C53<>"",Planning!C53),"") ->  | D50: =IFERROR(VLOOKUP(B50,Address!B:G,5,FALSE),"") ->  | E50: =IFERROR(VLOOKUP(B50,Address!B:L,11,FALSE),"") ->  | G50: =IF(B50="סך הכל",Summary!$B$7,IF(F50="","",IF(VLOOKUP(B50,WQ_UnitID!B:C,2,FALSE)=0,"",VLOOKUP(B50,WQ_UnitID!B:C,2,FALSE)))) ->  | H50: =IF(B50="סך הכל",Summary!$B$8,IF(F50="","",IFERROR(VLOOKUP(B50,Planning!A:B,2,FALSE),0))) ->  | I50: =IF(B50="סך הכל",Summary!$B$9,IF(F50="","",IFERROR(VLOOKUP(B50,Count!A:B,2,FALSE),0))) ->  | J50: =IF(F50="","",(IF(ISNUMBER(MATCH(B50,ExcPermit!$H$8:$H$1000,0)),"כן","לא"))) ->  | K50: =IF(B50="סך הכל",Summary!$B$10,IF(F50="","",IFERROR(VLOOKUP(B50,Count!A:J,8,FALSE),0))) ->  | L50: =IF(B50="סך הכל",Summary!$B$11,IF(F50="","",IFERROR(VLOOKUP(B50,Count!A:J,9,FALSE),0))) ->  | M50: =IF(B50="סך הכל",Summary!$B$12,IF(F50="","",IFERROR(VLOOKUP(B50,Count!A:J,10,FALSE),0))) ->  | O50: =IFERROR(VLOOKUP(B50,Comments!A:B,2,FALSE),"") -> 
B51: =IF(AND(B49<>"",ISNUMBER(B49),B50=""),"סך הכל",IF(Planning!A54="","",Planning!A54)) ->  | C51: =IFERROR(_xlfn.IFS(B51="סך הכל",Summary!$B$6,Planning!C54<>"",Planning!C54),"") ->  | D51: =IFERROR(VLOOKUP(B51,Address!B:G,5,FALSE),"") ->  | E51: =IFERROR(VLOOKUP(B51,Address!B:L,11,FALSE),"") ->  | G51: =IF(B51="סך הכל",Summary!$B$7,IF(F51="","",IF(VLOOKUP(B51,WQ_UnitID!B:C,2,FALSE)=0,"",VLOOKUP(B51,WQ_UnitID!B:C,2,FALSE)))) ->  | H51: =IF(B51="סך הכל",Summary!$B$8,IF(F51="","",IFERROR(VLOOKUP(B51,Planning!A:B,2,FALSE),0))) ->  | I51: =IF(B51="סך הכל",Summary!$B$9,IF(F51="","",IFERROR(VLOOKUP(B51,Count!A:B,2,FALSE),0))) ->  | J51: =IF(F51="","",(IF(ISNUMBER(MATCH(B51,ExcPermit!$H$8:$H$1000,0)),"כן","לא"))) ->  | K51: =IF(B51="סך הכל",Summary!$B$10,IF(F51="","",IFERROR(VLOOKUP(B51,Count!A:J,8,FALSE),0))) ->  | L51: =IF(B51="סך הכל",Summary!$B$11,IF(F51="","",IFERROR(VLOOKUP(B51,Count!A:J,9,FALSE),0))) ->  | M51: =IF(B51="סך הכל",Summary!$B$12,IF(F51="","",IFERROR(VLOOKUP(B51,Count!A:J,10,FALSE),0))) ->  | O51: =IFERROR(VLOOKUP(B51,Comments!A:B,2,FALSE),"") -> 
B52: =IF(AND(B50<>"",ISNUMBER(B50),B51=""),"סך הכל",IF(Planning!A55="","",Planning!A55)) ->  | C52: =IFERROR(_xlfn.IFS(B52="סך הכל",Summary!$B$6,Planning!C55<>"",Planning!C55),"") ->  | D52: =IFERROR(VLOOKUP(B52,Address!B:G,5,FALSE),"") ->  | E52: =IFERROR(VLOOKUP(B52,Address!B:L,11,FALSE),"") ->  | G52: =IF(B52="סך הכל",Summary!$B$7,IF(F52="","",IF(VLOOKUP(B52,WQ_UnitID!B:C,2,FALSE)=0,"",VLOOKUP(B52,WQ_UnitID!B:C,2,FALSE)))) ->  | H52: =IF(B52="סך הכל",Summary!$B$8,IF(F52="","",IFERROR(VLOOKUP(B52,Planning!A:B,2,FALSE),0))) ->  | I52: =IF(B52="סך הכל",Summary!$B$9,IF(F52="","",IFERROR(VLOOKUP(B52,Count!A:B,2,FALSE),0))) ->  | J52: =IF(F52="","",(IF(ISNUMBER(MATCH(B52,ExcPermit!$H$8:$H$1000,0)),"כן","לא"))) ->  | K52: =IF(B52="סך הכל",Summary!$B$10,IF(F52="","",IFERROR(VLOOKUP(B52,Count!A:J,8,FALSE),0))) ->  | L52: =IF(B52="סך הכל",Summary!$B$11,IF(F52="","",IFERROR(VLOOKUP(B52,Count!A:J,9,FALSE),0))) ->  | M52: =IF(B52="סך הכל",Summary!$B$12,IF(F52="","",IFERROR(VLOOKUP(B52,Count!A:J,10,FALSE),0))) ->  | O52: =IFERROR(VLOOKUP(B52,Comments!A:B,2,FALSE),"") -> 
B53: =IF(AND(B51<>"",ISNUMBER(B51),B52=""),"סך הכל",IF(Planning!A56="","",Planning!A56)) ->  | C53: =IFERROR(_xlfn.IFS(B53="סך הכל",Summary!$B$6,Planning!C56<>"",Planning!C56),"") ->  | D53: =IFERROR(VLOOKUP(B53,Address!B:G,5,FALSE),"") ->  | E53: =IFERROR(VLOOKUP(B53,Address!B:L,11,FALSE),"") ->  | G53: =IF(B53="סך הכל",Summary!$B$7,IF(F53="","",IF(VLOOKUP(B53,WQ_UnitID!B:C,2,FALSE)=0,"",VLOOKUP(B53,WQ_UnitID!B:C,2,FALSE)))) ->  | H53: =IF(B53="סך הכל",Summary!$B$8,IF(F53="","",IFERROR(VLOOKUP(B53,Planning!A:B,2,FALSE),0))) ->  | I53: =IF(B53="סך הכל",Summary!$B$9,IF(F53="","",IFERROR(VLOOKUP(B53,Count!A:B,2,FALSE),0))) ->  | J53: =IF(F53="","",(IF(ISNUMBER(MATCH(B53,ExcPermit!$H$8:$H$1000,0)),"כן","לא"))) ->  | K53: =IF(B53="סך הכל",Summary!$B$10,IF(F53="","",IFERROR(VLOOKUP(B53,Count!A:J,8,FALSE),0))) ->  | L53: =IF(B53="סך הכל",Summary!$B$11,IF(F53="","",IFERROR(VLOOKUP(B53,Count!A:J,9,FALSE),0))) ->  | M53: =IF(B53="סך הכל",Summary!$B$12,IF(F53="","",IFERROR(VLOOKUP(B53,Count!A:J,10,FALSE),0))) ->  | O53: =IFERROR(VLOOKUP(B53,Comments!A:B,2,FALSE),"") -> 
B54: =IF(AND(B52<>"",ISNUMBER(B52),B53=""),"סך הכל",IF(Planning!A57="","",Planning!A57)) ->  | C54: =IFERROR(_xlfn.IFS(B54="סך הכל",Summary!$B$6,Planning!C57<>"",Planning!C57),"") ->  | D54: =IFERROR(VLOOKUP(B54,Address!B:G,5,FALSE),"") ->  | E54: =IFERROR(VLOOKUP(B54,Address!B:L,11,FALSE),"") ->  | G54: =IF(B54="סך הכל",Summary!$B$7,IF(F54="","",IF(VLOOKUP(B54,WQ_UnitID!B:C,2,FALSE)=0,"",VLOOKUP(B54,WQ_UnitID!B:C,2,FALSE)))) ->  | H54: =IF(B54="סך הכל",Summary!$B$8,IF(F54="","",IFERROR(VLOOKUP(B54,Planning!A:B,2,FALSE),0))) ->  | I54: =IF(B54="סך הכל",Summary!$B$9,IF(F54="","",IFERROR(VLOOKUP(B54,Count!A:B,2,FALSE),0))) ->  | J54: =IF(F54="","",(IF(ISNUMBER(MATCH(B54,ExcPermit!$H$8:$H$1000,0)),"כן","לא"))) ->  | K54: =IF(B54="סך הכל",Summary!$B$10,IF(F54="","",IFERROR(VLOOKUP(B54,Count!A:J,8,FALSE),0))) ->  | L54: =IF(B54="סך הכל",Summary!$B$11,IF(F54="","",IFERROR(VLOOKUP(B54,Count!A:J,9,FALSE),0))) ->  | M54: =IF(B54="סך הכל",Summary!$B$12,IF(F54="","",IFERROR(VLOOKUP(B54,Count!A:J,10,FALSE),0))) ->  | O54: =IFERROR(VLOOKUP(B54,Comments!A:B,2,FALSE),"") -> 
B55: =IF(AND(B53<>"",ISNUMBER(B53),B54=""),"סך הכל",IF(Planning!A58="","",Planning!A58)) ->  | C55: =IFERROR(_xlfn.IFS(B55="סך הכל",Summary!$B$6,Planning!C58<>"",Planning!C58),"") ->  | D55: =IFERROR(VLOOKUP(B55,Address!B:G,5,FALSE),"") ->  | E55: =IFERROR(VLOOKUP(B55,Address!B:L,11,FALSE),"") ->  | G55: =IF(B55="סך הכל",Summary!$B$7,IF(F55="","",IF(VLOOKUP(B55,WQ_UnitID!B:C,2,FALSE)=0,"",VLOOKUP(B55,WQ_UnitID!B:C,2,FALSE)))) ->  | H55: =IF(B55="סך הכל",Summary!$B$8,IF(F55="","",IFERROR(VLOOKUP(B55,Planning!A:B,2,FALSE),0))) ->  | I55: =IF(B55="סך הכל",Summary!$B$9,IF(F55="","",IFERROR(VLOOKUP(B55,Count!A:B,2,FALSE),0))) ->  | J55: =IF(F55="","",(IF(ISNUMBER(MATCH(B55,ExcPermit!$H$8:$H$1000,0)),"כן","לא"))) ->  | K55: =IF(B55="סך הכל",Summary!$B$10,IF(F55="","",IFERROR(VLOOKUP(B55,Count!A:J,8,FALSE),0))) ->  | L55: =IF(B55="סך הכל",Summary!$B$11,IF(F55="","",IFERROR(VLOOKUP(B55,Count!A:J,9,FALSE),0))) ->  | M55: =IF(B55="סך הכל",Summary!$B$12,IF(F55="","",IFERROR(VLOOKUP(B55,Count!A:J,10,FALSE),0))) ->  | O55: =IFERROR(VLOOKUP(B55,Comments!A:B,2,FALSE),"") -> 
B56: =IF(AND(B54<>"",ISNUMBER(B54),B55=""),"סך הכל",IF(Planning!A59="","",Planning!A59)) ->  | C56: =IFERROR(_xlfn.IFS(B56="סך הכל",Summary!$B$6,Planning!C59<>"",Planning!C59),"") ->  | D56: =IFERROR(VLOOKUP(B56,Address!B:G,5,FALSE),"") ->  | E56: =IFERROR(VLOOKUP(B56,Address!B:L,11,FALSE),"") ->  | G56: =IF(B56="סך הכל",Summary!$B$7,IF(F56="","",IF(VLOOKUP(B56,WQ_UnitID!B:C,2,FALSE)=0,"",VLOOKUP(B56,WQ_UnitID!B:C,2,FALSE)))) ->  | H56: =IF(B56="סך הכל",Summary!$B$8,IF(F56="","",IFERROR(VLOOKUP(B56,Planning!A:B,2,FALSE),0))) ->  | I56: =IF(B56="סך הכל",Summary!$B$9,IF(F56="","",IFERROR(VLOOKUP(B56,Count!A:B,2,FALSE),0))) ->  | J56: =IF(F56="","",(IF(ISNUMBER(MATCH(B56,ExcPermit!$H$8:$H$1000,0)),"כן","לא"))) ->  | K56: =IF(B56="סך הכל",Summary!$B$10,IF(F56="","",IFERROR(VLOOKUP(B56,Count!A:J,8,FALSE),0))) ->  | L56: =IF(B56="סך הכל",Summary!$B$11,IF(F56="","",IFERROR(VLOOKUP(B56,Count!A:J,9,FALSE),0))) ->  | M56: =IF(B56="סך הכל",Summary!$B$12,IF(F56="","",IFERROR(VLOOKUP(B56,Count!A:J,10,FALSE),0))) ->  | O56: =IFERROR(VLOOKUP(B56,Comments!A:B,2,FALSE),"") -> 
B57: =IF(AND(B55<>"",ISNUMBER(B55),B56=""),"סך הכל",IF(Planning!A60="","",Planning!A60)) ->  | C57: =IFERROR(_xlfn.IFS(B57="סך הכל",Summary!$B$6,Planning!C60<>"",Planning!C60),"") ->  | D57: =IFERROR(VLOOKUP(B57,Address!B:G,5,FALSE),"") ->  | E57: =IFERROR(VLOOKUP(B57,Address!B:L,11,FALSE),"") ->  | G57: =IF(B57="סך הכל",Summary!$B$7,IF(F57="","",IF(VLOOKUP(B57,WQ_UnitID!B:C,2,FALSE)=0,"",VLOOKUP(B57,WQ_UnitID!B:C,2,FALSE)))) ->  | H57: =IF(B57="סך הכל",Summary!$B$8,IF(F57="","",IFERROR(VLOOKUP(B57,Planning!A:B,2,FALSE),0))) ->  | I57: =IF(B57="סך הכל",Summary!$B$9,IF(F57="","",IFERROR(VLOOKUP(B57,Count!A:B,2,FALSE),0))) ->  | J57: =IF(F57="","",(IF(ISNUMBER(MATCH(B57,ExcPermit!$H$8:$H$1000,0)),"כן","לא"))) ->  | K57: =IF(B57="סך הכל",Summary!$B$10,IF(F57="","",IFERROR(VLOOKUP(B57,Count!A:J,8,FALSE),0))) ->  | L57: =IF(B57="סך הכל",Summary!$B$11,IF(F57="","",IFERROR(VLOOKUP(B57,Count!A:J,9,FALSE),0))) ->  | M57: =IF(B57="סך הכל",Summary!$B$12,IF(F57="","",IFERROR(VLOOKUP(B57,Count!A:J,10,FALSE),0))) ->  | O57: =IFERROR(VLOOKUP(B57,Comments!A:B,2,FALSE),"") -> 
B58: =IF(AND(B56<>"",ISNUMBER(B56),B57=""),"סך הכל",IF(Planning!A61="","",Planning!A61)) ->  | C58: =IFERROR(_xlfn.IFS(B58="סך הכל",Summary!$B$6,Planning!C61<>"",Planning!C61),"") ->  | D58: =IFERROR(VLOOKUP(B58,Address!B:G,5,FALSE),"") ->  | E58: =IFERROR(VLOOKUP(B58,Address!B:L,11,FALSE),"") ->  | G58: =IF(B58="סך הכל",Summary!$B$7,IF(F58="","",IF(VLOOKUP(B58,WQ_UnitID!B:C,2,FALSE)=0,"",VLOOKUP(B58,WQ_UnitID!B:C,2,FALSE)))) ->  | H58: =IF(B58="סך הכל",Summary!$B$8,IF(F58="","",IFERROR(VLOOKUP(B58,Planning!A:B,2,FALSE),0))) ->  | I58: =IF(B58="סך הכל",Summary!$B$9,IF(F58="","",IFERROR(VLOOKUP(B58,Count!A:B,2,FALSE),0))) ->  | J58: =IF(F58="","",(IF(ISNUMBER(MATCH(B58,ExcPermit!$H$8:$H$1000,0)),"כן","לא"))) ->  | K58: =IF(B58="סך הכל",Summary!$B$10,IF(F58="","",IFERROR(VLOOKUP(B58,Count!A:J,8,FALSE),0))) ->  | L58: =IF(B58="סך הכל",Summary!$B$11,IF(F58="","",IFERROR(VLOOKUP(B58,Count!A:J,9,FALSE),0))) ->  | M58: =IF(B58="סך הכל",Summary!$B$12,IF(F58="","",IFERROR(VLOOKUP(B58,Count!A:J,10,FALSE),0))) ->  | O58: =IFERROR(VLOOKUP(B58,Comments!A:B,2,FALSE),"") -> 
B59: =IF(AND(B57<>"",ISNUMBER(B57),B58=""),"סך הכל",IF(Planning!A62="","",Planning!A62)) ->  | C59: =IFERROR(_xlfn.IFS(B59="סך הכל",Summary!$B$6,Planning!C62<>"",Planning!C62),"") ->  | D59: =IFERROR(VLOOKUP(B59,Address!B:G,5,FALSE),"") ->  | E59: =IFERROR(VLOOKUP(B59,Address!B:L,11,FALSE),"") ->  | G59: =IF(B59="סך הכל",Summary!$B$7,IF(F59="","",IF(VLOOKUP(B59,WQ_UnitID!B:C,2,FALSE)=0,"",VLOOKUP(B59,WQ_UnitID!B:C,2,FALSE)))) ->  | H59: =IF(B59="סך הכל",Summary!$B$8,IF(F59="","",IFERROR(VLOOKUP(B59,Planning!A:B,2,FALSE),0))) ->  | I59: =IF(B59="סך הכל",Summary!$B$9,IF(F59="","",IFERROR(VLOOKUP(B59,Count!A:B,2,FALSE),0))) ->  | J59: =IF(F59="","",(IF(ISNUMBER(MATCH(B59,ExcPermit!$H$8:$H$1000,0)),"כן","לא"))) ->  | K59: =IF(B59="סך הכל",Summary!$B$10,IF(F59="","",IFERROR(VLOOKUP(B59,Count!A:J,8,FALSE),0))) ->  | L59: =IF(B59="סך הכל",Summary!$B$11,IF(F59="","",IFERROR(VLOOKUP(B59,Count!A:J,9,FALSE),0))) ->  | M59: =IF(B59="סך הכל",Summary!$B$12,IF(F59="","",IFERROR(VLOOKUP(B59,Count!A:J,10,FALSE),0))) ->  | O59: =IFERROR(VLOOKUP(B59,Comments!A:B,2,FALSE),"") -> 
B60: =IF(AND(B58<>"",ISNUMBER(B58),B59=""),"סך הכל",IF(Planning!A63="","",Planning!A63)) ->  | C60: =IFERROR(_xlfn.IFS(B60="סך הכל",Summary!$B$6,Planning!C63<>"",Planning!C63),"") ->  | D60: =IFERROR(VLOOKUP(B60,Address!B:G,5,FALSE),"") ->  | E60: =IFERROR(VLOOKUP(B60,Address!B:L,11,FALSE),"") ->  | G60: =IF(B60="סך הכל",Summary!$B$7,IF(F60="","",IF(VLOOKUP(B60,WQ_UnitID!B:C,2,FALSE)=0,"",VLOOKUP(B60,WQ_UnitID!B:C,2,FALSE)))) ->  | H60: =IF(B60="סך הכל",Summary!$B$8,IF(F60="","",IFERROR(VLOOKUP(B60,Planning!A:B,2,FALSE),0))) ->  | I60: =IF(B60="סך הכל",Summary!$B$9,IF(F60="","",IFERROR(VLOOKUP(B60,Count!A:B,2,FALSE),0))) ->  | J60: =IF(F60="","",(IF(ISNUMBER(MATCH(B60,ExcPermit!$H$8:$H$1000,0)),"כן","לא"))) ->  | K60: =IF(B60="סך הכל",Summary!$B$10,IF(F60="","",IFERROR(VLOOKUP(B60,Count!A:J,8,FALSE),0))) ->  | L60: =IF(B60="סך הכל",Summary!$B$11,IF(F60="","",IFERROR(VLOOKUP(B60,Count!A:J,9,FALSE),0))) ->  | M60: =IF(B60="סך הכל",Summary!$B$12,IF(F60="","",IFERROR(VLOOKUP(B60,Count!A:J,10,FALSE),0))) ->  | O60: =IFERROR(VLOOKUP(B60,Comments!A:B,2,FALSE),"") -> 
B61: =IF(AND(B59<>"",ISNUMBER(B59),B60=""),"סך הכל",IF(Planning!A64="","",Planning!A64)) ->  | C61: =IFERROR(_xlfn.IFS(B61="סך הכל",Summary!$B$6,Planning!C64<>"",Planning!C64),"") ->  | D61: =IFERROR(VLOOKUP(B61,Address!B:G,5,FALSE),"") ->  | E61: =IFERROR(VLOOKUP(B61,Address!B:L,11,FALSE),"") ->  | G61: =IF(B61="סך הכל",Summary!$B$7,IF(F61="","",IF(VLOOKUP(B61,WQ_UnitID!B:C,2,FALSE)=0,"",VLOOKUP(B61,WQ_UnitID!B:C,2,FALSE)))) ->  | H61: =IF(B61="סך הכל",Summary!$B$8,IF(F61="","",IFERROR(VLOOKUP(B61,Planning!A:B,2,FALSE),0))) ->  | I61: =IF(B61="סך הכל",Summary!$B$9,IF(F61="","",IFERROR(VLOOKUP(B61,Count!A:B,2,FALSE),0))) ->  | J61: =IF(F61="","",(IF(ISNUMBER(MATCH(B61,ExcPermit!$H$8:$H$1000,0)),"כן","לא"))) ->  | K61: =IF(B61="סך הכל",Summary!$B$10,IF(F61="","",IFERROR(VLOOKUP(B61,Count!A:J,8,FALSE),0))) ->  | L61: =IF(B61="סך הכל",Summary!$B$11,IF(F61="","",IFERROR(VLOOKUP(B61,Count!A:J,9,FALSE),0))) ->  | M61: =IF(B61="סך הכל",Summary!$B$12,IF(F61="","",IFERROR(VLOOKUP(B61,Count!A:J,10,FALSE),0))) ->  | O61: =IFERROR(VLOOKUP(B61,Comments!A:B,2,FALSE),"") -> 
B62: =IF(AND(B60<>"",ISNUMBER(B60),B61=""),"סך הכל",IF(Planning!A65="","",Planning!A65)) ->  | C62: =IFERROR(_xlfn.IFS(B62="סך הכל",Summary!$B$6,Planning!C65<>"",Planning!C65),"") ->  | D62: =IFERROR(VLOOKUP(B62,Address!B:G,5,FALSE),"") ->  | E62: =IFERROR(VLOOKUP(B62,Address!B:L,11,FALSE),"") ->  | G62: =IF(B62="סך הכל",Summary!$B$7,IF(F62="","",IF(VLOOKUP(B62,WQ_UnitID!B:C,2,FALSE)=0,"",VLOOKUP(B62,WQ_UnitID!B:C,2,FALSE)))) ->  | H62: =IF(B62="סך הכל",Summary!$B$8,IF(F62="","",IFERROR(VLOOKUP(B62,Planning!A:B,2,FALSE),0))) ->  | I62: =IF(B62="סך הכל",Summary!$B$9,IF(F62="","",IFERROR(VLOOKUP(B62,Count!A:B,2,FALSE),0))) ->  | J62: =IF(F62="","",(IF(ISNUMBER(MATCH(B62,ExcPermit!$H$8:$H$1000,0)),"כן","לא"))) ->  | K62: =IF(B62="סך הכל",Summary!$B$10,IF(F62="","",IFERROR(VLOOKUP(B62,Count!A:J,8,FALSE),0))) ->  | L62: =IF(B62="סך הכל",Summary!$B$11,IF(F62="","",IFERROR(VLOOKUP(B62,Count!A:J,9,FALSE),0))) ->  | M62: =IF(B62="סך הכל",Summary!$B$12,IF(F62="","",IFERROR(VLOOKUP(B62,Count!A:J,10,FALSE),0))) ->  | O62: =IFERROR(VLOOKUP(B62,Comments!A:B,2,FALSE),"") -> 
B63: =IF(AND(B61<>"",ISNUMBER(B61),B62=""),"סך הכל",IF(Planning!A66="","",Planning!A66)) ->  | C63: =IFERROR(_xlfn.IFS(B63="סך הכל",Summary!$B$6,Planning!C66<>"",Planning!C66),"") ->  | D63: =IFERROR(VLOOKUP(B63,Address!B:G,5,FALSE),"") ->  | E63: =IFERROR(VLOOKUP(B63,Address!B:L,11,FALSE),"") ->  | G63: =IF(B63="סך הכל",Summary!$B$7,IF(F63="","",IF(VLOOKUP(B63,WQ_UnitID!B:C,2,FALSE)=0,"",VLOOKUP(B63,WQ_UnitID!B:C,2,FALSE)))) ->  | H63: =IF(B63="סך הכל",Summary!$B$8,IF(F63="","",IFERROR(VLOOKUP(B63,Planning!A:B,2,FALSE),0))) ->  | I63: =IF(B63="סך הכל",Summary!$B$9,IF(F63="","",IFERROR(VLOOKUP(B63,Count!A:B,2,FALSE),0))) ->  | J63: =IF(F63="","",(IF(ISNUMBER(MATCH(B63,ExcPermit!$H$8:$H$1000,0)),"כן","לא"))) ->  | K63: =IF(B63="סך הכל",Summary!$B$10,IF(F63="","",IFERROR(VLOOKUP(B63,Count!A:J,8,FALSE),0))) ->  | L63: =IF(B63="סך הכל",Summary!$B$11,IF(F63="","",IFERROR(VLOOKUP(B63,Count!A:J,9,FALSE),0))) ->  | M63: =IF(B63="סך הכל",Summary!$B$12,IF(F63="","",IFERROR(VLOOKUP(B63,Count!A:J,10,FALSE),0))) ->  | O63: =IFERROR(VLOOKUP(B63,Comments!A:B,2,FALSE),"") -> 
B64: =IF(AND(B62<>"",ISNUMBER(B62),B63=""),"סך הכל",IF(Planning!A67="","",Planning!A67)) ->  | C64: =IFERROR(_xlfn.IFS(B64="סך הכל",Summary!$B$6,Planning!C67<>"",Planning!C67),"") ->  | D64: =IFERROR(VLOOKUP(B64,Address!B:G,5,FALSE),"") ->  | E64: =IFERROR(VLOOKUP(B64,Address!B:L,11,FALSE),"") ->  | G64: =IF(B64="סך הכל",Summary!$B$7,IF(F64="","",IF(VLOOKUP(B64,WQ_UnitID!B:C,2,FALSE)=0,"",VLOOKUP(B64,WQ_UnitID!B:C,2,FALSE)))) ->  | H64: =IF(B64="סך הכל",Summary!$B$8,IF(F64="","",IFERROR(VLOOKUP(B64,Planning!A:B,2,FALSE),0))) ->  | I64: =IF(B64="סך הכל",Summary!$B$9,IF(F64="","",IFERROR(VLOOKUP(B64,Count!A:B,2,FALSE),0))) ->  | J64: =IF(F64="","",(IF(ISNUMBER(MATCH(B64,ExcPermit!$H$8:$H$1000,0)),"כן","לא"))) ->  | K64: =IF(B64="סך הכל",Summary!$B$10,IF(F64="","",IFERROR(VLOOKUP(B64,Count!A:J,8,FALSE),0))) ->  | L64: =IF(B64="סך הכל",Summary!$B$11,IF(F64="","",IFERROR(VLOOKUP(B64,Count!A:J,9,FALSE),0))) ->  | M64: =IF(B64="סך הכל",Summary!$B$12,IF(F64="","",IFERROR(VLOOKUP(B64,Count!A:J,10,FALSE),0))) ->  | O64: =IFERROR(VLOOKUP(B64,Comments!A:B,2,FALSE),"") -> 
B65: =IF(AND(B63<>"",ISNUMBER(B63),B64=""),"סך הכל",IF(Planning!A68="","",Planning!A68)) ->  | C65: =IFERROR(_xlfn.IFS(B65="סך הכל",Summary!$B$6,Planning!C68<>"",Planning!C68),"") ->  | D65: =IFERROR(VLOOKUP(B65,Address!B:G,5,FALSE),"") ->  | E65: =IFERROR(VLOOKUP(B65,Address!B:L,11,FALSE),"") ->  | G65: =IF(B65="סך הכל",Summary!$B$7,IF(F65="","",IF(VLOOKUP(B65,WQ_UnitID!B:C,2,FALSE)=0,"",VLOOKUP(B65,WQ_UnitID!B:C,2,FALSE)))) ->  | H65: =IF(B65="סך הכל",Summary!$B$8,IF(F65="","",IFERROR(VLOOKUP(B65,Planning!A:B,2,FALSE),0))) ->  | I65: =IF(B65="סך הכל",Summary!$B$9,IF(F65="","",IFERROR(VLOOKUP(B65,Count!A:B,2,FALSE),0))) ->  | J65: =IF(F65="","",(IF(ISNUMBER(MATCH(B65,ExcPermit!$H$8:$H$1000,0)),"כן","לא"))) ->  | K65: =IF(B65="סך הכל",Summary!$B$10,IF(F65="","",IFERROR(VLOOKUP(B65,Count!A:J,8,FALSE),0))) ->  | L65: =IF(B65="סך הכל",Summary!$B$11,IF(F65="","",IFERROR(VLOOKUP(B65,Count!A:J,9,FALSE),0))) ->  | M65: =IF(B65="סך הכל",Summary!$B$12,IF(F65="","",IFERROR(VLOOKUP(B65,Count!A:J,10,FALSE),0))) ->  | O65: =IFERROR(VLOOKUP(B65,Comments!A:B,2,FALSE),"") -> 
B66: =IF(AND(B64<>"",ISNUMBER(B64),B65=""),"סך הכל",IF(Planning!A69="","",Planning!A69)) ->  | C66: =IFERROR(_xlfn.IFS(B66="סך הכל",Summary!$B$6,Planning!C69<>"",Planning!C69),"") ->  | D66: =IFERROR(VLOOKUP(B66,Address!B:G,5,FALSE),"") ->  | E66: =IFERROR(VLOOKUP(B66,Address!B:L,11,FALSE),"") ->  | G66: =IF(B66="סך הכל",Summary!$B$7,IF(F66="","",IF(VLOOKUP(B66,WQ_UnitID!B:C,2,FALSE)=0,"",VLOOKUP(B66,WQ_UnitID!B:C,2,FALSE)))) ->  | H66: =IF(B66="סך הכל",Summary!$B$8,IF(F66="","",IFERROR(VLOOKUP(B66,Planning!A:B,2,FALSE),0))) ->  | I66: =IF(B66="סך הכל",Summary!$B$9,IF(F66="","",IFERROR(VLOOKUP(B66,Count!A:B,2,FALSE),0))) ->  | J66: =IF(F66="","",(IF(ISNUMBER(MATCH(B66,ExcPermit!$H$8:$H$1000,0)),"כן","לא"))) ->  | K66: =IF(B66="סך הכל",Summary!$B$10,IF(F66="","",IFERROR(VLOOKUP(B66,Count!A:J,8,FALSE),0))) ->  | L66: =IF(B66="סך הכל",Summary!$B$11,IF(F66="","",IFERROR(VLOOKUP(B66,Count!A:J,9,FALSE),0))) ->  | M66: =IF(B66="סך הכל",Summary!$B$12,IF(F66="","",IFERROR(VLOOKUP(B66,Count!A:J,10,FALSE),0))) ->  | O66: =IFERROR(VLOOKUP(B66,Comments!A:B,2,FALSE),"") -> 
B67: =IF(AND(B65<>"",ISNUMBER(B65),B66=""),"סך הכל",IF(Planning!A70="","",Planning!A70)) ->  | C67: =IFERROR(_xlfn.IFS(B67="סך הכל",Summary!$B$6,Planning!C70<>"",Planning!C70),"") ->  | D67: =IFERROR(VLOOKUP(B67,Address!B:G,5,FALSE),"") ->  | E67: =IFERROR(VLOOKUP(B67,Address!B:L,11,FALSE),"") ->  | G67: =IF(B67="סך הכל",Summary!$B$7,IF(F67="","",IF(VLOOKUP(B67,WQ_UnitID!B:C,2,FALSE)=0,"",VLOOKUP(B67,WQ_UnitID!B:C,2,FALSE)))) ->  | H67: =IF(B67="סך הכל",Summary!$B$8,IF(F67="","",IFERROR(VLOOKUP(B67,Planning!A:B,2,FALSE),0))) ->  | I67: =IF(B67="סך הכל",Summary!$B$9,IF(F67="","",IFERROR(VLOOKUP(B67,Count!A:B,2,FALSE),0))) ->  | J67: =IF(F67="","",(IF(ISNUMBER(MATCH(B67,ExcPermit!$H$8:$H$1000,0)),"כן","לא"))) ->  | K67: =IF(B67="סך הכל",Summary!$B$10,IF(F67="","",IFERROR(VLOOKUP(B67,Count!A:J,8,FALSE),0))) ->  | L67: =IF(B67="סך הכל",Summary!$B$11,IF(F67="","",IFERROR(VLOOKUP(B67,Count!A:J,9,FALSE),0))) ->  | M67: =IF(B67="סך הכל",Summary!$B$12,IF(F67="","",IFERROR(VLOOKUP(B67,Count!A:J,10,FALSE),0))) ->  | O67: =IFERROR(VLOOKUP(B67,Comments!A:B,2,FALSE),"") -> 
B68: =IF(AND(B66<>"",ISNUMBER(B66),B67=""),"סך הכל",IF(Planning!A71="","",Planning!A71)) ->  | C68: =IFERROR(_xlfn.IFS(B68="סך הכל",Summary!$B$6,Planning!C71<>"",Planning!C71),"") ->  | D68: =IFERROR(VLOOKUP(B68,Address!B:G,5,FALSE),"") ->  | E68: =IFERROR(VLOOKUP(B68,Address!B:L,11,FALSE),"") ->  | G68: =IF(B68="סך הכל",Summary!$B$7,IF(F68="","",IF(VLOOKUP(B68,WQ_UnitID!B:C,2,FALSE)=0,"",VLOOKUP(B68,WQ_UnitID!B:C,2,FALSE)))) ->  | H68: =IF(B68="סך הכל",Summary!$B$8,IF(F68="","",IFERROR(VLOOKUP(B68,Planning!A:B,2,FALSE),0))) ->  | I68: =IF(B68="סך הכל",Summary!$B$9,IF(F68="","",IFERROR(VLOOKUP(B68,Count!A:B,2,FALSE),0))) ->  | J68: =IF(F68="","",(IF(ISNUMBER(MATCH(B68,ExcPermit!$H$8:$H$1000,0)),"כן","לא"))) ->  | K68: =IF(B68="סך הכל",Summary!$B$10,IF(F68="","",IFERROR(VLOOKUP(B68,Count!A:J,8,FALSE),0))) ->  | L68: =IF(B68="סך הכל",Summary!$B$11,IF(F68="","",IFERROR(VLOOKUP(B68,Count!A:J,9,FALSE),0))) ->  | M68: =IF(B68="סך הכל",Summary!$B$12,IF(F68="","",IFERROR(VLOOKUP(B68,Count!A:J,10,FALSE),0))) ->  | O68: =IFERROR(VLOOKUP(B68,Comments!A:B,2,FALSE),"") -> 
B69: =IF(AND(B67<>"",ISNUMBER(B67),B68=""),"סך הכל",IF(Planning!A72="","",Planning!A72)) ->  | C69: =IFERROR(_xlfn.IFS(B69="סך הכל",Summary!$B$6,Planning!C72<>"",Planning!C72),"") ->  | D69: =IFERROR(VLOOKUP(B69,Address!B:G,5,FALSE),"") ->  | E69: =IFERROR(VLOOKUP(B69,Address!B:L,11,FALSE),"") ->  | F69: =IF(ISNUMBER(B69),"חטף","") ->  | G69: =IF(B69="סך הכל",Summary!$B$7,IF(F69="","",IF(VLOOKUP(B69,WQ_UnitID!B:C,2,FALSE)=0,"",VLOOKUP(B69,WQ_UnitID!B:C,2,FALSE)))) ->  | H69: =IF(B69="סך הכל",Summary!$B$8,IF(F69="","",IFERROR(VLOOKUP(B69,Planning!A:B,2,FALSE),0))) ->  | I69: =IF(B69="סך הכל",Summary!$B$9,IF(F69="","",IFERROR(VLOOKUP(B69,Count!A:B,2,FALSE),0))) ->  | J69: =IF(F69="","",(IF(ISNUMBER(MATCH(B69,ExcPermit!$H$8:$H$1000,0)),"כן","לא"))) ->  | K69: =IF(B69="סך הכל",Summary!$B$10,IF(F69="","",IFERROR(VLOOKUP(B69,Count!A:J,8,FALSE),0))) ->  | L69: =IF(B69="סך הכל",Summary!$B$11,IF(F69="","",IFERROR(VLOOKUP(B69,Count!A:J,9,FALSE),0))) ->  | M69: =IF(B69="סך הכל",Summary!$B$12,IF(F69="","",IFERROR(VLOOKUP(B69,Count!A:J,10,FALSE),0))) ->  | N69: =IF(O69=0,"",O69) ->  | O69: =IFERROR(VLOOKUP(B69,Comments!A:B,2,FALSE),"") -> 
B70: =IF(AND(B68<>"",ISNUMBER(B68),B69=""),"סך הכל",IF(Planning!A73="","",Planning!A73)) ->  | C70: =IFERROR(_xlfn.IFS(B70="סך הכל",Summary!$B$6,Planning!C73<>"",Planning!C73),"") ->  | D70: =IFERROR(VLOOKUP(B70,Address!B:G,5,FALSE),"") ->  | E70: =IFERROR(VLOOKUP(B70,Address!B:L,11,FALSE),"") ->  | G70: =IF(B70="סך הכל",Summary!$B$7,IF(F70="","",IF(VLOOKUP(B70,WQ_UnitID!B:C,2,FALSE)=0,"",VLOOKUP(B70,WQ_UnitID!B:C,2,FALSE)))) ->  | H70: =IF(B70="סך הכל",Summary!$B$8,IF(F70="","",IFERROR(VLOOKUP(B70,Planning!A:B,2,FALSE),0))) ->  | I70: =IF(B70="סך הכל",Summary!$B$9,IF(F70="","",IFERROR(VLOOKUP(B70,Count!A:B,2,FALSE),0))) ->  | J70: =IF(F70="","",(IF(ISNUMBER(MATCH(B70,ExcPermit!$H$8:$H$1000,0)),"כן","לא"))) ->  | K70: =IF(B70="סך הכל",Summary!$B$10,IF(F70="","",IFERROR(VLOOKUP(B70,Count!A:J,8,FALSE),0))) ->  | L70: =IF(B70="סך הכל",Summary!$B$11,IF(F70="","",IFERROR(VLOOKUP(B70,Count!A:J,9,FALSE),0))) ->  | M70: =IF(B70="סך הכל",Summary!$B$12,IF(F70="","",IFERROR(VLOOKUP(B70,Count!A:J,10,FALSE),0))) ->  | O70: =IFERROR(VLOOKUP(B70,Comments!A:B,2,FALSE),"") -> 
B71: =IF(AND(B69<>"",ISNUMBER(B69),B70=""),"סך הכל",IF(Planning!A74="","",Planning!A74)) ->  | C71: =IFERROR(_xlfn.IFS(B71="סך הכל",Summary!$B$6,Planning!C74<>"",Planning!C74),"") ->  | D71: =IFERROR(VLOOKUP(B71,Address!B:G,5,FALSE),"") ->  | E71: =IFERROR(VLOOKUP(B71,Address!B:L,11,FALSE),"") ->  | G71: =IF(B71="סך הכל",Summary!$B$7,IF(F71="","",IF(VLOOKUP(B71,WQ_UnitID!B:C,2,FALSE)=0,"",VLOOKUP(B71,WQ_UnitID!B:C,2,FALSE)))) ->  | H71: =IF(B71="סך הכל",Summary!$B$8,IF(F71="","",IFERROR(VLOOKUP(B71,Planning!A:B,2,FALSE),0))) ->  | I71: =IF(B71="סך הכל",Summary!$B$9,IF(F71="","",IFERROR(VLOOKUP(B71,Count!A:B,2,FALSE),0))) ->  | J71: =IF(F71="","",(IF(ISNUMBER(MATCH(B71,ExcPermit!$H$8:$H$1000,0)),"כן","לא"))) ->  | K71: =IF(B71="סך הכל",Summary!$B$10,IF(F71="","",IFERROR(VLOOKUP(B71,Count!A:J,8,FALSE),0))) ->  | L71: =IF(B71="סך הכל",Summary!$B$11,IF(F71="","",IFERROR(VLOOKUP(B71,Count!A:J,9,FALSE),0))) ->  | M71: =IF(B71="סך הכל",Summary!$B$12,IF(F71="","",IFERROR(VLOOKUP(B71,Count!A:J,10,FALSE),0))) ->  | O71: =IFERROR(VLOOKUP(B71,Comments!A:B,2,FALSE),"") -> 
B72: =IF(AND(B70<>"",ISNUMBER(B70),B71=""),"סך הכל",IF(Planning!A75="","",Planning!A75)) ->  | C72: =IFERROR(_xlfn.IFS(B72="סך הכל",Summary!$B$6,Planning!C75<>"",Planning!C75),"") ->  | D72: =IFERROR(VLOOKUP(B72,Address!B:G,5,FALSE),"") ->  | E72: =IFERROR(VLOOKUP(B72,Address!B:L,11,FALSE),"") ->  | G72: =IF(B72="סך הכל",Summary!$B$7,IF(F72="","",IF(VLOOKUP(B72,WQ_UnitID!B:C,2,FALSE)=0,"",VLOOKUP(B72,WQ_UnitID!B:C,2,FALSE)))) ->  | H72: =IF(B72="סך הכל",Summary!$B$8,IF(F72="","",IFERROR(VLOOKUP(B72,Planning!A:B,2,FALSE),0))) ->  | I72: =IF(B72="סך הכל",Summary!$B$9,IF(F72="","",IFERROR(VLOOKUP(B72,Count!A:B,2,FALSE),0))) ->  | J72: =IF(F72="","",(IF(ISNUMBER(MATCH(B72,ExcPermit!$H$8:$H$1000,0)),"כן","לא"))) ->  | K72: =IF(B72="סך הכל",Summary!$B$10,IF(F72="","",IFERROR(VLOOKUP(B72,Count!A:J,8,FALSE),0))) ->  | L72: =IF(B72="סך הכל",Summary!$B$11,IF(F72="","",IFERROR(VLOOKUP(B72,Count!A:J,9,FALSE),0))) ->  | M72: =IF(B72="סך הכל",Summary!$B$12,IF(F72="","",IFERROR(VLOOKUP(B72,Count!A:J,10,FALSE),0))) ->  | O72: =IFERROR(VLOOKUP(B72,Comments!A:B,2,FALSE),"") -> 
B73: =IF(AND(B71<>"",ISNUMBER(B71),B72=""),"סך הכל",IF(Planning!A76="","",Planning!A76)) ->  | C73: =IFERROR(_xlfn.IFS(B73="סך הכל",Summary!$B$6,Planning!C76<>"",Planning!C76),"") ->  | D73: =IFERROR(VLOOKUP(B73,Address!B:G,5,FALSE),"") ->  | E73: =IFERROR(VLOOKUP(B73,Address!B:L,11,FALSE),"") ->  | G73: =IF(B73="סך הכל",Summary!$B$7,IF(F73="","",IF(VLOOKUP(B73,WQ_UnitID!B:C,2,FALSE)=0,"",VLOOKUP(B73,WQ_UnitID!B:C,2,FALSE)))) ->  | H73: =IF(B73="סך הכל",Summary!$B$8,IF(F73="","",IFERROR(VLOOKUP(B73,Planning!A:B,2,FALSE),0))) ->  | I73: =IF(B73="סך הכל",Summary!$B$9,IF(F73="","",IFERROR(VLOOKUP(B73,Count!A:B,2,FALSE),0))) ->  | J73: =IF(F73="","",(IF(ISNUMBER(MATCH(B73,ExcPermit!$H$8:$H$1000,0)),"כן","לא"))) ->  | K73: =IF(B73="סך הכל",Summary!$B$10,IF(F73="","",IFERROR(VLOOKUP(B73,Count!A:J,8,FALSE),0))) ->  | L73: =IF(B73="סך הכל",Summary!$B$11,IF(F73="","",IFERROR(VLOOKUP(B73,Count!A:J,9,FALSE),0))) ->  | M73: =IF(B73="סך הכל",Summary!$B$12,IF(F73="","",IFERROR(VLOOKUP(B73,Count!A:J,10,FALSE),0))) ->  | O73: =IFERROR(VLOOKUP(B73,Comments!A:B,2,FALSE),"") -> 
B74: =IF(AND(B72<>"",ISNUMBER(B72),B73=""),"סך הכל",IF(Planning!A77="","",Planning!A77)) ->  | C74: =IFERROR(_xlfn.IFS(B74="סך הכל",Summary!$B$6,Planning!C77<>"",Planning!C77),"") ->  | D74: =IFERROR(VLOOKUP(B74,Address!B:G,5,FALSE),"") ->  | E74: =IFERROR(VLOOKUP(B74,Address!B:L,11,FALSE),"") ->  | G74: =IF(B74="סך הכל",Summary!$B$7,IF(F74="","",IF(VLOOKUP(B74,WQ_UnitID!B:C,2,FALSE)=0,"",VLOOKUP(B74,WQ_UnitID!B:C,2,FALSE)))) ->  | H74: =IF(B74="סך הכל",Summary!$B$8,IF(F74="","",IFERROR(VLOOKUP(B74,Planning!A:B,2,FALSE),0))) ->  | I74: =IF(B74="סך הכל",Summary!$B$9,IF(F74="","",IFERROR(VLOOKUP(B74,Count!A:B,2,FALSE),0))) ->  | J74: =IF(F74="","",(IF(ISNUMBER(MATCH(B74,ExcPermit!$H$8:$H$1000,0)),"כן","לא"))) ->  | K74: =IF(B74="סך הכל",Summary!$B$10,IF(F74="","",IFERROR(VLOOKUP(B74,Count!A:J,8,FALSE),0))) ->  | L74: =IF(B74="סך הכל",Summary!$B$11,IF(F74="","",IFERROR(VLOOKUP(B74,Count!A:J,9,FALSE),0))) ->  | M74: =IF(B74="סך הכל",Summary!$B$12,IF(F74="","",IFERROR(VLOOKUP(B74,Count!A:J,10,FALSE),0))) ->  | O74: =IFERROR(VLOOKUP(B74,Comments!A:B,2,FALSE),"") -> 
B75: =IF(AND(B73<>"",ISNUMBER(B73),B74=""),"סך הכל",IF(Planning!A78="","",Planning!A78)) ->  | C75: =IFERROR(_xlfn.IFS(B75="סך הכל",Summary!$B$6,Planning!C78<>"",Planning!C78),"") ->  | D75: =IFERROR(VLOOKUP(B75,Address!B:G,5,FALSE),"") ->  | E75: =IFERROR(VLOOKUP(B75,Address!B:L,11,FALSE),"") ->  | G75: =IF(B75="סך הכל",Summary!$B$7,IF(F75="","",IF(VLOOKUP(B75,WQ_UnitID!B:C,2,FALSE)=0,"",VLOOKUP(B75,WQ_UnitID!B:C,2,FALSE)))) ->  | H75: =IF(B75="סך הכל",Summary!$B$8,IF(F75="","",IFERROR(VLOOKUP(B75,Planning!A:B,2,FALSE),0))) ->  | I75: =IF(B75="סך הכל",Summary!$B$9,IF(F75="","",IFERROR(VLOOKUP(B75,Count!A:B,2,FALSE),0))) ->  | J75: =IF(F75="","",(IF(ISNUMBER(MATCH(B75,ExcPermit!$H$8:$H$1000,0)),"כן","לא"))) ->  | K75: =IF(B75="סך הכל",Summary!$B$10,IF(F75="","",IFERROR(VLOOKUP(B75,Count!A:J,8,FALSE),0))) ->  | L75: =IF(B75="סך הכל",Summary!$B$11,IF(F75="","",IFERROR(VLOOKUP(B75,Count!A:J,9,FALSE),0))) ->  | M75: =IF(B75="סך הכל",Summary!$B$12,IF(F75="","",IFERROR(VLOOKUP(B75,Count!A:J,10,FALSE),0))) ->  | O75: =IFERROR(VLOOKUP(B75,Comments!A:B,2,FALSE),"") -> 
B76: =IF(AND(B74<>"",ISNUMBER(B74),B75=""),"סך הכל",IF(Planning!A79="","",Planning!A79)) ->  | C76: =IFERROR(_xlfn.IFS(B76="סך הכל",Summary!$B$6,Planning!C79<>"",Planning!C79),"") ->  | D76: =IFERROR(VLOOKUP(B76,Address!B:G,5,FALSE),"") ->  | E76: =IFERROR(VLOOKUP(B76,Address!B:L,11,FALSE),"") ->  | G76: =IF(B76="סך הכל",Summary!$B$7,IF(F76="","",IF(VLOOKUP(B76,WQ_UnitID!B:C,2,FALSE)=0,"",VLOOKUP(B76,WQ_UnitID!B:C,2,FALSE)))) ->  | H76: =IF(B76="סך הכל",Summary!$B$8,IF(F76="","",IFERROR(VLOOKUP(B76,Planning!A:B,2,FALSE),0))) ->  | I76: =IF(B76="סך הכל",Summary!$B$9,IF(F76="","",IFERROR(VLOOKUP(B76,Count!A:B,2,FALSE),0))) ->  | J76: =IF(F76="","",(IF(ISNUMBER(MATCH(B76,ExcPermit!$H$8:$H$1000,0)),"כן","לא"))) ->  | K76: =IF(B76="סך הכל",Summary!$B$10,IF(F76="","",IFERROR(VLOOKUP(B76,Count!A:J,8,FALSE),0))) ->  | L76: =IF(B76="סך הכל",Summary!$B$11,IF(F76="","",IFERROR(VLOOKUP(B76,Count!A:J,9,FALSE),0))) ->  | M76: =IF(B76="סך הכל",Summary!$B$12,IF(F76="","",IFERROR(VLOOKUP(B76,Count!A:J,10,FALSE),0))) ->  | O76: =IFERROR(VLOOKUP(B76,Comments!A:B,2,FALSE),"") -> 
B77: =IF(AND(B75<>"",ISNUMBER(B75),B76=""),"סך הכל",IF(Planning!A80="","",Planning!A80)) ->  | C77: =IFERROR(_xlfn.IFS(B77="סך הכל",Summary!$B$6,Planning!C80<>"",Planning!C80),"") ->  | D77: =IFERROR(VLOOKUP(B77,Address!B:G,5,FALSE),"") ->  | E77: =IFERROR(VLOOKUP(B77,Address!B:L,11,FALSE),"") ->  | G77: =IF(B77="סך הכל",Summary!$B$7,IF(F77="","",IF(VLOOKUP(B77,WQ_UnitID!B:C,2,FALSE)=0,"",VLOOKUP(B77,WQ_UnitID!B:C,2,FALSE)))) ->  | H77: =IF(B77="סך הכל",Summary!$B$8,IF(F77="","",IFERROR(VLOOKUP(B77,Planning!A:B,2,FALSE),0))) ->  | I77: =IF(B77="סך הכל",Summary!$B$9,IF(F77="","",IFERROR(VLOOKUP(B77,Count!A:B,2,FALSE),0))) ->  | J77: =IF(F77="","",(IF(ISNUMBER(MATCH(B77,ExcPermit!$H$8:$H$1000,0)),"כן","לא"))) ->  | K77: =IF(B77="סך הכל",Summary!$B$10,IF(F77="","",IFERROR(VLOOKUP(B77,Count!A:J,8,FALSE),0))) ->  | L77: =IF(B77="סך הכל",Summary!$B$11,IF(F77="","",IFERROR(VLOOKUP(B77,Count!A:J,9,FALSE),0))) ->  | M77: =IF(B77="סך הכל",Summary!$B$12,IF(F77="","",IFERROR(VLOOKUP(B77,Count!A:J,10,FALSE),0))) ->  | O77: =IFERROR(VLOOKUP(B77,Comments!A:B,2,FALSE),"") -> 
B78: =IF(AND(B76<>"",ISNUMBER(B76),B77=""),"סך הכל",IF(Planning!A81="","",Planning!A81)) ->  | C78: =IFERROR(_xlfn.IFS(B78="סך הכל",Summary!$B$6,Planning!C81<>"",Planning!C81),"") ->  | D78: =IFERROR(VLOOKUP(B78,Address!B:G,5,FALSE),"") ->  | E78: =IFERROR(VLOOKUP(B78,Address!B:L,11,FALSE),"") ->  | G78: =IF(B78="סך הכל",Summary!$B$7,IF(F78="","",IF(VLOOKUP(B78,WQ_UnitID!B:C,2,FALSE)=0,"",VLOOKUP(B78,WQ_UnitID!B:C,2,FALSE)))) ->  | H78: =IF(B78="סך הכל",Summary!$B$8,IF(F78="","",IFERROR(VLOOKUP(B78,Planning!A:B,2,FALSE),0))) ->  | I78: =IF(B78="סך הכל",Summary!$B$9,IF(F78="","",IFERROR(VLOOKUP(B78,Count!A:B,2,FALSE),0))) ->  | J78: =IF(F78="","",(IF(ISNUMBER(MATCH(B78,ExcPermit!$H$8:$H$1000,0)),"כן","לא"))) ->  | K78: =IF(B78="סך הכל",Summary!$B$10,IF(F78="","",IFERROR(VLOOKUP(B78,Count!A:J,8,FALSE),0))) ->  | L78: =IF(B78="סך הכל",Summary!$B$11,IF(F78="","",IFERROR(VLOOKUP(B78,Count!A:J,9,FALSE),0))) ->  | M78: =IF(B78="סך הכל",Summary!$B$12,IF(F78="","",IFERROR(VLOOKUP(B78,Count!A:J,10,FALSE),0))) ->  | O78: =IFERROR(VLOOKUP(B78,Comments!A:B,2,FALSE),"") -> 
B79: =IF(AND(B77<>"",ISNUMBER(B77),B78=""),"סך הכל",IF(Planning!A82="","",Planning!A82)) ->  | C79: =IFERROR(_xlfn.IFS(B79="סך הכל",Summary!$B$6,Planning!C82<>"",Planning!C82),"") ->  | D79: =IFERROR(VLOOKUP(B79,Address!B:G,5,FALSE),"") ->  | E79: =IFERROR(VLOOKUP(B79,Address!B:L,11,FALSE),"") ->  | G79: =IF(B79="סך הכל",Summary!$B$7,IF(F79="","",IF(VLOOKUP(B79,WQ_UnitID!B:C,2,FALSE)=0,"",VLOOKUP(B79,WQ_UnitID!B:C,2,FALSE)))) ->  | H79: =IF(B79="סך הכל",Summary!$B$8,IF(F79="","",IFERROR(VLOOKUP(B79,Planning!A:B,2,FALSE),0))) ->  | I79: =IF(B79="סך הכל",Summary!$B$9,IF(F79="","",IFERROR(VLOOKUP(B79,Count!A:B,2,FALSE),0))) ->  | J79: =IF(F79="","",(IF(ISNUMBER(MATCH(B79,ExcPermit!$H$8:$H$1000,0)),"כן","לא"))) ->  | K79: =IF(B79="סך הכל",Summary!$B$10,IF(F79="","",IFERROR(VLOOKUP(B79,Count!A:J,8,FALSE),0))) ->  | L79: =IF(B79="סך הכל",Summary!$B$11,IF(F79="","",IFERROR(VLOOKUP(B79,Count!A:J,9,FALSE),0))) ->  | M79: =IF(B79="סך הכל",Summary!$B$12,IF(F79="","",IFERROR(VLOOKUP(B79,Count!A:J,10,FALSE),0))) ->  | O79: =IFERROR(VLOOKUP(B79,Comments!A:B,2,FALSE),"") -> 
B80: =IF(AND(B78<>"",ISNUMBER(B78),B79=""),"סך הכל",IF(Planning!A83="","",Planning!A83)) ->  | C80: =IFERROR(_xlfn.IFS(B80="סך הכל",Summary!$B$6,Planning!C83<>"",Planning!C83),"") ->  | D80: =IFERROR(VLOOKUP(B80,Address!B:G,5,FALSE),"") ->  | E80: =IFERROR(VLOOKUP(B80,Address!B:L,11,FALSE),"") ->  | G80: =IF(B80="סך הכל",Summary!$B$7,IF(F80="","",IF(VLOOKUP(B80,WQ_UnitID!B:C,2,FALSE)=0,"",VLOOKUP(B80,WQ_UnitID!B:C,2,FALSE)))) ->  | H80: =IF(B80="סך הכל",Summary!$B$8,IF(F80="","",IFERROR(VLOOKUP(B80,Planning!A:B,2,FALSE),0))) ->  | I80: =IF(B80="סך הכל",Summary!$B$9,IF(F80="","",IFERROR(VLOOKUP(B80,Count!A:B,2,FALSE),0))) ->  | J80: =IF(F80="","",(IF(ISNUMBER(MATCH(B80,ExcPermit!$H$8:$H$1000,0)),"כן","לא"))) ->  | K80: =IF(B80="סך הכל",Summary!$B$10,IF(F80="","",IFERROR(VLOOKUP(B80,Count!A:J,8,FALSE),0))) ->  | L80: =IF(B80="סך הכל",Summary!$B$11,IF(F80="","",IFERROR(VLOOKUP(B80,Count!A:J,9,FALSE),0))) ->  | M80: =IF(B80="סך הכל",Summary!$B$12,IF(F80="","",IFERROR(VLOOKUP(B80,Count!A:J,10,FALSE),0))) ->  | O80: =IFERROR(VLOOKUP(B80,Comments!A:B,2,FALSE),"") -> 
B81: =IF(AND(B79<>"",ISNUMBER(B79),B80=""),"סך הכל",IF(Planning!A84="","",Planning!A84)) ->  | C81: =IFERROR(_xlfn.IFS(B81="סך הכל",Summary!$B$6,Planning!C84<>"",Planning!C84),"") ->  | D81: =IFERROR(VLOOKUP(B81,Address!B:G,5,FALSE),"") ->  | E81: =IFERROR(VLOOKUP(B81,Address!B:L,11,FALSE),"") ->  | G81: =IF(B81="סך הכל",Summary!$B$7,IF(F81="","",IF(VLOOKUP(B81,WQ_UnitID!B:C,2,FALSE)=0,"",VLOOKUP(B81,WQ_UnitID!B:C,2,FALSE)))) ->  | H81: =IF(B81="סך הכל",Summary!$B$8,IF(F81="","",IFERROR(VLOOKUP(B81,Planning!A:B,2,FALSE),0))) ->  | I81: =IF(B81="סך הכל",Summary!$B$9,IF(F81="","",IFERROR(VLOOKUP(B81,Count!A:B,2,FALSE),0))) ->  | J81: =IF(F81="","",(IF(ISNUMBER(MATCH(B81,ExcPermit!$H$8:$H$1000,0)),"כן","לא"))) ->  | K81: =IF(B81="סך הכל",Summary!$B$10,IF(F81="","",IFERROR(VLOOKUP(B81,Count!A:J,8,FALSE),0))) ->  | L81: =IF(B81="סך הכל",Summary!$B$11,IF(F81="","",IFERROR(VLOOKUP(B81,Count!A:J,9,FALSE),0))) ->  | M81: =IF(B81="סך הכל",Summary!$B$12,IF(F81="","",IFERROR(VLOOKUP(B81,Count!A:J,10,FALSE),0))) ->  | O81: =IFERROR(VLOOKUP(B81,Comments!A:B,2,FALSE),"") -> 
B82: =IF(AND(B80<>"",ISNUMBER(B80),B81=""),"סך הכל",IF(Planning!A85="","",Planning!A85)) ->  | C82: =IFERROR(_xlfn.IFS(B82="סך הכל",Summary!$B$6,Planning!C85<>"",Planning!C85),"") ->  | D82: =IFERROR(VLOOKUP(B82,Address!B:G,5,FALSE),"") ->  | E82: =IFERROR(VLOOKUP(B82,Address!B:L,11,FALSE),"") ->  | G82: =IF(B82="סך הכל",Summary!$B$7,IF(F82="","",IF(VLOOKUP(B82,WQ_UnitID!B:C,2,FALSE)=0,"",VLOOKUP(B82,WQ_UnitID!B:C,2,FALSE)))) ->  | H82: =IF(B82="סך הכל",Summary!$B$8,IF(F82="","",IFERROR(VLOOKUP(B82,Planning!A:B,2,FALSE),0))) ->  | I82: =IF(B82="סך הכל",Summary!$B$9,IF(F82="","",IFERROR(VLOOKUP(B82,Count!A:B,2,FALSE),0))) ->  | J82: =IF(F82="","",(IF(ISNUMBER(MATCH(B82,ExcPermit!$H$8:$H$1000,0)),"כן","לא"))) ->  | K82: =IF(B82="סך הכל",Summary!$B$10,IF(F82="","",IFERROR(VLOOKUP(B82,Count!A:J,8,FALSE),0))) ->  | L82: =IF(B82="סך הכל",Summary!$B$11,IF(F82="","",IFERROR(VLOOKUP(B82,Count!A:J,9,FALSE),0))) ->  | M82: =IF(B82="סך הכל",Summary!$B$12,IF(F82="","",IFERROR(VLOOKUP(B82,Count!A:J,10,FALSE),0))) ->  | O82: =IFERROR(VLOOKUP(B82,Comments!A:B,2,FALSE),"") -> 
B83: =IF(AND(B81<>"",ISNUMBER(B81),B82=""),"סך הכל",IF(Planning!A86="","",Planning!A86)) ->  | C83: =IFERROR(_xlfn.IFS(B83="סך הכל",Summary!$B$6,Planning!C86<>"",Planning!C86),"") ->  | D83: =IFERROR(VLOOKUP(B83,Address!B:G,5,FALSE),"") ->  | E83: =IFERROR(VLOOKUP(B83,Address!B:L,11,FALSE),"") ->  | G83: =IF(B83="סך הכל",Summary!$B$7,IF(F83="","",IF(VLOOKUP(B83,WQ_UnitID!B:C,2,FALSE)=0,"",VLOOKUP(B83,WQ_UnitID!B:C,2,FALSE)))) ->  | H83: =IF(B83="סך הכל",Summary!$B$8,IF(F83="","",IFERROR(VLOOKUP(B83,Planning!A:B,2,FALSE),0))) ->  | I83: =IF(B83="סך הכל",Summary!$B$9,IF(F83="","",IFERROR(VLOOKUP(B83,Count!A:B,2,FALSE),0))) ->  | J83: =IF(F83="","",(IF(ISNUMBER(MATCH(B83,ExcPermit!$H$8:$H$1000,0)),"כן","לא"))) ->  | K83: =IF(B83="סך הכל",Summary!$B$10,IF(F83="","",IFERROR(VLOOKUP(B83,Count!A:J,8,FALSE),0))) ->  | L83: =IF(B83="סך הכל",Summary!$B$11,IF(F83="","",IFERROR(VLOOKUP(B83,Count!A:J,9,FALSE),0))) ->  | M83: =IF(B83="סך הכל",Summary!$B$12,IF(F83="","",IFERROR(VLOOKUP(B83,Count!A:J,10,FALSE),0))) ->  | O83: =IFERROR(VLOOKUP(B83,Comments!A:B,2,FALSE),"") -> 
B84: =IF(AND(B82<>"",ISNUMBER(B82),B83=""),"סך הכל",IF(Planning!A87="","",Planning!A87)) ->  | C84: =IFERROR(_xlfn.IFS(B84="סך הכל",Summary!$B$6,Planning!C87<>"",Planning!C87),"") ->  | D84: =IFERROR(VLOOKUP(B84,Address!B:G,5,FALSE),"") ->  | E84: =IFERROR(VLOOKUP(B84,Address!B:L,11,FALSE),"") ->  | G84: =IF(B84="סך הכל",Summary!$B$7,IF(F84="","",IF(VLOOKUP(B84,WQ_UnitID!B:C,2,FALSE)=0,"",VLOOKUP(B84,WQ_UnitID!B:C,2,FALSE)))) ->  | H84: =IF(B84="סך הכל",Summary!$B$8,IF(F84="","",IFERROR(VLOOKUP(B84,Planning!A:B,2,FALSE),0))) ->  | I84: =IF(B84="סך הכל",Summary!$B$9,IF(F84="","",IFERROR(VLOOKUP(B84,Count!A:B,2,FALSE),0))) ->  | J84: =IF(F84="","",(IF(ISNUMBER(MATCH(B84,ExcPermit!$H$8:$H$1000,0)),"כן","לא"))) ->  | K84: =IF(B84="סך הכל",Summary!$B$10,IF(F84="","",IFERROR(VLOOKUP(B84,Count!A:J,8,FALSE),0))) ->  | L84: =IF(B84="סך הכל",Summary!$B$11,IF(F84="","",IFERROR(VLOOKUP(B84,Count!A:J,9,FALSE),0))) ->  | M84: =IF(B84="סך הכל",Summary!$B$12,IF(F84="","",IFERROR(VLOOKUP(B84,Count!A:J,10,FALSE),0))) ->  | O84: =IFERROR(VLOOKUP(B84,Comments!A:B,2,FALSE),"") -> 
B85: =IF(AND(B83<>"",ISNUMBER(B83),B84=""),"סך הכל",IF(Planning!A88="","",Planning!A88)) ->  | C85: =IFERROR(_xlfn.IFS(B85="סך הכל",Summary!$B$6,Planning!C88<>"",Planning!C88),"") ->  | D85: =IFERROR(VLOOKUP(B85,Address!B:G,5,FALSE),"") ->  | E85: =IFERROR(VLOOKUP(B85,Address!B:L,11,FALSE),"") ->  | G85: =IF(B85="סך הכל",Summary!$B$7,IF(F85="","",IF(VLOOKUP(B85,WQ_UnitID!B:C,2,FALSE)=0,"",VLOOKUP(B85,WQ_UnitID!B:C,2,FALSE)))) ->  | H85: =IF(B85="סך הכל",Summary!$B$8,IF(F85="","",IFERROR(VLOOKUP(B85,Planning!A:B,2,FALSE),0))) ->  | I85: =IF(B85="סך הכל",Summary!$B$9,IF(F85="","",IFERROR(VLOOKUP(B85,Count!A:B,2,FALSE),0))) ->  | J85: =IF(F85="","",(IF(ISNUMBER(MATCH(B85,ExcPermit!$H$8:$H$1000,0)),"כן","לא"))) ->  | K85: =IF(B85="סך הכל",Summary!$B$10,IF(F85="","",IFERROR(VLOOKUP(B85,Count!A:J,8,FALSE),0))) ->  | L85: =IF(B85="סך הכל",Summary!$B$11,IF(F85="","",IFERROR(VLOOKUP(B85,Count!A:J,9,FALSE),0))) ->  | M85: =IF(B85="סך הכל",Summary!$B$12,IF(F85="","",IFERROR(VLOOKUP(B85,Count!A:J,10,FALSE),0))) ->  | O85: =IFERROR(VLOOKUP(B85,Comments!A:B,2,FALSE),"") -> 
B86: =IF(AND(B84<>"",ISNUMBER(B84),B85=""),"סך הכל",IF(Planning!A89="","",Planning!A89)) ->  | C86: =IFERROR(_xlfn.IFS(B86="סך הכל",Summary!$B$6,Planning!C89<>"",Planning!C89),"") ->  | D86: =IFERROR(VLOOKUP(B86,Address!B:G,5,FALSE),"") ->  | E86: =IFERROR(VLOOKUP(B86,Address!B:L,11,FALSE),"") ->  | G86: =IF(B86="סך הכל",Summary!$B$7,IF(F86="","",IF(VLOOKUP(B86,WQ_UnitID!B:C,2,FALSE)=0,"",VLOOKUP(B86,WQ_UnitID!B:C,2,FALSE)))) ->  | H86: =IF(B86="סך הכל",Summary!$B$8,IF(F86="","",IFERROR(VLOOKUP(B86,Planning!A:B,2,FALSE),0))) ->  | I86: =IF(B86="סך הכל",Summary!$B$9,IF(F86="","",IFERROR(VLOOKUP(B86,Count!A:B,2,FALSE),0))) ->  | J86: =IF(F86="","",(IF(ISNUMBER(MATCH(B86,ExcPermit!$H$8:$H$1000,0)),"כן","לא"))) ->  | K86: =IF(B86="סך הכל",Summary!$B$10,IF(F86="","",IFERROR(VLOOKUP(B86,Count!A:J,8,FALSE),0))) ->  | L86: =IF(B86="סך הכל",Summary!$B$11,IF(F86="","",IFERROR(VLOOKUP(B86,Count!A:J,9,FALSE),0))) ->  | M86: =IF(B86="סך הכל",Summary!$B$12,IF(F86="","",IFERROR(VLOOKUP(B86,Count!A:J,10,FALSE),0))) ->  | O86: =IFERROR(VLOOKUP(B86,Comments!A:B,2,FALSE),"") -> 
B87: =IF(AND(B85<>"",ISNUMBER(B85),B86=""),"סך הכל",IF(Planning!A90="","",Planning!A90)) ->  | C87: =IFERROR(_xlfn.IFS(B87="סך הכל",Summary!$B$6,Planning!C90<>"",Planning!C90),"") ->  | D87: =IFERROR(VLOOKUP(B87,Address!B:G,5,FALSE),"") ->  | E87: =IFERROR(VLOOKUP(B87,Address!B:L,11,FALSE),"") ->  | G87: =IF(B87="סך הכל",Summary!$B$7,IF(F87="","",IF(VLOOKUP(B87,WQ_UnitID!B:C,2,FALSE)=0,"",VLOOKUP(B87,WQ_UnitID!B:C,2,FALSE)))) ->  | H87: =IF(B87="סך הכל",Summary!$B$8,IF(F87="","",IFERROR(VLOOKUP(B87,Planning!A:B,2,FALSE),0))) ->  | I87: =IF(B87="סך הכל",Summary!$B$9,IF(F87="","",IFERROR(VLOOKUP(B87,Count!A:B,2,FALSE),0))) ->  | J87: =IF(F87="","",(IF(ISNUMBER(MATCH(B87,ExcPermit!$H$8:$H$1000,0)),"כן","לא"))) ->  | K87: =IF(B87="סך הכל",Summary!$B$10,IF(F87="","",IFERROR(VLOOKUP(B87,Count!A:J,8,FALSE),0))) ->  | L87: =IF(B87="סך הכל",Summary!$B$11,IF(F87="","",IFERROR(VLOOKUP(B87,Count!A:J,9,FALSE),0))) ->  | M87: =IF(B87="סך הכל",Summary!$B$12,IF(F87="","",IFERROR(VLOOKUP(B87,Count!A:J,10,FALSE),0))) ->  | O87: =IFERROR(VLOOKUP(B87,Comments!A:B,2,FALSE),"") -> 
B88: =IF(AND(B86<>"",ISNUMBER(B86),B87=""),"סך הכל",IF(Planning!A91="","",Planning!A91)) ->  | C88: =IFERROR(_xlfn.IFS(B88="סך הכל",Summary!$B$6,Planning!C91<>"",Planning!C91),"") ->  | D88: =IFERROR(VLOOKUP(B88,Address!B:G,5,FALSE),"") ->  | E88: =IFERROR(VLOOKUP(B88,Address!B:L,11,FALSE),"") ->  | G88: =IF(B88="סך הכל",Summary!$B$7,IF(F88="","",IF(VLOOKUP(B88,WQ_UnitID!B:C,2,FALSE)=0,"",VLOOKUP(B88,WQ_UnitID!B:C,2,FALSE)))) ->  | H88: =IF(B88="סך הכל",Summary!$B$8,IF(F88="","",IFERROR(VLOOKUP(B88,Planning!A:B,2,FALSE),0))) ->  | I88: =IF(B88="סך הכל",Summary!$B$9,IF(F88="","",IFERROR(VLOOKUP(B88,Count!A:B,2,FALSE),0))) ->  | J88: =IF(F88="","",(IF(ISNUMBER(MATCH(B88,ExcPermit!$H$8:$H$1000,0)),"כן","לא"))) ->  | K88: =IF(B88="סך הכל",Summary!$B$10,IF(F88="","",IFERROR(VLOOKUP(B88,Count!A:J,8,FALSE),0))) ->  | L88: =IF(B88="סך הכל",Summary!$B$11,IF(F88="","",IFERROR(VLOOKUP(B88,Count!A:J,9,FALSE),0))) ->  | M88: =IF(B88="סך הכל",Summary!$B$12,IF(F88="","",IFERROR(VLOOKUP(B88,Count!A:J,10,FALSE),0))) ->  | O88: =IFERROR(VLOOKUP(B88,Comments!A:B,2,FALSE),"") -> 
B89: =IF(AND(B87<>"",ISNUMBER(B87),B88=""),"סך הכל",IF(Planning!A92="","",Planning!A92)) ->  | C89: =IFERROR(_xlfn.IFS(B89="סך הכל",Summary!$B$6,Planning!C92<>"",Planning!C92),"") ->  | D89: =IFERROR(VLOOKUP(B89,Address!B:G,5,FALSE),"") ->  | E89: =IFERROR(VLOOKUP(B89,Address!B:L,11,FALSE),"") ->  | G89: =IF(B89="סך הכל",Summary!$B$7,IF(F89="","",IF(VLOOKUP(B89,WQ_UnitID!B:C,2,FALSE)=0,"",VLOOKUP(B89,WQ_UnitID!B:C,2,FALSE)))) ->  | H89: =IF(B89="סך הכל",Summary!$B$8,IF(F89="","",IFERROR(VLOOKUP(B89,Planning!A:B,2,FALSE),0))) ->  | I89: =IF(B89="סך הכל",Summary!$B$9,IF(F89="","",IFERROR(VLOOKUP(B89,Count!A:B,2,FALSE),0))) ->  | J89: =IF(F89="","",(IF(ISNUMBER(MATCH(B89,ExcPermit!$H$8:$H$1000,0)),"כן","לא"))) ->  | K89: =IF(B89="סך הכל",Summary!$B$10,IF(F89="","",IFERROR(VLOOKUP(B89,Count!A:J,8,FALSE),0))) ->  | L89: =IF(B89="סך הכל",Summary!$B$11,IF(F89="","",IFERROR(VLOOKUP(B89,Count!A:J,9,FALSE),0))) ->  | M89: =IF(B89="סך הכל",Summary!$B$12,IF(F89="","",IFERROR(VLOOKUP(B89,Count!A:J,10,FALSE),0))) ->  | O89: =IFERROR(VLOOKUP(B89,Comments!A:B,2,FALSE),"") -> 
B90: =IF(AND(B88<>"",ISNUMBER(B88),B89=""),"סך הכל",IF(Planning!A93="","",Planning!A93)) ->  | C90: =IFERROR(_xlfn.IFS(B90="סך הכל",Summary!$B$6,Planning!C93<>"",Planning!C93),"") ->  | D90: =IFERROR(VLOOKUP(B90,Address!B:G,5,FALSE),"") ->  | E90: =IFERROR(VLOOKUP(B90,Address!B:L,11,FALSE),"") ->  | G90: =IF(B90="סך הכל",Summary!$B$7,IF(F90="","",IF(VLOOKUP(B90,WQ_UnitID!B:C,2,FALSE)=0,"",VLOOKUP(B90,WQ_UnitID!B:C,2,FALSE)))) ->  | H90: =IF(B90="סך הכל",Summary!$B$8,IF(F90="","",IFERROR(VLOOKUP(B90,Planning!A:B,2,FALSE),0))) ->  | I90: =IF(B90="סך הכל",Summary!$B$9,IF(F90="","",IFERROR(VLOOKUP(B90,Count!A:B,2,FALSE),0))) ->  | J90: =IF(F90="","",(IF(ISNUMBER(MATCH(B90,ExcPermit!$H$8:$H$1000,0)),"כן","לא"))) ->  | K90: =IF(B90="סך הכל",Summary!$B$10,IF(F90="","",IFERROR(VLOOKUP(B90,Count!A:J,8,FALSE),0))) ->  | L90: =IF(B90="סך הכל",Summary!$B$11,IF(F90="","",IFERROR(VLOOKUP(B90,Count!A:J,9,FALSE),0))) ->  | M90: =IF(B90="סך הכל",Summary!$B$12,IF(F90="","",IFERROR(VLOOKUP(B90,Count!A:J,10,FALSE),0))) ->  | O90: =IFERROR(VLOOKUP(B90,Comments!A:B,2,FALSE),"") -> 
B91: =IF(AND(B89<>"",ISNUMBER(B89),B90=""),"סך הכל",IF(Planning!A94="","",Planning!A94)) ->  | C91: =IFERROR(_xlfn.IFS(B91="סך הכל",Summary!$B$6,Planning!C94<>"",Planning!C94),"") ->  | D91: =IFERROR(VLOOKUP(B91,Address!B:G,5,FALSE),"") ->  | E91: =IFERROR(VLOOKUP(B91,Address!B:L,11,FALSE),"") ->  | G91: =IF(B91="סך הכל",Summary!$B$7,IF(F91="","",IF(VLOOKUP(B91,WQ_UnitID!B:C,2,FALSE)=0,"",VLOOKUP(B91,WQ_UnitID!B:C,2,FALSE)))) ->  | H91: =IF(B91="סך הכל",Summary!$B$8,IF(F91="","",IFERROR(VLOOKUP(B91,Planning!A:B,2,FALSE),0))) ->  | I91: =IF(B91="סך הכל",Summary!$B$9,IF(F91="","",IFERROR(VLOOKUP(B91,Count!A:B,2,FALSE),0))) ->  | J91: =IF(F91="","",(IF(ISNUMBER(MATCH(B91,ExcPermit!$H$8:$H$1000,0)),"כן","לא"))) ->  | K91: =IF(B91="סך הכל",Summary!$B$10,IF(F91="","",IFERROR(VLOOKUP(B91,Count!A:J,8,FALSE),0))) ->  | L91: =IF(B91="סך הכל",Summary!$B$11,IF(F91="","",IFERROR(VLOOKUP(B91,Count!A:J,9,FALSE),0))) ->  | M91: =IF(B91="סך הכל",Summary!$B$12,IF(F91="","",IFERROR(VLOOKUP(B91,Count!A:J,10,FALSE),0))) ->  | O91: =IFERROR(VLOOKUP(B91,Comments!A:B,2,FALSE),"") -> 
B92: =IF(AND(B90<>"",ISNUMBER(B90),B91=""),"סך הכל",IF(Planning!A95="","",Planning!A95)) ->  | C92: =IFERROR(_xlfn.IFS(B92="סך הכל",Summary!$B$6,Planning!C95<>"",Planning!C95),"") ->  | D92: =IFERROR(VLOOKUP(B92,Address!B:G,5,FALSE),"") ->  | E92: =IFERROR(VLOOKUP(B92,Address!B:L,11,FALSE),"") ->  | G92: =IF(B92="סך הכל",Summary!$B$7,IF(F92="","",IF(VLOOKUP(B92,WQ_UnitID!B:C,2,FALSE)=0,"",VLOOKUP(B92,WQ_UnitID!B:C,2,FALSE)))) ->  | H92: =IF(B92="סך הכל",Summary!$B$8,IF(F92="","",IFERROR(VLOOKUP(B92,Planning!A:B,2,FALSE),0))) ->  | I92: =IF(B92="סך הכל",Summary!$B$9,IF(F92="","",IFERROR(VLOOKUP(B92,Count!A:B,2,FALSE),0))) ->  | J92: =IF(F92="","",(IF(ISNUMBER(MATCH(B92,ExcPermit!$H$8:$H$1000,0)),"כן","לא"))) ->  | K92: =IF(B92="סך הכל",Summary!$B$10,IF(F92="","",IFERROR(VLOOKUP(B92,Count!A:J,8,FALSE),0))) ->  | L92: =IF(B92="סך הכל",Summary!$B$11,IF(F92="","",IFERROR(VLOOKUP(B92,Count!A:J,9,FALSE),0))) ->  | M92: =IF(B92="סך הכל",Summary!$B$12,IF(F92="","",IFERROR(VLOOKUP(B92,Count!A:J,10,FALSE),0))) ->  | O92: =IFERROR(VLOOKUP(B92,Comments!A:B,2,FALSE),"") -> 
B93: =IF(AND(B91<>"",ISNUMBER(B91),B92=""),"סך הכל",IF(Planning!A96="","",Planning!A96)) ->  | C93: =IFERROR(_xlfn.IFS(B93="סך הכל",Summary!$B$6,Planning!C96<>"",Planning!C96),"") ->  | D93: =IFERROR(VLOOKUP(B93,Address!B:G,5,FALSE),"") ->  | E93: =IFERROR(VLOOKUP(B93,Address!B:L,11,FALSE),"") ->  | G93: =IF(B93="סך הכל",Summary!$B$7,IF(F93="","",IF(VLOOKUP(B93,WQ_UnitID!B:C,2,FALSE)=0,"",VLOOKUP(B93,WQ_UnitID!B:C,2,FALSE)))) ->  | H93: =IF(B93="סך הכל",Summary!$B$8,IF(F93="","",IFERROR(VLOOKUP(B93,Planning!A:B,2,FALSE),0))) ->  | I93: =IF(B93="סך הכל",Summary!$B$9,IF(F93="","",IFERROR(VLOOKUP(B93,Count!A:B,2,FALSE),0))) ->  | J93: =IF(F93="","",(IF(ISNUMBER(MATCH(B93,ExcPermit!$H$8:$H$1000,0)),"כן","לא"))) ->  | K93: =IF(B93="סך הכל",Summary!$B$10,IF(F93="","",IFERROR(VLOOKUP(B93,Count!A:J,8,FALSE),0))) ->  | L93: =IF(B93="סך הכל",Summary!$B$11,IF(F93="","",IFERROR(VLOOKUP(B93,Count!A:J,9,FALSE),0))) ->  | M93: =IF(B93="סך הכל",Summary!$B$12,IF(F93="","",IFERROR(VLOOKUP(B93,Count!A:J,10,FALSE),0))) ->  | O93: =IFERROR(VLOOKUP(B93,Comments!A:B,2,FALSE),"") -> 
B94: =IF(AND(B92<>"",ISNUMBER(B92),B93=""),"סך הכל",IF(Planning!A97="","",Planning!A97)) ->  | C94: =IFERROR(_xlfn.IFS(B94="סך הכל",Summary!$B$6,Planning!C97<>"",Planning!C97),"") ->  | D94: =IFERROR(VLOOKUP(B94,Address!B:G,5,FALSE),"") ->  | E94: =IFERROR(VLOOKUP(B94,Address!B:L,11,FALSE),"") ->  | G94: =IF(B94="סך הכל",Summary!$B$7,IF(F94="","",IF(VLOOKUP(B94,WQ_UnitID!B:C,2,FALSE)=0,"",VLOOKUP(B94,WQ_UnitID!B:C,2,FALSE)))) ->  | H94: =IF(B94="סך הכל",Summary!$B$8,IF(F94="","",IFERROR(VLOOKUP(B94,Planning!A:B,2,FALSE),0))) ->  | I94: =IF(B94="סך הכל",Summary!$B$9,IF(F94="","",IFERROR(VLOOKUP(B94,Count!A:B,2,FALSE),0))) ->  | J94: =IF(F94="","",(IF(ISNUMBER(MATCH(B94,ExcPermit!$H$8:$H$1000,0)),"כן","לא"))) ->  | K94: =IF(B94="סך הכל",Summary!$B$10,IF(F94="","",IFERROR(VLOOKUP(B94,Count!A:J,8,FALSE),0))) ->  | L94: =IF(B94="סך הכל",Summary!$B$11,IF(F94="","",IFERROR(VLOOKUP(B94,Count!A:J,9,FALSE),0))) ->  | M94: =IF(B94="סך הכל",Summary!$B$12,IF(F94="","",IFERROR(VLOOKUP(B94,Count!A:J,10,FALSE),0))) ->  | O94: =IFERROR(VLOOKUP(B94,Comments!A:B,2,FALSE),"") -> 
B95: =IF(AND(B93<>"",ISNUMBER(B93),B94=""),"סך הכל",IF(Planning!A98="","",Planning!A98)) ->  | C95: =IFERROR(_xlfn.IFS(B95="סך הכל",Summary!$B$6,Planning!C98<>"",Planning!C98),"") ->  | D95: =IFERROR(VLOOKUP(B95,Address!B:G,5,FALSE),"") ->  | E95: =IFERROR(VLOOKUP(B95,Address!B:L,11,FALSE),"") ->  | G95: =IF(B95="סך הכל",Summary!$B$7,IF(F95="","",IF(VLOOKUP(B95,WQ_UnitID!B:C,2,FALSE)=0,"",VLOOKUP(B95,WQ_UnitID!B:C,2,FALSE)))) ->  | H95: =IF(B95="סך הכל",Summary!$B$8,IF(F95="","",IFERROR(VLOOKUP(B95,Planning!A:B,2,FALSE),0))) ->  | I95: =IF(B95="סך הכל",Summary!$B$9,IF(F95="","",IFERROR(VLOOKUP(B95,Count!A:B,2,FALSE),0))) ->  | J95: =IF(F95="","",(IF(ISNUMBER(MATCH(B95,ExcPermit!$H$8:$H$1000,0)),"כן","לא"))) ->  | K95: =IF(B95="סך הכל",Summary!$B$10,IF(F95="","",IFERROR(VLOOKUP(B95,Count!A:J,8,FALSE),0))) ->  | L95: =IF(B95="סך הכל",Summary!$B$11,IF(F95="","",IFERROR(VLOOKUP(B95,Count!A:J,9,FALSE),0))) ->  | M95: =IF(B95="סך הכל",Summary!$B$12,IF(F95="","",IFERROR(VLOOKUP(B95,Count!A:J,10,FALSE),0))) ->  | O95: =IFERROR(VLOOKUP(B95,Comments!A:B,2,FALSE),"") -> 
B96: =IF(AND(B94<>"",ISNUMBER(B94),B95=""),"סך הכל",IF(Planning!A99="","",Planning!A99)) ->  | C96: =IFERROR(_xlfn.IFS(B96="סך הכל",Summary!$B$6,Planning!C99<>"",Planning!C99),"") ->  | D96: =IFERROR(VLOOKUP(B96,Address!B:G,5,FALSE),"") ->  | E96: =IFERROR(VLOOKUP(B96,Address!B:L,11,FALSE),"") ->  | G96: =IF(B96="סך הכל",Summary!$B$7,IF(F96="","",IF(VLOOKUP(B96,WQ_UnitID!B:C,2,FALSE)=0,"",VLOOKUP(B96,WQ_UnitID!B:C,2,FALSE)))) ->  | H96: =IF(B96="סך הכל",Summary!$B$8,IF(F96="","",IFERROR(VLOOKUP(B96,Planning!A:B,2,FALSE),0))) ->  | I96: =IF(B96="סך הכל",Summary!$B$9,IF(F96="","",IFERROR(VLOOKUP(B96,Count!A:B,2,FALSE),0))) ->  | J96: =IF(F96="","",(IF(ISNUMBER(MATCH(B96,ExcPermit!$H$8:$H$1000,0)),"כן","לא"))) ->  | K96: =IF(B96="סך הכל",Summary!$B$10,IF(F96="","",IFERROR(VLOOKUP(B96,Count!A:J,8,FALSE),0))) ->  | L96: =IF(B96="סך הכל",Summary!$B$11,IF(F96="","",IFERROR(VLOOKUP(B96,Count!A:J,9,FALSE),0))) ->  | M96: =IF(B96="סך הכל",Summary!$B$12,IF(F96="","",IFERROR(VLOOKUP(B96,Count!A:J,10,FALSE),0))) ->  | O96: =IFERROR(VLOOKUP(B96,Comments!A:B,2,FALSE),"") -> 
B97: =IF(AND(B95<>"",ISNUMBER(B95),B96=""),"סך הכל",IF(Planning!A100="","",Planning!A100)) ->  | C97: =IFERROR(_xlfn.IFS(B97="סך הכל",Summary!$B$6,Planning!C100<>"",Planning!C100),"") ->  | D97: =IFERROR(VLOOKUP(B97,Address!B:G,5,FALSE),"") ->  | E97: =IFERROR(VLOOKUP(B97,Address!B:L,11,FALSE),"") ->  | G97: =IF(B97="סך הכל",Summary!$B$7,IF(F97="","",IF(VLOOKUP(B97,WQ_UnitID!B:C,2,FALSE)=0,"",VLOOKUP(B97,WQ_UnitID!B:C,2,FALSE)))) ->  | H97: =IF(B97="סך הכל",Summary!$B$8,IF(F97="","",IFERROR(VLOOKUP(B97,Planning!A:B,2,FALSE),0))) ->  | I97: =IF(B97="סך הכל",Summary!$B$9,IF(F97="","",IFERROR(VLOOKUP(B97,Count!A:B,2,FALSE),0))) ->  | J97: =IF(F97="","",(IF(ISNUMBER(MATCH(B97,ExcPermit!$H$8:$H$1000,0)),"כן","לא"))) ->  | K97: =IF(B97="סך הכל",Summary!$B$10,IF(F97="","",IFERROR(VLOOKUP(B97,Count!A:J,8,FALSE),0))) ->  | L97: =IF(B97="סך הכל",Summary!$B$11,IF(F97="","",IFERROR(VLOOKUP(B97,Count!A:J,9,FALSE),0))) ->  | M97: =IF(B97="סך הכל",Summary!$B$12,IF(F97="","",IFERROR(VLOOKUP(B97,Count!A:J,10,FALSE),0))) ->  | O97: =IFERROR(VLOOKUP(B97,Comments!A:B,2,FALSE),"") -> 
B98: =IF(AND(B96<>"",ISNUMBER(B96),B97=""),"סך הכל",IF(Planning!A101="","",Planning!A101)) ->  | C98: =IFERROR(_xlfn.IFS(B98="סך הכל",Summary!$B$6,Planning!C101<>"",Planning!C101),"") ->  | D98: =IFERROR(VLOOKUP(B98,Address!B:G,5,FALSE),"") ->  | E98: =IFERROR(VLOOKUP(B98,Address!B:L,11,FALSE),"") ->  | G98: =IF(B98="סך הכל",Summary!$B$7,IF(F98="","",IF(VLOOKUP(B98,WQ_UnitID!B:C,2,FALSE)=0,"",VLOOKUP(B98,WQ_UnitID!B:C,2,FALSE)))) ->  | H98: =IF(B98="סך הכל",Summary!$B$8,IF(F98="","",IFERROR(VLOOKUP(B98,Planning!A:B,2,FALSE),0))) ->  | I98: =IF(B98="סך הכל",Summary!$B$9,IF(F98="","",IFERROR(VLOOKUP(B98,Count!A:B,2,FALSE),0))) ->  | J98: =IF(F98="","",(IF(ISNUMBER(MATCH(B98,ExcPermit!$H$8:$H$1000,0)),"כן","לא"))) ->  | K98: =IF(B98="סך הכל",Summary!$B$10,IF(F98="","",IFERROR(VLOOKUP(B98,Count!A:J,8,FALSE),0))) ->  | L98: =IF(B98="סך הכל",Summary!$B$11,IF(F98="","",IFERROR(VLOOKUP(B98,Count!A:J,9,FALSE),0))) ->  | M98: =IF(B98="סך הכל",Summary!$B$12,IF(F98="","",IFERROR(VLOOKUP(B98,Count!A:J,10,FALSE),0))) ->  | O98: =IFERROR(VLOOKUP(B98,Comments!A:B,2,FALSE),"") -> 
B99: =IF(AND(B97<>"",ISNUMBER(B97),B98=""),"סך הכל",IF(Planning!A102="","",Planning!A102)) ->  | C99: =IFERROR(_xlfn.IFS(B99="סך הכל",Summary!$B$6,Planning!C102<>"",Planning!C102),"") ->  | D99: =IFERROR(VLOOKUP(B99,Address!B:G,5,FALSE),"") ->  | E99: =IFERROR(VLOOKUP(B99,Address!B:L,11,FALSE),"") ->  | G99: =IF(B99="סך הכל",Summary!$B$7,IF(F99="","",IF(VLOOKUP(B99,WQ_UnitID!B:C,2,FALSE)=0,"",VLOOKUP(B99,WQ_UnitID!B:C,2,FALSE)))) ->  | H99: =IF(B99="סך הכל",Summary!$B$8,IF(F99="","",IFERROR(VLOOKUP(B99,Planning!A:B,2,FALSE),0))) ->  | I99: =IF(B99="סך הכל",Summary!$B$9,IF(F99="","",IFERROR(VLOOKUP(B99,Count!A:B,2,FALSE),0))) ->  | J99: =IF(F99="","",(IF(ISNUMBER(MATCH(B99,ExcPermit!$H$8:$H$1000,0)),"כן","לא"))) ->  | K99: =IF(B99="סך הכל",Summary!$B$10,IF(F99="","",IFERROR(VLOOKUP(B99,Count!A:J,8,FALSE),0))) ->  | L99: =IF(B99="סך הכל",Summary!$B$11,IF(F99="","",IFERROR(VLOOKUP(B99,Count!A:J,9,FALSE),0))) ->  | M99: =IF(B99="סך הכל",Summary!$B$12,IF(F99="","",IFERROR(VLOOKUP(B99,Count!A:J,10,FALSE),0))) ->  | O99: =IFERROR(VLOOKUP(B99,Comments!A:B,2,FALSE),"") -> 
B100: =IF(AND(B98<>"",ISNUMBER(B98),B99=""),"סך הכל",IF(Planning!A103="","",Planning!A103)) ->  | C100: =IFERROR(_xlfn.IFS(B100="סך הכל",Summary!$B$6,Planning!C103<>"",Planning!C103),"") ->  | D100: =IFERROR(VLOOKUP(B100,Address!B:G,5,FALSE),"") ->  | E100: =IFERROR(VLOOKUP(B100,Address!B:L,11,FALSE),"") ->  | G100: =IF(B100="סך הכל",Summary!$B$7,IF(F100="","",IF(VLOOKUP(B100,WQ_UnitID!B:C,2,FALSE)=0,"",VLOOKUP(B100,WQ_UnitID!B:C,2,FALSE)))) ->  | H100: =IF(B100="סך הכל",Summary!$B$8,IF(F100="","",IFERROR(VLOOKUP(B100,Planning!A:B,2,FALSE),0))) ->  | I100: =IF(B100="סך הכל",Summary!$B$9,IF(F100="","",IFERROR(VLOOKUP(B100,Count!A:B,2,FALSE),0))) ->  | J100: =IF(F100="","",(IF(ISNUMBER(MATCH(B100,ExcPermit!$H$8:$H$1000,0)),"כן","לא"))) ->  | K100: =IF(B100="סך הכל",Summary!$B$10,IF(F100="","",IFERROR(VLOOKUP(B100,Count!A:J,8,FALSE),0))) ->  | L100: =IF(B100="סך הכל",Summary!$B$11,IF(F100="","",IFERROR(VLOOKUP(B100,Count!A:J,9,FALSE),0))) ->  | M100: =IF(B100="סך הכל",Summary!$B$12,IF(F100="","",IFERROR(VLOOKUP(B100,Count!A:J,10,FALSE),0))) ->  | O100: =IFERROR(VLOOKUP(B100,Comments!A:B,2,FALSE),"") -> 
B101: =IF(AND(B99<>"",ISNUMBER(B99),B100=""),"סך הכל",IF(Planning!A104="","",Planning!A104)) ->  | C101: =IFERROR(_xlfn.IFS(B101="סך הכל",Summary!$B$6,Planning!C104<>"",Planning!C104),"") ->  | D101: =IFERROR(VLOOKUP(B101,Address!B:G,5,FALSE),"") ->  | E101: =IFERROR(VLOOKUP(B101,Address!B:L,11,FALSE),"") ->  | G101: =IF(B101="סך הכל",Summary!$B$7,IF(F101="","",IF(VLOOKUP(B101,WQ_UnitID!B:C,2,FALSE)=0,"",VLOOKUP(B101,WQ_UnitID!B:C,2,FALSE)))) ->  | H101: =IF(B101="סך הכל",Summary!$B$8,IF(F101="","",IFERROR(VLOOKUP(B101,Planning!A:B,2,FALSE),0))) ->  | I101: =IF(B101="סך הכל",Summary!$B$9,IF(F101="","",IFERROR(VLOOKUP(B101,Count!A:B,2,FALSE),0))) ->  | J101: =IF(F101="","",(IF(ISNUMBER(MATCH(B101,ExcPermit!$H$8:$H$1000,0)),"כן","לא"))) ->  | K101: =IF(B101="סך הכל",Summary!$B$10,IF(F101="","",IFERROR(VLOOKUP(B101,Count!A:J,8,FALSE),0))) ->  | L101: =IF(B101="סך הכל",Summary!$B$11,IF(F101="","",IFERROR(VLOOKUP(B101,Count!A:J,9,FALSE),0))) ->  | M101: =IF(B101="סך הכל",Summary!$B$12,IF(F101="","",IFERROR(VLOOKUP(B101,Count!A:J,10,FALSE),0))) ->  | O101: =IFERROR(VLOOKUP(B101,Comments!A:B,2,FALSE),"") -> 
B102: =IF(AND(B100<>"",ISNUMBER(B100),B101=""),"סך הכל",IF(Planning!A105="","",Planning!A105)) ->  | C102: =IFERROR(_xlfn.IFS(B102="סך הכל",Summary!$B$6,Planning!C105<>"",Planning!C105),"") ->  | D102: =IFERROR(VLOOKUP(B102,Address!B:G,5,FALSE),"") ->  | E102: =IFERROR(VLOOKUP(B102,Address!B:L,11,FALSE),"") ->  | G102: =IF(B102="סך הכל",Summary!$B$7,IF(F102="","",IF(VLOOKUP(B102,WQ_UnitID!B:C,2,FALSE)=0,"",VLOOKUP(B102,WQ_UnitID!B:C,2,FALSE)))) ->  | H102: =IF(B102="סך הכל",Summary!$B$8,IF(F102="","",IFERROR(VLOOKUP(B102,Planning!A:B,2,FALSE),0))) ->  | I102: =IF(B102="סך הכל",Summary!$B$9,IF(F102="","",IFERROR(VLOOKUP(B102,Count!A:B,2,FALSE),0))) ->  | J102: =IF(F102="","",(IF(ISNUMBER(MATCH(B102,ExcPermit!$H$8:$H$1000,0)),"כן","לא"))) ->  | K102: =IF(B102="סך הכל",Summary!$B$10,IF(F102="","",IFERROR(VLOOKUP(B102,Count!A:J,8,FALSE),0))) ->  | L102: =IF(B102="סך הכל",Summary!$B$11,IF(F102="","",IFERROR(VLOOKUP(B102,Count!A:J,9,FALSE),0))) ->  | M102: =IF(B102="סך הכל",Summary!$B$12,IF(F102="","",IFERROR(VLOOKUP(B102,Count!A:J,10,FALSE),0))) ->  | O102: =IFERROR(VLOOKUP(B102,Comments!A:B,2,FALSE),"") -> 
B103: =IF(AND(B101<>"",ISNUMBER(B101),B102=""),"סך הכל",IF(Planning!A106="","",Planning!A106)) ->  | C103: =IFERROR(_xlfn.IFS(B103="סך הכל",Summary!$B$6,Planning!C106<>"",Planning!C106),"") ->  | D103: =IFERROR(VLOOKUP(B103,Address!B:G,5,FALSE),"") ->  | E103: =IFERROR(VLOOKUP(B103,Address!B:L,11,FALSE),"") ->  | G103: =IF(B103="סך הכל",Summary!$B$7,IF(F103="","",IF(VLOOKUP(B103,WQ_UnitID!B:C,2,FALSE)=0,"",VLOOKUP(B103,WQ_UnitID!B:C,2,FALSE)))) ->  | H103: =IF(B103="סך הכל",Summary!$B$8,IF(F103="","",IFERROR(VLOOKUP(B103,Planning!A:B,2,FALSE),0))) ->  | I103: =IF(B103="סך הכל",Summary!$B$9,IF(F103="","",IFERROR(VLOOKUP(B103,Count!A:B,2,FALSE),0))) ->  | J103: =IF(F103="","",(IF(ISNUMBER(MATCH(B103,ExcPermit!$H$8:$H$1000,0)),"כן","לא"))) ->  | K103: =IF(B103="סך הכל",Summary!$B$10,IF(F103="","",IFERROR(VLOOKUP(B103,Count!A:J,8,FALSE),0))) ->  | L103: =IF(B103="סך הכל",Summary!$B$11,IF(F103="","",IFERROR(VLOOKUP(B103,Count!A:J,9,FALSE),0))) ->  | M103: =IF(B103="סך הכל",Summary!$B$12,IF(F103="","",IFERROR(VLOOKUP(B103,Count!A:J,10,FALSE),0))) ->  | O103: =IFERROR(VLOOKUP(B103,Comments!A:B,2,FALSE),"") -> 
B104: =IF(AND(B102<>"",ISNUMBER(B102),B103=""),"סך הכל",IF(Planning!A107="","",Planning!A107)) ->  | C104: =IFERROR(_xlfn.IFS(B104="סך הכל",Summary!$B$6,Planning!C107<>"",Planning!C107),"") ->  | D104: =IFERROR(VLOOKUP(B104,Address!B:G,5,FALSE),"") ->  | E104: =IFERROR(VLOOKUP(B104,Address!B:L,11,FALSE),"") ->  | G104: =IF(B104="סך הכל",Summary!$B$7,IF(F104="","",IF(VLOOKUP(B104,WQ_UnitID!B:C,2,FALSE)=0,"",VLOOKUP(B104,WQ_UnitID!B:C,2,FALSE)))) ->  | H104: =IF(B104="סך הכל",Summary!$B$8,IF(F104="","",IFERROR(VLOOKUP(B104,Planning!A:B,2,FALSE),0))) ->  | I104: =IF(B104="סך הכל",Summary!$B$9,IF(F104="","",IFERROR(VLOOKUP(B104,Count!A:B,2,FALSE),0))) ->  | J104: =IF(F104="","",(IF(ISNUMBER(MATCH(B104,ExcPermit!$H$8:$H$1000,0)),"כן","לא"))) ->  | K104: =IF(B104="סך הכל",Summary!$B$10,IF(F104="","",IFERROR(VLOOKUP(B104,Count!A:J,8,FALSE),0))) ->  | L104: =IF(B104="סך הכל",Summary!$B$11,IF(F104="","",IFERROR(VLOOKUP(B104,Count!A:J,9,FALSE),0))) ->  | M104: =IF(B104="סך הכל",Summary!$B$12,IF(F104="","",IFERROR(VLOOKUP(B104,Count!A:J,10,FALSE),0))) ->  | O104: =IFERROR(VLOOKUP(B104,Comments!A:B,2,FALSE),"") -> 
B105: =IF(AND(B103<>"",ISNUMBER(B103),B104=""),"סך הכל",IF(Planning!A108="","",Planning!A108)) ->  | C105: =IFERROR(_xlfn.IFS(B105="סך הכל",Summary!$B$6,Planning!C108<>"",Planning!C108),"") ->  | D105: =IFERROR(VLOOKUP(B105,Address!B:G,5,FALSE),"") ->  | E105: =IFERROR(VLOOKUP(B105,Address!B:L,11,FALSE),"") ->  | G105: =IF(B105="סך הכל",Summary!$B$7,IF(F105="","",IF(VLOOKUP(B105,WQ_UnitID!B:C,2,FALSE)=0,"",VLOOKUP(B105,WQ_UnitID!B:C,2,FALSE)))) ->  | H105: =IF(B105="סך הכל",Summary!$B$8,IF(F105="","",IFERROR(VLOOKUP(B105,Planning!A:B,2,FALSE),0))) ->  | I105: =IF(B105="סך הכל",Summary!$B$9,IF(F105="","",IFERROR(VLOOKUP(B105,Count!A:B,2,FALSE),0))) ->  | J105: =IF(F105="","",(IF(ISNUMBER(MATCH(B105,ExcPermit!$H$8:$H$1000,0)),"כן","לא"))) ->  | K105: =IF(B105="סך הכל",Summary!$B$10,IF(F105="","",IFERROR(VLOOKUP(B105,Count!A:J,8,FALSE),0))) ->  | L105: =IF(B105="סך הכל",Summary!$B$11,IF(F105="","",IFERROR(VLOOKUP(B105,Count!A:J,9,FALSE),0))) ->  | M105: =IF(B105="סך הכל",Summary!$B$12,IF(F105="","",IFERROR(VLOOKUP(B105,Count!A:J,10,FALSE),0))) ->  | O105: =IFERROR(VLOOKUP(B105,Comments!A:B,2,FALSE),"") -> 
B106: =IF(AND(B104<>"",ISNUMBER(B104),B105=""),"סך הכל",IF(Planning!A109="","",Planning!A109)) ->  | C106: =IFERROR(_xlfn.IFS(B106="סך הכל",Summary!$B$6,Planning!C109<>"",Planning!C109),"") ->  | D106: =IFERROR(VLOOKUP(B106,Address!B:G,5,FALSE),"") ->  | E106: =IFERROR(VLOOKUP(B106,Address!B:L,11,FALSE),"") ->  | G106: =IF(B106="סך הכל",Summary!$B$7,IF(F106="","",IF(VLOOKUP(B106,WQ_UnitID!B:C,2,FALSE)=0,"",VLOOKUP(B106,WQ_UnitID!B:C,2,FALSE)))) ->  | H106: =IF(B106="סך הכל",Summary!$B$8,IF(F106="","",IFERROR(VLOOKUP(B106,Planning!A:B,2,FALSE),0))) ->  | I106: =IF(B106="סך הכל",Summary!$B$9,IF(F106="","",IFERROR(VLOOKUP(B106,Count!A:B,2,FALSE),0))) ->  | J106: =IF(F106="","",(IF(ISNUMBER(MATCH(B106,ExcPermit!$H$8:$H$1000,0)),"כן","לא"))) ->  | K106: =IF(B106="סך הכל",Summary!$B$10,IF(F106="","",IFERROR(VLOOKUP(B106,Count!A:J,8,FALSE),0))) ->  | L106: =IF(B106="סך הכל",Summary!$B$11,IF(F106="","",IFERROR(VLOOKUP(B106,Count!A:J,9,FALSE),0))) ->  | M106: =IF(B106="סך הכל",Summary!$B$12,IF(F106="","",IFERROR(VLOOKUP(B106,Count!A:J,10,FALSE),0))) ->  | O106: =IFERROR(VLOOKUP(B106,Comments!A:B,2,FALSE),"") -> 
B107: =IF(AND(B105<>"",ISNUMBER(B105),B106=""),"סך הכל",IF(Planning!A110="","",Planning!A110)) ->  | C107: =IFERROR(_xlfn.IFS(B107="סך הכל",Summary!$B$6,Planning!C110<>"",Planning!C110),"") ->  | D107: =IFERROR(VLOOKUP(B107,Address!B:G,5,FALSE),"") ->  | E107: =IFERROR(VLOOKUP(B107,Address!B:L,11,FALSE),"") ->  | G107: =IF(B107="סך הכל",Summary!$B$7,IF(F107="","",IF(VLOOKUP(B107,WQ_UnitID!B:C,2,FALSE)=0,"",VLOOKUP(B107,WQ_UnitID!B:C,2,FALSE)))) ->  | H107: =IF(B107="סך הכל",Summary!$B$8,IF(F107="","",IFERROR(VLOOKUP(B107,Planning!A:B,2,FALSE),0))) ->  | I107: =IF(B107="סך הכל",Summary!$B$9,IF(F107="","",IFERROR(VLOOKUP(B107,Count!A:B,2,FALSE),0))) ->  | J107: =IF(F107="","",(IF(ISNUMBER(MATCH(B107,ExcPermit!$H$8:$H$1000,0)),"כן","לא"))) ->  | K107: =IF(B107="סך הכל",Summary!$B$10,IF(F107="","",IFERROR(VLOOKUP(B107,Count!A:J,8,FALSE),0))) ->  | L107: =IF(B107="סך הכל",Summary!$B$11,IF(F107="","",IFERROR(VLOOKUP(B107,Count!A:J,9,FALSE),0))) ->  | M107: =IF(B107="סך הכל",Summary!$B$12,IF(F107="","",IFERROR(VLOOKUP(B107,Count!A:J,10,FALSE),0))) ->  | O107: =IFERROR(VLOOKUP(B107,Comments!A:B,2,FALSE),"") -> 
B108: =IF(AND(B106<>"",ISNUMBER(B106),B107=""),"סך הכל",IF(Planning!A111="","",Planning!A111)) ->  | C108: =IFERROR(_xlfn.IFS(B108="סך הכל",Summary!$B$6,Planning!C111<>"",Planning!C111),"") ->  | D108: =IFERROR(VLOOKUP(B108,Address!B:G,5,FALSE),"") ->  | E108: =IFERROR(VLOOKUP(B108,Address!B:L,11,FALSE),"") ->  | G108: =IF(B108="סך הכל",Summary!$B$7,IF(F108="","",IF(VLOOKUP(B108,WQ_UnitID!B:C,2,FALSE)=0,"",VLOOKUP(B108,WQ_UnitID!B:C,2,FALSE)))) ->  | H108: =IF(B108="סך הכל",Summary!$B$8,IF(F108="","",IFERROR(VLOOKUP(B108,Planning!A:B,2,FALSE),0))) ->  | I108: =IF(B108="סך הכל",Summary!$B$9,IF(F108="","",IFERROR(VLOOKUP(B108,Count!A:B,2,FALSE),0))) ->  | J108: =IF(F108="","",(IF(ISNUMBER(MATCH(B108,ExcPermit!$H$8:$H$1000,0)),"כן","לא"))) ->  | K108: =IF(B108="סך הכל",Summary!$B$10,IF(F108="","",IFERROR(VLOOKUP(B108,Count!A:J,8,FALSE),0))) ->  | L108: =IF(B108="סך הכל",Summary!$B$11,IF(F108="","",IFERROR(VLOOKUP(B108,Count!A:J,9,FALSE),0))) ->  | M108: =IF(B108="סך הכל",Summary!$B$12,IF(F108="","",IFERROR(VLOOKUP(B108,Count!A:J,10,FALSE),0))) ->  | O108: =IFERROR(VLOOKUP(B108,Comments!A:B,2,FALSE),"") -> 
B109: =IF(AND(B107<>"",ISNUMBER(B107),B108=""),"סך הכל",IF(Planning!A112="","",Planning!A112)) ->  | C109: =IFERROR(_xlfn.IFS(B109="סך הכל",Summary!$B$6,Planning!C112<>"",Planning!C112),"") ->  | D109: =IFERROR(VLOOKUP(B109,Address!B:G,5,FALSE),"") ->  | E109: =IFERROR(VLOOKUP(B109,Address!B:L,11,FALSE),"") ->  | G109: =IF(B109="סך הכל",Summary!$B$7,IF(F109="","",IF(VLOOKUP(B109,WQ_UnitID!B:C,2,FALSE)=0,"",VLOOKUP(B109,WQ_UnitID!B:C,2,FALSE)))) ->  | H109: =IF(B109="סך הכל",Summary!$B$8,IF(F109="","",IFERROR(VLOOKUP(B109,Planning!A:B,2,FALSE),0))) ->  | I109: =IF(B109="סך הכל",Summary!$B$9,IF(F109="","",IFERROR(VLOOKUP(B109,Count!A:B,2,FALSE),0))) ->  | J109: =IF(F109="","",(IF(ISNUMBER(MATCH(B109,ExcPermit!$H$8:$H$1000,0)),"כן","לא"))) ->  | K109: =IF(B109="סך הכל",Summary!$B$10,IF(F109="","",IFERROR(VLOOKUP(B109,Count!A:J,8,FALSE),0))) ->  | L109: =IF(B109="סך הכל",Summary!$B$11,IF(F109="","",IFERROR(VLOOKUP(B109,Count!A:J,9,FALSE),0))) ->  | M109: =IF(B109="סך הכל",Summary!$B$12,IF(F109="","",IFERROR(VLOOKUP(B109,Count!A:J,10,FALSE),0))) ->  | O109: =IFERROR(VLOOKUP(B109,Comments!A:B,2,FALSE),"") -> 
B110: =IF(AND(B108<>"",ISNUMBER(B108),B109=""),"סך הכל",IF(Planning!A113="","",Planning!A113)) ->  | C110: =IFERROR(_xlfn.IFS(B110="סך הכל",Summary!$B$6,Planning!C113<>"",Planning!C113),"") ->  | D110: =IFERROR(VLOOKUP(B110,Address!B:G,5,FALSE),"") ->  | E110: =IFERROR(VLOOKUP(B110,Address!B:L,11,FALSE),"") ->  | G110: =IF(B110="סך הכל",Summary!$B$7,IF(F110="","",IF(VLOOKUP(B110,WQ_UnitID!B:C,2,FALSE)=0,"",VLOOKUP(B110,WQ_UnitID!B:C,2,FALSE)))) ->  | H110: =IF(B110="סך הכל",Summary!$B$8,IF(F110="","",IFERROR(VLOOKUP(B110,Planning!A:B,2,FALSE),0))) ->  | I110: =IF(B110="סך הכל",Summary!$B$9,IF(F110="","",IFERROR(VLOOKUP(B110,Count!A:B,2,FALSE),0))) ->  | J110: =IF(F110="","",(IF(ISNUMBER(MATCH(B110,ExcPermit!$H$8:$H$1000,0)),"כן","לא"))) ->  | K110: =IF(B110="סך הכל",Summary!$B$10,IF(F110="","",IFERROR(VLOOKUP(B110,Count!A:J,8,FALSE),0))) ->  | L110: =IF(B110="סך הכל",Summary!$B$11,IF(F110="","",IFERROR(VLOOKUP(B110,Count!A:J,9,FALSE),0))) ->  | M110: =IF(B110="סך הכל",Summary!$B$12,IF(F110="","",IFERROR(VLOOKUP(B110,Count!A:J,10,FALSE),0))) ->  | O110: =IFERROR(VLOOKUP(B110,Comments!A:B,2,FALSE),"") -> 
B111: =IF(AND(B109<>"",ISNUMBER(B109),B110=""),"סך הכל",IF(Planning!A114="","",Planning!A114)) ->  | C111: =IFERROR(_xlfn.IFS(B111="סך הכל",Summary!$B$6,Planning!C114<>"",Planning!C114),"") ->  | D111: =IFERROR(VLOOKUP(B111,Address!B:G,5,FALSE),"") ->  | E111: =IFERROR(VLOOKUP(B111,Address!B:L,11,FALSE),"") ->  | G111: =IF(B111="סך הכל",Summary!$B$7,IF(F111="","",IF(VLOOKUP(B111,WQ_UnitID!B:C,2,FALSE)=0,"",VLOOKUP(B111,WQ_UnitID!B:C,2,FALSE)))) ->  | H111: =IF(B111="סך הכל",Summary!$B$8,IF(F111="","",IFERROR(VLOOKUP(B111,Planning!A:B,2,FALSE),0))) ->  | I111: =IF(B111="סך הכל",Summary!$B$9,IF(F111="","",IFERROR(VLOOKUP(B111,Count!A:B,2,FALSE),0))) ->  | J111: =IF(F111="","",(IF(ISNUMBER(MATCH(B111,ExcPermit!$H$8:$H$1000,0)),"כן","לא"))) ->  | K111: =IF(B111="סך הכל",Summary!$B$10,IF(F111="","",IFERROR(VLOOKUP(B111,Count!A:J,8,FALSE),0))) ->  | L111: =IF(B111="סך הכל",Summary!$B$11,IF(F111="","",IFERROR(VLOOKUP(B111,Count!A:J,9,FALSE),0))) ->  | M111: =IF(B111="סך הכל",Summary!$B$12,IF(F111="","",IFERROR(VLOOKUP(B111,Count!A:J,10,FALSE),0))) ->  | O111: =IFERROR(VLOOKUP(B111,Comments!A:B,2,FALSE),"") -> 
B112: =IF(AND(B110<>"",ISNUMBER(B110),B111=""),"סך הכל",IF(Planning!A115="","",Planning!A115)) ->  | C112: =IFERROR(_xlfn.IFS(B112="סך הכל",Summary!$B$6,Planning!C115<>"",Planning!C115),"") ->  | D112: =IFERROR(VLOOKUP(B112,Address!B:G,5,FALSE),"") ->  | E112: =IFERROR(VLOOKUP(B112,Address!B:L,11,FALSE),"") ->  | G112: =IF(B112="סך הכל",Summary!$B$7,IF(F112="","",IF(VLOOKUP(B112,WQ_UnitID!B:C,2,FALSE)=0,"",VLOOKUP(B112,WQ_UnitID!B:C,2,FALSE)))) ->  | H112: =IF(B112="סך הכל",Summary!$B$8,IF(F112="","",IFERROR(VLOOKUP(B112,Planning!A:B,2,FALSE),0))) ->  | I112: =IF(B112="סך הכל",Summary!$B$9,IF(F112="","",IFERROR(VLOOKUP(B112,Count!A:B,2,FALSE),0))) ->  | J112: =IF(F112="","",(IF(ISNUMBER(MATCH(B112,ExcPermit!$H$8:$H$1000,0)),"כן","לא"))) ->  | K112: =IF(B112="סך הכל",Summary!$B$10,IF(F112="","",IFERROR(VLOOKUP(B112,Count!A:J,8,FALSE),0))) ->  | L112: =IF(B112="סך הכל",Summary!$B$11,IF(F112="","",IFERROR(VLOOKUP(B112,Count!A:J,9,FALSE),0))) ->  | M112: =IF(B112="סך הכל",Summary!$B$12,IF(F112="","",IFERROR(VLOOKUP(B112,Count!A:J,10,FALSE),0))) ->  | O112: =IFERROR(VLOOKUP(B112,Comments!A:B,2,FALSE),"") -> 
B113: =IF(AND(B111<>"",ISNUMBER(B111),B112=""),"סך הכל",IF(Planning!A116="","",Planning!A116)) ->  | C113: =IFERROR(_xlfn.IFS(B113="סך הכל",Summary!$B$6,Planning!C116<>"",Planning!C116),"") ->  | D113: =IFERROR(VLOOKUP(B113,Address!B:G,5,FALSE),"") ->  | E113: =IFERROR(VLOOKUP(B113,Address!B:L,11,FALSE),"") ->  | G113: =IF(B113="סך הכל",Summary!$B$7,IF(F113="","",IF(VLOOKUP(B113,WQ_UnitID!B:C,2,FALSE)=0,"",VLOOKUP(B113,WQ_UnitID!B:C,2,FALSE)))) ->  | H113: =IF(B113="סך הכל",Summary!$B$8,IF(F113="","",IFERROR(VLOOKUP(B113,Planning!A:B,2,FALSE),0))) ->  | I113: =IF(B113="סך הכל",Summary!$B$9,IF(F113="","",IFERROR(VLOOKUP(B113,Count!A:B,2,FALSE),0))) ->  | J113: =IF(F113="","",(IF(ISNUMBER(MATCH(B113,ExcPermit!$H$8:$H$1000,0)),"כן","לא"))) ->  | K113: =IF(B113="סך הכל",Summary!$B$10,IF(F113="","",IFERROR(VLOOKUP(B113,Count!A:J,8,FALSE),0))) ->  | L113: =IF(B113="סך הכל",Summary!$B$11,IF(F113="","",IFERROR(VLOOKUP(B113,Count!A:J,9,FALSE),0))) ->  | M113: =IF(B113="סך הכל",Summary!$B$12,IF(F113="","",IFERROR(VLOOKUP(B113,Count!A:J,10,FALSE),0))) ->  | O113: =IFERROR(VLOOKUP(B113,Comments!A:B,2,FALSE),"") -> 
B114: =IF(AND(B112<>"",ISNUMBER(B112),B113=""),"סך הכל",IF(Planning!A117="","",Planning!A117)) ->  | C114: =IFERROR(_xlfn.IFS(B114="סך הכל",Summary!$B$6,Planning!C117<>"",Planning!C117),"") ->  | D114: =IFERROR(VLOOKUP(B114,Address!B:G,5,FALSE),"") ->  | E114: =IFERROR(VLOOKUP(B114,Address!B:L,11,FALSE),"") ->  | G114: =IF(B114="סך הכל",Summary!$B$7,IF(F114="","",IF(VLOOKUP(B114,WQ_UnitID!B:C,2,FALSE)=0,"",VLOOKUP(B114,WQ_UnitID!B:C,2,FALSE)))) ->  | H114: =IF(B114="סך הכל",Summary!$B$8,IF(F114="","",IFERROR(VLOOKUP(B114,Planning!A:B,2,FALSE),0))) ->  | I114: =IF(B114="סך הכל",Summary!$B$9,IF(F114="","",IFERROR(VLOOKUP(B114,Count!A:B,2,FALSE),0))) ->  | J114: =IF(F114="","",(IF(ISNUMBER(MATCH(B114,ExcPermit!$H$8:$H$1000,0)),"כן","לא"))) ->  | K114: =IF(B114="סך הכל",Summary!$B$10,IF(F114="","",IFERROR(VLOOKUP(B114,Count!A:J,8,FALSE),0))) ->  | L114: =IF(B114="סך הכל",Summary!$B$11,IF(F114="","",IFERROR(VLOOKUP(B114,Count!A:J,9,FALSE),0))) ->  | M114: =IF(B114="סך הכל",Summary!$B$12,IF(F114="","",IFERROR(VLOOKUP(B114,Count!A:J,10,FALSE),0))) ->  | O114: =IFERROR(VLOOKUP(B114,Comments!A:B,2,FALSE),"") -> 
B115: =IF(AND(B113<>"",ISNUMBER(B113),B114=""),"סך הכל",IF(Planning!A118="","",Planning!A118)) ->  | C115: =IFERROR(_xlfn.IFS(B115="סך הכל",Summary!$B$6,Planning!C118<>"",Planning!C118),"") ->  | D115: =IFERROR(VLOOKUP(B115,Address!B:G,5,FALSE),"") ->  | E115: =IFERROR(VLOOKUP(B115,Address!B:L,11,FALSE),"") ->  | G115: =IF(B115="סך הכל",Summary!$B$7,IF(F115="","",IF(VLOOKUP(B115,WQ_UnitID!B:C,2,FALSE)=0,"",VLOOKUP(B115,WQ_UnitID!B:C,2,FALSE)))) ->  | H115: =IF(B115="סך הכל",Summary!$B$8,IF(F115="","",IFERROR(VLOOKUP(B115,Planning!A:B,2,FALSE),0))) ->  | I115: =IF(B115="סך הכל",Summary!$B$9,IF(F115="","",IFERROR(VLOOKUP(B115,Count!A:B,2,FALSE),0))) ->  | J115: =IF(F115="","",(IF(ISNUMBER(MATCH(B115,ExcPermit!$H$8:$H$1000,0)),"כן","לא"))) ->  | K115: =IF(B115="סך הכל",Summary!$B$10,IF(F115="","",IFERROR(VLOOKUP(B115,Count!A:J,8,FALSE),0))) ->  | L115: =IF(B115="סך הכל",Summary!$B$11,IF(F115="","",IFERROR(VLOOKUP(B115,Count!A:J,9,FALSE),0))) ->  | M115: =IF(B115="סך הכל",Summary!$B$12,IF(F115="","",IFERROR(VLOOKUP(B115,Count!A:J,10,FALSE),0))) ->  | O115: =IFERROR(VLOOKUP(B115,Comments!A:B,2,FALSE),"") -> 
B116: =IF(AND(B114<>"",ISNUMBER(B114),B115=""),"סך הכל",IF(Planning!A119="","",Planning!A119)) ->  | C116: =IFERROR(_xlfn.IFS(B116="סך הכל",Summary!$B$6,Planning!C119<>"",Planning!C119),"") ->  | D116: =IFERROR(VLOOKUP(B116,Address!B:G,5,FALSE),"") ->  | E116: =IFERROR(VLOOKUP(B116,Address!B:L,11,FALSE),"") ->  | G116: =IF(B116="סך הכל",Summary!$B$7,IF(F116="","",IF(VLOOKUP(B116,WQ_UnitID!B:C,2,FALSE)=0,"",VLOOKUP(B116,WQ_UnitID!B:C,2,FALSE)))) ->  | H116: =IF(B116="סך הכל",Summary!$B$8,IF(F116="","",IFERROR(VLOOKUP(B116,Planning!A:B,2,FALSE),0))) ->  | I116: =IF(B116="סך הכל",Summary!$B$9,IF(F116="","",IFERROR(VLOOKUP(B116,Count!A:B,2,FALSE),0))) ->  | J116: =IF(F116="","",(IF(ISNUMBER(MATCH(B116,ExcPermit!$H$8:$H$1000,0)),"כן","לא"))) ->  | K116: =IF(B116="סך הכל",Summary!$B$10,IF(F116="","",IFERROR(VLOOKUP(B116,Count!A:J,8,FALSE),0))) ->  | L116: =IF(B116="סך הכל",Summary!$B$11,IF(F116="","",IFERROR(VLOOKUP(B116,Count!A:J,9,FALSE),0))) ->  | M116: =IF(B116="סך הכל",Summary!$B$12,IF(F116="","",IFERROR(VLOOKUP(B116,Count!A:J,10,FALSE),0))) ->  | O116: =IFERROR(VLOOKUP(B116,Comments!A:B,2,FALSE),"") -> 
B117: =IF(AND(B115<>"",ISNUMBER(B115),B116=""),"סך הכל",IF(Planning!A120="","",Planning!A120)) ->  | C117: =IFERROR(_xlfn.IFS(B117="סך הכל",Summary!$B$6,Planning!C120<>"",Planning!C120),"") ->  | D117: =IFERROR(VLOOKUP(B117,Address!B:G,5,FALSE),"") ->  | E117: =IFERROR(VLOOKUP(B117,Address!B:L,11,FALSE),"") ->  | G117: =IF(B117="סך הכל",Summary!$B$7,IF(F117="","",IF(VLOOKUP(B117,WQ_UnitID!B:C,2,FALSE)=0,"",VLOOKUP(B117,WQ_UnitID!B:C,2,FALSE)))) ->  | H117: =IF(B117="סך הכל",Summary!$B$8,IF(F117="","",IFERROR(VLOOKUP(B117,Planning!A:B,2,FALSE),0))) ->  | I117: =IF(B117="סך הכל",Summary!$B$9,IF(F117="","",IFERROR(VLOOKUP(B117,Count!A:B,2,FALSE),0))) ->  | J117: =IF(F117="","",(IF(ISNUMBER(MATCH(B117,ExcPermit!$H$8:$H$1000,0)),"כן","לא"))) ->  | K117: =IF(B117="סך הכל",Summary!$B$10,IF(F117="","",IFERROR(VLOOKUP(B117,Count!A:J,8,FALSE),0))) ->  | L117: =IF(B117="סך הכל",Summary!$B$11,IF(F117="","",IFERROR(VLOOKUP(B117,Count!A:J,9,FALSE),0))) ->  | M117: =IF(B117="סך הכל",Summary!$B$12,IF(F117="","",IFERROR(VLOOKUP(B117,Count!A:J,10,FALSE),0))) ->  | O117: =IFERROR(VLOOKUP(B117,Comments!A:B,2,FALSE),"") -> 
B118: =IF(AND(B116<>"",ISNUMBER(B116),B117=""),"סך הכל",IF(Planning!A121="","",Planning!A121)) ->  | C118: =IFERROR(_xlfn.IFS(B118="סך הכל",Summary!$B$6,Planning!C121<>"",Planning!C121),"") ->  | D118: =IFERROR(VLOOKUP(B118,Address!B:G,5,FALSE),"") ->  | E118: =IFERROR(VLOOKUP(B118,Address!B:L,11,FALSE),"") ->  | G118: =IF(B118="סך הכל",Summary!$B$7,IF(F118="","",IF(VLOOKUP(B118,WQ_UnitID!B:C,2,FALSE)=0,"",VLOOKUP(B118,WQ_UnitID!B:C,2,FALSE)))) ->  | H118: =IF(B118="סך הכל",Summary!$B$8,IF(F118="","",IFERROR(VLOOKUP(B118,Planning!A:B,2,FALSE),0))) ->  | I118: =IF(B118="סך הכל",Summary!$B$9,IF(F118="","",IFERROR(VLOOKUP(B118,Count!A:B,2,FALSE),0))) ->  | J118: =IF(F118="","",(IF(ISNUMBER(MATCH(B118,ExcPermit!$H$8:$H$1000,0)),"כן","לא"))) ->  | K118: =IF(B118="סך הכל",Summary!$B$10,IF(F118="","",IFERROR(VLOOKUP(B118,Count!A:J,8,FALSE),0))) ->  | L118: =IF(B118="סך הכל",Summary!$B$11,IF(F118="","",IFERROR(VLOOKUP(B118,Count!A:J,9,FALSE),0))) ->  | M118: =IF(B118="סך הכל",Summary!$B$12,IF(F118="","",IFERROR(VLOOKUP(B118,Count!A:J,10,FALSE),0))) ->  | O118: =IFERROR(VLOOKUP(B118,Comments!A:B,2,FALSE),"") -> 
B119: =IF(AND(B117<>"",ISNUMBER(B117),B118=""),"סך הכל",IF(Planning!A122="","",Planning!A122)) ->  | C119: =IFERROR(_xlfn.IFS(B119="סך הכל",Summary!$B$6,Planning!C122<>"",Planning!C122),"") ->  | D119: =IFERROR(VLOOKUP(B119,Address!B:G,5,FALSE),"") ->  | E119: =IFERROR(VLOOKUP(B119,Address!B:L,11,FALSE),"") ->  | G119: =IF(B119="סך הכל",Summary!$B$7,IF(F119="","",IF(VLOOKUP(B119,WQ_UnitID!B:C,2,FALSE)=0,"",VLOOKUP(B119,WQ_UnitID!B:C,2,FALSE)))) ->  | H119: =IF(B119="סך הכל",Summary!$B$8,IF(F119="","",IFERROR(VLOOKUP(B119,Planning!A:B,2,FALSE),0))) ->  | I119: =IF(B119="סך הכל",Summary!$B$9,IF(F119="","",IFERROR(VLOOKUP(B119,Count!A:B,2,FALSE),0))) ->  | J119: =IF(F119="","",(IF(ISNUMBER(MATCH(B119,ExcPermit!$H$8:$H$1000,0)),"כן","לא"))) ->  | K119: =IF(B119="סך הכל",Summary!$B$10,IF(F119="","",IFERROR(VLOOKUP(B119,Count!A:J,8,FALSE),0))) ->  | L119: =IF(B119="סך הכל",Summary!$B$11,IF(F119="","",IFERROR(VLOOKUP(B119,Count!A:J,9,FALSE),0))) ->  | M119: =IF(B119="סך הכל",Summary!$B$12,IF(F119="","",IFERROR(VLOOKUP(B119,Count!A:J,10,FALSE),0))) ->  | O119: =IFERROR(VLOOKUP(B119,Comments!A:B,2,FALSE),"") -> 
B120: =IF(AND(B118<>"",ISNUMBER(B118),B119=""),"סך הכל",IF(Planning!A123="","",Planning!A123)) ->  | C120: =IFERROR(_xlfn.IFS(B120="סך הכל",Summary!$B$6,Planning!C123<>"",Planning!C123),"") ->  | D120: =IFERROR(VLOOKUP(B120,Address!B:G,5,FALSE),"") ->  | E120: =IFERROR(VLOOKUP(B120,Address!B:L,11,FALSE),"") ->  | G120: =IF(B120="סך הכל",Summary!$B$7,IF(F120="","",IF(VLOOKUP(B120,WQ_UnitID!B:C,2,FALSE)=0,"",VLOOKUP(B120,WQ_UnitID!B:C,2,FALSE)))) ->  | H120: =IF(B120="סך הכל",Summary!$B$8,IF(F120="","",IFERROR(VLOOKUP(B120,Planning!A:B,2,FALSE),0))) ->  | I120: =IF(B120="סך הכל",Summary!$B$9,IF(F120="","",IFERROR(VLOOKUP(B120,Count!A:B,2,FALSE),0))) ->  | J120: =IF(F120="","",(IF(ISNUMBER(MATCH(B120,ExcPermit!$H$8:$H$1000,0)),"כן","לא"))) ->  | K120: =IF(B120="סך הכל",Summary!$B$10,IF(F120="","",IFERROR(VLOOKUP(B120,Count!A:J,8,FALSE),0))) ->  | L120: =IF(B120="סך הכל",Summary!$B$11,IF(F120="","",IFERROR(VLOOKUP(B120,Count!A:J,9,FALSE),0))) ->  | M120: =IF(B120="סך הכל",Summary!$B$12,IF(F120="","",IFERROR(VLOOKUP(B120,Count!A:J,10,FALSE),0))) ->  | O120: =IFERROR(VLOOKUP(B120,Comments!A:B,2,FALSE),"") -> 
B121: =IF(AND(B119<>"",ISNUMBER(B119),B120=""),"סך הכל",IF(Planning!A124="","",Planning!A124)) ->  | C121: =IFERROR(_xlfn.IFS(B121="סך הכל",Summary!$B$6,Planning!C124<>"",Planning!C124),"") ->  | D121: =IFERROR(VLOOKUP(B121,Address!B:G,5,FALSE),"") ->  | E121: =IFERROR(VLOOKUP(B121,Address!B:L,11,FALSE),"") ->  | G121: =IF(B121="סך הכל",Summary!$B$7,IF(F121="","",IF(VLOOKUP(B121,WQ_UnitID!B:C,2,FALSE)=0,"",VLOOKUP(B121,WQ_UnitID!B:C,2,FALSE)))) ->  | H121: =IF(B121="סך הכל",Summary!$B$8,IF(F121="","",IFERROR(VLOOKUP(B121,Planning!A:B,2,FALSE),0))) ->  | I121: =IF(B121="סך הכל",Summary!$B$9,IF(F121="","",IFERROR(VLOOKUP(B121,Count!A:B,2,FALSE),0))) ->  | J121: =IF(F121="","",(IF(ISNUMBER(MATCH(B121,ExcPermit!$H$8:$H$1000,0)),"כן","לא"))) ->  | K121: =IF(B121="סך הכל",Summary!$B$10,IF(F121="","",IFERROR(VLOOKUP(B121,Count!A:J,8,FALSE),0))) ->  | L121: =IF(B121="סך הכל",Summary!$B$11,IF(F121="","",IFERROR(VLOOKUP(B121,Count!A:J,9,FALSE),0))) ->  | M121: =IF(B121="סך הכל",Summary!$B$12,IF(F121="","",IFERROR(VLOOKUP(B121,Count!A:J,10,FALSE),0))) ->  | O121: =IFERROR(VLOOKUP(B121,Comments!A:B,2,FALSE),"") -> 
B122: =IF(AND(B120<>"",ISNUMBER(B120),B121=""),"סך הכל",IF(Planning!A125="","",Planning!A125)) ->  | C122: =IFERROR(_xlfn.IFS(B122="סך הכל",Summary!$B$6,Planning!C125<>"",Planning!C125),"") ->  | D122: =IFERROR(VLOOKUP(B122,Address!B:G,5,FALSE),"") ->  | E122: =IFERROR(VLOOKUP(B122,Address!B:L,11,FALSE),"") ->  | G122: =IF(B122="סך הכל",Summary!$B$7,IF(F122="","",IF(VLOOKUP(B122,WQ_UnitID!B:C,2,FALSE)=0,"",VLOOKUP(B122,WQ_UnitID!B:C,2,FALSE)))) ->  | H122: =IF(B122="סך הכל",Summary!$B$8,IF(F122="","",IFERROR(VLOOKUP(B122,Planning!A:B,2,FALSE),0))) ->  | I122: =IF(B122="סך הכל",Summary!$B$9,IF(F122="","",IFERROR(VLOOKUP(B122,Count!A:B,2,FALSE),0))) ->  | J122: =IF(F122="","",(IF(ISNUMBER(MATCH(B122,ExcPermit!$H$8:$H$1000,0)),"כן","לא"))) ->  | K122: =IF(B122="סך הכל",Summary!$B$10,IF(F122="","",IFERROR(VLOOKUP(B122,Count!A:J,8,FALSE),0))) ->  | L122: =IF(B122="סך הכל",Summary!$B$11,IF(F122="","",IFERROR(VLOOKUP(B122,Count!A:J,9,FALSE),0))) ->  | M122: =IF(B122="סך הכל",Summary!$B$12,IF(F122="","",IFERROR(VLOOKUP(B122,Count!A:J,10,FALSE),0))) ->  | O122: =IFERROR(VLOOKUP(B122,Comments!A:B,2,FALSE),"") -> 
B123: =IF(AND(B121<>"",ISNUMBER(B121),B122=""),"סך הכל",IF(Planning!A126="","",Planning!A126)) ->  | C123: =IFERROR(_xlfn.IFS(B123="סך הכל",Summary!$B$6,Planning!C126<>"",Planning!C126),"") ->  | D123: =IFERROR(VLOOKUP(B123,Address!B:G,5,FALSE),"") ->  | E123: =IFERROR(VLOOKUP(B123,Address!B:L,11,FALSE),"") ->  | G123: =IF(B123="סך הכל",Summary!$B$7,IF(F123="","",IF(VLOOKUP(B123,WQ_UnitID!B:C,2,FALSE)=0,"",VLOOKUP(B123,WQ_UnitID!B:C,2,FALSE)))) ->  | H123: =IF(B123="סך הכל",Summary!$B$8,IF(F123="","",IFERROR(VLOOKUP(B123,Planning!A:B,2,FALSE),0))) ->  | I123: =IF(B123="סך הכל",Summary!$B$9,IF(F123="","",IFERROR(VLOOKUP(B123,Count!A:B,2,FALSE),0))) ->  | J123: =IF(F123="","",(IF(ISNUMBER(MATCH(B123,ExcPermit!$H$8:$H$1000,0)),"כן","לא"))) ->  | K123: =IF(B123="סך הכל",Summary!$B$10,IF(F123="","",IFERROR(VLOOKUP(B123,Count!A:J,8,FALSE),0))) ->  | L123: =IF(B123="סך הכל",Summary!$B$11,IF(F123="","",IFERROR(VLOOKUP(B123,Count!A:J,9,FALSE),0))) ->  | M123: =IF(B123="סך הכל",Summary!$B$12,IF(F123="","",IFERROR(VLOOKUP(B123,Count!A:J,10,FALSE),0))) ->  | O123: =IFERROR(VLOOKUP(B123,Comments!A:B,2,FALSE),"") -> 
B124: =IF(AND(B122<>"",ISNUMBER(B122),B123=""),"סך הכל",IF(Planning!A127="","",Planning!A127)) ->  | C124: =IFERROR(_xlfn.IFS(B124="סך הכל",Summary!$B$6,Planning!C127<>"",Planning!C127),"") ->  | D124: =IFERROR(VLOOKUP(B124,Address!B:G,5,FALSE),"") ->  | E124: =IFERROR(VLOOKUP(B124,Address!B:L,11,FALSE),"") ->  | G124: =IF(B124="סך הכל",Summary!$B$7,IF(F124="","",IF(VLOOKUP(B124,WQ_UnitID!B:C,2,FALSE)=0,"",VLOOKUP(B124,WQ_UnitID!B:C,2,FALSE)))) ->  | H124: =IF(B124="סך הכל",Summary!$B$8,IF(F124="","",IFERROR(VLOOKUP(B124,Planning!A:B,2,FALSE),0))) ->  | I124: =IF(B124="סך הכל",Summary!$B$9,IF(F124="","",IFERROR(VLOOKUP(B124,Count!A:B,2,FALSE),0))) ->  | J124: =IF(F124="","",(IF(ISNUMBER(MATCH(B124,ExcPermit!$H$8:$H$1000,0)),"כן","לא"))) ->  | K124: =IF(B124="סך הכל",Summary!$B$10,IF(F124="","",IFERROR(VLOOKUP(B124,Count!A:J,8,FALSE),0))) ->  | L124: =IF(B124="סך הכל",Summary!$B$11,IF(F124="","",IFERROR(VLOOKUP(B124,Count!A:J,9,FALSE),0))) ->  | M124: =IF(B124="סך הכל",Summary!$B$12,IF(F124="","",IFERROR(VLOOKUP(B124,Count!A:J,10,FALSE),0))) ->  | O124: =IFERROR(VLOOKUP(B124,Comments!A:B,2,FALSE),"") -> 
B125: =IF(AND(B123<>"",ISNUMBER(B123),B124=""),"סך הכל",IF(Planning!A128="","",Planning!A128)) ->  | C125: =IFERROR(_xlfn.IFS(B125="סך הכל",Summary!$B$6,Planning!C128<>"",Planning!C128),"") ->  | D125: =IFERROR(VLOOKUP(B125,Address!B:G,5,FALSE),"") ->  | E125: =IFERROR(VLOOKUP(B125,Address!B:L,11,FALSE),"") ->  | G125: =IF(B125="סך הכל",Summary!$B$7,IF(F125="","",IF(VLOOKUP(B125,WQ_UnitID!B:C,2,FALSE)=0,"",VLOOKUP(B125,WQ_UnitID!B:C,2,FALSE)))) ->  | H125: =IF(B125="סך הכל",Summary!$B$8,IF(F125="","",IFERROR(VLOOKUP(B125,Planning!A:B,2,FALSE),0))) ->  | I125: =IF(B125="סך הכל",Summary!$B$9,IF(F125="","",IFERROR(VLOOKUP(B125,Count!A:B,2,FALSE),0))) ->  | J125: =IF(F125="","",(IF(ISNUMBER(MATCH(B125,ExcPermit!$H$8:$H$1000,0)),"כן","לא"))) ->  | K125: =IF(B125="סך הכל",Summary!$B$10,IF(F125="","",IFERROR(VLOOKUP(B125,Count!A:J,8,FALSE),0))) ->  | L125: =IF(B125="סך הכל",Summary!$B$11,IF(F125="","",IFERROR(VLOOKUP(B125,Count!A:J,9,FALSE),0))) ->  | M125: =IF(B125="סך הכל",Summary!$B$12,IF(F125="","",IFERROR(VLOOKUP(B125,Count!A:J,10,FALSE),0))) ->  | O125: =IFERROR(VLOOKUP(B125,Comments!A:B,2,FALSE),"") -> 
B126: =IF(AND(B124<>"",ISNUMBER(B124),B125=""),"סך הכל",IF(Planning!A129="","",Planning!A129)) ->  | C126: =IFERROR(_xlfn.IFS(B126="סך הכל",Summary!$B$6,Planning!C129<>"",Planning!C129),"") ->  | D126: =IFERROR(VLOOKUP(B126,Address!B:G,5,FALSE),"") ->  | E126: =IFERROR(VLOOKUP(B126,Address!B:L,11,FALSE),"") ->  | G126: =IF(B126="סך הכל",Summary!$B$7,IF(F126="","",IF(VLOOKUP(B126,WQ_UnitID!B:C,2,FALSE)=0,"",VLOOKUP(B126,WQ_UnitID!B:C,2,FALSE)))) ->  | H126: =IF(B126="סך הכל",Summary!$B$8,IF(F126="","",IFERROR(VLOOKUP(B126,Planning!A:B,2,FALSE),0))) ->  | I126: =IF(B126="סך הכל",Summary!$B$9,IF(F126="","",IFERROR(VLOOKUP(B126,Count!A:B,2,FALSE),0))) ->  | J126: =IF(F126="","",(IF(ISNUMBER(MATCH(B126,ExcPermit!$H$8:$H$1000,0)),"כן","לא"))) ->  | K126: =IF(B126="סך הכל",Summary!$B$10,IF(F126="","",IFERROR(VLOOKUP(B126,Count!A:J,8,FALSE),0))) ->  | L126: =IF(B126="סך הכל",Summary!$B$11,IF(F126="","",IFERROR(VLOOKUP(B126,Count!A:J,9,FALSE),0))) ->  | M126: =IF(B126="סך הכל",Summary!$B$12,IF(F126="","",IFERROR(VLOOKUP(B126,Count!A:J,10,FALSE),0))) ->  | O126: =IFERROR(VLOOKUP(B126,Comments!A:B,2,FALSE),"") -> 
B127: =IF(AND(B125<>"",ISNUMBER(B125),B126=""),"סך הכל",IF(Planning!A130="","",Planning!A130)) ->  | C127: =IFERROR(_xlfn.IFS(B127="סך הכל",Summary!$B$6,Planning!C130<>"",Planning!C130),"") ->  | D127: =IFERROR(VLOOKUP(B127,Address!B:G,5,FALSE),"") ->  | E127: =IFERROR(VLOOKUP(B127,Address!B:L,11,FALSE),"") ->  | G127: =IF(B127="סך הכל",Summary!$B$7,IF(F127="","",IF(VLOOKUP(B127,WQ_UnitID!B:C,2,FALSE)=0,"",VLOOKUP(B127,WQ_UnitID!B:C,2,FALSE)))) ->  | H127: =IF(B127="סך הכל",Summary!$B$8,IF(F127="","",IFERROR(VLOOKUP(B127,Planning!A:B,2,FALSE),0))) ->  | I127: =IF(B127="סך הכל",Summary!$B$9,IF(F127="","",IFERROR(VLOOKUP(B127,Count!A:B,2,FALSE),0))) ->  | J127: =IF(F127="","",(IF(ISNUMBER(MATCH(B127,ExcPermit!$H$8:$H$1000,0)),"כן","לא"))) ->  | K127: =IF(B127="סך הכל",Summary!$B$10,IF(F127="","",IFERROR(VLOOKUP(B127,Count!A:J,8,FALSE),0))) ->  | L127: =IF(B127="סך הכל",Summary!$B$11,IF(F127="","",IFERROR(VLOOKUP(B127,Count!A:J,9,FALSE),0))) ->  | M127: =IF(B127="סך הכל",Summary!$B$12,IF(F127="","",IFERROR(VLOOKUP(B127,Count!A:J,10,FALSE),0))) ->  | O127: =IFERROR(VLOOKUP(B127,Comments!A:B,2,FALSE),"") -> 
B128: =IF(AND(B126<>"",ISNUMBER(B126),B127=""),"סך הכל",IF(Planning!A131="","",Planning!A131)) ->  | C128: =IFERROR(_xlfn.IFS(B128="סך הכל",Summary!$B$6,Planning!C131<>"",Planning!C131),"") ->  | D128: =IFERROR(VLOOKUP(B128,Address!B:G,5,FALSE),"") ->  | E128: =IFERROR(VLOOKUP(B128,Address!B:L,11,FALSE),"") ->  | G128: =IF(B128="סך הכל",Summary!$B$7,IF(F128="","",IF(VLOOKUP(B128,WQ_UnitID!B:C,2,FALSE)=0,"",VLOOKUP(B128,WQ_UnitID!B:C,2,FALSE)))) ->  | H128: =IF(B128="סך הכל",Summary!$B$8,IF(F128="","",IFERROR(VLOOKUP(B128,Planning!A:B,2,FALSE),0))) ->  | I128: =IF(B128="סך הכל",Summary!$B$9,IF(F128="","",IFERROR(VLOOKUP(B128,Count!A:B,2,FALSE),0))) ->  | J128: =IF(F128="","",(IF(ISNUMBER(MATCH(B128,ExcPermit!$H$8:$H$1000,0)),"כן","לא"))) ->  | K128: =IF(B128="סך הכל",Summary!$B$10,IF(F128="","",IFERROR(VLOOKUP(B128,Count!A:J,8,FALSE),0))) ->  | L128: =IF(B128="סך הכל",Summary!$B$11,IF(F128="","",IFERROR(VLOOKUP(B128,Count!A:J,9,FALSE),0))) ->  | M128: =IF(B128="סך הכל",Summary!$B$12,IF(F128="","",IFERROR(VLOOKUP(B128,Count!A:J,10,FALSE),0))) ->  | O128: =IFERROR(VLOOKUP(B128,Comments!A:B,2,FALSE),"") -> 
B129: =IF(AND(B127<>"",ISNUMBER(B127),B128=""),"סך הכל",IF(Planning!A132="","",Planning!A132)) ->  | C129: =IFERROR(_xlfn.IFS(B129="סך הכל",Summary!$B$6,Planning!C132<>"",Planning!C132),"") ->  | D129: =IFERROR(VLOOKUP(B129,Address!B:G,5,FALSE),"") ->  | E129: =IFERROR(VLOOKUP(B129,Address!B:L,11,FALSE),"") ->  | G129: =IF(B129="סך הכל",Summary!$B$7,IF(F129="","",IF(VLOOKUP(B129,WQ_UnitID!B:C,2,FALSE)=0,"",VLOOKUP(B129,WQ_UnitID!B:C,2,FALSE)))) ->  | H129: =IF(B129="סך הכל",Summary!$B$8,IF(F129="","",IFERROR(VLOOKUP(B129,Planning!A:B,2,FALSE),0))) ->  | I129: =IF(B129="סך הכל",Summary!$B$9,IF(F129="","",IFERROR(VLOOKUP(B129,Count!A:B,2,FALSE),0))) ->  | J129: =IF(F129="","",(IF(ISNUMBER(MATCH(B129,ExcPermit!$H$8:$H$1000,0)),"כן","לא"))) ->  | K129: =IF(B129="סך הכל",Summary!$B$10,IF(F129="","",IFERROR(VLOOKUP(B129,Count!A:J,8,FALSE),0))) ->  | L129: =IF(B129="סך הכל",Summary!$B$11,IF(F129="","",IFERROR(VLOOKUP(B129,Count!A:J,9,FALSE),0))) ->  | M129: =IF(B129="סך הכל",Summary!$B$12,IF(F129="","",IFERROR(VLOOKUP(B129,Count!A:J,10,FALSE),0))) ->  | O129: =IFERROR(VLOOKUP(B129,Comments!A:B,2,FALSE),"") -> 
B130: =IF(AND(B128<>"",ISNUMBER(B128),B129=""),"סך הכל",IF(Planning!A133="","",Planning!A133)) ->  | C130: =IFERROR(_xlfn.IFS(B130="סך הכל",Summary!$B$6,Planning!C133<>"",Planning!C133),"") ->  | D130: =IFERROR(VLOOKUP(B130,Address!B:G,5,FALSE),"") ->  | E130: =IFERROR(VLOOKUP(B130,Address!B:L,11,FALSE),"") ->  | G130: =IF(B130="סך הכל",Summary!$B$7,IF(F130="","",IF(VLOOKUP(B130,WQ_UnitID!B:C,2,FALSE)=0,"",VLOOKUP(B130,WQ_UnitID!B:C,2,FALSE)))) ->  | H130: =IF(B130="סך הכל",Summary!$B$8,IF(F130="","",IFERROR(VLOOKUP(B130,Planning!A:B,2,FALSE),0))) ->  | I130: =IF(B130="סך הכל",Summary!$B$9,IF(F130="","",IFERROR(VLOOKUP(B130,Count!A:B,2,FALSE),0))) ->  | J130: =IF(F130="","",(IF(ISNUMBER(MATCH(B130,ExcPermit!$H$8:$H$1000,0)),"כן","לא"))) ->  | K130: =IF(B130="סך הכל",Summary!$B$10,IF(F130="","",IFERROR(VLOOKUP(B130,Count!A:J,8,FALSE),0))) ->  | L130: =IF(B130="סך הכל",Summary!$B$11,IF(F130="","",IFERROR(VLOOKUP(B130,Count!A:J,9,FALSE),0))) ->  | M130: =IF(B130="סך הכל",Summary!$B$12,IF(F130="","",IFERROR(VLOOKUP(B130,Count!A:J,10,FALSE),0))) ->  | O130: =IFERROR(VLOOKUP(B130,Comments!A:B,2,FALSE),"") -> 
B131: =IF(AND(B129<>"",ISNUMBER(B129),B130=""),"סך הכל",IF(Planning!A134="","",Planning!A134)) ->  | C131: =IFERROR(_xlfn.IFS(B131="סך הכל",Summary!$B$6,Planning!C134<>"",Planning!C134),"") ->  | D131: =IFERROR(VLOOKUP(B131,Address!B:G,5,FALSE),"") ->  | E131: =IFERROR(VLOOKUP(B131,Address!B:L,11,FALSE),"") ->  | G131: =IF(B131="סך הכל",Summary!$B$7,IF(F131="","",IF(VLOOKUP(B131,WQ_UnitID!B:C,2,FALSE)=0,"",VLOOKUP(B131,WQ_UnitID!B:C,2,FALSE)))) ->  | H131: =IF(B131="סך הכל",Summary!$B$8,IF(F131="","",IFERROR(VLOOKUP(B131,Planning!A:B,2,FALSE),0))) ->  | I131: =IF(B131="סך הכל",Summary!$B$9,IF(F131="","",IFERROR(VLOOKUP(B131,Count!A:B,2,FALSE),0))) ->  | J131: =IF(F131="","",(IF(ISNUMBER(MATCH(B131,ExcPermit!$H$8:$H$1000,0)),"כן","לא"))) ->  | K131: =IF(B131="סך הכל",Summary!$B$10,IF(F131="","",IFERROR(VLOOKUP(B131,Count!A:J,8,FALSE),0))) ->  | L131: =IF(B131="סך הכל",Summary!$B$11,IF(F131="","",IFERROR(VLOOKUP(B131,Count!A:J,9,FALSE),0))) ->  | M131: =IF(B131="סך הכל",Summary!$B$12,IF(F131="","",IFERROR(VLOOKUP(B131,Count!A:J,10,FALSE),0))) ->  | O131: =IFERROR(VLOOKUP(B131,Comments!A:B,2,FALSE),"") -> 
B132: =IF(AND(B130<>"",ISNUMBER(B130),B131=""),"סך הכל",IF(Planning!A135="","",Planning!A135)) ->  | C132: =IFERROR(_xlfn.IFS(B132="סך הכל",Summary!$B$6,Planning!C135<>"",Planning!C135),"") ->  | D132: =IFERROR(VLOOKUP(B132,Address!B:G,5,FALSE),"") ->  | E132: =IFERROR(VLOOKUP(B132,Address!B:L,11,FALSE),"") ->  | G132: =IF(B132="סך הכל",Summary!$B$7,IF(F132="","",IF(VLOOKUP(B132,WQ_UnitID!B:C,2,FALSE)=0,"",VLOOKUP(B132,WQ_UnitID!B:C,2,FALSE)))) ->  | H132: =IF(B132="סך הכל",Summary!$B$8,IF(F132="","",IFERROR(VLOOKUP(B132,Planning!A:B,2,FALSE),0))) ->  | I132: =IF(B132="סך הכל",Summary!$B$9,IF(F132="","",IFERROR(VLOOKUP(B132,Count!A:B,2,FALSE),0))) ->  | J132: =IF(F132="","",(IF(ISNUMBER(MATCH(B132,ExcPermit!$H$8:$H$1000,0)),"כן","לא"))) ->  | K132: =IF(B132="סך הכל",Summary!$B$10,IF(F132="","",IFERROR(VLOOKUP(B132,Count!A:J,8,FALSE),0))) ->  | L132: =IF(B132="סך הכל",Summary!$B$11,IF(F132="","",IFERROR(VLOOKUP(B132,Count!A:J,9,FALSE),0))) ->  | M132: =IF(B132="סך הכל",Summary!$B$12,IF(F132="","",IFERROR(VLOOKUP(B132,Count!A:J,10,FALSE),0))) ->  | O132: =IFERROR(VLOOKUP(B132,Comments!A:B,2,FALSE),"") -> 
B133: =IF(AND(B131<>"",ISNUMBER(B131),B132=""),"סך הכל",IF(Planning!A136="","",Planning!A136)) ->  | C133: =IFERROR(_xlfn.IFS(B133="סך הכל",Summary!$B$6,Planning!C136<>"",Planning!C136),"") ->  | D133: =IFERROR(VLOOKUP(B133,Address!B:G,5,FALSE),"") ->  | E133: =IFERROR(VLOOKUP(B133,Address!B:L,11,FALSE),"") ->  | F133: =IF(ISNUMBER(B133),"חטף","") ->  | G133: =IF(B133="סך הכל",Summary!$B$7,IF(F133="","",IF(VLOOKUP(B133,WQ_UnitID!B:C,2,FALSE)=0,"",VLOOKUP(B133,WQ_UnitID!B:C,2,FALSE)))) ->  | H133: =IF(B133="סך הכל",Summary!$B$8,IF(F133="","",IFERROR(VLOOKUP(B133,Planning!A:B,2,FALSE),0))) ->  | I133: =IF(B133="סך הכל",Summary!$B$9,IF(F133="","",IFERROR(VLOOKUP(B133,Count!A:B,2,FALSE),0))) ->  | J133: =IF(F133="","",(IF(ISNUMBER(MATCH(B133,ExcPermit!$H$8:$H$1000,0)),"כן","לא"))) ->  | K133: =IF(B133="סך הכל",Summary!$B$10,IF(F133="","",IFERROR(VLOOKUP(B133,Count!A:J,8,FALSE),0))) ->  | L133: =IF(B133="סך הכל",Summary!$B$11,IF(F133="","",IFERROR(VLOOKUP(B133,Count!A:J,9,FALSE),0))) ->  | M133: =IF(B133="סך הכל",Summary!$B$12,IF(F133="","",IFERROR(VLOOKUP(B133,Count!A:J,10,FALSE),0))) ->  | N133: =IF(O133=0,"",O133) ->  | O133: =IFERROR(VLOOKUP(B133,Comments!A:B,2,FALSE),"") -> 
B134: =IF(AND(B132<>"",ISNUMBER(B132),B133=""),"סך הכל",IF(Planning!A137="","",Planning!A137)) ->  | C134: =IFERROR(_xlfn.IFS(B134="סך הכל",Summary!$B$6,Planning!C137<>"",Planning!C137),"") ->  | D134: =IFERROR(VLOOKUP(B134,Address!B:G,5,FALSE),"") ->  | E134: =IFERROR(VLOOKUP(B134,Address!B:L,11,FALSE),"") ->  | G134: =IF(B134="סך הכל",Summary!$B$7,IF(F134="","",IF(VLOOKUP(B134,WQ_UnitID!B:C,2,FALSE)=0,"",VLOOKUP(B134,WQ_UnitID!B:C,2,FALSE)))) ->  | H134: =IF(B134="סך הכל",Summary!$B$8,IF(F134="","",IFERROR(VLOOKUP(B134,Planning!A:B,2,FALSE),0))) ->  | I134: =IF(B134="סך הכל",Summary!$B$9,IF(F134="","",IFERROR(VLOOKUP(B134,Count!A:B,2,FALSE),0))) ->  | J134: =IF(F134="","",(IF(ISNUMBER(MATCH(B134,ExcPermit!$H$8:$H$1000,0)),"כן","לא"))) ->  | K134: =IF(B134="סך הכל",Summary!$B$10,IF(F134="","",IFERROR(VLOOKUP(B134,Count!A:J,8,FALSE),0))) ->  | L134: =IF(B134="סך הכל",Summary!$B$11,IF(F134="","",IFERROR(VLOOKUP(B134,Count!A:J,9,FALSE),0))) ->  | M134: =IF(B134="סך הכל",Summary!$B$12,IF(F134="","",IFERROR(VLOOKUP(B134,Count!A:J,10,FALSE),0))) ->  | O134: =IFERROR(VLOOKUP(B134,Comments!A:B,2,FALSE),"") -> 
B135: =IF(AND(B133<>"",ISNUMBER(B133),B134=""),"סך הכל",IF(Planning!A138="","",Planning!A138)) ->  | C135: =IFERROR(_xlfn.IFS(B135="סך הכל",Summary!$B$6,Planning!C138<>"",Planning!C138),"") ->  | D135: =IFERROR(VLOOKUP(B135,Address!B:G,5,FALSE),"") ->  | E135: =IFERROR(VLOOKUP(B135,Address!B:L,11,FALSE),"") ->  | G135: =IF(B135="סך הכל",Summary!$B$7,IF(F135="","",IF(VLOOKUP(B135,WQ_UnitID!B:C,2,FALSE)=0,"",VLOOKUP(B135,WQ_UnitID!B:C,2,FALSE)))) ->  | H135: =IF(B135="סך הכל",Summary!$B$8,IF(F135="","",IFERROR(VLOOKUP(B135,Planning!A:B,2,FALSE),0))) ->  | I135: =IF(B135="סך הכל",Summary!$B$9,IF(F135="","",IFERROR(VLOOKUP(B135,Count!A:B,2,FALSE),0))) ->  | J135: =IF(F135="","",(IF(ISNUMBER(MATCH(B135,ExcPermit!$H$8:$H$1000,0)),"כן","לא"))) ->  | K135: =IF(B135="סך הכל",Summary!$B$10,IF(F135="","",IFERROR(VLOOKUP(B135,Count!A:J,8,FALSE),0))) ->  | L135: =IF(B135="סך הכל",Summary!$B$11,IF(F135="","",IFERROR(VLOOKUP(B135,Count!A:J,9,FALSE),0))) ->  | M135: =IF(B135="סך הכל",Summary!$B$12,IF(F135="","",IFERROR(VLOOKUP(B135,Count!A:J,10,FALSE),0))) ->  | O135: =IFERROR(VLOOKUP(B135,Comments!A:B,2,FALSE),"") -> 
B136: =IF(AND(B134<>"",ISNUMBER(B134),B135=""),"סך הכל",IF(Planning!A139="","",Planning!A139)) ->  | C136: =IFERROR(_xlfn.IFS(B136="סך הכל",Summary!$B$6,Planning!C139<>"",Planning!C139),"") ->  | D136: =IFERROR(VLOOKUP(B136,Address!B:G,5,FALSE),"") ->  | E136: =IFERROR(VLOOKUP(B136,Address!B:L,11,FALSE),"") ->  | G136: =IF(B136="סך הכל",Summary!$B$7,IF(F136="","",IF(VLOOKUP(B136,WQ_UnitID!B:C,2,FALSE)=0,"",VLOOKUP(B136,WQ_UnitID!B:C,2,FALSE)))) ->  | H136: =IF(B136="סך הכל",Summary!$B$8,IF(F136="","",IFERROR(VLOOKUP(B136,Planning!A:B,2,FALSE),0))) ->  | I136: =IF(B136="סך הכל",Summary!$B$9,IF(F136="","",IFERROR(VLOOKUP(B136,Count!A:B,2,FALSE),0))) ->  | J136: =IF(F136="","",(IF(ISNUMBER(MATCH(B136,ExcPermit!$H$8:$H$1000,0)),"כן","לא"))) ->  | K136: =IF(B136="סך הכל",Summary!$B$10,IF(F136="","",IFERROR(VLOOKUP(B136,Count!A:J,8,FALSE),0))) ->  | L136: =IF(B136="סך הכל",Summary!$B$11,IF(F136="","",IFERROR(VLOOKUP(B136,Count!A:J,9,FALSE),0))) ->  | M136: =IF(B136="סך הכל",Summary!$B$12,IF(F136="","",IFERROR(VLOOKUP(B136,Count!A:J,10,FALSE),0))) ->  | O136: =IFERROR(VLOOKUP(B136,Comments!A:B,2,FALSE),"") -> 
B137: =IF(AND(B135<>"",ISNUMBER(B135),B136=""),"סך הכל",IF(Planning!A140="","",Planning!A140)) ->  | C137: =IFERROR(_xlfn.IFS(B137="סך הכל",Summary!$B$6,Planning!C140<>"",Planning!C140),"") ->  | D137: =IFERROR(VLOOKUP(B137,Address!B:G,5,FALSE),"") ->  | E137: =IFERROR(VLOOKUP(B137,Address!B:L,11,FALSE),"") ->  | G137: =IF(B137="סך הכל",Summary!$B$7,IF(F137="","",IF(VLOOKUP(B137,WQ_UnitID!B:C,2,FALSE)=0,"",VLOOKUP(B137,WQ_UnitID!B:C,2,FALSE)))) ->  | H137: =IF(B137="סך הכל",Summary!$B$8,IF(F137="","",IFERROR(VLOOKUP(B137,Planning!A:B,2,FALSE),0))) ->  | I137: =IF(B137="סך הכל",Summary!$B$9,IF(F137="","",IFERROR(VLOOKUP(B137,Count!A:B,2,FALSE),0))) ->  | J137: =IF(F137="","",(IF(ISNUMBER(MATCH(B137,ExcPermit!$H$8:$H$1000,0)),"כן","לא"))) ->  | K137: =IF(B137="סך הכל",Summary!$B$10,IF(F137="","",IFERROR(VLOOKUP(B137,Count!A:J,8,FALSE),0))) ->  | L137: =IF(B137="סך הכל",Summary!$B$11,IF(F137="","",IFERROR(VLOOKUP(B137,Count!A:J,9,FALSE),0))) ->  | M137: =IF(B137="סך הכל",Summary!$B$12,IF(F137="","",IFERROR(VLOOKUP(B137,Count!A:J,10,FALSE),0))) ->  | O137: =IFERROR(VLOOKUP(B137,Comments!A:B,2,FALSE),"") -> 
B138: =IF(AND(B136<>"",ISNUMBER(B136),B137=""),"סך הכל",IF(Planning!A141="","",Planning!A141)) ->  | C138: =IFERROR(_xlfn.IFS(B138="סך הכל",Summary!$B$6,Planning!C141<>"",Planning!C141),"") ->  | D138: =IFERROR(VLOOKUP(B138,Address!B:G,5,FALSE),"") ->  | E138: =IFERROR(VLOOKUP(B138,Address!B:L,11,FALSE),"") ->  | G138: =IF(B138="סך הכל",Summary!$B$7,IF(F138="","",IF(VLOOKUP(B138,WQ_UnitID!B:C,2,FALSE)=0,"",VLOOKUP(B138,WQ_UnitID!B:C,2,FALSE)))) ->  | H138: =IF(B138="סך הכל",Summary!$B$8,IF(F138="","",IFERROR(VLOOKUP(B138,Planning!A:B,2,FALSE),0))) ->  | I138: =IF(B138="סך הכל",Summary!$B$9,IF(F138="","",IFERROR(VLOOKUP(B138,Count!A:B,2,FALSE),0))) ->  | J138: =IF(F138="","",(IF(ISNUMBER(MATCH(B138,ExcPermit!$H$8:$H$1000,0)),"כן","לא"))) ->  | K138: =IF(B138="סך הכל",Summary!$B$10,IF(F138="","",IFERROR(VLOOKUP(B138,Count!A:J,8,FALSE),0))) ->  | L138: =IF(B138="סך הכל",Summary!$B$11,IF(F138="","",IFERROR(VLOOKUP(B138,Count!A:J,9,FALSE),0))) ->  | M138: =IF(B138="סך הכל",Summary!$B$12,IF(F138="","",IFERROR(VLOOKUP(B138,Count!A:J,10,FALSE),0))) ->  | O138: =IFERROR(VLOOKUP(B138,Comments!A:B,2,FALSE),"") -> 
B139: =IF(AND(B137<>"",ISNUMBER(B137),B138=""),"סך הכל",IF(Planning!A142="","",Planning!A142)) ->  | C139: =IFERROR(_xlfn.IFS(B139="סך הכל",Summary!$B$6,Planning!C142<>"",Planning!C142),"") ->  | D139: =IFERROR(VLOOKUP(B139,Address!B:G,5,FALSE),"") ->  | E139: =IFERROR(VLOOKUP(B139,Address!B:L,11,FALSE),"") ->  | G139: =IF(B139="סך הכל",Summary!$B$7,IF(F139="","",IF(VLOOKUP(B139,WQ_UnitID!B:C,2,FALSE)=0,"",VLOOKUP(B139,WQ_UnitID!B:C,2,FALSE)))) ->  | H139: =IF(B139="סך הכל",Summary!$B$8,IF(F139="","",IFERROR(VLOOKUP(B139,Planning!A:B,2,FALSE),0))) ->  | I139: =IF(B139="סך הכל",Summary!$B$9,IF(F139="","",IFERROR(VLOOKUP(B139,Count!A:B,2,FALSE),0))) ->  | J139: =IF(F139="","",(IF(ISNUMBER(MATCH(B139,ExcPermit!$H$8:$H$1000,0)),"כן","לא"))) ->  | K139: =IF(B139="סך הכל",Summary!$B$10,IF(F139="","",IFERROR(VLOOKUP(B139,Count!A:J,8,FALSE),0))) ->  | L139: =IF(B139="סך הכל",Summary!$B$11,IF(F139="","",IFERROR(VLOOKUP(B139,Count!A:J,9,FALSE),0))) ->  | M139: =IF(B139="סך הכל",Summary!$B$12,IF(F139="","",IFERROR(VLOOKUP(B139,Count!A:J,10,FALSE),0))) ->  | O139: =IFERROR(VLOOKUP(B139,Comments!A:B,2,FALSE),"") -> 
B140: =IF(AND(B138<>"",ISNUMBER(B138),B139=""),"סך הכל",IF(Planning!A143="","",Planning!A143)) ->  | C140: =IFERROR(_xlfn.IFS(B140="סך הכל",Summary!$B$6,Planning!C143<>"",Planning!C143),"") ->  | D140: =IFERROR(VLOOKUP(B140,Address!B:G,5,FALSE),"") ->  | E140: =IFERROR(VLOOKUP(B140,Address!B:L,11,FALSE),"") ->  | G140: =IF(B140="סך הכל",Summary!$B$7,IF(F140="","",IF(VLOOKUP(B140,WQ_UnitID!B:C,2,FALSE)=0,"",VLOOKUP(B140,WQ_UnitID!B:C,2,FALSE)))) ->  | H140: =IF(B140="סך הכל",Summary!$B$8,IF(F140="","",IFERROR(VLOOKUP(B140,Planning!A:B,2,FALSE),0))) ->  | I140: =IF(B140="סך הכל",Summary!$B$9,IF(F140="","",IFERROR(VLOOKUP(B140,Count!A:B,2,FALSE),0))) ->  | J140: =IF(F140="","",(IF(ISNUMBER(MATCH(B140,ExcPermit!$H$8:$H$1000,0)),"כן","לא"))) ->  | K140: =IF(B140="סך הכל",Summary!$B$10,IF(F140="","",IFERROR(VLOOKUP(B140,Count!A:J,8,FALSE),0))) ->  | L140: =IF(B140="סך הכל",Summary!$B$11,IF(F140="","",IFERROR(VLOOKUP(B140,Count!A:J,9,FALSE),0))) ->  | M140: =IF(B140="סך הכל",Summary!$B$12,IF(F140="","",IFERROR(VLOOKUP(B140,Count!A:J,10,FALSE),0))) ->  | O140: =IFERROR(VLOOKUP(B140,Comments!A:B,2,FALSE),"") -> 
B141: =IF(AND(B139<>"",ISNUMBER(B139),B140=""),"סך הכל",IF(Planning!A144="","",Planning!A144)) ->  | C141: =IFERROR(_xlfn.IFS(B141="סך הכל",Summary!$B$6,Planning!C144<>"",Planning!C144),"") ->  | D141: =IFERROR(VLOOKUP(B141,Address!B:G,5,FALSE),"") ->  | E141: =IFERROR(VLOOKUP(B141,Address!B:L,11,FALSE),"") ->  | G141: =IF(B141="סך הכל",Summary!$B$7,IF(F141="","",IF(VLOOKUP(B141,WQ_UnitID!B:C,2,FALSE)=0,"",VLOOKUP(B141,WQ_UnitID!B:C,2,FALSE)))) ->  | H141: =IF(B141="סך הכל",Summary!$B$8,IF(F141="","",IFERROR(VLOOKUP(B141,Planning!A:B,2,FALSE),0))) ->  | I141: =IF(B141="סך הכל",Summary!$B$9,IF(F141="","",IFERROR(VLOOKUP(B141,Count!A:B,2,FALSE),0))) ->  | J141: =IF(F141="","",(IF(ISNUMBER(MATCH(B141,ExcPermit!$H$8:$H$1000,0)),"כן","לא"))) ->  | K141: =IF(B141="סך הכל",Summary!$B$10,IF(F141="","",IFERROR(VLOOKUP(B141,Count!A:J,8,FALSE),0))) ->  | L141: =IF(B141="סך הכל",Summary!$B$11,IF(F141="","",IFERROR(VLOOKUP(B141,Count!A:J,9,FALSE),0))) ->  | M141: =IF(B141="סך הכל",Summary!$B$12,IF(F141="","",IFERROR(VLOOKUP(B141,Count!A:J,10,FALSE),0))) ->  | O141: =IFERROR(VLOOKUP(B141,Comments!A:B,2,FALSE),"") -> 
B142: =IF(AND(B140<>"",ISNUMBER(B140),B141=""),"סך הכל",IF(Planning!A145="","",Planning!A145)) ->  | C142: =IFERROR(_xlfn.IFS(B142="סך הכל",Summary!$B$6,Planning!C145<>"",Planning!C145),"") ->  | D142: =IFERROR(VLOOKUP(B142,Address!B:G,5,FALSE),"") ->  | E142: =IFERROR(VLOOKUP(B142,Address!B:L,11,FALSE),"") ->  | G142: =IF(B142="סך הכל",Summary!$B$7,IF(F142="","",IF(VLOOKUP(B142,WQ_UnitID!B:C,2,FALSE)=0,"",VLOOKUP(B142,WQ_UnitID!B:C,2,FALSE)))) ->  | H142: =IF(B142="סך הכל",Summary!$B$8,IF(F142="","",IFERROR(VLOOKUP(B142,Planning!A:B,2,FALSE),0))) ->  | I142: =IF(B142="סך הכל",Summary!$B$9,IF(F142="","",IFERROR(VLOOKUP(B142,Count!A:B,2,FALSE),0))) ->  | J142: =IF(F142="","",(IF(ISNUMBER(MATCH(B142,ExcPermit!$H$8:$H$1000,0)),"כן","לא"))) ->  | K142: =IF(B142="סך הכל",Summary!$B$10,IF(F142="","",IFERROR(VLOOKUP(B142,Count!A:J,8,FALSE),0))) ->  | L142: =IF(B142="סך הכל",Summary!$B$11,IF(F142="","",IFERROR(VLOOKUP(B142,Count!A:J,9,FALSE),0))) ->  | M142: =IF(B142="סך הכל",Summary!$B$12,IF(F142="","",IFERROR(VLOOKUP(B142,Count!A:J,10,FALSE),0))) ->  | O142: =IFERROR(VLOOKUP(B142,Comments!A:B,2,FALSE),"") -> 
B143: =IF(AND(B141<>"",ISNUMBER(B141),B142=""),"סך הכל",IF(Planning!A146="","",Planning!A146)) ->  | C143: =IFERROR(_xlfn.IFS(B143="סך הכל",Summary!$B$6,Planning!C146<>"",Planning!C146),"") ->  | D143: =IFERROR(VLOOKUP(B143,Address!B:G,5,FALSE),"") ->  | E143: =IFERROR(VLOOKUP(B143,Address!B:L,11,FALSE),"") ->  | G143: =IF(B143="סך הכל",Summary!$B$7,IF(F143="","",IF(VLOOKUP(B143,WQ_UnitID!B:C,2,FALSE)=0,"",VLOOKUP(B143,WQ_UnitID!B:C,2,FALSE)))) ->  | H143: =IF(B143="סך הכל",Summary!$B$8,IF(F143="","",IFERROR(VLOOKUP(B143,Planning!A:B,2,FALSE),0))) ->  | I143: =IF(B143="סך הכל",Summary!$B$9,IF(F143="","",IFERROR(VLOOKUP(B143,Count!A:B,2,FALSE),0))) ->  | J143: =IF(F143="","",(IF(ISNUMBER(MATCH(B143,ExcPermit!$H$8:$H$1000,0)),"כן","לא"))) ->  | K143: =IF(B143="סך הכל",Summary!$B$10,IF(F143="","",IFERROR(VLOOKUP(B143,Count!A:J,8,FALSE),0))) ->  | L143: =IF(B143="סך הכל",Summary!$B$11,IF(F143="","",IFERROR(VLOOKUP(B143,Count!A:J,9,FALSE),0))) ->  | M143: =IF(B143="סך הכל",Summary!$B$12,IF(F143="","",IFERROR(VLOOKUP(B143,Count!A:J,10,FALSE),0))) ->  | O143: =IFERROR(VLOOKUP(B143,Comments!A:B,2,FALSE),"") -> 
B144: =IF(AND(B142<>"",ISNUMBER(B142),B143=""),"סך הכל",IF(Planning!A147="","",Planning!A147)) ->  | C144: =IFERROR(_xlfn.IFS(B144="סך הכל",Summary!$B$6,Planning!C147<>"",Planning!C147),"") ->  | D144: =IFERROR(VLOOKUP(B144,Address!B:G,5,FALSE),"") ->  | E144: =IFERROR(VLOOKUP(B144,Address!B:L,11,FALSE),"") ->  | G144: =IF(B144="סך הכל",Summary!$B$7,IF(F144="","",IF(VLOOKUP(B144,WQ_UnitID!B:C,2,FALSE)=0,"",VLOOKUP(B144,WQ_UnitID!B:C,2,FALSE)))) ->  | H144: =IF(B144="סך הכל",Summary!$B$8,IF(F144="","",IFERROR(VLOOKUP(B144,Planning!A:B,2,FALSE),0))) ->  | I144: =IF(B144="סך הכל",Summary!$B$9,IF(F144="","",IFERROR(VLOOKUP(B144,Count!A:B,2,FALSE),0))) ->  | J144: =IF(F144="","",(IF(ISNUMBER(MATCH(B144,ExcPermit!$H$8:$H$1000,0)),"כן","לא"))) ->  | K144: =IF(B144="סך הכל",Summary!$B$10,IF(F144="","",IFERROR(VLOOKUP(B144,Count!A:J,8,FALSE),0))) ->  | L144: =IF(B144="סך הכל",Summary!$B$11,IF(F144="","",IFERROR(VLOOKUP(B144,Count!A:J,9,FALSE),0))) ->  | M144: =IF(B144="סך הכל",Summary!$B$12,IF(F144="","",IFERROR(VLOOKUP(B144,Count!A:J,10,FALSE),0))) ->  | O144: =IFERROR(VLOOKUP(B144,Comments!A:B,2,FALSE),"") -> 
B145: =IF(AND(B143<>"",ISNUMBER(B143),B144=""),"סך הכל",IF(Planning!A148="","",Planning!A148)) ->  | C145: =IFERROR(_xlfn.IFS(B145="סך הכל",Summary!$B$6,Planning!C148<>"",Planning!C148),"") ->  | D145: =IFERROR(VLOOKUP(B145,Address!B:G,5,FALSE),"") ->  | E145: =IFERROR(VLOOKUP(B145,Address!B:L,11,FALSE),"") ->  | G145: =IF(B145="סך הכל",Summary!$B$7,IF(F145="","",IF(VLOOKUP(B145,WQ_UnitID!B:C,2,FALSE)=0,"",VLOOKUP(B145,WQ_UnitID!B:C,2,FALSE)))) ->  | H145: =IF(B145="סך הכל",Summary!$B$8,IF(F145="","",IFERROR(VLOOKUP(B145,Planning!A:B,2,FALSE),0))) ->  | I145: =IF(B145="סך הכל",Summary!$B$9,IF(F145="","",IFERROR(VLOOKUP(B145,Count!A:B,2,FALSE),0))) ->  | J145: =IF(F145="","",(IF(ISNUMBER(MATCH(B145,ExcPermit!$H$8:$H$1000,0)),"כן","לא"))) ->  | K145: =IF(B145="סך הכל",Summary!$B$10,IF(F145="","",IFERROR(VLOOKUP(B145,Count!A:J,8,FALSE),0))) ->  | L145: =IF(B145="סך הכל",Summary!$B$11,IF(F145="","",IFERROR(VLOOKUP(B145,Count!A:J,9,FALSE),0))) ->  | M145: =IF(B145="סך הכל",Summary!$B$12,IF(F145="","",IFERROR(VLOOKUP(B145,Count!A:J,10,FALSE),0))) ->  | O145: =IFERROR(VLOOKUP(B145,Comments!A:B,2,FALSE),"") -> 
B146: =IF(AND(B144<>"",ISNUMBER(B144),B145=""),"סך הכל",IF(Planning!A149="","",Planning!A149)) ->  | C146: =IFERROR(_xlfn.IFS(B146="סך הכל",Summary!$B$6,Planning!C149<>"",Planning!C149),"") ->  | D146: =IFERROR(VLOOKUP(B146,Address!B:G,5,FALSE),"") ->  | E146: =IFERROR(VLOOKUP(B146,Address!B:L,11,FALSE),"") ->  | G146: =IF(B146="סך הכל",Summary!$B$7,IF(F146="","",IF(VLOOKUP(B146,WQ_UnitID!B:C,2,FALSE)=0,"",VLOOKUP(B146,WQ_UnitID!B:C,2,FALSE)))) ->  | H146: =IF(B146="סך הכל",Summary!$B$8,IF(F146="","",IFERROR(VLOOKUP(B146,Planning!A:B,2,FALSE),0))) ->  | I146: =IF(B146="סך הכל",Summary!$B$9,IF(F146="","",IFERROR(VLOOKUP(B146,Count!A:B,2,FALSE),0))) ->  | J146: =IF(F146="","",(IF(ISNUMBER(MATCH(B146,ExcPermit!$H$8:$H$1000,0)),"כן","לא"))) ->  | K146: =IF(B146="סך הכל",Summary!$B$10,IF(F146="","",IFERROR(VLOOKUP(B146,Count!A:J,8,FALSE),0))) ->  | L146: =IF(B146="סך הכל",Summary!$B$11,IF(F146="","",IFERROR(VLOOKUP(B146,Count!A:J,9,FALSE),0))) ->  | M146: =IF(B146="סך הכל",Summary!$B$12,IF(F146="","",IFERROR(VLOOKUP(B146,Count!A:J,10,FALSE),0))) ->  | O146: =IFERROR(VLOOKUP(B146,Comments!A:B,2,FALSE),"") -> 
B147: =IF(AND(B145<>"",ISNUMBER(B145),B146=""),"סך הכל",IF(Planning!A150="","",Planning!A150)) ->  | C147: =IFERROR(_xlfn.IFS(B147="סך הכל",Summary!$B$6,Planning!C150<>"",Planning!C150),"") ->  | D147: =IFERROR(VLOOKUP(B147,Address!B:G,5,FALSE),"") ->  | E147: =IFERROR(VLOOKUP(B147,Address!B:L,11,FALSE),"") ->  | G147: =IF(B147="סך הכל",Summary!$B$7,IF(F147="","",IF(VLOOKUP(B147,WQ_UnitID!B:C,2,FALSE)=0,"",VLOOKUP(B147,WQ_UnitID!B:C,2,FALSE)))) ->  | H147: =IF(B147="סך הכל",Summary!$B$8,IF(F147="","",IFERROR(VLOOKUP(B147,Planning!A:B,2,FALSE),0))) ->  | I147: =IF(B147="סך הכל",Summary!$B$9,IF(F147="","",IFERROR(VLOOKUP(B147,Count!A:B,2,FALSE),0))) ->  | J147: =IF(F147="","",(IF(ISNUMBER(MATCH(B147,ExcPermit!$H$8:$H$1000,0)),"כן","לא"))) ->  | K147: =IF(B147="סך הכל",Summary!$B$10,IF(F147="","",IFERROR(VLOOKUP(B147,Count!A:J,8,FALSE),0))) ->  | L147: =IF(B147="סך הכל",Summary!$B$11,IF(F147="","",IFERROR(VLOOKUP(B147,Count!A:J,9,FALSE),0))) ->  | M147: =IF(B147="סך הכל",Summary!$B$12,IF(F147="","",IFERROR(VLOOKUP(B147,Count!A:J,10,FALSE),0))) ->  | O147: =IFERROR(VLOOKUP(B147,Comments!A:B,2,FALSE),"") -> 
B148: =IF(AND(B146<>"",ISNUMBER(B146),B147=""),"סך הכל",IF(Planning!A151="","",Planning!A151)) ->  | C148: =IFERROR(_xlfn.IFS(B148="סך הכל",Summary!$B$6,Planning!C151<>"",Planning!C151),"") ->  | D148: =IFERROR(VLOOKUP(B148,Address!B:G,5,FALSE),"") ->  | E148: =IFERROR(VLOOKUP(B148,Address!B:L,11,FALSE),"") ->  | G148: =IF(B148="סך הכל",Summary!$B$7,IF(F148="","",IF(VLOOKUP(B148,WQ_UnitID!B:C,2,FALSE)=0,"",VLOOKUP(B148,WQ_UnitID!B:C,2,FALSE)))) ->  | H148: =IF(B148="סך הכל",Summary!$B$8,IF(F148="","",IFERROR(VLOOKUP(B148,Planning!A:B,2,FALSE),0))) ->  | I148: =IF(B148="סך הכל",Summary!$B$9,IF(F148="","",IFERROR(VLOOKUP(B148,Count!A:B,2,FALSE),0))) ->  | J148: =IF(F148="","",(IF(ISNUMBER(MATCH(B148,ExcPermit!$H$8:$H$1000,0)),"כן","לא"))) ->  | K148: =IF(B148="סך הכל",Summary!$B$10,IF(F148="","",IFERROR(VLOOKUP(B148,Count!A:J,8,FALSE),0))) ->  | L148: =IF(B148="סך הכל",Summary!$B$11,IF(F148="","",IFERROR(VLOOKUP(B148,Count!A:J,9,FALSE),0))) ->  | M148: =IF(B148="סך הכל",Summary!$B$12,IF(F148="","",IFERROR(VLOOKUP(B148,Count!A:J,10,FALSE),0))) ->  | O148: =IFERROR(VLOOKUP(B148,Comments!A:B,2,FALSE),"") -> 
B149: =IF(AND(B147<>"",ISNUMBER(B147),B148=""),"סך הכל",IF(Planning!A152="","",Planning!A152)) ->  | C149: =IFERROR(_xlfn.IFS(B149="סך הכל",Summary!$B$6,Planning!C152<>"",Planning!C152),"") ->  | D149: =IFERROR(VLOOKUP(B149,Address!B:G,5,FALSE),"") ->  | E149: =IFERROR(VLOOKUP(B149,Address!B:L,11,FALSE),"") ->  | G149: =IF(B149="סך הכל",Summary!$B$7,IF(F149="","",IF(VLOOKUP(B149,WQ_UnitID!B:C,2,FALSE)=0,"",VLOOKUP(B149,WQ_UnitID!B:C,2,FALSE)))) ->  | H149: =IF(B149="סך הכל",Summary!$B$8,IF(F149="","",IFERROR(VLOOKUP(B149,Planning!A:B,2,FALSE),0))) ->  | I149: =IF(B149="סך הכל",Summary!$B$9,IF(F149="","",IFERROR(VLOOKUP(B149,Count!A:B,2,FALSE),0))) ->  | J149: =IF(F149="","",(IF(ISNUMBER(MATCH(B149,ExcPermit!$H$8:$H$1000,0)),"כן","לא"))) ->  | K149: =IF(B149="סך הכל",Summary!$B$10,IF(F149="","",IFERROR(VLOOKUP(B149,Count!A:J,8,FALSE),0))) ->  | L149: =IF(B149="סך הכל",Summary!$B$11,IF(F149="","",IFERROR(VLOOKUP(B149,Count!A:J,9,FALSE),0))) ->  | M149: =IF(B149="סך הכל",Summary!$B$12,IF(F149="","",IFERROR(VLOOKUP(B149,Count!A:J,10,FALSE),0))) ->  | O149: =IFERROR(VLOOKUP(B149,Comments!A:B,2,FALSE),"") -> 
B150: =IF(AND(B148<>"",ISNUMBER(B148),B149=""),"סך הכל",IF(Planning!A153="","",Planning!A153)) ->  | C150: =IFERROR(_xlfn.IFS(B150="סך הכל",Summary!$B$6,Planning!C153<>"",Planning!C153),"") ->  | D150: =IFERROR(VLOOKUP(B150,Address!B:G,5,FALSE),"") ->  | E150: =IFERROR(VLOOKUP(B150,Address!B:L,11,FALSE),"") ->  | G150: =IF(B150="סך הכל",Summary!$B$7,IF(F150="","",IF(VLOOKUP(B150,WQ_UnitID!B:C,2,FALSE)=0,"",VLOOKUP(B150,WQ_UnitID!B:C,2,FALSE)))) ->  | H150: =IF(B150="סך הכל",Summary!$B$8,IF(F150="","",IFERROR(VLOOKUP(B150,Planning!A:B,2,FALSE),0))) ->  | I150: =IF(B150="סך הכל",Summary!$B$9,IF(F150="","",IFERROR(VLOOKUP(B150,Count!A:B,2,FALSE),0))) ->  | J150: =IF(F150="","",(IF(ISNUMBER(MATCH(B150,ExcPermit!$H$8:$H$1000,0)),"כן","לא"))) ->  | K150: =IF(B150="סך הכל",Summary!$B$10,IF(F150="","",IFERROR(VLOOKUP(B150,Count!A:J,8,FALSE),0))) ->  | L150: =IF(B150="סך הכל",Summary!$B$11,IF(F150="","",IFERROR(VLOOKUP(B150,Count!A:J,9,FALSE),0))) ->  | M150: =IF(B150="סך הכל",Summary!$B$12,IF(F150="","",IFERROR(VLOOKUP(B150,Count!A:J,10,FALSE),0))) ->  | O150: =IFERROR(VLOOKUP(B150,Comments!A:B,2,FALSE),"") -> 
B151: =IF(AND(B149<>"",ISNUMBER(B149),B150=""),"סך הכל",IF(Planning!A154="","",Planning!A154)) ->  | C151: =IFERROR(_xlfn.IFS(B151="סך הכל",Summary!$B$6,Planning!C154<>"",Planning!C154),"") ->  | D151: =IFERROR(VLOOKUP(B151,Address!B:G,5,FALSE),"") ->  | E151: =IFERROR(VLOOKUP(B151,Address!B:L,11,FALSE),"") ->  | G151: =IF(B151="סך הכל",Summary!$B$7,IF(F151="","",IF(VLOOKUP(B151,WQ_UnitID!B:C,2,FALSE)=0,"",VLOOKUP(B151,WQ_UnitID!B:C,2,FALSE)))) ->  | H151: =IF(B151="סך הכל",Summary!$B$8,IF(F151="","",IFERROR(VLOOKUP(B151,Planning!A:B,2,FALSE),0))) ->  | I151: =IF(B151="סך הכל",Summary!$B$9,IF(F151="","",IFERROR(VLOOKUP(B151,Count!A:B,2,FALSE),0))) ->  | J151: =IF(F151="","",(IF(ISNUMBER(MATCH(B151,ExcPermit!$H$8:$H$1000,0)),"כן","לא"))) ->  | K151: =IF(B151="סך הכל",Summary!$B$10,IF(F151="","",IFERROR(VLOOKUP(B151,Count!A:J,8,FALSE),0))) ->  | L151: =IF(B151="סך הכל",Summary!$B$11,IF(F151="","",IFERROR(VLOOKUP(B151,Count!A:J,9,FALSE),0))) ->  | M151: =IF(B151="סך הכל",Summary!$B$12,IF(F151="","",IFERROR(VLOOKUP(B151,Count!A:J,10,FALSE),0))) ->  | O151: =IFERROR(VLOOKUP(B151,Comments!A:B,2,FALSE),"") -> 
B152: =IF(AND(B150<>"",ISNUMBER(B150),B151=""),"סך הכל",IF(Planning!A155="","",Planning!A155)) ->  | C152: =IFERROR(_xlfn.IFS(B152="סך הכל",Summary!$B$6,Planning!C155<>"",Planning!C155),"") ->  | D152: =IFERROR(VLOOKUP(B152,Address!B:G,5,FALSE),"") ->  | E152: =IFERROR(VLOOKUP(B152,Address!B:L,11,FALSE),"") ->  | G152: =IF(B152="סך הכל",Summary!$B$7,IF(F152="","",IF(VLOOKUP(B152,WQ_UnitID!B:C,2,FALSE)=0,"",VLOOKUP(B152,WQ_UnitID!B:C,2,FALSE)))) ->  | H152: =IF(B152="סך הכל",Summary!$B$8,IF(F152="","",IFERROR(VLOOKUP(B152,Planning!A:B,2,FALSE),0))) ->  | I152: =IF(B152="סך הכל",Summary!$B$9,IF(F152="","",IFERROR(VLOOKUP(B152,Count!A:B,2,FALSE),0))) ->  | J152: =IF(F152="","",(IF(ISNUMBER(MATCH(B152,ExcPermit!$H$8:$H$1000,0)),"כן","לא"))) ->  | K152: =IF(B152="סך הכל",Summary!$B$10,IF(F152="","",IFERROR(VLOOKUP(B152,Count!A:J,8,FALSE),0))) ->  | L152: =IF(B152="סך הכל",Summary!$B$11,IF(F152="","",IFERROR(VLOOKUP(B152,Count!A:J,9,FALSE),0))) ->  | M152: =IF(B152="סך הכל",Summary!$B$12,IF(F152="","",IFERROR(VLOOKUP(B152,Count!A:J,10,FALSE),0))) ->  | O152: =IFERROR(VLOOKUP(B152,Comments!A:B,2,FALSE),"") -> 
B153: =IF(AND(B151<>"",ISNUMBER(B151),B152=""),"סך הכל",IF(Planning!A156="","",Planning!A156)) ->  | C153: =IFERROR(_xlfn.IFS(B153="סך הכל",Summary!$B$6,Planning!C156<>"",Planning!C156),"") ->  | D153: =IFERROR(VLOOKUP(B153,Address!B:G,5,FALSE),"") ->  | E153: =IFERROR(VLOOKUP(B153,Address!B:L,11,FALSE),"") ->  | G153: =IF(B153="סך הכל",Summary!$B$7,IF(F153="","",IF(VLOOKUP(B153,WQ_UnitID!B:C,2,FALSE)=0,"",VLOOKUP(B153,WQ_UnitID!B:C,2,FALSE)))) ->  | H153: =IF(B153="סך הכל",Summary!$B$8,IF(F153="","",IFERROR(VLOOKUP(B153,Planning!A:B,2,FALSE),0))) ->  | I153: =IF(B153="סך הכל",Summary!$B$9,IF(F153="","",IFERROR(VLOOKUP(B153,Count!A:B,2,FALSE),0))) ->  | J153: =IF(F153="","",(IF(ISNUMBER(MATCH(B153,ExcPermit!$H$8:$H$1000,0)),"כן","לא"))) ->  | K153: =IF(B153="סך הכל",Summary!$B$10,IF(F153="","",IFERROR(VLOOKUP(B153,Count!A:J,8,FALSE),0))) ->  | L153: =IF(B153="סך הכל",Summary!$B$11,IF(F153="","",IFERROR(VLOOKUP(B153,Count!A:J,9,FALSE),0))) ->  | M153: =IF(B153="סך הכל",Summary!$B$12,IF(F153="","",IFERROR(VLOOKUP(B153,Count!A:J,10,FALSE),0))) ->  | O153: =IFERROR(VLOOKUP(B153,Comments!A:B,2,FALSE),"") -> 
B154: =IF(AND(B152<>"",ISNUMBER(B152),B153=""),"סך הכל",IF(Planning!A157="","",Planning!A157)) ->  | C154: =IFERROR(_xlfn.IFS(B154="סך הכל",Summary!$B$6,Planning!C157<>"",Planning!C157),"") ->  | D154: =IFERROR(VLOOKUP(B154,Address!B:G,5,FALSE),"") ->  | E154: =IFERROR(VLOOKUP(B154,Address!B:L,11,FALSE),"") ->  | G154: =IF(B154="סך הכל",Summary!$B$7,IF(F154="","",IF(VLOOKUP(B154,WQ_UnitID!B:C,2,FALSE)=0,"",VLOOKUP(B154,WQ_UnitID!B:C,2,FALSE)))) ->  | H154: =IF(B154="סך הכל",Summary!$B$8,IF(F154="","",IFERROR(VLOOKUP(B154,Planning!A:B,2,FALSE),0))) ->  | I154: =IF(B154="סך הכל",Summary!$B$9,IF(F154="","",IFERROR(VLOOKUP(B154,Count!A:B,2,FALSE),0))) ->  | J154: =IF(F154="","",(IF(ISNUMBER(MATCH(B154,ExcPermit!$H$8:$H$1000,0)),"כן","לא"))) ->  | K154: =IF(B154="סך הכל",Summary!$B$10,IF(F154="","",IFERROR(VLOOKUP(B154,Count!A:J,8,FALSE),0))) ->  | L154: =IF(B154="סך הכל",Summary!$B$11,IF(F154="","",IFERROR(VLOOKUP(B154,Count!A:J,9,FALSE),0))) ->  | M154: =IF(B154="סך הכל",Summary!$B$12,IF(F154="","",IFERROR(VLOOKUP(B154,Count!A:J,10,FALSE),0))) ->  | O154: =IFERROR(VLOOKUP(B154,Comments!A:B,2,FALSE),"") -> 
B155: =IF(AND(B153<>"",ISNUMBER(B153),B154=""),"סך הכל",IF(Planning!A158="","",Planning!A158)) ->  | C155: =IFERROR(_xlfn.IFS(B155="סך הכל",Summary!$B$6,Planning!C158<>"",Planning!C158),"") ->  | D155: =IFERROR(VLOOKUP(B155,Address!B:G,5,FALSE),"") ->  | E155: =IFERROR(VLOOKUP(B155,Address!B:L,11,FALSE),"") ->  | G155: =IF(B155="סך הכל",Summary!$B$7,IF(F155="","",IF(VLOOKUP(B155,WQ_UnitID!B:C,2,FALSE)=0,"",VLOOKUP(B155,WQ_UnitID!B:C,2,FALSE)))) ->  | H155: =IF(B155="סך הכל",Summary!$B$8,IF(F155="","",IFERROR(VLOOKUP(B155,Planning!A:B,2,FALSE),0))) ->  | I155: =IF(B155="סך הכל",Summary!$B$9,IF(F155="","",IFERROR(VLOOKUP(B155,Count!A:B,2,FALSE),0))) ->  | J155: =IF(F155="","",(IF(ISNUMBER(MATCH(B155,ExcPermit!$H$8:$H$1000,0)),"כן","לא"))) ->  | K155: =IF(B155="סך הכל",Summary!$B$10,IF(F155="","",IFERROR(VLOOKUP(B155,Count!A:J,8,FALSE),0))) ->  | L155: =IF(B155="סך הכל",Summary!$B$11,IF(F155="","",IFERROR(VLOOKUP(B155,Count!A:J,9,FALSE),0))) ->  | M155: =IF(B155="סך הכל",Summary!$B$12,IF(F155="","",IFERROR(VLOOKUP(B155,Count!A:J,10,FALSE),0))) ->  | O155: =IFERROR(VLOOKUP(B155,Comments!A:B,2,FALSE),"") -> 
B156: =IF(AND(B154<>"",ISNUMBER(B154),B155=""),"סך הכל",IF(Planning!A159="","",Planning!A159)) ->  | C156: =IFERROR(_xlfn.IFS(B156="סך הכל",Summary!$B$6,Planning!C159<>"",Planning!C159),"") ->  | D156: =IFERROR(VLOOKUP(B156,Address!B:G,5,FALSE),"") ->  | E156: =IFERROR(VLOOKUP(B156,Address!B:L,11,FALSE),"") ->  | G156: =IF(B156="סך הכל",Summary!$B$7,IF(F156="","",IF(VLOOKUP(B156,WQ_UnitID!B:C,2,FALSE)=0,"",VLOOKUP(B156,WQ_UnitID!B:C,2,FALSE)))) ->  | H156: =IF(B156="סך הכל",Summary!$B$8,IF(F156="","",IFERROR(VLOOKUP(B156,Planning!A:B,2,FALSE),0))) ->  | I156: =IF(B156="סך הכל",Summary!$B$9,IF(F156="","",IFERROR(VLOOKUP(B156,Count!A:B,2,FALSE),0))) ->  | J156: =IF(F156="","",(IF(ISNUMBER(MATCH(B156,ExcPermit!$H$8:$H$1000,0)),"כן","לא"))) ->  | K156: =IF(B156="סך הכל",Summary!$B$10,IF(F156="","",IFERROR(VLOOKUP(B156,Count!A:J,8,FALSE),0))) ->  | L156: =IF(B156="סך הכל",Summary!$B$11,IF(F156="","",IFERROR(VLOOKUP(B156,Count!A:J,9,FALSE),0))) ->  | M156: =IF(B156="סך הכל",Summary!$B$12,IF(F156="","",IFERROR(VLOOKUP(B156,Count!A:J,10,FALSE),0))) ->  | O156: =IFERROR(VLOOKUP(B156,Comments!A:B,2,FALSE),"") -> 
B157: =IF(AND(B155<>"",ISNUMBER(B155),B156=""),"סך הכל",IF(Planning!A160="","",Planning!A160)) ->  | C157: =IFERROR(_xlfn.IFS(B157="סך הכל",Summary!$B$6,Planning!C160<>"",Planning!C160),"") ->  | D157: =IFERROR(VLOOKUP(B157,Address!B:G,5,FALSE),"") ->  | E157: =IFERROR(VLOOKUP(B157,Address!B:L,11,FALSE),"") ->  | G157: =IF(B157="סך הכל",Summary!$B$7,IF(F157="","",IF(VLOOKUP(B157,WQ_UnitID!B:C,2,FALSE)=0,"",VLOOKUP(B157,WQ_UnitID!B:C,2,FALSE)))) ->  | H157: =IF(B157="סך הכל",Summary!$B$8,IF(F157="","",IFERROR(VLOOKUP(B157,Planning!A:B,2,FALSE),0))) ->  | I157: =IF(B157="סך הכל",Summary!$B$9,IF(F157="","",IFERROR(VLOOKUP(B157,Count!A:B,2,FALSE),0))) ->  | J157: =IF(F157="","",(IF(ISNUMBER(MATCH(B157,ExcPermit!$H$8:$H$1000,0)),"כן","לא"))) ->  | K157: =IF(B157="סך הכל",Summary!$B$10,IF(F157="","",IFERROR(VLOOKUP(B157,Count!A:J,8,FALSE),0))) ->  | L157: =IF(B157="סך הכל",Summary!$B$11,IF(F157="","",IFERROR(VLOOKUP(B157,Count!A:J,9,FALSE),0))) ->  | M157: =IF(B157="סך הכל",Summary!$B$12,IF(F157="","",IFERROR(VLOOKUP(B157,Count!A:J,10,FALSE),0))) ->  | O157: =IFERROR(VLOOKUP(B157,Comments!A:B,2,FALSE),"") -> 
B158: =IF(AND(B156<>"",ISNUMBER(B156),B157=""),"סך הכל",IF(Planning!A161="","",Planning!A161)) ->  | C158: =IFERROR(_xlfn.IFS(B158="סך הכל",Summary!$B$6,Planning!C161<>"",Planning!C161),"") ->  | D158: =IFERROR(VLOOKUP(B158,Address!B:G,5,FALSE),"") ->  | E158: =IFERROR(VLOOKUP(B158,Address!B:L,11,FALSE),"") ->  | G158: =IF(B158="סך הכל",Summary!$B$7,IF(F158="","",IF(VLOOKUP(B158,WQ_UnitID!B:C,2,FALSE)=0,"",VLOOKUP(B158,WQ_UnitID!B:C,2,FALSE)))) ->  | H158: =IF(B158="סך הכל",Summary!$B$8,IF(F158="","",IFERROR(VLOOKUP(B158,Planning!A:B,2,FALSE),0))) ->  | I158: =IF(B158="סך הכל",Summary!$B$9,IF(F158="","",IFERROR(VLOOKUP(B158,Count!A:B,2,FALSE),0))) ->  | J158: =IF(F158="","",(IF(ISNUMBER(MATCH(B158,ExcPermit!$H$8:$H$1000,0)),"כן","לא"))) ->  | K158: =IF(B158="סך הכל",Summary!$B$10,IF(F158="","",IFERROR(VLOOKUP(B158,Count!A:J,8,FALSE),0))) ->  | L158: =IF(B158="סך הכל",Summary!$B$11,IF(F158="","",IFERROR(VLOOKUP(B158,Count!A:J,9,FALSE),0))) ->  | M158: =IF(B158="סך הכל",Summary!$B$12,IF(F158="","",IFERROR(VLOOKUP(B158,Count!A:J,10,FALSE),0))) ->  | O158: =IFERROR(VLOOKUP(B158,Comments!A:B,2,FALSE),"") -> 
B159: =IF(AND(B157<>"",ISNUMBER(B157),B158=""),"סך הכל",IF(Planning!A162="","",Planning!A162)) ->  | C159: =IFERROR(_xlfn.IFS(B159="סך הכל",Summary!$B$6,Planning!C162<>"",Planning!C162),"") ->  | D159: =IFERROR(VLOOKUP(B159,Address!B:G,5,FALSE),"") ->  | E159: =IFERROR(VLOOKUP(B159,Address!B:L,11,FALSE),"") ->  | G159: =IF(B159="סך הכל",Summary!$B$7,IF(F159="","",IF(VLOOKUP(B159,WQ_UnitID!B:C,2,FALSE)=0,"",VLOOKUP(B159,WQ_UnitID!B:C,2,FALSE)))) ->  | H159: =IF(B159="סך הכל",Summary!$B$8,IF(F159="","",IFERROR(VLOOKUP(B159,Planning!A:B,2,FALSE),0))) ->  | I159: =IF(B159="סך הכל",Summary!$B$9,IF(F159="","",IFERROR(VLOOKUP(B159,Count!A:B,2,FALSE),0))) ->  | J159: =IF(F159="","",(IF(ISNUMBER(MATCH(B159,ExcPermit!$H$8:$H$1000,0)),"כן","לא"))) ->  | K159: =IF(B159="סך הכל",Summary!$B$10,IF(F159="","",IFERROR(VLOOKUP(B159,Count!A:J,8,FALSE),0))) ->  | L159: =IF(B159="סך הכל",Summary!$B$11,IF(F159="","",IFERROR(VLOOKUP(B159,Count!A:J,9,FALSE),0))) ->  | M159: =IF(B159="סך הכל",Summary!$B$12,IF(F159="","",IFERROR(VLOOKUP(B159,Count!A:J,10,FALSE),0))) ->  | O159: =IFERROR(VLOOKUP(B159,Comments!A:B,2,FALSE),"") -> 
B160: =IF(AND(B158<>"",ISNUMBER(B158),B159=""),"סך הכל",IF(Planning!A163="","",Planning!A163)) ->  | C160: =IFERROR(_xlfn.IFS(B160="סך הכל",Summary!$B$6,Planning!C163<>"",Planning!C163),"") ->  | D160: =IFERROR(VLOOKUP(B160,Address!B:G,5,FALSE),"") ->  | E160: =IFERROR(VLOOKUP(B160,Address!B:L,11,FALSE),"") ->  | G160: =IF(B160="סך הכל",Summary!$B$7,IF(F160="","",IF(VLOOKUP(B160,WQ_UnitID!B:C,2,FALSE)=0,"",VLOOKUP(B160,WQ_UnitID!B:C,2,FALSE)))) ->  | H160: =IF(B160="סך הכל",Summary!$B$8,IF(F160="","",IFERROR(VLOOKUP(B160,Planning!A:B,2,FALSE),0))) ->  | I160: =IF(B160="סך הכל",Summary!$B$9,IF(F160="","",IFERROR(VLOOKUP(B160,Count!A:B,2,FALSE),0))) ->  | J160: =IF(F160="","",(IF(ISNUMBER(MATCH(B160,ExcPermit!$H$8:$H$1000,0)),"כן","לא"))) ->  | K160: =IF(B160="סך הכל",Summary!$B$10,IF(F160="","",IFERROR(VLOOKUP(B160,Count!A:J,8,FALSE),0))) ->  | L160: =IF(B160="סך הכל",Summary!$B$11,IF(F160="","",IFERROR(VLOOKUP(B160,Count!A:J,9,FALSE),0))) ->  | M160: =IF(B160="סך הכל",Summary!$B$12,IF(F160="","",IFERROR(VLOOKUP(B160,Count!A:J,10,FALSE),0))) ->  | O160: =IFERROR(VLOOKUP(B160,Comments!A:B,2,FALSE),"") -> 
B161: =IF(AND(B159<>"",ISNUMBER(B159),B160=""),"סך הכל",IF(Planning!A164="","",Planning!A164)) ->  | C161: =IFERROR(_xlfn.IFS(B161="סך הכל",Summary!$B$6,Planning!C164<>"",Planning!C164),"") ->  | D161: =IFERROR(VLOOKUP(B161,Address!B:G,5,FALSE),"") ->  | E161: =IFERROR(VLOOKUP(B161,Address!B:L,11,FALSE),"") ->  | G161: =IF(B161="סך הכל",Summary!$B$7,IF(F161="","",IF(VLOOKUP(B161,WQ_UnitID!B:C,2,FALSE)=0,"",VLOOKUP(B161,WQ_UnitID!B:C,2,FALSE)))) ->  | H161: =IF(B161="סך הכל",Summary!$B$8,IF(F161="","",IFERROR(VLOOKUP(B161,Planning!A:B,2,FALSE),0))) ->  | I161: =IF(B161="סך הכל",Summary!$B$9,IF(F161="","",IFERROR(VLOOKUP(B161,Count!A:B,2,FALSE),0))) ->  | J161: =IF(F161="","",(IF(ISNUMBER(MATCH(B161,ExcPermit!$H$8:$H$1000,0)),"כן","לא"))) ->  | K161: =IF(B161="סך הכל",Summary!$B$10,IF(F161="","",IFERROR(VLOOKUP(B161,Count!A:J,8,FALSE),0))) ->  | L161: =IF(B161="סך הכל",Summary!$B$11,IF(F161="","",IFERROR(VLOOKUP(B161,Count!A:J,9,FALSE),0))) ->  | M161: =IF(B161="סך הכל",Summary!$B$12,IF(F161="","",IFERROR(VLOOKUP(B161,Count!A:J,10,FALSE),0))) ->  | O161: =IFERROR(VLOOKUP(B161,Comments!A:B,2,FALSE),"") -> 
B162: =IF(AND(B160<>"",ISNUMBER(B160),B161=""),"סך הכל",IF(Planning!A165="","",Planning!A165)) ->  | C162: =IFERROR(_xlfn.IFS(B162="סך הכל",Summary!$B$6,Planning!C165<>"",Planning!C165),"") ->  | D162: =IFERROR(VLOOKUP(B162,Address!B:G,5,FALSE),"") ->  | E162: =IFERROR(VLOOKUP(B162,Address!B:L,11,FALSE),"") ->  | G162: =IF(B162="סך הכל",Summary!$B$7,IF(F162="","",IF(VLOOKUP(B162,WQ_UnitID!B:C,2,FALSE)=0,"",VLOOKUP(B162,WQ_UnitID!B:C,2,FALSE)))) ->  | H162: =IF(B162="סך הכל",Summary!$B$8,IF(F162="","",IFERROR(VLOOKUP(B162,Planning!A:B,2,FALSE),0))) ->  | I162: =IF(B162="סך הכל",Summary!$B$9,IF(F162="","",IFERROR(VLOOKUP(B162,Count!A:B,2,FALSE),0))) ->  | J162: =IF(F162="","",(IF(ISNUMBER(MATCH(B162,ExcPermit!$H$8:$H$1000,0)),"כן","לא"))) ->  | K162: =IF(B162="סך הכל",Summary!$B$10,IF(F162="","",IFERROR(VLOOKUP(B162,Count!A:J,8,FALSE),0))) ->  | L162: =IF(B162="סך הכל",Summary!$B$11,IF(F162="","",IFERROR(VLOOKUP(B162,Count!A:J,9,FALSE),0))) ->  | M162: =IF(B162="סך הכל",Summary!$B$12,IF(F162="","",IFERROR(VLOOKUP(B162,Count!A:J,10,FALSE),0))) ->  | O162: =IFERROR(VLOOKUP(B162,Comments!A:B,2,FALSE),"") -> 
B163: =IF(AND(B161<>"",ISNUMBER(B161),B162=""),"סך הכל",IF(Planning!A166="","",Planning!A166)) ->  | C163: =IFERROR(_xlfn.IFS(B163="סך הכל",Summary!$B$6,Planning!C166<>"",Planning!C166),"") ->  | D163: =IFERROR(VLOOKUP(B163,Address!B:G,5,FALSE),"") ->  | E163: =IFERROR(VLOOKUP(B163,Address!B:L,11,FALSE),"") ->  | G163: =IF(B163="סך הכל",Summary!$B$7,IF(F163="","",IF(VLOOKUP(B163,WQ_UnitID!B:C,2,FALSE)=0,"",VLOOKUP(B163,WQ_UnitID!B:C,2,FALSE)))) ->  | H163: =IF(B163="סך הכל",Summary!$B$8,IF(F163="","",IFERROR(VLOOKUP(B163,Planning!A:B,2,FALSE),0))) ->  | I163: =IF(B163="סך הכל",Summary!$B$9,IF(F163="","",IFERROR(VLOOKUP(B163,Count!A:B,2,FALSE),0))) ->  | J163: =IF(F163="","",(IF(ISNUMBER(MATCH(B163,ExcPermit!$H$8:$H$1000,0)),"כן","לא"))) ->  | K163: =IF(B163="סך הכל",Summary!$B$10,IF(F163="","",IFERROR(VLOOKUP(B163,Count!A:J,8,FALSE),0))) ->  | L163: =IF(B163="סך הכל",Summary!$B$11,IF(F163="","",IFERROR(VLOOKUP(B163,Count!A:J,9,FALSE),0))) ->  | M163: =IF(B163="סך הכל",Summary!$B$12,IF(F163="","",IFERROR(VLOOKUP(B163,Count!A:J,10,FALSE),0))) ->  | O163: =IFERROR(VLOOKUP(B163,Comments!A:B,2,FALSE),"") -> 
B164: =IF(AND(B162<>"",ISNUMBER(B162),B163=""),"סך הכל",IF(Planning!A167="","",Planning!A167)) ->  | C164: =IFERROR(_xlfn.IFS(B164="סך הכל",Summary!$B$6,Planning!C167<>"",Planning!C167),"") ->  | D164: =IFERROR(VLOOKUP(B164,Address!B:G,5,FALSE),"") ->  | E164: =IFERROR(VLOOKUP(B164,Address!B:L,11,FALSE),"") ->  | G164: =IF(B164="סך הכל",Summary!$B$7,IF(F164="","",IF(VLOOKUP(B164,WQ_UnitID!B:C,2,FALSE)=0,"",VLOOKUP(B164,WQ_UnitID!B:C,2,FALSE)))) ->  | H164: =IF(B164="סך הכל",Summary!$B$8,IF(F164="","",IFERROR(VLOOKUP(B164,Planning!A:B,2,FALSE),0))) ->  | I164: =IF(B164="סך הכל",Summary!$B$9,IF(F164="","",IFERROR(VLOOKUP(B164,Count!A:B,2,FALSE),0))) ->  | J164: =IF(F164="","",(IF(ISNUMBER(MATCH(B164,ExcPermit!$H$8:$H$1000,0)),"כן","לא"))) ->  | K164: =IF(B164="סך הכל",Summary!$B$10,IF(F164="","",IFERROR(VLOOKUP(B164,Count!A:J,8,FALSE),0))) ->  | L164: =IF(B164="סך הכל",Summary!$B$11,IF(F164="","",IFERROR(VLOOKUP(B164,Count!A:J,9,FALSE),0))) ->  | M164: =IF(B164="סך הכל",Summary!$B$12,IF(F164="","",IFERROR(VLOOKUP(B164,Count!A:J,10,FALSE),0))) ->  | O164: =IFERROR(VLOOKUP(B164,Comments!A:B,2,FALSE),"") -> 
B165: =IF(AND(B163<>"",ISNUMBER(B163),B164=""),"סך הכל",IF(Planning!A168="","",Planning!A168)) ->  | C165: =IFERROR(_xlfn.IFS(B165="סך הכל",Summary!$B$6,Planning!C168<>"",Planning!C168),"") ->  | D165: =IFERROR(VLOOKUP(B165,Address!B:G,5,FALSE),"") ->  | E165: =IFERROR(VLOOKUP(B165,Address!B:L,11,FALSE),"") ->  | G165: =IF(B165="סך הכל",Summary!$B$7,IF(F165="","",IF(VLOOKUP(B165,WQ_UnitID!B:C,2,FALSE)=0,"",VLOOKUP(B165,WQ_UnitID!B:C,2,FALSE)))) ->  | H165: =IF(B165="סך הכל",Summary!$B$8,IF(F165="","",IFERROR(VLOOKUP(B165,Planning!A:B,2,FALSE),0))) ->  | I165: =IF(B165="סך הכל",Summary!$B$9,IF(F165="","",IFERROR(VLOOKUP(B165,Count!A:B,2,FALSE),0))) ->  | J165: =IF(F165="","",(IF(ISNUMBER(MATCH(B165,ExcPermit!$H$8:$H$1000,0)),"כן","לא"))) ->  | K165: =IF(B165="סך הכל",Summary!$B$10,IF(F165="","",IFERROR(VLOOKUP(B165,Count!A:J,8,FALSE),0))) ->  | L165: =IF(B165="סך הכל",Summary!$B$11,IF(F165="","",IFERROR(VLOOKUP(B165,Count!A:J,9,FALSE),0))) ->  | M165: =IF(B165="סך הכל",Summary!$B$12,IF(F165="","",IFERROR(VLOOKUP(B165,Count!A:J,10,FALSE),0))) ->  | O165: =IFERROR(VLOOKUP(B165,Comments!A:B,2,FALSE),"") -> 
B166: =IF(AND(B164<>"",ISNUMBER(B164),B165=""),"סך הכל",IF(Planning!A169="","",Planning!A169)) ->  | C166: =IFERROR(_xlfn.IFS(B166="סך הכל",Summary!$B$6,Planning!C169<>"",Planning!C169),"") ->  | D166: =IFERROR(VLOOKUP(B166,Address!B:G,5,FALSE),"") ->  | E166: =IFERROR(VLOOKUP(B166,Address!B:L,11,FALSE),"") ->  | G166: =IF(B166="סך הכל",Summary!$B$7,IF(F166="","",IF(VLOOKUP(B166,WQ_UnitID!B:C,2,FALSE)=0,"",VLOOKUP(B166,WQ_UnitID!B:C,2,FALSE)))) ->  | H166: =IF(B166="סך הכל",Summary!$B$8,IF(F166="","",IFERROR(VLOOKUP(B166,Planning!A:B,2,FALSE),0))) ->  | I166: =IF(B166="סך הכל",Summary!$B$9,IF(F166="","",IFERROR(VLOOKUP(B166,Count!A:B,2,FALSE),0))) ->  | J166: =IF(F166="","",(IF(ISNUMBER(MATCH(B166,ExcPermit!$H$8:$H$1000,0)),"כן","לא"))) ->  | K166: =IF(B166="סך הכל",Summary!$B$10,IF(F166="","",IFERROR(VLOOKUP(B166,Count!A:J,8,FALSE),0))) ->  | L166: =IF(B166="סך הכל",Summary!$B$11,IF(F166="","",IFERROR(VLOOKUP(B166,Count!A:J,9,FALSE),0))) ->  | M166: =IF(B166="סך הכל",Summary!$B$12,IF(F166="","",IFERROR(VLOOKUP(B166,Count!A:J,10,FALSE),0))) ->  | O166: =IFERROR(VLOOKUP(B166,Comments!A:B,2,FALSE),"") -> 
B167: =IF(AND(B165<>"",ISNUMBER(B165),B166=""),"סך הכל",IF(Planning!A170="","",Planning!A170)) ->  | C167: =IFERROR(_xlfn.IFS(B167="סך הכל",Summary!$B$6,Planning!C170<>"",Planning!C170),"") ->  | D167: =IFERROR(VLOOKUP(B167,Address!B:G,5,FALSE),"") ->  | E167: =IFERROR(VLOOKUP(B167,Address!B:L,11,FALSE),"") ->  | G167: =IF(B167="סך הכל",Summary!$B$7,IF(F167="","",IF(VLOOKUP(B167,WQ_UnitID!B:C,2,FALSE)=0,"",VLOOKUP(B167,WQ_UnitID!B:C,2,FALSE)))) ->  | H167: =IF(B167="סך הכל",Summary!$B$8,IF(F167="","",IFERROR(VLOOKUP(B167,Planning!A:B,2,FALSE),0))) ->  | I167: =IF(B167="סך הכל",Summary!$B$9,IF(F167="","",IFERROR(VLOOKUP(B167,Count!A:B,2,FALSE),0))) ->  | J167: =IF(F167="","",(IF(ISNUMBER(MATCH(B167,ExcPermit!$H$8:$H$1000,0)),"כן","לא"))) ->  | K167: =IF(B167="סך הכל",Summary!$B$10,IF(F167="","",IFERROR(VLOOKUP(B167,Count!A:J,8,FALSE),0))) ->  | L167: =IF(B167="סך הכל",Summary!$B$11,IF(F167="","",IFERROR(VLOOKUP(B167,Count!A:J,9,FALSE),0))) ->  | M167: =IF(B167="סך הכל",Summary!$B$12,IF(F167="","",IFERROR(VLOOKUP(B167,Count!A:J,10,FALSE),0))) ->  | O167: =IFERROR(VLOOKUP(B167,Comments!A:B,2,FALSE),"") -> 
B168: =IF(AND(B166<>"",ISNUMBER(B166),B167=""),"סך הכל",IF(Planning!A171="","",Planning!A171)) ->  | C168: =IFERROR(_xlfn.IFS(B168="סך הכל",Summary!$B$6,Planning!C171<>"",Planning!C171),"") ->  | D168: =IFERROR(VLOOKUP(B168,Address!B:G,5,FALSE),"") ->  | E168: =IFERROR(VLOOKUP(B168,Address!B:L,11,FALSE),"") ->  | G168: =IF(B168="סך הכל",Summary!$B$7,IF(F168="","",IF(VLOOKUP(B168,WQ_UnitID!B:C,2,FALSE)=0,"",VLOOKUP(B168,WQ_UnitID!B:C,2,FALSE)))) ->  | H168: =IF(B168="סך הכל",Summary!$B$8,IF(F168="","",IFERROR(VLOOKUP(B168,Planning!A:B,2,FALSE),0))) ->  | I168: =IF(B168="סך הכל",Summary!$B$9,IF(F168="","",IFERROR(VLOOKUP(B168,Count!A:B,2,FALSE),0))) ->  | J168: =IF(F168="","",(IF(ISNUMBER(MATCH(B168,ExcPermit!$H$8:$H$1000,0)),"כן","לא"))) ->  | K168: =IF(B168="סך הכל",Summary!$B$10,IF(F168="","",IFERROR(VLOOKUP(B168,Count!A:J,8,FALSE),0))) ->  | L168: =IF(B168="סך הכל",Summary!$B$11,IF(F168="","",IFERROR(VLOOKUP(B168,Count!A:J,9,FALSE),0))) ->  | M168: =IF(B168="סך הכל",Summary!$B$12,IF(F168="","",IFERROR(VLOOKUP(B168,Count!A:J,10,FALSE),0))) ->  | O168: =IFERROR(VLOOKUP(B168,Comments!A:B,2,FALSE),"") -> 
B169: =IF(AND(B167<>"",ISNUMBER(B167),B168=""),"סך הכל",IF(Planning!A172="","",Planning!A172)) ->  | C169: =IFERROR(_xlfn.IFS(B169="סך הכל",Summary!$B$6,Planning!C172<>"",Planning!C172),"") ->  | D169: =IFERROR(VLOOKUP(B169,Address!B:G,5,FALSE),"") ->  | E169: =IFERROR(VLOOKUP(B169,Address!B:L,11,FALSE),"") ->  | G169: =IF(B169="סך הכל",Summary!$B$7,IF(F169="","",IF(VLOOKUP(B169,WQ_UnitID!B:C,2,FALSE)=0,"",VLOOKUP(B169,WQ_UnitID!B:C,2,FALSE)))) ->  | H169: =IF(B169="סך הכל",Summary!$B$8,IF(F169="","",IFERROR(VLOOKUP(B169,Planning!A:B,2,FALSE),0))) ->  | I169: =IF(B169="סך הכל",Summary!$B$9,IF(F169="","",IFERROR(VLOOKUP(B169,Count!A:B,2,FALSE),0))) ->  | J169: =IF(F169="","",(IF(ISNUMBER(MATCH(B169,ExcPermit!$H$8:$H$1000,0)),"כן","לא"))) ->  | K169: =IF(B169="סך הכל",Summary!$B$10,IF(F169="","",IFERROR(VLOOKUP(B169,Count!A:J,8,FALSE),0))) ->  | L169: =IF(B169="סך הכל",Summary!$B$11,IF(F169="","",IFERROR(VLOOKUP(B169,Count!A:J,9,FALSE),0))) ->  | M169: =IF(B169="סך הכל",Summary!$B$12,IF(F169="","",IFERROR(VLOOKUP(B169,Count!A:J,10,FALSE),0))) ->  | O169: =IFERROR(VLOOKUP(B169,Comments!A:B,2,FALSE),"") -> 
B170: =IF(AND(B168<>"",ISNUMBER(B168),B169=""),"סך הכל",IF(Planning!A173="","",Planning!A173)) ->  | C170: =IFERROR(_xlfn.IFS(B170="סך הכל",Summary!$B$6,Planning!C173<>"",Planning!C173),"") ->  | D170: =IFERROR(VLOOKUP(B170,Address!B:G,5,FALSE),"") ->  | E170: =IFERROR(VLOOKUP(B170,Address!B:L,11,FALSE),"") ->  | G170: =IF(B170="סך הכל",Summary!$B$7,IF(F170="","",IF(VLOOKUP(B170,WQ_UnitID!B:C,2,FALSE)=0,"",VLOOKUP(B170,WQ_UnitID!B:C,2,FALSE)))) ->  | H170: =IF(B170="סך הכל",Summary!$B$8,IF(F170="","",IFERROR(VLOOKUP(B170,Planning!A:B,2,FALSE),0))) ->  | I170: =IF(B170="סך הכל",Summary!$B$9,IF(F170="","",IFERROR(VLOOKUP(B170,Count!A:B,2,FALSE),0))) ->  | J170: =IF(F170="","",(IF(ISNUMBER(MATCH(B170,ExcPermit!$H$8:$H$1000,0)),"כן","לא"))) ->  | K170: =IF(B170="סך הכל",Summary!$B$10,IF(F170="","",IFERROR(VLOOKUP(B170,Count!A:J,8,FALSE),0))) ->  | L170: =IF(B170="סך הכל",Summary!$B$11,IF(F170="","",IFERROR(VLOOKUP(B170,Count!A:J,9,FALSE),0))) ->  | M170: =IF(B170="סך הכל",Summary!$B$12,IF(F170="","",IFERROR(VLOOKUP(B170,Count!A:J,10,FALSE),0))) ->  | O170: =IFERROR(VLOOKUP(B170,Comments!A:B,2,FALSE),"") -> 
B171: =IF(AND(B169<>"",ISNUMBER(B169),B170=""),"סך הכל",IF(Planning!A174="","",Planning!A174)) ->  | C171: =IFERROR(_xlfn.IFS(B171="סך הכל",Summary!$B$6,Planning!C174<>"",Planning!C174),"") ->  | D171: =IFERROR(VLOOKUP(B171,Address!B:G,5,FALSE),"") ->  | E171: =IFERROR(VLOOKUP(B171,Address!B:L,11,FALSE),"") ->  | G171: =IF(B171="סך הכל",Summary!$B$7,IF(F171="","",IF(VLOOKUP(B171,WQ_UnitID!B:C,2,FALSE)=0,"",VLOOKUP(B171,WQ_UnitID!B:C,2,FALSE)))) ->  | H171: =IF(B171="סך הכל",Summary!$B$8,IF(F171="","",IFERROR(VLOOKUP(B171,Planning!A:B,2,FALSE),0))) ->  | I171: =IF(B171="סך הכל",Summary!$B$9,IF(F171="","",IFERROR(VLOOKUP(B171,Count!A:B,2,FALSE),0))) ->  | J171: =IF(F171="","",(IF(ISNUMBER(MATCH(B171,ExcPermit!$H$8:$H$1000,0)),"כן","לא"))) ->  | K171: =IF(B171="סך הכל",Summary!$B$10,IF(F171="","",IFERROR(VLOOKUP(B171,Count!A:J,8,FALSE),0))) ->  | L171: =IF(B171="סך הכל",Summary!$B$11,IF(F171="","",IFERROR(VLOOKUP(B171,Count!A:J,9,FALSE),0))) ->  | M171: =IF(B171="סך הכל",Summary!$B$12,IF(F171="","",IFERROR(VLOOKUP(B171,Count!A:J,10,FALSE),0))) ->  | O171: =IFERROR(VLOOKUP(B171,Comments!A:B,2,FALSE),"") -> 
B172: =IF(AND(B170<>"",ISNUMBER(B170),B171=""),"סך הכל",IF(Planning!A175="","",Planning!A175)) ->  | C172: =IFERROR(_xlfn.IFS(B172="סך הכל",Summary!$B$6,Planning!C175<>"",Planning!C175),"") ->  | D172: =IFERROR(VLOOKUP(B172,Address!B:G,5,FALSE),"") ->  | E172: =IFERROR(VLOOKUP(B172,Address!B:L,11,FALSE),"") ->  | G172: =IF(B172="סך הכל",Summary!$B$7,IF(F172="","",IF(VLOOKUP(B172,WQ_UnitID!B:C,2,FALSE)=0,"",VLOOKUP(B172,WQ_UnitID!B:C,2,FALSE)))) ->  | H172: =IF(B172="סך הכל",Summary!$B$8,IF(F172="","",IFERROR(VLOOKUP(B172,Planning!A:B,2,FALSE),0))) ->  | I172: =IF(B172="סך הכל",Summary!$B$9,IF(F172="","",IFERROR(VLOOKUP(B172,Count!A:B,2,FALSE),0))) ->  | J172: =IF(F172="","",(IF(ISNUMBER(MATCH(B172,ExcPermit!$H$8:$H$1000,0)),"כן","לא"))) ->  | K172: =IF(B172="סך הכל",Summary!$B$10,IF(F172="","",IFERROR(VLOOKUP(B172,Count!A:J,8,FALSE),0))) ->  | L172: =IF(B172="סך הכל",Summary!$B$11,IF(F172="","",IFERROR(VLOOKUP(B172,Count!A:J,9,FALSE),0))) ->  | M172: =IF(B172="סך הכל",Summary!$B$12,IF(F172="","",IFERROR(VLOOKUP(B172,Count!A:J,10,FALSE),0))) ->  | O172: =IFERROR(VLOOKUP(B172,Comments!A:B,2,FALSE),"") -> 
B173: =IF(AND(B171<>"",ISNUMBER(B171),B172=""),"סך הכל",IF(Planning!A176="","",Planning!A176)) ->  | C173: =IFERROR(_xlfn.IFS(B173="סך הכל",Summary!$B$6,Planning!C176<>"",Planning!C176),"") ->  | D173: =IFERROR(VLOOKUP(B173,Address!B:G,5,FALSE),"") ->  | E173: =IFERROR(VLOOKUP(B173,Address!B:L,11,FALSE),"") ->  | G173: =IF(B173="סך הכל",Summary!$B$7,IF(F173="","",IF(VLOOKUP(B173,WQ_UnitID!B:C,2,FALSE)=0,"",VLOOKUP(B173,WQ_UnitID!B:C,2,FALSE)))) ->  | H173: =IF(B173="סך הכל",Summary!$B$8,IF(F173="","",IFERROR(VLOOKUP(B173,Planning!A:B,2,FALSE),0))) ->  | I173: =IF(B173="סך הכל",Summary!$B$9,IF(F173="","",IFERROR(VLOOKUP(B173,Count!A:B,2,FALSE),0))) ->  | J173: =IF(F173="","",(IF(ISNUMBER(MATCH(B173,ExcPermit!$H$8:$H$1000,0)),"כן","לא"))) ->  | K173: =IF(B173="סך הכל",Summary!$B$10,IF(F173="","",IFERROR(VLOOKUP(B173,Count!A:J,8,FALSE),0))) ->  | L173: =IF(B173="סך הכל",Summary!$B$11,IF(F173="","",IFERROR(VLOOKUP(B173,Count!A:J,9,FALSE),0))) ->  | M173: =IF(B173="סך הכל",Summary!$B$12,IF(F173="","",IFERROR(VLOOKUP(B173,Count!A:J,10,FALSE),0))) ->  | O173: =IFERROR(VLOOKUP(B173,Comments!A:B,2,FALSE),"") -> 
B174: =IF(AND(B172<>"",ISNUMBER(B172),B173=""),"סך הכל",IF(Planning!A177="","",Planning!A177)) ->  | C174: =IFERROR(_xlfn.IFS(B174="סך הכל",Summary!$B$6,Planning!C177<>"",Planning!C177),"") ->  | D174: =IFERROR(VLOOKUP(B174,Address!B:G,5,FALSE),"") ->  | E174: =IFERROR(VLOOKUP(B174,Address!B:L,11,FALSE),"") ->  | G174: =IF(B174="סך הכל",Summary!$B$7,IF(F174="","",IF(VLOOKUP(B174,WQ_UnitID!B:C,2,FALSE)=0,"",VLOOKUP(B174,WQ_UnitID!B:C,2,FALSE)))) ->  | H174: =IF(B174="סך הכל",Summary!$B$8,IF(F174="","",IFERROR(VLOOKUP(B174,Planning!A:B,2,FALSE),0))) ->  | I174: =IF(B174="סך הכל",Summary!$B$9,IF(F174="","",IFERROR(VLOOKUP(B174,Count!A:B,2,FALSE),0))) ->  | J174: =IF(F174="","",(IF(ISNUMBER(MATCH(B174,ExcPermit!$H$8:$H$1000,0)),"כן","לא"))) ->  | K174: =IF(B174="סך הכל",Summary!$B$10,IF(F174="","",IFERROR(VLOOKUP(B174,Count!A:J,8,FALSE),0))) ->  | L174: =IF(B174="סך הכל",Summary!$B$11,IF(F174="","",IFERROR(VLOOKUP(B174,Count!A:J,9,FALSE),0))) ->  | M174: =IF(B174="סך הכל",Summary!$B$12,IF(F174="","",IFERROR(VLOOKUP(B174,Count!A:J,10,FALSE),0))) ->  | O174: =IFERROR(VLOOKUP(B174,Comments!A:B,2,FALSE),"") -> 
B175: =IF(AND(B173<>"",ISNUMBER(B173),B174=""),"סך הכל",IF(Planning!A178="","",Planning!A178)) ->  | C175: =IFERROR(_xlfn.IFS(B175="סך הכל",Summary!$B$6,Planning!C178<>"",Planning!C178),"") ->  | D175: =IFERROR(VLOOKUP(B175,Address!B:G,5,FALSE),"") ->  | E175: =IFERROR(VLOOKUP(B175,Address!B:L,11,FALSE),"") ->  | G175: =IF(B175="סך הכל",Summary!$B$7,IF(F175="","",IF(VLOOKUP(B175,WQ_UnitID!B:C,2,FALSE)=0,"",VLOOKUP(B175,WQ_UnitID!B:C,2,FALSE)))) ->  | H175: =IF(B175="סך הכל",Summary!$B$8,IF(F175="","",IFERROR(VLOOKUP(B175,Planning!A:B,2,FALSE),0))) ->  | I175: =IF(B175="סך הכל",Summary!$B$9,IF(F175="","",IFERROR(VLOOKUP(B175,Count!A:B,2,FALSE),0))) ->  | J175: =IF(F175="","",(IF(ISNUMBER(MATCH(B175,ExcPermit!$H$8:$H$1000,0)),"כן","לא"))) ->  | K175: =IF(B175="סך הכל",Summary!$B$10,IF(F175="","",IFERROR(VLOOKUP(B175,Count!A:J,8,FALSE),0))) ->  | L175: =IF(B175="סך הכל",Summary!$B$11,IF(F175="","",IFERROR(VLOOKUP(B175,Count!A:J,9,FALSE),0))) ->  | M175: =IF(B175="סך הכל",Summary!$B$12,IF(F175="","",IFERROR(VLOOKUP(B175,Count!A:J,10,FALSE),0))) ->  | O175: =IFERROR(VLOOKUP(B175,Comments!A:B,2,FALSE),"") -> 
B176: =IF(AND(B174<>"",ISNUMBER(B174),B175=""),"סך הכל",IF(Planning!A179="","",Planning!A179)) ->  | C176: =IFERROR(_xlfn.IFS(B176="סך הכל",Summary!$B$6,Planning!C179<>"",Planning!C179),"") ->  | D176: =IFERROR(VLOOKUP(B176,Address!B:G,5,FALSE),"") ->  | E176: =IFERROR(VLOOKUP(B176,Address!B:L,11,FALSE),"") ->  | G176: =IF(B176="סך הכל",Summary!$B$7,IF(F176="","",IF(VLOOKUP(B176,WQ_UnitID!B:C,2,FALSE)=0,"",VLOOKUP(B176,WQ_UnitID!B:C,2,FALSE)))) ->  | H176: =IF(B176="סך הכל",Summary!$B$8,IF(F176="","",IFERROR(VLOOKUP(B176,Planning!A:B,2,FALSE),0))) ->  | I176: =IF(B176="סך הכל",Summary!$B$9,IF(F176="","",IFERROR(VLOOKUP(B176,Count!A:B,2,FALSE),0))) ->  | J176: =IF(F176="","",(IF(ISNUMBER(MATCH(B176,ExcPermit!$H$8:$H$1000,0)),"כן","לא"))) ->  | K176: =IF(B176="סך הכל",Summary!$B$10,IF(F176="","",IFERROR(VLOOKUP(B176,Count!A:J,8,FALSE),0))) ->  | L176: =IF(B176="סך הכל",Summary!$B$11,IF(F176="","",IFERROR(VLOOKUP(B176,Count!A:J,9,FALSE),0))) ->  | M176: =IF(B176="סך הכל",Summary!$B$12,IF(F176="","",IFERROR(VLOOKUP(B176,Count!A:J,10,FALSE),0))) ->  | O176: =IFERROR(VLOOKUP(B176,Comments!A:B,2,FALSE),"") -> 
B177: =IF(AND(B175<>"",ISNUMBER(B175),B176=""),"סך הכל",IF(Planning!A180="","",Planning!A180)) ->  | C177: =IFERROR(_xlfn.IFS(B177="סך הכל",Summary!$B$6,Planning!C180<>"",Planning!C180),"") ->  | D177: =IFERROR(VLOOKUP(B177,Address!B:G,5,FALSE),"") ->  | E177: =IFERROR(VLOOKUP(B177,Address!B:L,11,FALSE),"") ->  | G177: =IF(B177="סך הכל",Summary!$B$7,IF(F177="","",IF(VLOOKUP(B177,WQ_UnitID!B:C,2,FALSE)=0,"",VLOOKUP(B177,WQ_UnitID!B:C,2,FALSE)))) ->  | H177: =IF(B177="סך הכל",Summary!$B$8,IF(F177="","",IFERROR(VLOOKUP(B177,Planning!A:B,2,FALSE),0))) ->  | I177: =IF(B177="סך הכל",Summary!$B$9,IF(F177="","",IFERROR(VLOOKUP(B177,Count!A:B,2,FALSE),0))) ->  | J177: =IF(F177="","",(IF(ISNUMBER(MATCH(B177,ExcPermit!$H$8:$H$1000,0)),"כן","לא"))) ->  | K177: =IF(B177="סך הכל",Summary!$B$10,IF(F177="","",IFERROR(VLOOKUP(B177,Count!A:J,8,FALSE),0))) ->  | L177: =IF(B177="סך הכל",Summary!$B$11,IF(F177="","",IFERROR(VLOOKUP(B177,Count!A:J,9,FALSE),0))) ->  | M177: =IF(B177="סך הכל",Summary!$B$12,IF(F177="","",IFERROR(VLOOKUP(B177,Count!A:J,10,FALSE),0))) ->  | O177: =IFERROR(VLOOKUP(B177,Comments!A:B,2,FALSE),"") -> 
B178: =IF(AND(B176<>"",ISNUMBER(B176),B177=""),"סך הכל",IF(Planning!A181="","",Planning!A181)) ->  | C178: =IFERROR(_xlfn.IFS(B178="סך הכל",Summary!$B$6,Planning!C181<>"",Planning!C181),"") ->  | D178: =IFERROR(VLOOKUP(B178,Address!B:G,5,FALSE),"") ->  | E178: =IFERROR(VLOOKUP(B178,Address!B:L,11,FALSE),"") ->  | G178: =IF(B178="סך הכל",Summary!$B$7,IF(F178="","",IF(VLOOKUP(B178,WQ_UnitID!B:C,2,FALSE)=0,"",VLOOKUP(B178,WQ_UnitID!B:C,2,FALSE)))) ->  | H178: =IF(B178="סך הכל",Summary!$B$8,IF(F178="","",IFERROR(VLOOKUP(B178,Planning!A:B,2,FALSE),0))) ->  | I178: =IF(B178="סך הכל",Summary!$B$9,IF(F178="","",IFERROR(VLOOKUP(B178,Count!A:B,2,FALSE),0))) ->  | J178: =IF(F178="","",(IF(ISNUMBER(MATCH(B178,ExcPermit!$H$8:$H$1000,0)),"כן","לא"))) ->  | K178: =IF(B178="סך הכל",Summary!$B$10,IF(F178="","",IFERROR(VLOOKUP(B178,Count!A:J,8,FALSE),0))) ->  | L178: =IF(B178="סך הכל",Summary!$B$11,IF(F178="","",IFERROR(VLOOKUP(B178,Count!A:J,9,FALSE),0))) ->  | M178: =IF(B178="סך הכל",Summary!$B$12,IF(F178="","",IFERROR(VLOOKUP(B178,Count!A:J,10,FALSE),0))) ->  | O178: =IFERROR(VLOOKUP(B178,Comments!A:B,2,FALSE),"") -> 
B179: =IF(AND(B177<>"",ISNUMBER(B177),B178=""),"סך הכל",IF(Planning!A182="","",Planning!A182)) ->  | C179: =IFERROR(_xlfn.IFS(B179="סך הכל",Summary!$B$6,Planning!C182<>"",Planning!C182),"") ->  | D179: =IFERROR(VLOOKUP(B179,Address!B:G,5,FALSE),"") ->  | E179: =IFERROR(VLOOKUP(B179,Address!B:L,11,FALSE),"") ->  | G179: =IF(B179="סך הכל",Summary!$B$7,IF(F179="","",IF(VLOOKUP(B179,WQ_UnitID!B:C,2,FALSE)=0,"",VLOOKUP(B179,WQ_UnitID!B:C,2,FALSE)))) ->  | H179: =IF(B179="סך הכל",Summary!$B$8,IF(F179="","",IFERROR(VLOOKUP(B179,Planning!A:B,2,FALSE),0))) ->  | I179: =IF(B179="סך הכל",Summary!$B$9,IF(F179="","",IFERROR(VLOOKUP(B179,Count!A:B,2,FALSE),0))) ->  | J179: =IF(F179="","",(IF(ISNUMBER(MATCH(B179,ExcPermit!$H$8:$H$1000,0)),"כן","לא"))) ->  | K179: =IF(B179="סך הכל",Summary!$B$10,IF(F179="","",IFERROR(VLOOKUP(B179,Count!A:J,8,FALSE),0))) ->  | L179: =IF(B179="סך הכל",Summary!$B$11,IF(F179="","",IFERROR(VLOOKUP(B179,Count!A:J,9,FALSE),0))) ->  | M179: =IF(B179="סך הכל",Summary!$B$12,IF(F179="","",IFERROR(VLOOKUP(B179,Count!A:J,10,FALSE),0))) ->  | O179: =IFERROR(VLOOKUP(B179,Comments!A:B,2,FALSE),"") -> 
B180: =IF(AND(B178<>"",ISNUMBER(B178),B179=""),"סך הכל",IF(Planning!A183="","",Planning!A183)) ->  | C180: =IFERROR(_xlfn.IFS(B180="סך הכל",Summary!$B$6,Planning!C183<>"",Planning!C183),"") ->  | D180: =IFERROR(VLOOKUP(B180,Address!B:G,5,FALSE),"") ->  | E180: =IFERROR(VLOOKUP(B180,Address!B:L,11,FALSE),"") ->  | G180: =IF(B180="סך הכל",Summary!$B$7,IF(F180="","",IF(VLOOKUP(B180,WQ_UnitID!B:C,2,FALSE)=0,"",VLOOKUP(B180,WQ_UnitID!B:C,2,FALSE)))) ->  | H180: =IF(B180="סך הכל",Summary!$B$8,IF(F180="","",IFERROR(VLOOKUP(B180,Planning!A:B,2,FALSE),0))) ->  | I180: =IF(B180="סך הכל",Summary!$B$9,IF(F180="","",IFERROR(VLOOKUP(B180,Count!A:B,2,FALSE),0))) ->  | J180: =IF(F180="","",(IF(ISNUMBER(MATCH(B180,ExcPermit!$H$8:$H$1000,0)),"כן","לא"))) ->  | K180: =IF(B180="סך הכל",Summary!$B$10,IF(F180="","",IFERROR(VLOOKUP(B180,Count!A:J,8,FALSE),0))) ->  | L180: =IF(B180="סך הכל",Summary!$B$11,IF(F180="","",IFERROR(VLOOKUP(B180,Count!A:J,9,FALSE),0))) ->  | M180: =IF(B180="סך הכל",Summary!$B$12,IF(F180="","",IFERROR(VLOOKUP(B180,Count!A:J,10,FALSE),0))) ->  | O180: =IFERROR(VLOOKUP(B180,Comments!A:B,2,FALSE),"") -> 
B181: =IF(AND(B179<>"",ISNUMBER(B179),B180=""),"סך הכל",IF(Planning!A184="","",Planning!A184)) ->  | C181: =IFERROR(_xlfn.IFS(B181="סך הכל",Summary!$B$6,Planning!C184<>"",Planning!C184),"") ->  | D181: =IFERROR(VLOOKUP(B181,Address!B:G,5,FALSE),"") ->  | E181: =IFERROR(VLOOKUP(B181,Address!B:L,11,FALSE),"") ->  | G181: =IF(B181="סך הכל",Summary!$B$7,IF(F181="","",IF(VLOOKUP(B181,WQ_UnitID!B:C,2,FALSE)=0,"",VLOOKUP(B181,WQ_UnitID!B:C,2,FALSE)))) ->  | H181: =IF(B181="סך הכל",Summary!$B$8,IF(F181="","",IFERROR(VLOOKUP(B181,Planning!A:B,2,FALSE),0))) ->  | I181: =IF(B181="סך הכל",Summary!$B$9,IF(F181="","",IFERROR(VLOOKUP(B181,Count!A:B,2,FALSE),0))) ->  | J181: =IF(F181="","",(IF(ISNUMBER(MATCH(B181,ExcPermit!$H$8:$H$1000,0)),"כן","לא"))) ->  | K181: =IF(B181="סך הכל",Summary!$B$10,IF(F181="","",IFERROR(VLOOKUP(B181,Count!A:J,8,FALSE),0))) ->  | L181: =IF(B181="סך הכל",Summary!$B$11,IF(F181="","",IFERROR(VLOOKUP(B181,Count!A:J,9,FALSE),0))) ->  | M181: =IF(B181="סך הכל",Summary!$B$12,IF(F181="","",IFERROR(VLOOKUP(B181,Count!A:J,10,FALSE),0))) ->  | O181: =IFERROR(VLOOKUP(B181,Comments!A:B,2,FALSE),"") -> 
B182: =IF(AND(B180<>"",ISNUMBER(B180),B181=""),"סך הכל",IF(Planning!A185="","",Planning!A185)) ->  | C182: =IFERROR(_xlfn.IFS(B182="סך הכל",Summary!$B$6,Planning!C185<>"",Planning!C185),"") ->  | D182: =IFERROR(VLOOKUP(B182,Address!B:G,5,FALSE),"") ->  | E182: =IFERROR(VLOOKUP(B182,Address!B:L,11,FALSE),"") ->  | G182: =IF(B182="סך הכל",Summary!$B$7,IF(F182="","",IF(VLOOKUP(B182,WQ_UnitID!B:C,2,FALSE)=0,"",VLOOKUP(B182,WQ_UnitID!B:C,2,FALSE)))) ->  | H182: =IF(B182="סך הכל",Summary!$B$8,IF(F182="","",IFERROR(VLOOKUP(B182,Planning!A:B,2,FALSE),0))) ->  | I182: =IF(B182="סך הכל",Summary!$B$9,IF(F182="","",IFERROR(VLOOKUP(B182,Count!A:B,2,FALSE),0))) ->  | J182: =IF(F182="","",(IF(ISNUMBER(MATCH(B182,ExcPermit!$H$8:$H$1000,0)),"כן","לא"))) ->  | K182: =IF(B182="סך הכל",Summary!$B$10,IF(F182="","",IFERROR(VLOOKUP(B182,Count!A:J,8,FALSE),0))) ->  | L182: =IF(B182="סך הכל",Summary!$B$11,IF(F182="","",IFERROR(VLOOKUP(B182,Count!A:J,9,FALSE),0))) ->  | M182: =IF(B182="סך הכל",Summary!$B$12,IF(F182="","",IFERROR(VLOOKUP(B182,Count!A:J,10,FALSE),0))) ->  | O182: =IFERROR(VLOOKUP(B182,Comments!A:B,2,FALSE),"") -> 
B183: =IF(AND(B181<>"",ISNUMBER(B181),B182=""),"סך הכל",IF(Planning!A186="","",Planning!A186)) ->  | C183: =IFERROR(_xlfn.IFS(B183="סך הכל",Summary!$B$6,Planning!C186<>"",Planning!C186),"") ->  | D183: =IFERROR(VLOOKUP(B183,Address!B:G,5,FALSE),"") ->  | E183: =IFERROR(VLOOKUP(B183,Address!B:L,11,FALSE),"") ->  | G183: =IF(B183="סך הכל",Summary!$B$7,IF(F183="","",IF(VLOOKUP(B183,WQ_UnitID!B:C,2,FALSE)=0,"",VLOOKUP(B183,WQ_UnitID!B:C,2,FALSE)))) ->  | H183: =IF(B183="סך הכל",Summary!$B$8,IF(F183="","",IFERROR(VLOOKUP(B183,Planning!A:B,2,FALSE),0))) ->  | I183: =IF(B183="סך הכל",Summary!$B$9,IF(F183="","",IFERROR(VLOOKUP(B183,Count!A:B,2,FALSE),0))) ->  | J183: =IF(F183="","",(IF(ISNUMBER(MATCH(B183,ExcPermit!$H$8:$H$1000,0)),"כן","לא"))) ->  | K183: =IF(B183="סך הכל",Summary!$B$10,IF(F183="","",IFERROR(VLOOKUP(B183,Count!A:J,8,FALSE),0))) ->  | L183: =IF(B183="סך הכל",Summary!$B$11,IF(F183="","",IFERROR(VLOOKUP(B183,Count!A:J,9,FALSE),0))) ->  | M183: =IF(B183="סך הכל",Summary!$B$12,IF(F183="","",IFERROR(VLOOKUP(B183,Count!A:J,10,FALSE),0))) ->  | O183: =IFERROR(VLOOKUP(B183,Comments!A:B,2,FALSE),"") -> 
B184: =IF(AND(B182<>"",ISNUMBER(B182),B183=""),"סך הכל",IF(Planning!A187="","",Planning!A187)) ->  | C184: =IFERROR(_xlfn.IFS(B184="סך הכל",Summary!$B$6,Planning!C187<>"",Planning!C187),"") ->  | D184: =IFERROR(VLOOKUP(B184,Address!B:G,5,FALSE),"") ->  | E184: =IFERROR(VLOOKUP(B184,Address!B:L,11,FALSE),"") ->  | G184: =IF(B184="סך הכל",Summary!$B$7,IF(F184="","",IF(VLOOKUP(B184,WQ_UnitID!B:C,2,FALSE)=0,"",VLOOKUP(B184,WQ_UnitID!B:C,2,FALSE)))) ->  | H184: =IF(B184="סך הכל",Summary!$B$8,IF(F184="","",IFERROR(VLOOKUP(B184,Planning!A:B,2,FALSE),0))) ->  | I184: =IF(B184="סך הכל",Summary!$B$9,IF(F184="","",IFERROR(VLOOKUP(B184,Count!A:B,2,FALSE),0))) ->  | J184: =IF(F184="","",(IF(ISNUMBER(MATCH(B184,ExcPermit!$H$8:$H$1000,0)),"כן","לא"))) ->  | K184: =IF(B184="סך הכל",Summary!$B$10,IF(F184="","",IFERROR(VLOOKUP(B184,Count!A:J,8,FALSE),0))) ->  | L184: =IF(B184="סך הכל",Summary!$B$11,IF(F184="","",IFERROR(VLOOKUP(B184,Count!A:J,9,FALSE),0))) ->  | M184: =IF(B184="סך הכל",Summary!$B$12,IF(F184="","",IFERROR(VLOOKUP(B184,Count!A:J,10,FALSE),0))) ->  | O184: =IFERROR(VLOOKUP(B184,Comments!A:B,2,FALSE),"") -> 
B185: =IF(AND(B183<>"",ISNUMBER(B183),B184=""),"סך הכל",IF(Planning!A188="","",Planning!A188)) ->  | C185: =IFERROR(_xlfn.IFS(B185="סך הכל",Summary!$B$6,Planning!C188<>"",Planning!C188),"") ->  | D185: =IFERROR(VLOOKUP(B185,Address!B:G,5,FALSE),"") ->  | E185: =IFERROR(VLOOKUP(B185,Address!B:L,11,FALSE),"") ->  | G185: =IF(B185="סך הכל",Summary!$B$7,IF(F185="","",IF(VLOOKUP(B185,WQ_UnitID!B:C,2,FALSE)=0,"",VLOOKUP(B185,WQ_UnitID!B:C,2,FALSE)))) ->  | H185: =IF(B185="סך הכל",Summary!$B$8,IF(F185="","",IFERROR(VLOOKUP(B185,Planning!A:B,2,FALSE),0))) ->  | I185: =IF(B185="סך הכל",Summary!$B$9,IF(F185="","",IFERROR(VLOOKUP(B185,Count!A:B,2,FALSE),0))) ->  | J185: =IF(F185="","",(IF(ISNUMBER(MATCH(B185,ExcPermit!$H$8:$H$1000,0)),"כן","לא"))) ->  | K185: =IF(B185="סך הכל",Summary!$B$10,IF(F185="","",IFERROR(VLOOKUP(B185,Count!A:J,8,FALSE),0))) ->  | L185: =IF(B185="סך הכל",Summary!$B$11,IF(F185="","",IFERROR(VLOOKUP(B185,Count!A:J,9,FALSE),0))) ->  | M185: =IF(B185="סך הכל",Summary!$B$12,IF(F185="","",IFERROR(VLOOKUP(B185,Count!A:J,10,FALSE),0))) ->  | O185: =IFERROR(VLOOKUP(B185,Comments!A:B,2,FALSE),"") -> 
B186: =IF(AND(B184<>"",ISNUMBER(B184),B185=""),"סך הכל",IF(Planning!A189="","",Planning!A189)) ->  | C186: =IFERROR(_xlfn.IFS(B186="סך הכל",Summary!$B$6,Planning!C189<>"",Planning!C189),"") ->  | D186: =IFERROR(VLOOKUP(B186,Address!B:G,5,FALSE),"") ->  | E186: =IFERROR(VLOOKUP(B186,Address!B:L,11,FALSE),"") ->  | G186: =IF(B186="סך הכל",Summary!$B$7,IF(F186="","",IF(VLOOKUP(B186,WQ_UnitID!B:C,2,FALSE)=0,"",VLOOKUP(B186,WQ_UnitID!B:C,2,FALSE)))) ->  | H186: =IF(B186="סך הכל",Summary!$B$8,IF(F186="","",IFERROR(VLOOKUP(B186,Planning!A:B,2,FALSE),0))) ->  | I186: =IF(B186="סך הכל",Summary!$B$9,IF(F186="","",IFERROR(VLOOKUP(B186,Count!A:B,2,FALSE),0))) ->  | J186: =IF(F186="","",(IF(ISNUMBER(MATCH(B186,ExcPermit!$H$8:$H$1000,0)),"כן","לא"))) ->  | K186: =IF(B186="סך הכל",Summary!$B$10,IF(F186="","",IFERROR(VLOOKUP(B186,Count!A:J,8,FALSE),0))) ->  | L186: =IF(B186="סך הכל",Summary!$B$11,IF(F186="","",IFERROR(VLOOKUP(B186,Count!A:J,9,FALSE),0))) ->  | M186: =IF(B186="סך הכל",Summary!$B$12,IF(F186="","",IFERROR(VLOOKUP(B186,Count!A:J,10,FALSE),0))) ->  | O186: =IFERROR(VLOOKUP(B186,Comments!A:B,2,FALSE),"") -> 
B187: =IF(AND(B185<>"",ISNUMBER(B185),B186=""),"סך הכל",IF(Planning!A190="","",Planning!A190)) ->  | C187: =IFERROR(_xlfn.IFS(B187="סך הכל",Summary!$B$6,Planning!C190<>"",Planning!C190),"") ->  | D187: =IFERROR(VLOOKUP(B187,Address!B:G,5,FALSE),"") ->  | E187: =IFERROR(VLOOKUP(B187,Address!B:L,11,FALSE),"") ->  | G187: =IF(B187="סך הכל",Summary!$B$7,IF(F187="","",IF(VLOOKUP(B187,WQ_UnitID!B:C,2,FALSE)=0,"",VLOOKUP(B187,WQ_UnitID!B:C,2,FALSE)))) ->  | H187: =IF(B187="סך הכל",Summary!$B$8,IF(F187="","",IFERROR(VLOOKUP(B187,Planning!A:B,2,FALSE),0))) ->  | I187: =IF(B187="סך הכל",Summary!$B$9,IF(F187="","",IFERROR(VLOOKUP(B187,Count!A:B,2,FALSE),0))) ->  | J187: =IF(F187="","",(IF(ISNUMBER(MATCH(B187,ExcPermit!$H$8:$H$1000,0)),"כן","לא"))) ->  | K187: =IF(B187="סך הכל",Summary!$B$10,IF(F187="","",IFERROR(VLOOKUP(B187,Count!A:J,8,FALSE),0))) ->  | L187: =IF(B187="סך הכל",Summary!$B$11,IF(F187="","",IFERROR(VLOOKUP(B187,Count!A:J,9,FALSE),0))) ->  | M187: =IF(B187="סך הכל",Summary!$B$12,IF(F187="","",IFERROR(VLOOKUP(B187,Count!A:J,10,FALSE),0))) ->  | O187: =IFERROR(VLOOKUP(B187,Comments!A:B,2,FALSE),"") -> 
B188: =IF(AND(B186<>"",ISNUMBER(B186),B187=""),"סך הכל",IF(Planning!A191="","",Planning!A191)) ->  | C188: =IFERROR(_xlfn.IFS(B188="סך הכל",Summary!$B$6,Planning!C191<>"",Planning!C191),"") ->  | D188: =IFERROR(VLOOKUP(B188,Address!B:G,5,FALSE),"") ->  | E188: =IFERROR(VLOOKUP(B188,Address!B:L,11,FALSE),"") ->  | G188: =IF(B188="סך הכל",Summary!$B$7,IF(F188="","",IF(VLOOKUP(B188,WQ_UnitID!B:C,2,FALSE)=0,"",VLOOKUP(B188,WQ_UnitID!B:C,2,FALSE)))) ->  | H188: =IF(B188="סך הכל",Summary!$B$8,IF(F188="","",IFERROR(VLOOKUP(B188,Planning!A:B,2,FALSE),0))) ->  | I188: =IF(B188="סך הכל",Summary!$B$9,IF(F188="","",IFERROR(VLOOKUP(B188,Count!A:B,2,FALSE),0))) ->  | J188: =IF(F188="","",(IF(ISNUMBER(MATCH(B188,ExcPermit!$H$8:$H$1000,0)),"כן","לא"))) ->  | K188: =IF(B188="סך הכל",Summary!$B$10,IF(F188="","",IFERROR(VLOOKUP(B188,Count!A:J,8,FALSE),0))) ->  | L188: =IF(B188="סך הכל",Summary!$B$11,IF(F188="","",IFERROR(VLOOKUP(B188,Count!A:J,9,FALSE),0))) ->  | M188: =IF(B188="סך הכל",Summary!$B$12,IF(F188="","",IFERROR(VLOOKUP(B188,Count!A:J,10,FALSE),0))) ->  | O188: =IFERROR(VLOOKUP(B188,Comments!A:B,2,FALSE),"") -> 
B189: =IF(AND(B187<>"",ISNUMBER(B187),B188=""),"סך הכל",IF(Planning!A192="","",Planning!A192)) ->  | C189: =IFERROR(_xlfn.IFS(B189="סך הכל",Summary!$B$6,Planning!C192<>"",Planning!C192),"") ->  | D189: =IFERROR(VLOOKUP(B189,Address!B:G,5,FALSE),"") ->  | E189: =IFERROR(VLOOKUP(B189,Address!B:L,11,FALSE),"") ->  | G189: =IF(B189="סך הכל",Summary!$B$7,IF(F189="","",IF(VLOOKUP(B189,WQ_UnitID!B:C,2,FALSE)=0,"",VLOOKUP(B189,WQ_UnitID!B:C,2,FALSE)))) ->  | H189: =IF(B189="סך הכל",Summary!$B$8,IF(F189="","",IFERROR(VLOOKUP(B189,Planning!A:B,2,FALSE),0))) ->  | I189: =IF(B189="סך הכל",Summary!$B$9,IF(F189="","",IFERROR(VLOOKUP(B189,Count!A:B,2,FALSE),0))) ->  | J189: =IF(F189="","",(IF(ISNUMBER(MATCH(B189,ExcPermit!$H$8:$H$1000,0)),"כן","לא"))) ->  | K189: =IF(B189="סך הכל",Summary!$B$10,IF(F189="","",IFERROR(VLOOKUP(B189,Count!A:J,8,FALSE),0))) ->  | L189: =IF(B189="סך הכל",Summary!$B$11,IF(F189="","",IFERROR(VLOOKUP(B189,Count!A:J,9,FALSE),0))) ->  | M189: =IF(B189="סך הכל",Summary!$B$12,IF(F189="","",IFERROR(VLOOKUP(B189,Count!A:J,10,FALSE),0))) ->  | O189: =IFERROR(VLOOKUP(B189,Comments!A:B,2,FALSE),"") -> 
B190: =IF(AND(B188<>"",ISNUMBER(B188),B189=""),"סך הכל",IF(Planning!A193="","",Planning!A193)) ->  | C190: =IFERROR(_xlfn.IFS(B190="סך הכל",Summary!$B$6,Planning!C193<>"",Planning!C193),"") ->  | D190: =IFERROR(VLOOKUP(B190,Address!B:G,5,FALSE),"") ->  | E190: =IFERROR(VLOOKUP(B190,Address!B:L,11,FALSE),"") ->  | G190: =IF(B190="סך הכל",Summary!$B$7,IF(F190="","",IF(VLOOKUP(B190,WQ_UnitID!B:C,2,FALSE)=0,"",VLOOKUP(B190,WQ_UnitID!B:C,2,FALSE)))) ->  | H190: =IF(B190="סך הכל",Summary!$B$8,IF(F190="","",IFERROR(VLOOKUP(B190,Planning!A:B,2,FALSE),0))) ->  | I190: =IF(B190="סך הכל",Summary!$B$9,IF(F190="","",IFERROR(VLOOKUP(B190,Count!A:B,2,FALSE),0))) ->  | J190: =IF(F190="","",(IF(ISNUMBER(MATCH(B190,ExcPermit!$H$8:$H$1000,0)),"כן","לא"))) ->  | K190: =IF(B190="סך הכל",Summary!$B$10,IF(F190="","",IFERROR(VLOOKUP(B190,Count!A:J,8,FALSE),0))) ->  | L190: =IF(B190="סך הכל",Summary!$B$11,IF(F190="","",IFERROR(VLOOKUP(B190,Count!A:J,9,FALSE),0))) ->  | M190: =IF(B190="סך הכל",Summary!$B$12,IF(F190="","",IFERROR(VLOOKUP(B190,Count!A:J,10,FALSE),0))) ->  | O190: =IFERROR(VLOOKUP(B190,Comments!A:B,2,FALSE),"") -> 
B191: =IF(AND(B189<>"",ISNUMBER(B189),B190=""),"סך הכל",IF(Planning!A194="","",Planning!A194)) ->  | C191: =IFERROR(_xlfn.IFS(B191="סך הכל",Summary!$B$6,Planning!C194<>"",Planning!C194),"") ->  | D191: =IFERROR(VLOOKUP(B191,Address!B:G,5,FALSE),"") ->  | E191: =IFERROR(VLOOKUP(B191,Address!B:L,11,FALSE),"") ->  | G191: =IF(B191="סך הכל",Summary!$B$7,IF(F191="","",IF(VLOOKUP(B191,WQ_UnitID!B:C,2,FALSE)=0,"",VLOOKUP(B191,WQ_UnitID!B:C,2,FALSE)))) ->  | H191: =IF(B191="סך הכל",Summary!$B$8,IF(F191="","",IFERROR(VLOOKUP(B191,Planning!A:B,2,FALSE),0))) ->  | I191: =IF(B191="סך הכל",Summary!$B$9,IF(F191="","",IFERROR(VLOOKUP(B191,Count!A:B,2,FALSE),0))) ->  | J191: =IF(F191="","",(IF(ISNUMBER(MATCH(B191,ExcPermit!$H$8:$H$1000,0)),"כן","לא"))) ->  | K191: =IF(B191="סך הכל",Summary!$B$10,IF(F191="","",IFERROR(VLOOKUP(B191,Count!A:J,8,FALSE),0))) ->  | L191: =IF(B191="סך הכל",Summary!$B$11,IF(F191="","",IFERROR(VLOOKUP(B191,Count!A:J,9,FALSE),0))) ->  | M191: =IF(B191="סך הכל",Summary!$B$12,IF(F191="","",IFERROR(VLOOKUP(B191,Count!A:J,10,FALSE),0))) ->  | O191: =IFERROR(VLOOKUP(B191,Comments!A:B,2,FALSE),"") -> 
B192: =IF(AND(B190<>"",ISNUMBER(B190),B191=""),"סך הכל",IF(Planning!A195="","",Planning!A195)) ->  | C192: =IFERROR(_xlfn.IFS(B192="סך הכל",Summary!$B$6,Planning!C195<>"",Planning!C195),"") ->  | D192: =IFERROR(VLOOKUP(B192,Address!B:G,5,FALSE),"") ->  | E192: =IFERROR(VLOOKUP(B192,Address!B:L,11,FALSE),"") ->  | G192: =IF(B192="סך הכל",Summary!$B$7,IF(F192="","",IF(VLOOKUP(B192,WQ_UnitID!B:C,2,FALSE)=0,"",VLOOKUP(B192,WQ_UnitID!B:C,2,FALSE)))) ->  | H192: =IF(B192="סך הכל",Summary!$B$8,IF(F192="","",IFERROR(VLOOKUP(B192,Planning!A:B,2,FALSE),0))) ->  | I192: =IF(B192="סך הכל",Summary!$B$9,IF(F192="","",IFERROR(VLOOKUP(B192,Count!A:B,2,FALSE),0))) ->  | J192: =IF(F192="","",(IF(ISNUMBER(MATCH(B192,ExcPermit!$H$8:$H$1000,0)),"כן","לא"))) ->  | K192: =IF(B192="סך הכל",Summary!$B$10,IF(F192="","",IFERROR(VLOOKUP(B192,Count!A:J,8,FALSE),0))) ->  | L192: =IF(B192="סך הכל",Summary!$B$11,IF(F192="","",IFERROR(VLOOKUP(B192,Count!A:J,9,FALSE),0))) ->  | M192: =IF(B192="סך הכל",Summary!$B$12,IF(F192="","",IFERROR(VLOOKUP(B192,Count!A:J,10,FALSE),0))) ->  | O192: =IFERROR(VLOOKUP(B192,Comments!A:B,2,FALSE),"") -> 
B193: =IF(AND(B191<>"",ISNUMBER(B191),B192=""),"סך הכל",IF(Planning!A196="","",Planning!A196)) ->  | C193: =IFERROR(_xlfn.IFS(B193="סך הכל",Summary!$B$6,Planning!C196<>"",Planning!C196),"") ->  | D193: =IFERROR(VLOOKUP(B193,Address!B:G,5,FALSE),"") ->  | E193: =IFERROR(VLOOKUP(B193,Address!B:L,11,FALSE),"") ->  | G193: =IF(B193="סך הכל",Summary!$B$7,IF(F193="","",IF(VLOOKUP(B193,WQ_UnitID!B:C,2,FALSE)=0,"",VLOOKUP(B193,WQ_UnitID!B:C,2,FALSE)))) ->  | H193: =IF(B193="סך הכל",Summary!$B$8,IF(F193="","",IFERROR(VLOOKUP(B193,Planning!A:B,2,FALSE),0))) ->  | I193: =IF(B193="סך הכל",Summary!$B$9,IF(F193="","",IFERROR(VLOOKUP(B193,Count!A:B,2,FALSE),0))) ->  | J193: =IF(F193="","",(IF(ISNUMBER(MATCH(B193,ExcPermit!$H$8:$H$1000,0)),"כן","לא"))) ->  | K193: =IF(B193="סך הכל",Summary!$B$10,IF(F193="","",IFERROR(VLOOKUP(B193,Count!A:J,8,FALSE),0))) ->  | L193: =IF(B193="סך הכל",Summary!$B$11,IF(F193="","",IFERROR(VLOOKUP(B193,Count!A:J,9,FALSE),0))) ->  | M193: =IF(B193="סך הכל",Summary!$B$12,IF(F193="","",IFERROR(VLOOKUP(B193,Count!A:J,10,FALSE),0))) ->  | O193: =IFERROR(VLOOKUP(B193,Comments!A:B,2,FALSE),"") -> 
B194: =IF(AND(B192<>"",ISNUMBER(B192),B193=""),"סך הכל",IF(Planning!A197="","",Planning!A197)) ->  | C194: =IFERROR(_xlfn.IFS(B194="סך הכל",Summary!$B$6,Planning!C197<>"",Planning!C197),"") ->  | D194: =IFERROR(VLOOKUP(B194,Address!B:G,5,FALSE),"") ->  | E194: =IFERROR(VLOOKUP(B194,Address!B:L,11,FALSE),"") ->  | G194: =IF(B194="סך הכל",Summary!$B$7,IF(F194="","",IF(VLOOKUP(B194,WQ_UnitID!B:C,2,FALSE)=0,"",VLOOKUP(B194,WQ_UnitID!B:C,2,FALSE)))) ->  | H194: =IF(B194="סך הכל",Summary!$B$8,IF(F194="","",IFERROR(VLOOKUP(B194,Planning!A:B,2,FALSE),0))) ->  | I194: =IF(B194="סך הכל",Summary!$B$9,IF(F194="","",IFERROR(VLOOKUP(B194,Count!A:B,2,FALSE),0))) ->  | J194: =IF(F194="","",(IF(ISNUMBER(MATCH(B194,ExcPermit!$H$8:$H$1000,0)),"כן","לא"))) ->  | K194: =IF(B194="סך הכל",Summary!$B$10,IF(F194="","",IFERROR(VLOOKUP(B194,Count!A:J,8,FALSE),0))) ->  | L194: =IF(B194="סך הכל",Summary!$B$11,IF(F194="","",IFERROR(VLOOKUP(B194,Count!A:J,9,FALSE),0))) ->  | M194: =IF(B194="סך הכל",Summary!$B$12,IF(F194="","",IFERROR(VLOOKUP(B194,Count!A:J,10,FALSE),0))) ->  | O194: =IFERROR(VLOOKUP(B194,Comments!A:B,2,FALSE),"") -> 
B195: =IF(AND(B193<>"",ISNUMBER(B193),B194=""),"סך הכל",IF(Planning!A198="","",Planning!A198)) ->  | C195: =IFERROR(_xlfn.IFS(B195="סך הכל",Summary!$B$6,Planning!C198<>"",Planning!C198),"") ->  | D195: =IFERROR(VLOOKUP(B195,Address!B:G,5,FALSE),"") ->  | E195: =IFERROR(VLOOKUP(B195,Address!B:L,11,FALSE),"") ->  | G195: =IF(B195="סך הכל",Summary!$B$7,IF(F195="","",IF(VLOOKUP(B195,WQ_UnitID!B:C,2,FALSE)=0,"",VLOOKUP(B195,WQ_UnitID!B:C,2,FALSE)))) ->  | H195: =IF(B195="סך הכל",Summary!$B$8,IF(F195="","",IFERROR(VLOOKUP(B195,Planning!A:B,2,FALSE),0))) ->  | I195: =IF(B195="סך הכל",Summary!$B$9,IF(F195="","",IFERROR(VLOOKUP(B195,Count!A:B,2,FALSE),0))) ->  | J195: =IF(F195="","",(IF(ISNUMBER(MATCH(B195,ExcPermit!$H$8:$H$1000,0)),"כן","לא"))) ->  | K195: =IF(B195="סך הכל",Summary!$B$10,IF(F195="","",IFERROR(VLOOKUP(B195,Count!A:J,8,FALSE),0))) ->  | L195: =IF(B195="סך הכל",Summary!$B$11,IF(F195="","",IFERROR(VLOOKUP(B195,Count!A:J,9,FALSE),0))) ->  | M195: =IF(B195="סך הכל",Summary!$B$12,IF(F195="","",IFERROR(VLOOKUP(B195,Count!A:J,10,FALSE),0))) ->  | O195: =IFERROR(VLOOKUP(B195,Comments!A:B,2,FALSE),"") -> 
B196: =IF(AND(B194<>"",ISNUMBER(B194),B195=""),"סך הכל",IF(Planning!A199="","",Planning!A199)) ->  | C196: =IFERROR(_xlfn.IFS(B196="סך הכל",Summary!$B$6,Planning!C199<>"",Planning!C199),"") ->  | D196: =IFERROR(VLOOKUP(B196,Address!B:G,5,FALSE),"") ->  | E196: =IFERROR(VLOOKUP(B196,Address!B:L,11,FALSE),"") ->  | G196: =IF(B196="סך הכל",Summary!$B$7,IF(F196="","",IF(VLOOKUP(B196,WQ_UnitID!B:C,2,FALSE)=0,"",VLOOKUP(B196,WQ_UnitID!B:C,2,FALSE)))) ->  | H196: =IF(B196="סך הכל",Summary!$B$8,IF(F196="","",IFERROR(VLOOKUP(B196,Planning!A:B,2,FALSE),0))) ->  | I196: =IF(B196="סך הכל",Summary!$B$9,IF(F196="","",IFERROR(VLOOKUP(B196,Count!A:B,2,FALSE),0))) ->  | J196: =IF(F196="","",(IF(ISNUMBER(MATCH(B196,ExcPermit!$H$8:$H$1000,0)),"כן","לא"))) ->  | K196: =IF(B196="סך הכל",Summary!$B$10,IF(F196="","",IFERROR(VLOOKUP(B196,Count!A:J,8,FALSE),0))) ->  | L196: =IF(B196="סך הכל",Summary!$B$11,IF(F196="","",IFERROR(VLOOKUP(B196,Count!A:J,9,FALSE),0))) ->  | M196: =IF(B196="סך הכל",Summary!$B$12,IF(F196="","",IFERROR(VLOOKUP(B196,Count!A:J,10,FALSE),0))) ->  | O196: =IFERROR(VLOOKUP(B196,Comments!A:B,2,FALSE),"") -> 
B197: =IF(AND(B195<>"",ISNUMBER(B195),B196=""),"סך הכל",IF(Planning!A200="","",Planning!A200)) ->  | C197: =IFERROR(_xlfn.IFS(B197="סך הכל",Summary!$B$6,Planning!C200<>"",Planning!C200),"") ->  | D197: =IFERROR(VLOOKUP(B197,Address!B:G,5,FALSE),"") ->  | E197: =IFERROR(VLOOKUP(B197,Address!B:L,11,FALSE),"") ->  | F197: =IF(ISNUMBER(B197),"חטף","") ->  | G197: =IF(B197="סך הכל",Summary!$B$7,IF(F197="","",IF(VLOOKUP(B197,WQ_UnitID!B:C,2,FALSE)=0,"",VLOOKUP(B197,WQ_UnitID!B:C,2,FALSE)))) ->  | H197: =IF(B197="סך הכל",Summary!$B$8,IF(F197="","",IFERROR(VLOOKUP(B197,Planning!A:B,2,FALSE),0))) ->  | I197: =IF(B197="סך הכל",Summary!$B$9,IF(F197="","",IFERROR(VLOOKUP(B197,Count!A:B,2,FALSE),0))) ->  | J197: =IF(F197="","",(IF(ISNUMBER(MATCH(B197,ExcPermit!$H$8:$H$1000,0)),"כן","לא"))) ->  | K197: =IF(B197="סך הכל",Summary!$B$10,IF(F197="","",IFERROR(VLOOKUP(B197,Count!A:J,8,FALSE),0))) ->  | L197: =IF(B197="סך הכל",Summary!$B$11,IF(F197="","",IFERROR(VLOOKUP(B197,Count!A:J,9,FALSE),0))) ->  | M197: =IF(B197="סך הכל",Summary!$B$12,IF(F197="","",IFERROR(VLOOKUP(B197,Count!A:J,10,FALSE),0))) ->  | N197: =IF(O197=0,"",O197) ->  | O197: =IFERROR(VLOOKUP(B197,Comments!A:B,2,FALSE),"") -> 
B198: =IF(AND(B196<>"",ISNUMBER(B196),B197=""),"סך הכל",IF(Planning!A201="","",Planning!A201)) ->  | C198: =IFERROR(_xlfn.IFS(B198="סך הכל",Summary!$B$6,Planning!C201<>"",Planning!C201),"") ->  | D198: =IFERROR(VLOOKUP(B198,Address!B:G,5,FALSE),"") ->  | E198: =IFERROR(VLOOKUP(B198,Address!B:L,11,FALSE),"") ->  | G198: =IF(B198="סך הכל",Summary!$B$7,IF(F198="","",IF(VLOOKUP(B198,WQ_UnitID!B:C,2,FALSE)=0,"",VLOOKUP(B198,WQ_UnitID!B:C,2,FALSE)))) ->  | H198: =IF(B198="סך הכל",Summary!$B$8,IF(F198="","",IFERROR(VLOOKUP(B198,Planning!A:B,2,FALSE),0))) ->  | I198: =IF(B198="סך הכל",Summary!$B$9,IF(F198="","",IFERROR(VLOOKUP(B198,Count!A:B,2,FALSE),0))) ->  | J198: =IF(F198="","",(IF(ISNUMBER(MATCH(B198,ExcPermit!$H$8:$H$1000,0)),"כן","לא"))) ->  | K198: =IF(B198="סך הכל",Summary!$B$10,IF(F198="","",IFERROR(VLOOKUP(B198,Count!A:J,8,FALSE),0))) ->  | L198: =IF(B198="סך הכל",Summary!$B$11,IF(F198="","",IFERROR(VLOOKUP(B198,Count!A:J,9,FALSE),0))) ->  | M198: =IF(B198="סך הכל",Summary!$B$12,IF(F198="","",IFERROR(VLOOKUP(B198,Count!A:J,10,FALSE),0))) ->  | O198: =IFERROR(VLOOKUP(B198,Comments!A:B,2,FALSE),"") -> 
B199: =IF(AND(B197<>"",ISNUMBER(B197),B198=""),"סך הכל",IF(Planning!A202="","",Planning!A202)) ->  | C199: =IFERROR(_xlfn.IFS(B199="סך הכל",Summary!$B$6,Planning!C202<>"",Planning!C202),"") ->  | D199: =IFERROR(VLOOKUP(B199,Address!B:G,5,FALSE),"") ->  | E199: =IFERROR(VLOOKUP(B199,Address!B:L,11,FALSE),"") ->  | G199: =IF(B199="סך הכל",Summary!$B$7,IF(F199="","",IF(VLOOKUP(B199,WQ_UnitID!B:C,2,FALSE)=0,"",VLOOKUP(B199,WQ_UnitID!B:C,2,FALSE)))) ->  | H199: =IF(B199="סך הכל",Summary!$B$8,IF(F199="","",IFERROR(VLOOKUP(B199,Planning!A:B,2,FALSE),0))) ->  | I199: =IF(B199="סך הכל",Summary!$B$9,IF(F199="","",IFERROR(VLOOKUP(B199,Count!A:B,2,FALSE),0))) ->  | J199: =IF(F199="","",(IF(ISNUMBER(MATCH(B199,ExcPermit!$H$8:$H$1000,0)),"כן","לא"))) ->  | K199: =IF(B199="סך הכל",Summary!$B$10,IF(F199="","",IFERROR(VLOOKUP(B199,Count!A:J,8,FALSE),0))) ->  | L199: =IF(B199="סך הכל",Summary!$B$11,IF(F199="","",IFERROR(VLOOKUP(B199,Count!A:J,9,FALSE),0))) ->  | M199: =IF(B199="סך הכל",Summary!$B$12,IF(F199="","",IFERROR(VLOOKUP(B199,Count!A:J,10,FALSE),0))) ->  | O199: =IFERROR(VLOOKUP(B199,Comments!A:B,2,FALSE),"") -> 
B200: =IF(AND(B198<>"",ISNUMBER(B198),B199=""),"סך הכל",IF(Planning!A203="","",Planning!A203)) ->  | C200: =IFERROR(_xlfn.IFS(B200="סך הכל",Summary!$B$6,Planning!C203<>"",Planning!C203),"") ->  | D200: =IFERROR(VLOOKUP(B200,Address!B:G,5,FALSE),"") ->  | E200: =IFERROR(VLOOKUP(B200,Address!B:L,11,FALSE),"") ->  | G200: =IF(B200="סך הכל",Summary!$B$7,IF(F200="","",IF(VLOOKUP(B200,WQ_UnitID!B:C,2,FALSE)=0,"",VLOOKUP(B200,WQ_UnitID!B:C,2,FALSE)))) ->  | H200: =IF(B200="סך הכל",Summary!$B$8,IF(F200="","",IFERROR(VLOOKUP(B200,Planning!A:B,2,FALSE),0))) ->  | I200: =IF(B200="סך הכל",Summary!$B$9,IF(F200="","",IFERROR(VLOOKUP(B200,Count!A:B,2,FALSE),0))) ->  | J200: =IF(F200="","",(IF(ISNUMBER(MATCH(B200,ExcPermit!$H$8:$H$1000,0)),"כן","לא"))) ->  | K200: =IF(B200="סך הכל",Summary!$B$10,IF(F200="","",IFERROR(VLOOKUP(B200,Count!A:J,8,FALSE),0))) ->  | L200: =IF(B200="סך הכל",Summary!$B$11,IF(F200="","",IFERROR(VLOOKUP(B200,Count!A:J,9,FALSE),0))) ->  | M200: =IF(B200="סך הכל",Summary!$B$12,IF(F200="","",IFERROR(VLOOKUP(B200,Count!A:J,10,FALSE),0))) ->  | O200: =IFERROR(VLOOKUP(B200,Comments!A:B,2,FALSE),"") -> 
B201: =IF(AND(B199<>"",ISNUMBER(B199),B200=""),"סך הכל",IF(Planning!A204="","",Planning!A204)) ->  | C201: =IFERROR(_xlfn.IFS(B201="סך הכל",Summary!$B$6,Planning!C204<>"",Planning!C204),"") ->  | D201: =IFERROR(VLOOKUP(B201,Address!B:G,5,FALSE),"") ->  | E201: =IFERROR(VLOOKUP(B201,Address!B:L,11,FALSE),"") ->  | G201: =IF(B201="סך הכל",Summary!$B$7,IF(F201="","",IF(VLOOKUP(B201,WQ_UnitID!B:C,2,FALSE)=0,"",VLOOKUP(B201,WQ_UnitID!B:C,2,FALSE)))) ->  | H201: =IF(B201="סך הכל",Summary!$B$8,IF(F201="","",IFERROR(VLOOKUP(B201,Planning!A:B,2,FALSE),0))) ->  | I201: =IF(B201="סך הכל",Summary!$B$9,IF(F201="","",IFERROR(VLOOKUP(B201,Count!A:B,2,FALSE),0))) ->  | J201: =IF(F201="","",(IF(ISNUMBER(MATCH(B201,ExcPermit!$H$8:$H$1000,0)),"כן","לא"))) ->  | K201: =IF(B201="סך הכל",Summary!$B$10,IF(F201="","",IFERROR(VLOOKUP(B201,Count!A:J,8,FALSE),0))) ->  | L201: =IF(B201="סך הכל",Summary!$B$11,IF(F201="","",IFERROR(VLOOKUP(B201,Count!A:J,9,FALSE),0))) ->  | M201: =IF(B201="סך הכל",Summary!$B$12,IF(F201="","",IFERROR(VLOOKUP(B201,Count!A:J,10,FALSE),0))) ->  | O201: =IFERROR(VLOOKUP(B201,Comments!A:B,2,FALSE),"") -> 
... 399 more rows

Sheet דיווח חריגים
C1: ='מסך פתיחה'!$C$3 -> דוח איכות סביבה 2024 | D1: דיווח חריגים | E1: ='מסך פתיחה'!D7 -> From01/01/2024 00:00:00To01/01/2025 00:00:00 | I1: =#REF! -> 
C2: ='מסך פתיחה'!$C$4 -> אור - יהודה - מי שקמה
F3: ריכוז מירבי המותר הזרמה על פי הסכם (מג"ל \ ערך) | J3: ממוצע ריכוזים בפועל (מג"ל \ ערך)
B4: אקודן | C4: שם מפעל | D4: מגזר תעשייתי | E4: כמות מים/שפכים שנתית (מ"ק) | F4: COD | G4: TSS | H4: חנקן קלדל | I4: זרחן | J4: COD | K4: TSS | L4: חנקן קילדל | M4: זרחן
B5: =IF(ISNUMBER('דיווח דיגומים'!B5),'דיווח דיגומים'!B5,"") -> 30305 | C5: =IF(ISNUMBER('דיווח דיגומים'!B5),'דיווח דיגומים'!C5,"") -> אולמי דניאל | D5: =IF('דיווח דיגומים'!E5="","",'דיווח דיגומים'!E5) -> אולמות אירועים, מסעדות, קניונים | E5: =IF(B5="","",IF(VLOOKUP(B5,WQ_UnitID!B:C,2,FALSE)=0,"",VLOOKUP(B5,WQ_UnitID!B:C,2,FALSE))) -> 5487.254946 | F5: =IF(B5="","",ExcLimit!$B$8) -> 0 | G5: =IF(B5="","",IF(D5=Index!$R$24,"",ExcLimit!$C$8)) -> 0 | H5: =IF(B5="","",ExcLimit!$D$8) -> 0 | I5: =IF(B5="","",ExcLimit!$E$8) -> 0 | J5: =IFERROR(VLOOKUP(B5,ExcCalc!O:S,2,FALSE),"") -> 3170 | K5: =IFERROR(VLOOKUP(B5,ExcCalc!O:S,3,FALSE),"") -> 376 | L5: =IFERROR(VLOOKUP(B5,ExcCalc!O:S,4,FALSE),"") ->  | M5: =IFERROR(VLOOKUP(B5,ExcCalc!O:S,5,FALSE),"") -> 
B6: =IF(ISNUMBER('דיווח דיגומים'!B6),'דיווח דיגומים'!B6,"") -> 38947 | C6: =IF(ISNUMBER('דיווח דיגומים'!B6),'דיווח דיגומים'!C6,"") -> אחוזת אייל (בתי אבות נאות אבי - א. פ.) | D6: =IF('דיווח דיגומים'!E6="","",'דיווח דיגומים'!E6) -> בתי מלון | E6: =IF(B6="","",IF(VLOOKUP(B6,WQ_UnitID!B:C,2,FALSE)=0,"",VLOOKUP(B6,WQ_UnitID!B:C,2,FALSE))) -> 185.8032787 | F6: =IF(B6="","",ExcLimit!$B$8) -> 0 | G6: =IF(B6="","",IF(D6=Index!$R$24,"",ExcLimit!$C$8)) -> 0 | H6: =IF(B6="","",ExcLimit!$D$8) -> 0 | I6: =IF(B6="","",ExcLimit!$E$8) -> 0 | J6: =IFERROR(VLOOKUP(B6,ExcCalc!O:S,2,FALSE),"") -> 1175 | K6: =IFERROR(VLOOKUP(B6,ExcCalc!O:S,3,FALSE),"") -> 241 | L6: =IFERROR(VLOOKUP(B6,ExcCalc!O:S,4,FALSE),"") ->  | M6: =IFERROR(VLOOKUP(B6,ExcCalc!O:S,5,FALSE),"") -> 
B7: =IF(ISNUMBER('דיווח דיגומים'!B7),'דיווח דיגומים'!B7,"") -> 8272 | C7: =IF(ISNUMBER('דיווח דיגומים'!B7),'דיווח דיגומים'!C7,"") -> אצל התורקי | D7: =IF('דיווח דיגומים'!E7="","",'דיווח דיגומים'!E7) -> אולמות אירועים, מסעדות, קניונים | E7: =IF(B7="","",IF(VLOOKUP(B7,WQ_UnitID!B:C,2,FALSE)=0,"",VLOOKUP(B7,WQ_UnitID!B:C,2,FALSE))) -> 2794.645161 | F7: =IF(B7="","",ExcLimit!$B$8) -> 0 | G7: =IF(B7="","",IF(D7=Index!$R$24,"",ExcLimit!$C$8)) -> 0 | H7: =IF(B7="","",ExcLimit!$D$8) -> 0 | I7: =IF(B7="","",ExcLimit!$E$8) -> 0 | J7: =IFERROR(VLOOKUP(B7,ExcCalc!O:S,2,FALSE),"") -> 813.5 | K7: =IFERROR(VLOOKUP(B7,ExcCalc!O:S,3,FALSE),"") -> 195.5 | L7: =IFERROR(VLOOKUP(B7,ExcCalc!O:S,4,FALSE),"") ->  | M7: =IFERROR(VLOOKUP(B7,ExcCalc!O:S,5,FALSE),"") -> 
B8: =IF(ISNUMBER('דיווח דיגומים'!B8),'דיווח דיגומים'!B8,"") -> 38962 | C8: =IF(ISNUMBER('דיווח דיגומים'!B8),'דיווח דיגומים'!C8,"") -> ארי יוסף אירוע בע"מ | D8: =IF('דיווח דיגומים'!E8="","",'דיווח דיגומים'!E8) -> אולמות אירועים, מסעדות, קניונים | E8: =IF(B8="","",IF(VLOOKUP(B8,WQ_UnitID!B:C,2,FALSE)=0,"",VLOOKUP(B8,WQ_UnitID!B:C,2,FALSE))) -> 3024.200396 | F8: =IF(B8="","",ExcLimit!$B$8) -> 0 | G8: =IF(B8="","",IF(D8=Index!$R$24,"",ExcLimit!$C$8)) -> 0 | H8: =IF(B8="","",ExcLimit!$D$8) -> 0 | I8: =IF(B8="","",ExcLimit!$E$8) -> 0 | J8: =IFERROR(VLOOKUP(B8,ExcCalc!O:S,2,FALSE),"") -> 1555 | K8: =IFERROR(VLOOKUP(B8,ExcCalc!O:S,3,FALSE),"") -> 440 | L8: =IFERROR(VLOOKUP(B8,ExcCalc!O:S,4,FALSE),"") ->  | M8: =IFERROR(VLOOKUP(B8,ExcCalc!O:S,5,FALSE),"") -> 
B9: =IF(ISNUMBER('דיווח דיגומים'!B9),'דיווח דיגומים'!B9,"") -> 30030 | C9: =IF(ISNUMBER('דיווח דיגומים'!B9),'דיווח דיגומים'!C9,"") -> בית סיעודי - צומת סביון | D9: =IF('דיווח דיגומים'!E9="","",'דיווח דיגומים'!E9) -> בתי מלון | E9: =IF(B9="","",IF(VLOOKUP(B9,WQ_UnitID!B:C,2,FALSE)=0,"",VLOOKUP(B9,WQ_UnitID!B:C,2,FALSE))) -> 10394.53763 | F9: =IF(B9="","",ExcLimit!$B$8) -> 0 | G9: =IF(B9="","",IF(D9=Index!$R$24,"",ExcLimit!$C$8)) -> 0 | H9: =IF(B9="","",ExcLimit!$D$8) -> 0 | I9: =IF(B9="","",ExcLimit!$E$8) -> 0 | J9: =IFERROR(VLOOKUP(B9,ExcCalc!O:S,2,FALSE),"") -> 1410 | K9: =IFERROR(VLOOKUP(B9,ExcCalc!O:S,3,FALSE),"") -> 213.5 | L9: =IFERROR(VLOOKUP(B9,ExcCalc!O:S,4,FALSE),"") ->  | M9: =IFERROR(VLOOKUP(B9,ExcCalc!O:S,5,FALSE),"") -> 
B10: =IF(ISNUMBER('דיווח דיגומים'!B10),'דיווח דיגומים'!B10,"") -> 7918 | C10: =IF(ISNUMBER('דיווח דיגומים'!B10),'דיווח דיגומים'!C10,"") -> בכור כהן מוטורס | D10: =IF('דיווח דיגומים'!E10="","",'דיווח דיגומים'!E10) -> מוסכים | E10: =IF(B10="","",IF(VLOOKUP(B10,WQ_UnitID!B:C,2,FALSE)=0,"",VLOOKUP(B10,WQ_UnitID!B:C,2,FALSE))) -> 654.6107971 | F10: =IF(B10="","",ExcLimit!$B$8) -> 0 | G10: =IF(B10="","",IF(D10=Index!$R$24,"",ExcLimit!$C$8)) -> 0 | H10: =IF(B10="","",ExcLimit!$D$8) -> 0 | I10: =IF(B10="","",ExcLimit!$E$8) -> 0 | J10: =IFERROR(VLOOKUP(B10,ExcCalc!O:S,2,FALSE),"") ->  | K10: =IFERROR(VLOOKUP(B10,ExcCalc!O:S,3,FALSE),"") ->  | L10: =IFERROR(VLOOKUP(B10,ExcCalc!O:S,4,FALSE),"") ->  | M10: =IFERROR(VLOOKUP(B10,ExcCalc!O:S,5,FALSE),"") -> 
B11: =IF(ISNUMBER('דיווח דיגומים'!B11),'דיווח דיגומים'!B11,"") -> 38345 | C11: =IF(ISNUMBER('דיווח דיגומים'!B11),'דיווח דיגומים'!C11,"") -> דור אלון ניהול מתחמים קמעונאיים | D11: =IF('דיווח דיגומים'!E11="","",'דיווח דיגומים'!E11) -> תחנות תדלוק | E11: =IF(B11="","",IF(VLOOKUP(B11,WQ_UnitID!B:C,2,FALSE)=0,"",VLOOKUP(B11,WQ_UnitID!B:C,2,FALSE))) -> 73.82023742 | F11: =IF(B11="","",ExcLimit!$B$8) -> 0 | G11: =IF(B11="","",IF(D11=Index!$R$24,"",ExcLimit!$C$8)) -> 0 | H11: =IF(B11="","",ExcLimit!$D$8) -> 0 | I11: =IF(B11="","",ExcLimit!$E$8) -> 0 | J11: =IFERROR(VLOOKUP(B11,ExcCalc!O:S,2,FALSE),"") ->  | K11: =IFERROR(VLOOKUP(B11,ExcCalc!O:S,3,FALSE),"") ->  | L11: =IFERROR(VLOOKUP(B11,ExcCalc!O:S,4,FALSE),"") ->  | M11: =IFERROR(VLOOKUP(B11,ExcCalc!O:S,5,FALSE),"") -> 
B12: =IF(ISNUMBER('דיווח דיגומים'!B12),'דיווח דיגומים'!B12,"") -> 31558 | C12: =IF(ISNUMBER('דיווח דיגומים'!B12),'דיווח דיגומים'!C12,"") -> האחים שקורי בשרים | D12: =IF('דיווח דיגומים'!E12="","",'דיווח דיגומים'!E12) -> משחטות, בתי מטבחיים, בתי נחירה, עיבוד דגים | E12: =IF(B12="","",IF(VLOOKUP(B12,WQ_UnitID!B:C,2,FALSE)=0,"",VLOOKUP(B12,WQ_UnitID!B:C,2,FALSE))) -> 489.7007786 | F12: =IF(B12="","",ExcLimit!$B$8) -> 0 | G12: =IF(B12="","",IF(D12=Index!$R$24,"",ExcLimit!$C$8)) -> 0 | H12: =IF(B12="","",ExcLimit!$D$8) -> 0 | I12: =IF(B12="","",ExcLimit!$E$8) -> 0 | J12: =IFERROR(VLOOKUP(B12,ExcCalc!O:S,2,FALSE),"") ->  | K12: =IFERROR(VLOOKUP(B12,ExcCalc!O:S,3,FALSE),"") ->  | L12: =IFERROR(VLOOKUP(B12,ExcCalc!O:S,4,FALSE),"") ->  | M12: =IFERROR(VLOOKUP(B12,ExcCalc!O:S,5,FALSE),"") -> 
B13: =IF(ISNUMBER('דיווח דיגומים'!B13),'דיווח דיגומים'!B13,"") -> 8416 | C13: =IF(ISNUMBER('דיווח דיגומים'!B13),'דיווח דיגומים'!C13,"") -> חיים לגזיאל מעדני בשר | D13: =IF('דיווח דיגומים'!E13="","",'דיווח דיגומים'!E13) -> משחטות, בתי מטבחיים, בתי נחירה, עיבוד דגים | E13: =IF(B13="","",IF(VLOOKUP(B13,WQ_UnitID!B:C,2,FALSE)=0,"",VLOOKUP(B13,WQ_UnitID!B:C,2,FALSE))) -> 457.4821933 | F13: =IF(B13="","",ExcLimit!$B$8) -> 0 | G13: =IF(B13="","",IF(D13=Index!$R$24,"",ExcLimit!$C$8)) -> 0 | H13: =IF(B13="","",ExcLimit!$D$8) -> 0 | I13: =IF(B13="","",ExcLimit!$E$8) -> 0 | J13: =IFERROR(VLOOKUP(B13,ExcCalc!O:S,2,FALSE),"") -> 1822.5 | K13: =IFERROR(VLOOKUP(B13,ExcCalc!O:S,3,FALSE),"") -> 284.5 | L13: =IFERROR(VLOOKUP(B13,ExcCalc!O:S,4,FALSE),"") -> 29.195 | M13: =IFERROR(VLOOKUP(B13,ExcCalc!O:S,5,FALSE),"") -> 7.47
B14: =IF(ISNUMBER('דיווח דיגומים'!B14),'דיווח דיגומים'!B14,"") -> 38926 | C14: =IF(ISNUMBER('דיווח דיגומים'!B14),'דיווח דיגומים'!C14,"") -> חיריה | D14: =IF('דיווח דיגומים'!E14="","",'דיווח דיגומים'!E14) -> תחנות מעבר לפסולת | E14: =IF(B14="","",IF(VLOOKUP(B14,WQ_UnitID!B:C,2,FALSE)=0,"",VLOOKUP(B14,WQ_UnitID!B:C,2,FALSE))) -> 26969.78689 | F14: =IF(B14="","",ExcLimit!$B$8) -> 0 | G14: =IF(B14="","",IF(D14=Index!$R$24,"",ExcLimit!$C$8)) -> 0 | H14: =IF(B14="","",ExcLimit!$D$8) -> 0 | I14: =IF(B14="","",ExcLimit!$E$8) -> 0 | J14: =IFERROR(VLOOKUP(B14,ExcCalc!O:S,2,FALSE),"") -> 18155 | K14: =IFERROR(VLOOKUP(B14,ExcCalc!O:S,3,FALSE),"") -> 3402.5 | L14: =IFERROR(VLOOKUP(B14,ExcCalc!O:S,4,FALSE),"") -> 188.195 | M14: =IFERROR(VLOOKUP(B14,ExcCalc!O:S,5,FALSE),"") -> 28.37675
B15: =IF(ISNUMBER('דיווח דיגומים'!B15),'דיווח דיגומים'!B15,"") -> 38932 | C15: =IF(ISNUMBER('דיווח דיגומים'!B15),'דיווח דיגומים'!C15,"") -> לה סלטה בע"מ | D15: =IF('דיווח דיגומים'!E15="","",'דיווח דיגומים'!E15) -> אולמות אירועים, מסעדות, קניונים | E15: =IF(B15="","",IF(VLOOKUP(B15,WQ_UnitID!B:C,2,FALSE)=0,"",VLOOKUP(B15,WQ_UnitID!B:C,2,FALSE))) -> 1107.659695 | F15: =IF(B15="","",ExcLimit!$B$8) -> 0 | G15: =IF(B15="","",IF(D15=Index!$R$24,"",ExcLimit!$C$8)) -> 0 | H15: =IF(B15="","",ExcLimit!$D$8) -> 0 | I15: =IF(B15="","",ExcLimit!$E$8) -> 0 | J15: =IFERROR(VLOOKUP(B15,ExcCalc!O:S,2,FALSE),"") ->  | K15: =IFERROR(VLOOKUP(B15,ExcCalc!O:S,3,FALSE),"") ->  | L15: =IFERROR(VLOOKUP(B15,ExcCalc!O:S,4,FALSE),"") ->  | M15: =IFERROR(VLOOKUP(B15,ExcCalc!O:S,5,FALSE),"") -> 
B16: =IF(ISNUMBER('דיווח דיגומים'!B16),'דיווח דיגומים'!B16,"") -> 38950 | C16: =IF(ISNUMBER('דיווח דיגומים'!B16),'דיווח דיגומים'!C16,"") -> מ. יוחננוף ובניו בע"מ | D16: =IF('דיווח דיגומים'!E16="","",'דיווח דיגומים'!E16) -> אולמות אירועים, מסעדות, קניונים | E16: =IF(B16="","",IF(VLOOKUP(B16,WQ_UnitID!B:C,2,FALSE)=0,"",VLOOKUP(B16,WQ_UnitID!B:C,2,FALSE))) -> 4571.618711 | F16: =IF(B16="","",ExcLimit!$B$8) -> 0 | G16: =IF(B16="","",IF(D16=Index!$R$24,"",ExcLimit!$C$8)) -> 0 | H16: =IF(B16="","",ExcLimit!$D$8) -> 0 | I16: =IF(B16="","",ExcLimit!$E$8) -> 0 | J16: =IFERROR(VLOOKUP(B16,ExcCalc!O:S,2,FALSE),"") -> 2790 | K16: =IFERROR(VLOOKUP(B16,ExcCalc!O:S,3,FALSE),"") -> 306 | L16: =IFERROR(VLOOKUP(B16,ExcCalc!O:S,4,FALSE),"") ->  | M16: =IFERROR(VLOOKUP(B16,ExcCalc!O:S,5,FALSE),"") -> 
B17: =IF(ISNUMBER('דיווח דיגומים'!B17),'דיווח דיגומים'!B17,"") -> 7993 | C17: =IF(ISNUMBER('דיווח דיגומים'!B17),'דיווח דיגומים'!C17,"") -> מאפית וינסטו השלום | D17: =IF('דיווח דיגומים'!E17="","",'דיווח דיגומים'!E17) -> מפעלי מזון ומשקאות | E17: =IF(B17="","",IF(VLOOKUP(B17,WQ_UnitID!B:C,2,FALSE)=0,"",VLOOKUP(B17,WQ_UnitID!B:C,2,FALSE))) -> 857.5215338 | F17: =IF(B17="","",ExcLimit!$B$8) -> 0 | G17: =IF(B17="","",IF(D17=Index!$R$24,"",ExcLimit!$C$8)) -> 0 | H17: =IF(B17="","",ExcLimit!$D$8) -> 0 | I17: =IF(B17="","",ExcLimit!$E$8) -> 0 | J17: =IFERROR(VLOOKUP(B17,ExcCalc!O:S,2,FALSE),"") -> 834 | K17: =IFERROR(VLOOKUP(B17,ExcCalc!O:S,3,FALSE),"") -> 86.5 | L17: =IFERROR(VLOOKUP(B17,ExcCalc!O:S,4,FALSE),"") -> 37.43 | M17: =IFERROR(VLOOKUP(B17,ExcCalc!O:S,5,FALSE),"") -> 0.94935
B18: =IF(ISNUMBER('דיווח דיגומים'!B18),'דיווח דיגומים'!B18,"") -> 29048 | C18: =IF(ISNUMBER('דיווח דיגומים'!B18),'דיווח דיגומים'!C18,"") -> מגדלי הים התיכון | D18: =IF('דיווח דיגומים'!E18="","",'דיווח דיגומים'!E18) -> בתי מלון | E18: =IF(B18="","",IF(VLOOKUP(B18,WQ_UnitID!B:C,2,FALSE)=0,"",VLOOKUP(B18,WQ_UnitID!B:C,2,FALSE))) -> 14080.94426 | F18: =IF(B18="","",ExcLimit!$B$8) -> 0 | G18: =IF(B18="","",IF(D18=Index!$R$24,"",ExcLimit!$C$8)) -> 0 | H18: =IF(B18="","",ExcLimit!$D$8) -> 0 | I18: =IF(B18="","",ExcLimit!$E$8) -> 0 | J18: =IFERROR(VLOOKUP(B18,ExcCalc!O:S,2,FALSE),"") -> 241 | K18: =IFERROR(VLOOKUP(B18,ExcCalc!O:S,3,FALSE),"") -> 77.5 | L18: =IFERROR(VLOOKUP(B18,ExcCalc!O:S,4,FALSE),"") ->  | M18: =IFERROR(VLOOKUP(B18,ExcCalc!O:S,5,FALSE),"") -> 
B19: =IF(ISNUMBER('דיווח דיגומים'!B19),'דיווח דיגומים'!B19,"") -> 8332 | C19: =IF(ISNUMBER('דיווח דיגומים'!B19),'דיווח דיגומים'!C19,"") -> מוסך א.מ.ואחיו | D19: =IF('דיווח דיגומים'!E19="","",'דיווח דיגומים'!E19) -> מוסכים | E19: =IF(B19="","",IF(VLOOKUP(B19,WQ_UnitID!B:C,2,FALSE)=0,"",VLOOKUP(B19,WQ_UnitID!B:C,2,FALSE))) -> 113.9739966 | F19: =IF(B19="","",ExcLimit!$B$8) -> 0 | G19: =IF(B19="","",IF(D19=Index!$R$24,"",ExcLimit!$C$8)) -> 0 | H19: =IF(B19="","",ExcLimit!$D$8) -> 0 | I19: =IF(B19="","",ExcLimit!$E$8) -> 0 | J19: =IFERROR(VLOOKUP(B19,ExcCalc!O:S,2,FALSE),"") ->  | K19: =IFERROR(VLOOKUP(B19,ExcCalc!O:S,3,FALSE),"") ->  | L19: =IFERROR(VLOOKUP(B19,ExcCalc!O:S,4,FALSE),"") ->  | M19: =IFERROR(VLOOKUP(B19,ExcCalc!O:S,5,FALSE),"") -> 
B20: =IF(ISNUMBER('דיווח דיגומים'!B20),'דיווח דיגומים'!B20,"") -> 7937 | C20: =IF(ISNUMBER('דיווח דיגומים'!B20),'דיווח דיגומים'!C20,"") -> מוסך וולבו חנן שפיק | D20: =IF('דיווח דיגומים'!E20="","",'דיווח דיגומים'!E20) -> מוסכים | E20: =IF(B20="","",IF(VLOOKUP(B20,WQ_UnitID!B:C,2,FALSE)=0,"",VLOOKUP(B20,WQ_UnitID!B:C,2,FALSE))) -> 641.9626908 | F20: =IF(B20="","",ExcLimit!$B$8) -> 0 | G20: =IF(B20="","",IF(D20=Index!$R$24,"",ExcLimit!$C$8)) -> 0 | H20: =IF(B20="","",ExcLimit!$D$8) -> 0 | I20: =IF(B20="","",ExcLimit!$E$8) -> 0 | J20: =IFERROR(VLOOKUP(B20,ExcCalc!O:S,2,FALSE),"") ->  | K20: =IFERROR(VLOOKUP(B20,ExcCalc!O:S,3,FALSE),"") -> 31.5 | L20: =IFERROR(VLOOKUP(B20,ExcCalc!O:S,4,FALSE),"") ->  | M20: =IFERROR(VLOOKUP(B20,ExcCalc!O:S,5,FALSE),"") -> 
B21: =IF(ISNUMBER('דיווח דיגומים'!B21),'דיווח דיגומים'!B21,"") -> 38929 | C21: =IF(ISNUMBER('דיווח דיגומים'!B21),'דיווח דיגומים'!C21,"") -> מחנה מש"א | D21: =IF('דיווח דיגומים'!E21="","",'דיווח דיגומים'!E21) -> מפעלי ציפוי מתכות וטיפול פני שטח | E21: =IF(B21="","",IF(VLOOKUP(B21,WQ_UnitID!B:C,2,FALSE)=0,"",VLOOKUP(B21,WQ_UnitID!B:C,2,FALSE))) -> 208699.8304 | F21: =IF(B21="","",ExcLimit!$B$8) -> 0 | G21: =IF(B21="","",IF(D21=Index!$R$24,"",ExcLimit!$C$8)) ->  | H21: =IF(B21="","",ExcLimit!$D$8) -> 0 | I21: =IF(B21="","",ExcLimit!$E$8) -> 0 | J21: =IFERROR(VLOOKUP(B21,ExcCalc!O:S,2,FALSE),"") ->  | K21: =IFERROR(VLOOKUP(B21,ExcCalc!O:S,3,FALSE),"") ->  | L21: =IFERROR(VLOOKUP(B21,ExcCalc!O:S,4,FALSE),"") ->  | M21: =IFERROR(VLOOKUP(B21,ExcCalc!O:S,5,FALSE),"") -> 
B22: =IF(ISNUMBER('דיווח דיגומים'!B22),'דיווח דיגומים'!B22,"") -> 29453 | C22: =IF(ISNUMBER('דיווח דיגומים'!B22),'דיווח דיגומים'!C22,"") -> סיטי סטאר | D22: =IF('דיווח דיגומים'!E22="","",'דיווח דיגומים'!E22) -> אולמות אירועים, מסעדות, קניונים | E22: =IF(B22="","",IF(VLOOKUP(B22,WQ_UnitID!B:C,2,FALSE)=0,"",VLOOKUP(B22,WQ_UnitID!B:C,2,FALSE))) -> 1603.70944 | F22: =IF(B22="","",ExcLimit!$B$8) -> 0 | G22: =IF(B22="","",IF(D22=Index!$R$24,"",ExcLimit!$C$8)) -> 0 | H22: =IF(B22="","",ExcLimit!$D$8) -> 0 | I22: =IF(B22="","",ExcLimit!$E$8) -> 0 | J22: =IFERROR(VLOOKUP(B22,ExcCalc!O:S,2,FALSE),"") -> 2610 | K22: =IFERROR(VLOOKUP(B22,ExcCalc!O:S,3,FALSE),"") -> 149.5 | L22: =IFERROR(VLOOKUP(B22,ExcCalc!O:S,4,FALSE),"") ->  | M22: =IFERROR(VLOOKUP(B22,ExcCalc!O:S,5,FALSE),"") -> 
B23: =IF(ISNUMBER('דיווח דיגומים'!B23),'דיווח דיגומים'!B23,"") -> 7777 | C23: =IF(ISNUMBER('דיווח דיגומים'!B23),'דיווח דיגומים'!C23,"") -> עדי קייטרינג | D23: =IF('דיווח דיגומים'!E23="","",'דיווח דיגומים'!E23) -> מפעלי מזון ומשקאות | E23: =IF(B23="","",IF(VLOOKUP(B23,WQ_UnitID!B:C,2,FALSE)=0,"",VLOOKUP(B23,WQ_UnitID!B:C,2,FALSE))) -> 75.92292206 | F23: =IF(B23="","",ExcLimit!$B$8) -> 0 | G23: =IF(B23="","",IF(D23=Index!$R$24,"",ExcLimit!$C$8)) -> 0 | H23: =IF(B23="","",ExcLimit!$D$8) -> 0 | I23: =IF(B23="","",ExcLimit!$E$8) -> 0 | J23: =IFERROR(VLOOKUP(B23,ExcCalc!O:S,2,FALSE),"") ->  | K23: =IFERROR(VLOOKUP(B23,ExcCalc!O:S,3,FALSE),"") ->  | L23: =IFERROR(VLOOKUP(B23,ExcCalc!O:S,4,FALSE),"") ->  | M23: =IFERROR(VLOOKUP(B23,ExcCalc!O:S,5,FALSE),"") -> 
B24: =IF(ISNUMBER('דיווח דיגומים'!B24),'דיווח דיגומים'!B24,"") -> 32583 | C24: =IF(ISNUMBER('דיווח דיגומים'!B24),'דיווח דיגומים'!C24,"") -> עוזי מרכז העוגיות בע"מ (מאפיית הכוהנים) | D24: =IF('דיווח דיגומים'!E24="","",'דיווח דיגומים'!E24) -> מפעלי מזון ומשקאות | E24: =IF(B24="","",IF(VLOOKUP(B24,WQ_UnitID!B:C,2,FALSE)=0,"",VLOOKUP(B24,WQ_UnitID!B:C,2,FALSE))) -> 343.111645 | F24: =IF(B24="","",ExcLimit!$B$8) -> 0 | G24: =IF(B24="","",IF(D24=Index!$R$24,"",ExcLimit!$C$8)) -> 0 | H24: =IF(B24="","",ExcLimit!$D$8) -> 0 | I24: =IF(B24="","",ExcLimit!$E$8) -> 0 | J24: =IFERROR(VLOOKUP(B24,ExcCalc!O:S,2,FALSE),"") -> 2660 | K24: =IFERROR(VLOOKUP(B24,ExcCalc!O:S,3,FALSE),"") -> 554 | L24: =IFERROR(VLOOKUP(B24,ExcCalc!O:S,4,FALSE),"") -> 50.32 | M24: =IFERROR(VLOOKUP(B24,ExcCalc!O:S,5,FALSE),"") -> 9.7395
B25: =IF(ISNUMBER('דיווח דיגומים'!B25),'דיווח דיגומים'!B25,"") -> 29939 | C25: =IF(ISNUMBER('דיווח דיגומים'!B25),'דיווח דיגומים'!C25,"") -> פארק אריאל שרון | D25: =IF('דיווח דיגומים'!E25="","",'דיווח דיגומים'!E25) -> תחנות מעבר לפסולת | E25: =IF(B25="","",IF(VLOOKUP(B25,WQ_UnitID!B:C,2,FALSE)=0,"",VLOOKUP(B25,WQ_UnitID!B:C,2,FALSE))) -> 28900.88525 | F25: =IF(B25="","",ExcLimit!$B$8) -> 0 | G25: =IF(B25="","",IF(D25=Index!$R$24,"",ExcLimit!$C$8)) -> 0 | H25: =IF(B25="","",ExcLimit!$D$8) -> 0 | I25: =IF(B25="","",ExcLimit!$E$8) -> 0 | J25: =IFERROR(VLOOKUP(B25,ExcCalc!O:S,2,FALSE),"") -> 1235 | K25: =IFERROR(VLOOKUP(B25,ExcCalc!O:S,3,FALSE),"") -> 18.5 | L25: =IFERROR(VLOOKUP(B25,ExcCalc!O:S,4,FALSE),"") -> 469.995 | M25: =IFERROR(VLOOKUP(B25,ExcCalc!O:S,5,FALSE),"") -> 1.9095
B26: =IF(ISNUMBER('דיווח דיגומים'!B26),'דיווח דיגומים'!B26,"") -> 8378 | C26: =IF(ISNUMBER('דיווח דיגומים'!B26),'דיווח דיגומים'!C26,"") -> קייטרינג עבדאללה ובניו | D26: =IF('דיווח דיגומים'!E26="","",'דיווח דיגומים'!E26) -> אולמות אירועים, מסעדות, קניונים | E26: =IF(B26="","",IF(VLOOKUP(B26,WQ_UnitID!B:C,2,FALSE)=0,"",VLOOKUP(B26,WQ_UnitID!B:C,2,FALSE))) -> 590.6331261 | F26: =IF(B26="","",ExcLimit!$B$8) -> 0 | G26: =IF(B26="","",IF(D26=Index!$R$24,"",ExcLimit!$C$8)) -> 0 | H26: =IF(B26="","",ExcLimit!$D$8) -> 0 | I26: =IF(B26="","",ExcLimit!$E$8) -> 0 | J26: =IFERROR(VLOOKUP(B26,ExcCalc!O:S,2,FALSE),"") -> 554.5 | K26: =IFERROR(VLOOKUP(B26,ExcCalc!O:S,3,FALSE),"") -> 377.5 | L26: =IFERROR(VLOOKUP(B26,ExcCalc!O:S,4,FALSE),"") ->  | M26: =IFERROR(VLOOKUP(B26,ExcCalc!O:S,5,FALSE),"") -> 
B27: =IF(ISNUMBER('דיווח דיגומים'!B27),'דיווח דיגומים'!B27,"") -> 38935 | C27: =IF(ISNUMBER('דיווח דיגומים'!B27),'דיווח דיגומים'!C27,"") -> שיראל גלאט כשר בע"מ (מסעדת פארוק) | D27: =IF('דיווח דיגומים'!E27="","",'דיווח דיגומים'!E27) -> אולמות אירועים, מסעדות, קניונים | E27: =IF(B27="","",IF(VLOOKUP(B27,WQ_UnitID!B:C,2,FALSE)=0,"",VLOOKUP(B27,WQ_UnitID!B:C,2,FALSE))) -> 1564.354839 | F27: =IF(B27="","",ExcLimit!$B$8) -> 0 | G27: =IF(B27="","",IF(D27=Index!$R$24,"",ExcLimit!$C$8)) -> 0 | H27: =IF(B27="","",ExcLimit!$D$8) -> 0 | I27: =IF(B27="","",ExcLimit!$E$8) -> 0 | J27: =IFERROR(VLOOKUP(B27,ExcCalc!O:S,2,FALSE),"") ->  | K27: =IFERROR(VLOOKUP(B27,ExcCalc!O:S,3,FALSE),"") ->  | L27: =IFERROR(VLOOKUP(B27,ExcCalc!O:S,4,FALSE),"") ->  | M27: =IFERROR(VLOOKUP(B27,ExcCalc!O:S,5,FALSE),"") -> 
B28: =IF(ISNUMBER('דיווח דיגומים'!B28),'דיווח דיגומים'!B28,"") -> 28548 | C28: =IF(ISNUMBER('דיווח דיגומים'!B28),'דיווח דיגומים'!C28,"") -> תחנת דלק פז אור יהודה | D28: =IF('דיווח דיגומים'!E28="","",'דיווח דיגומים'!E28) -> תחנות תדלוק | E28: =IF(B28="","",IF(VLOOKUP(B28,WQ_UnitID!B:C,2,FALSE)=0,"",VLOOKUP(B28,WQ_UnitID!B:C,2,FALSE))) ->  | F28: =IF(B28="","",ExcLimit!$B$8) -> 0 | G28: =IF(B28="","",IF(D28=Index!$R$24,"",ExcLimit!$C$8)) -> 0 | H28: =IF(B28="","",ExcLimit!$D$8) -> 0 | I28: =IF(B28="","",ExcLimit!$E$8) -> 0 | J28: =IFERROR(VLOOKUP(B28,ExcCalc!O:S,2,FALSE),"") -> 113 | K28: =IFERROR(VLOOKUP(B28,ExcCalc!O:S,3,FALSE),"") ->  | L28: =IFERROR(VLOOKUP(B28,ExcCalc!O:S,4,FALSE),"") ->  | M28: =IFERROR(VLOOKUP(B28,ExcCalc!O:S,5,FALSE),"") -> 
B29: =IF(ISNUMBER('דיווח דיגומים'!B29),'דיווח דיגומים'!B29,"") -> 8277 | C29: =IF(ISNUMBER('דיווח דיגומים'!B29),'דיווח דיגומים'!C29,"") -> תחנת תדלוק דור אלון | D29: =IF('דיווח דיגומים'!E29="","",'דיווח דיגומים'!E29) -> תחנות תדלוק | E29: =IF(B29="","",IF(VLOOKUP(B29,WQ_UnitID!B:C,2,FALSE)=0,"",VLOOKUP(B29,WQ_UnitID!B:C,2,FALSE))) -> 190.9547096 | F29: =IF(B29="","",ExcLimit!$B$8) -> 0 | G29: =IF(B29="","",IF(D29=Index!$R$24,"",ExcLimit!$C$8)) -> 0 | H29: =IF(B29="","",ExcLimit!$D$8) -> 0 | I29: =IF(B29="","",ExcLimit!$E$8) -> 0 | J29: =IFERROR(VLOOKUP(B29,ExcCalc!O:S,2,FALSE),"") -> 150 | K29: =IFERROR(VLOOKUP(B29,ExcCalc!O:S,3,FALSE),"") ->  | L29: =IFERROR(VLOOKUP(B29,ExcCalc!O:S,4,FALSE),"") ->  | M29: =IFERROR(VLOOKUP(B29,ExcCalc!O:S,5,FALSE),"") -> 
B30: =IF(ISNUMBER('דיווח דיגומים'!B30),'דיווח דיגומים'!B30,"") -> 8110 | C30: =IF(ISNUMBER('דיווח דיגומים'!B30),'דיווח דיגומים'!C30,"") -> תחנת תדלוק סונול קרן | D30: =IF('דיווח דיגומים'!E30="","",'דיווח דיגומים'!E30) -> תחנות תדלוק | E30: =IF(B30="","",IF(VLOOKUP(B30,WQ_UnitID!B:C,2,FALSE)=0,"",VLOOKUP(B30,WQ_UnitID!B:C,2,FALSE))) -> 325.7713254 | F30: =IF(B30="","",ExcLimit!$B$8) -> 0 | G30: =IF(B30="","",IF(D30=Index!$R$24,"",ExcLimit!$C$8)) -> 0 | H30: =IF(B30="","",ExcLimit!$D$8) -> 0 | I30: =IF(B30="","",ExcLimit!$E$8) -> 0 | J30: =IFERROR(VLOOKUP(B30,ExcCalc!O:S,2,FALSE),"") -> 169 | K30: =IFERROR(VLOOKUP(B30,ExcCalc!O:S,3,FALSE),"") ->  | L30: =IFERROR(VLOOKUP(B30,ExcCalc!O:S,4,FALSE),"") ->  | M30: =IFERROR(VLOOKUP(B30,ExcCalc!O:S,5,FALSE),"") -> 
B31: =IF(ISNUMBER('דיווח דיגומים'!B31),'דיווח דיגומים'!B31,"") ->  | C31: =IF(ISNUMBER('דיווח דיגומים'!B31),'דיווח דיגומים'!C31,"") ->  | D31: =IF('דיווח דיגומים'!E31="","",'דיווח דיגומים'!E31) ->  | E31: =IF(B31="","",IF(VLOOKUP(B31,WQ_UnitID!B:C,2,FALSE)=0,"",VLOOKUP(B31,WQ_UnitID!B:C,2,FALSE))) ->  | F31: =IF(B31="","",ExcLimit!$B$8) ->  | G31: =IF(B31="","",IF(D31=Index!$R$24,"",ExcLimit!$C$8)) ->  | H31: =IF(B31="","",ExcLimit!$D$8) ->  | I31: =IF(B31="","",ExcLimit!$E$8) ->  | J31: =IFERROR(VLOOKUP(B31,ExcCalc!O:S,2,FALSE),"") ->  | K31: =IFERROR(VLOOKUP(B31,ExcCalc!O:S,3,FALSE),"") ->  | L31: =IFERROR(VLOOKUP(B31,ExcCalc!O:S,4,FALSE),"") ->  | M31: =IFERROR(VLOOKUP(B31,ExcCalc!O:S,5,FALSE),"") -> 
B32: =IF(ISNUMBER('דיווח דיגומים'!B32),'דיווח דיגומים'!B32,"") ->  | C32: =IF(ISNUMBER('דיווח דיגומים'!B32),'דיווח דיגומים'!C32,"") ->  | D32: =IF('דיווח דיגומים'!E32="","",'דיווח דיגומים'!E32) ->  | E32: =IF(B32="","",IF(VLOOKUP(B32,WQ_UnitID!B:C,2,FALSE)=0,"",VLOOKUP(B32,WQ_UnitID!B:C,2,FALSE))) ->  | F32: =IF(B32="","",ExcLimit!$B$8) ->  | G32: =IF(B32="","",IF(D32=Index!$R$24,"",ExcLimit!$C$8)) ->  | H32: =IF(B32="","",ExcLimit!$D$8) ->  | I32: =IF(B32="","",ExcLimit!$E$8) ->  | J32: =IFERROR(VLOOKUP(B32,ExcCalc!O:S,2,FALSE),"") ->  | K32: =IFERROR(VLOOKUP(B32,ExcCalc!O:S,3,FALSE),"") ->  | L32: =IFERROR(VLOOKUP(B32,ExcCalc!O:S,4,FALSE),"") ->  | M32: =IFERROR(VLOOKUP(B32,ExcCalc!O:S,5,FALSE),"") -> 
B33: =IF(ISNUMBER('דיווח דיגומים'!B33),'דיווח דיגומים'!B33,"") ->  | C33: =IF(ISNUMBER('דיווח דיגומים'!B33),'דיווח דיגומים'!C33,"") ->  | D33: =IF('דיווח דיגומים'!E33="","",'דיווח דיגומים'!E33) ->  | E33: =IF(B33="","",IF(VLOOKUP(B33,WQ_UnitID!B:C,2,FALSE)=0,"",VLOOKUP(B33,WQ_UnitID!B:C,2,FALSE))) ->  | F33: =IF(B33="","",ExcLimit!$B$8) ->  | G33: =IF(B33="","",IF(D33=Index!$R$24,"",ExcLimit!$C$8)) ->  | H33: =IF(B33="","",ExcLimit!$D$8) ->  | I33: =IF(B33="","",ExcLimit!$E$8) ->  | J33: =IFERROR(VLOOKUP(B33,ExcCalc!O:S,2,FALSE),"") ->  | K33: =IFERROR(VLOOKUP(B33,ExcCalc!O:S,3,FALSE),"") ->  | L33: =IFERROR(VLOOKUP(B33,ExcCalc!O:S,4,FALSE),"") ->  | M33: =IFERROR(VLOOKUP(B33,ExcCalc!O:S,5,FALSE),"") -> 
B34: =IF(ISNUMBER('דיווח דיגומים'!B34),'דיווח דיגומים'!B34,"") ->  | C34: =IF(ISNUMBER('דיווח דיגומים'!B34),'דיווח דיגומים'!C34,"") ->  | D34: =IF('דיווח דיגומים'!E34="","",'דיווח דיגומים'!E34) ->  | E34: =IF(B34="","",IF(VLOOKUP(B34,WQ_UnitID!B:C,2,FALSE)=0,"",VLOOKUP(B34,WQ_UnitID!B:C,2,FALSE))) ->  | F34: =IF(B34="","",ExcLimit!$B$8) ->  | G34: =IF(B34="","",IF(D34=Index!$R$24,"",ExcLimit!$C$8)) ->  | H34: =IF(B34="","",ExcLimit!$D$8) ->  | I34: =IF(B34="","",ExcLimit!$E$8) ->  | J34: =IFERROR(VLOOKUP(B34,ExcCalc!O:S,2,FALSE),"") ->  | K34: =IFERROR(VLOOKUP(B34,ExcCalc!O:S,3,FALSE),"") ->  | L34: =IFERROR(VLOOKUP(B34,ExcCalc!O:S,4,FALSE),"") ->  | M34: =IFERROR(VLOOKUP(B34,ExcCalc!O:S,5,FALSE),"") -> 
B35: =IF(ISNUMBER('דיווח דיגומים'!B35),'דיווח דיגומים'!B35,"") ->  | C35: =IF(ISNUMBER('דיווח דיגומים'!B35),'דיווח דיגומים'!C35,"") ->  | D35: =IF('דיווח דיגומים'!E35="","",'דיווח דיגומים'!E35) ->  | E35: =IF(B35="","",IF(VLOOKUP(B35,WQ_UnitID!B:C,2,FALSE)=0,"",VLOOKUP(B35,WQ_UnitID!B:C,2,FALSE))) ->  | F35: =IF(B35="","",ExcLimit!$B$8) ->  | G35: =IF(B35="","",IF(D35=Index!$R$24,"",ExcLimit!$C$8)) ->  | H35: =IF(B35="","",ExcLimit!$D$8) ->  | I35: =IF(B35="","",ExcLimit!$E$8) ->  | J35: =IFERROR(VLOOKUP(B35,ExcCalc!O:S,2,FALSE),"") ->  | K35: =IFERROR(VLOOKUP(B35,ExcCalc!O:S,3,FALSE),"") ->  | L35: =IFERROR(VLOOKUP(B35,ExcCalc!O:S,4,FALSE),"") ->  | M35: =IFERROR(VLOOKUP(B35,ExcCalc!O:S,5,FALSE),"") -> 
B36: =IF(ISNUMBER('דיווח דיגומים'!B36),'דיווח דיגומים'!B36,"") ->  | C36: =IF(ISNUMBER('דיווח דיגומים'!B36),'דיווח דיגומים'!C36,"") ->  | D36: =IF('דיווח דיגומים'!E36="","",'דיווח דיגומים'!E36) ->  | E36: =IF(B36="","",IF(VLOOKUP(B36,WQ_UnitID!B:C,2,FALSE)=0,"",VLOOKUP(B36,WQ_UnitID!B:C,2,FALSE))) ->  | F36: =IF(B36="","",ExcLimit!$B$8) ->  | G36: =IF(B36="","",IF(D36=Index!$R$24,"",ExcLimit!$C$8)) ->  | H36: =IF(B36="","",ExcLimit!$D$8) ->  | I36: =IF(B36="","",ExcLimit!$E$8) ->  | J36: =IFERROR(VLOOKUP(B36,ExcCalc!O:S,2,FALSE),"") ->  | K36: =IFERROR(VLOOKUP(B36,ExcCalc!O:S,3,FALSE),"") ->  | L36: =IFERROR(VLOOKUP(B36,ExcCalc!O:S,4,FALSE),"") ->  | M36: =IFERROR(VLOOKUP(B36,ExcCalc!O:S,5,FALSE),"") -> 
B37: =IF(ISNUMBER('דיווח דיגומים'!B37),'דיווח דיגומים'!B37,"") ->  | C37: =IF(ISNUMBER('דיווח דיגומים'!B37),'דיווח דיגומים'!C37,"") ->  | D37: =IF('דיווח דיגומים'!E37="","",'דיווח דיגומים'!E37) ->  | E37: =IF(B37="","",IF(VLOOKUP(B37,WQ_UnitID!B:C,2,FALSE)=0,"",VLOOKUP(B37,WQ_UnitID!B:C,2,FALSE))) ->  | F37: =IF(B37="","",ExcLimit!$B$8) ->  | G37: =IF(B37="","",IF(D37=Index!$R$24,"",ExcLimit!$C$8)) ->  | H37: =IF(B37="","",ExcLimit!$D$8) ->  | I37: =IF(B37="","",ExcLimit!$E$8) ->  | J37: =IFERROR(VLOOKUP(B37,ExcCalc!O:S,2,FALSE),"") ->  | K37: =IFERROR(VLOOKUP(B37,ExcCalc!O:S,3,FALSE),"") ->  | L37: =IFERROR(VLOOKUP(B37,ExcCalc!O:S,4,FALSE),"") ->  | M37: =IFERROR(VLOOKUP(B37,ExcCalc!O:S,5,FALSE),"") -> 
B38: =IF(ISNUMBER('דיווח דיגומים'!B38),'דיווח דיגומים'!B38,"") ->  | C38: =IF(ISNUMBER('דיווח דיגומים'!B38),'דיווח דיגומים'!C38,"") ->  | D38: =IF('דיווח דיגומים'!E38="","",'דיווח דיגומים'!E38) ->  | E38: =IF(B38="","",IF(VLOOKUP(B38,WQ_UnitID!B:C,2,FALSE)=0,"",VLOOKUP(B38,WQ_UnitID!B:C,2,FALSE))) ->  | F38: =IF(B38="","",ExcLimit!$B$8) ->  | G38: =IF(B38="","",IF(D38=Index!$R$24,"",ExcLimit!$C$8)) ->  | H38: =IF(B38="","",ExcLimit!$D$8) ->  | I38: =IF(B38="","",ExcLimit!$E$8) ->  | J38: =IFERROR(VLOOKUP(B38,ExcCalc!O:S,2,FALSE),"") ->  | K38: =IFERROR(VLOOKUP(B38,ExcCalc!O:S,3,FALSE),"") ->  | L38: =IFERROR(VLOOKUP(B38,ExcCalc!O:S,4,FALSE),"") ->  | M38: =IFERROR(VLOOKUP(B38,ExcCalc!O:S,5,FALSE),"") -> 
B39: =IF(ISNUMBER('דיווח דיגומים'!B39),'דיווח דיגומים'!B39,"") ->  | C39: =IF(ISNUMBER('דיווח דיגומים'!B39),'דיווח דיגומים'!C39,"") ->  | D39: =IF('דיווח דיגומים'!E39="","",'דיווח דיגומים'!E39) ->  | E39: =IF(B39="","",IF(VLOOKUP(B39,WQ_UnitID!B:C,2,FALSE)=0,"",VLOOKUP(B39,WQ_UnitID!B:C,2,FALSE))) ->  | F39: =IF(B39="","",ExcLimit!$B$8) ->  | G39: =IF(B39="","",IF(D39=Index!$R$24,"",ExcLimit!$C$8)) ->  | H39: =IF(B39="","",ExcLimit!$D$8) ->  | I39: =IF(B39="","",ExcLimit!$E$8) ->  | J39: =IFERROR(VLOOKUP(B39,ExcCalc!O:S,2,FALSE),"") ->  | K39: =IFERROR(VLOOKUP(B39,ExcCalc!O:S,3,FALSE),"") ->  | L39: =IFERROR(VLOOKUP(B39,ExcCalc!O:S,4,FALSE),"") ->  | M39: =IFERROR(VLOOKUP(B39,ExcCalc!O:S,5,FALSE),"") -> 
B40: =IF(ISNUMBER('דיווח דיגומים'!B40),'דיווח דיגומים'!B40,"") ->  | C40: =IF(ISNUMBER('דיווח דיגומים'!B40),'דיווח דיגומים'!C40,"") ->  | D40: =IF('דיווח דיגומים'!E40="","",'דיווח דיגומים'!E40) ->  | E40: =IF(B40="","",IF(VLOOKUP(B40,WQ_UnitID!B:C,2,FALSE)=0,"",VLOOKUP(B40,WQ_UnitID!B:C,2,FALSE))) ->  | F40: =IF(B40="","",ExcLimit!$B$8) ->  | G40: =IF(B40="","",IF(D40=Index!$R$24,"",ExcLimit!$C$8)) ->  | H40: =IF(B40="","",ExcLimit!$D$8) ->  | I40: =IF(B40="","",ExcLimit!$E$8) ->  | J40: =IFERROR(VLOOKUP(B40,ExcCalc!O:S,2,FALSE),"") ->  | K40: =IFERROR(VLOOKUP(B40,ExcCalc!O:S,3,FALSE),"") ->  | L40: =IFERROR(VLOOKUP(B40,ExcCalc!O:S,4,FALSE),"") ->  | M40: =IFERROR(VLOOKUP(B40,ExcCalc!O:S,5,FALSE),"") -> 
B41: =IF(ISNUMBER('דיווח דיגומים'!B41),'דיווח דיגומים'!B41,"") ->  | C41: =IF(ISNUMBER('דיווח דיגומים'!B41),'דיווח דיגומים'!C41,"") ->  | D41: =IF('דיווח דיגומים'!E41="","",'דיווח דיגומים'!E41) ->  | E41: =IF(B41="","",IF(VLOOKUP(B41,WQ_UnitID!B:C,2,FALSE)=0,"",VLOOKUP(B41,WQ_UnitID!B:C,2,FALSE))) ->  | F41: =IF(B41="","",ExcLimit!$B$8) ->  | G41: =IF(B41="","",IF(D41=Index!$R$24,"",ExcLimit!$C$8)) ->  | H41: =IF(B41="","",ExcLimit!$D$8) ->  | I41: =IF(B41="","",ExcLimit!$E$8) ->  | J41: =IFERROR(VLOOKUP(B41,ExcCalc!O:S,2,FALSE),"") ->  | K41: =IFERROR(VLOOKUP(B41,ExcCalc!O:S,3,FALSE),"") ->  | L41: =IFERROR(VLOOKUP(B41,ExcCalc!O:S,4,FALSE),"") ->  | M41: =IFERROR(VLOOKUP(B41,ExcCalc!O:S,5,FALSE),"") -> 
B42: =IF(ISNUMBER('דיווח דיגומים'!B42),'דיווח דיגומים'!B42,"") ->  | C42: =IF(ISNUMBER('דיווח דיגומים'!B42),'דיווח דיגומים'!C42,"") ->  | D42: =IF('דיווח דיגומים'!E42="","",'דיווח דיגומים'!E42) ->  | E42: =IF(B42="","",IF(VLOOKUP(B42,WQ_UnitID!B:C,2,FALSE)=0,"",VLOOKUP(B42,WQ_UnitID!B:C,2,FALSE))) ->  | F42: =IF(B42="","",ExcLimit!$B$8) ->  | G42: =IF(B42="","",IF(D42=Index!$R$24,"",ExcLimit!$C$8)) ->  | H42: =IF(B42="","",ExcLimit!$D$8) ->  | I42: =IF(B42="","",ExcLimit!$E$8) ->  | J42: =IFERROR(VLOOKUP(B42,ExcCalc!O:S,2,FALSE),"") ->  | K42: =IFERROR(VLOOKUP(B42,ExcCalc!O:S,3,FALSE),"") ->  | L42: =IFERROR(VLOOKUP(B42,ExcCalc!O:S,4,FALSE),"") ->  | M42: =IFERROR(VLOOKUP(B42,ExcCalc!O:S,5,FALSE),"") -> 
B43: =IF(ISNUMBER('דיווח דיגומים'!B43),'דיווח דיגומים'!B43,"") ->  | C43: =IF(ISNUMBER('דיווח דיגומים'!B43),'דיווח דיגומים'!C43,"") ->  | D43: =IF('דיווח דיגומים'!E43="","",'דיווח דיגומים'!E43) ->  | E43: =IF(B43="","",IF(VLOOKUP(B43,WQ_UnitID!B:C,2,FALSE)=0,"",VLOOKUP(B43,WQ_UnitID!B:C,2,FALSE))) ->  | F43: =IF(B43="","",ExcLimit!$B$8) ->  | G43: =IF(B43="","",IF(D43=Index!$R$24,"",ExcLimit!$C$8)) ->  | H43: =IF(B43="","",ExcLimit!$D$8) ->  | I43: =IF(B43="","",ExcLimit!$E$8) ->  | J43: =IFERROR(VLOOKUP(B43,ExcCalc!O:S,2,FALSE),"") ->  | K43: =IFERROR(VLOOKUP(B43,ExcCalc!O:S,3,FALSE),"") ->  | L43: =IFERROR(VLOOKUP(B43,ExcCalc!O:S,4,FALSE),"") ->  | M43: =IFERROR(VLOOKUP(B43,ExcCalc!O:S,5,FALSE),"") -> 
B44: =IF(ISNUMBER('דיווח דיגומים'!B44),'דיווח דיגומים'!B44,"") ->  | C44: =IF(ISNUMBER('דיווח דיגומים'!B44),'דיווח דיגומים'!C44,"") ->  | D44: =IF('דיווח דיגומים'!E44="","",'דיווח דיגומים'!E44) ->  | E44: =IF(B44="","",IF(VLOOKUP(B44,WQ_UnitID!B:C,2,FALSE)=0,"",VLOOKUP(B44,WQ_UnitID!B:C,2,FALSE))) ->  | F44: =IF(B44="","",ExcLimit!$B$8) ->  | G44: =IF(B44="","",IF(D44=Index!$R$24,"",ExcLimit!$C$8)) ->  | H44: =IF(B44="","",ExcLimit!$D$8) ->  | I44: =IF(B44="","",ExcLimit!$E$8) ->  | J44: =IFERROR(VLOOKUP(B44,ExcCalc!O:S,2,FALSE),"") ->  | K44: =IFERROR(VLOOKUP(B44,ExcCalc!O:S,3,FALSE),"") ->  | L44: =IFERROR(VLOOKUP(B44,ExcCalc!O:S,4,FALSE),"") ->  | M44: =IFERROR(VLOOKUP(B44,ExcCalc!O:S,5,FALSE),"") -> 
B45: =IF(ISNUMBER('דיווח דיגומים'!B45),'דיווח דיגומים'!B45,"") ->  | C45: =IF(ISNUMBER('דיווח דיגומים'!B45),'דיווח דיגומים'!C45,"") ->  | D45: =IF('דיווח דיגומים'!E45="","",'דיווח דיגומים'!E45) ->  | E45: =IF(B45="","",IF(VLOOKUP(B45,WQ_UnitID!B:C,2,FALSE)=0,"",VLOOKUP(B45,WQ_UnitID!B:C,2,FALSE))) ->  | F45: =IF(B45="","",ExcLimit!$B$8) ->  | G45: =IF(B45="","",IF(D45=Index!$R$24,"",ExcLimit!$C$8)) ->  | H45: =IF(B45="","",ExcLimit!$D$8) ->  | I45: =IF(B45="","",ExcLimit!$E$8) ->  | J45: =IFERROR(VLOOKUP(B45,ExcCalc!O:S,2,FALSE),"") ->  | K45: =IFERROR(VLOOKUP(B45,ExcCalc!O:S,3,FALSE),"") ->  | L45: =IFERROR(VLOOKUP(B45,ExcCalc!O:S,4,FALSE),"") ->  | M45: =IFERROR(VLOOKUP(B45,ExcCalc!O:S,5,FALSE),"") -> 
B46: =IF(ISNUMBER('דיווח דיגומים'!B46),'דיווח דיגומים'!B46,"") ->  | C46: =IF(ISNUMBER('דיווח דיגומים'!B46),'דיווח דיגומים'!C46,"") ->  | D46: =IF('דיווח דיגומים'!E46="","",'דיווח דיגומים'!E46) ->  | E46: =IF(B46="","",IF(VLOOKUP(B46,WQ_UnitID!B:C,2,FALSE)=0,"",VLOOKUP(B46,WQ_UnitID!B:C,2,FALSE))) ->  | F46: =IF(B46="","",ExcLimit!$B$8) ->  | G46: =IF(B46="","",IF(D46=Index!$R$24,"",ExcLimit!$C$8)) ->  | H46: =IF(B46="","",ExcLimit!$D$8) ->  | I46: =IF(B46="","",ExcLimit!$E$8) ->  | J46: =IFERROR(VLOOKUP(B46,ExcCalc!O:S,2,FALSE),"") ->  | K46: =IFERROR(VLOOKUP(B46,ExcCalc!O:S,3,FALSE),"") ->  | L46: =IFERROR(VLOOKUP(B46,ExcCalc!O:S,4,FALSE),"") ->  | M46: =IFERROR(VLOOKUP(B46,ExcCalc!O:S,5,FALSE),"") -> 
B47: =IF(ISNUMBER('דיווח דיגומים'!B47),'דיווח דיגומים'!B47,"") ->  | C47: =IF(ISNUMBER('דיווח דיגומים'!B47),'דיווח דיגומים'!C47,"") ->  | D47: =IF('דיווח דיגומים'!E47="","",'דיווח דיגומים'!E47) ->  | E47: =IF(B47="","",IF(VLOOKUP(B47,WQ_UnitID!B:C,2,FALSE)=0,"",VLOOKUP(B47,WQ_UnitID!B:C,2,FALSE))) ->  | F47: =IF(B47="","",ExcLimit!$B$8) ->  | G47: =IF(B47="","",IF(D47=Index!$R$24,"",ExcLimit!$C$8)) ->  | H47: =IF(B47="","",ExcLimit!$D$8) ->  | I47: =IF(B47="","",ExcLimit!$E$8) ->  | J47: =IFERROR(VLOOKUP(B47,ExcCalc!O:S,2,FALSE),"") ->  | K47: =IFERROR(VLOOKUP(B47,ExcCalc!O:S,3,FALSE),"") ->  | L47: =IFERROR(VLOOKUP(B47,ExcCalc!O:S,4,FALSE),"") ->  | M47: =IFERROR(VLOOKUP(B47,ExcCalc!O:S,5,FALSE),"") -> 
B48: =IF(ISNUMBER('דיווח דיגומים'!B48),'דיווח דיגומים'!B48,"") ->  | C48: =IF(ISNUMBER('דיווח דיגומים'!B48),'דיווח דיגומים'!C48,"") ->  | D48: =IF('דיווח דיגומים'!E48="","",'דיווח דיגומים'!E48) ->  | E48: =IF(B48="","",IF(VLOOKUP(B48,WQ_UnitID!B:C,2,FALSE)=0,"",VLOOKUP(B48,WQ_UnitID!B:C,2,FALSE))) ->  | F48: =IF(B48="","",ExcLimit!$B$8) ->  | G48: =IF(B48="","",IF(D48=Index!$R$24,"",ExcLimit!$C$8)) ->  | H48: =IF(B48="","",ExcLimit!$D$8) ->  | I48: =IF(B48="","",ExcLimit!$E$8) ->  | J48: =IFERROR(VLOOKUP(B48,ExcCalc!O:S,2,FALSE),"") ->  | K48: =IFERROR(VLOOKUP(B48,ExcCalc!O:S,3,FALSE),"") ->  | L48: =IFERROR(VLOOKUP(B48,ExcCalc!O:S,4,FALSE),"") ->  | M48: =IFERROR(VLOOKUP(B48,ExcCalc!O:S,5,FALSE),"") -> 
B49: =IF(ISNUMBER('דיווח דיגומים'!B49),'דיווח דיגומים'!B49,"") ->  | C49: =IF(ISNUMBER('דיווח דיגומים'!B49),'דיווח דיגומים'!C49,"") ->  | D49: =IF('דיווח דיגומים'!E49="","",'דיווח דיגומים'!E49) ->  | E49: =IF(B49="","",IF(VLOOKUP(B49,WQ_UnitID!B:C,2,FALSE)=0,"",VLOOKUP(B49,WQ_UnitID!B:C,2,FALSE))) ->  | F49: =IF(B49="","",ExcLimit!$B$8) ->  | G49: =IF(B49="","",IF(D49=Index!$R$24,"",ExcLimit!$C$8)) ->  | H49: =IF(B49="","",ExcLimit!$D$8) ->  | I49: =IF(B49="","",ExcLimit!$E$8) ->  | J49: =IFERROR(VLOOKUP(B49,ExcCalc!O:S,2,FALSE),"") ->  | K49: =IFERROR(VLOOKUP(B49,ExcCalc!O:S,3,FALSE),"") ->  | L49: =IFERROR(VLOOKUP(B49,ExcCalc!O:S,4,FALSE),"") ->  | M49: =IFERROR(VLOOKUP(B49,ExcCalc!O:S,5,FALSE),"") -> 
B50: =IF(ISNUMBER('דיווח דיגומים'!B50),'דיווח דיגומים'!B50,"") ->  | C50: =IF(ISNUMBER('דיווח דיגומים'!B50),'דיווח דיגומים'!C50,"") ->  | D50: =IF('דיווח דיגומים'!E50="","",'דיווח דיגומים'!E50) ->  | E50: =IF(B50="","",IF(VLOOKUP(B50,WQ_UnitID!B:C,2,FALSE)=0,"",VLOOKUP(B50,WQ_UnitID!B:C,2,FALSE))) ->  | F50: =IF(B50="","",ExcLimit!$B$8) ->  | G50: =IF(B50="","",IF(D50=Index!$R$24,"",ExcLimit!$C$8)) ->  | H50: =IF(B50="","",ExcLimit!$D$8) ->  | I50: =IF(B50="","",ExcLimit!$E$8) ->  | J50: =IFERROR(VLOOKUP(B50,ExcCalc!O:S,2,FALSE),"") ->  | K50: =IFERROR(VLOOKUP(B50,ExcCalc!O:S,3,FALSE),"") ->  | L50: =IFERROR(VLOOKUP(B50,ExcCalc!O:S,4,FALSE),"") ->  | M50: =IFERROR(VLOOKUP(B50,ExcCalc!O:S,5,FALSE),"") -> 
B51: =IF(ISNUMBER('דיווח דיגומים'!B51),'דיווח דיגומים'!B51,"") ->  | C51: =IF(ISNUMBER('דיווח דיגומים'!B51),'דיווח דיגומים'!C51,"") ->  | D51: =IF('דיווח דיגומים'!E51="","",'דיווח דיגומים'!E51) ->  | E51: =IF(B51="","",IF(VLOOKUP(B51,WQ_UnitID!B:C,2,FALSE)=0,"",VLOOKUP(B51,WQ_UnitID!B:C,2,FALSE))) ->  | F51: =IF(B51="","",ExcLimit!$B$8) ->  | G51: =IF(B51="","",IF(D51=Index!$R$24,"",ExcLimit!$C$8)) ->  | H51: =IF(B51="","",ExcLimit!$D$8) ->  | I51: =IF(B51="","",ExcLimit!$E$8) ->  | J51: =IFERROR(VLOOKUP(B51,ExcCalc!O:S,2,FALSE),"") ->  | K51: =IFERROR(VLOOKUP(B51,ExcCalc!O:S,3,FALSE),"") ->  | L51: =IFERROR(VLOOKUP(B51,ExcCalc!O:S,4,FALSE),"") ->  | M51: =IFERROR(VLOOKUP(B51,ExcCalc!O:S,5,FALSE),"") -> 
B52: =IF(ISNUMBER('דיווח דיגומים'!B52),'דיווח דיגומים'!B52,"") ->  | C52: =IF(ISNUMBER('דיווח דיגומים'!B52),'דיווח דיגומים'!C52,"") ->  | D52: =IF('דיווח דיגומים'!E52="","",'דיווח דיגומים'!E52) ->  | E52: =IF(B52="","",IF(VLOOKUP(B52,WQ_UnitID!B:C,2,FALSE)=0,"",VLOOKUP(B52,WQ_UnitID!B:C,2,FALSE))) ->  | F52: =IF(B52="","",ExcLimit!$B$8) ->  | G52: =IF(B52="","",IF(D52=Index!$R$24,"",ExcLimit!$C$8)) ->  | H52: =IF(B52="","",ExcLimit!$D$8) ->  | I52: =IF(B52="","",ExcLimit!$E$8) ->  | J52: =IFERROR(VLOOKUP(B52,ExcCalc!O:S,2,FALSE),"") ->  | K52: =IFERROR(VLOOKUP(B52,ExcCalc!O:S,3,FALSE),"") ->  | L52: =IFERROR(VLOOKUP(B52,ExcCalc!O:S,4,FALSE),"") ->  | M52: =IFERROR(VLOOKUP(B52,ExcCalc!O:S,5,FALSE),"") -> 
B53: =IF(ISNUMBER('דיווח דיגומים'!B53),'דיווח דיגומים'!B53,"") ->  | C53: =IF(ISNUMBER('דיווח דיגומים'!B53),'דיווח דיגומים'!C53,"") ->  | D53: =IF('דיווח דיגומים'!E53="","",'דיווח דיגומים'!E53) ->  | E53: =IF(B53="","",IF(VLOOKUP(B53,WQ_UnitID!B:C,2,FALSE)=0,"",VLOOKUP(B53,WQ_UnitID!B:C,2,FALSE))) ->  | F53: =IF(B53="","",ExcLimit!$B$8) ->  | G53: =IF(B53="","",IF(D53=Index!$R$24,"",ExcLimit!$C$8)) ->  | H53: =IF(B53="","",ExcLimit!$D$8) ->  | I53: =IF(B53="","",ExcLimit!$E$8) ->  | J53: =IFERROR(VLOOKUP(B53,ExcCalc!O:S,2,FALSE),"") ->  | K53: =IFERROR(VLOOKUP(B53,ExcCalc!O:S,3,FALSE),"") ->  | L53: =IFERROR(VLOOKUP(B53,ExcCalc!O:S,4,FALSE),"") ->  | M53: =IFERROR(VLOOKUP(B53,ExcCalc!O:S,5,FALSE),"") -> 
B54: =IF(ISNUMBER('דיווח דיגומים'!B54),'דיווח דיגומים'!B54,"") ->  | C54: =IF(ISNUMBER('דיווח דיגומים'!B54),'דיווח דיגומים'!C54,"") ->  | D54: =IF('דיווח דיגומים'!E54="","",'דיווח דיגומים'!E54) ->  | E54: =IF(B54="","",IF(VLOOKUP(B54,WQ_UnitID!B:C,2,FALSE)=0,"",VLOOKUP(B54,WQ_UnitID!B:C,2,FALSE))) ->  | F54: =IF(B54="","",ExcLimit!$B$8) ->  | G54: =IF(B54="","",IF(D54=Index!$R$24,"",ExcLimit!$C$8)) ->  | H54: =IF(B54="","",ExcLimit!$D$8) ->  | I54: =IF(B54="","",ExcLimit!$E$8) ->  | J54: =IFERROR(VLOOKUP(B54,ExcCalc!O:S,2,FALSE),"") ->  | K54: =IFERROR(VLOOKUP(B54,ExcCalc!O:S,3,FALSE),"") ->  | L54: =IFERROR(VLOOKUP(B54,ExcCalc!O:S,4,FALSE),"") ->  | M54: =IFERROR(VLOOKUP(B54,ExcCalc!O:S,5,FALSE),"") -> 
B55: =IF(ISNUMBER('דיווח דיגומים'!B55),'דיווח דיגומים'!B55,"") ->  | C55: =IF(ISNUMBER('דיווח דיגומים'!B55),'דיווח דיגומים'!C55,"") ->  | D55: =IF('דיווח דיגומים'!E55="","",'דיווח דיגומים'!E55) ->  | E55: =IF(B55="","",IF(VLOOKUP(B55,WQ_UnitID!B:C,2,FALSE)=0,"",VLOOKUP(B55,WQ_UnitID!B:C,2,FALSE))) ->  | F55: =IF(B55="","",ExcLimit!$B$8) ->  | G55: =IF(B55="","",IF(D55=Index!$R$24,"",ExcLimit!$C$8)) ->  | H55: =IF(B55="","",ExcLimit!$D$8) ->  | I55: =IF(B55="","",ExcLimit!$E$8) ->  | J55: =IFERROR(VLOOKUP(B55,ExcCalc!O:S,2,FALSE),"") ->  | K55: =IFERROR(VLOOKUP(B55,ExcCalc!O:S,3,FALSE),"") ->  | L55: =IFERROR(VLOOKUP(B55,ExcCalc!O:S,4,FALSE),"") ->  | M55: =IFERROR(VLOOKUP(B55,ExcCalc!O:S,5,FALSE),"") -> 
B56: =IF(ISNUMBER('דיווח דיגומים'!B56),'דיווח דיגומים'!B56,"") ->  | C56: =IF(ISNUMBER('דיווח דיגומים'!B56),'דיווח דיגומים'!C56,"") ->  | D56: =IF('דיווח דיגומים'!E56="","",'דיווח דיגומים'!E56) ->  | E56: =IF(B56="","",IF(VLOOKUP(B56,WQ_UnitID!B:C,2,FALSE)=0,"",VLOOKUP(B56,WQ_UnitID!B:C,2,FALSE))) ->  | F56: =IF(B56="","",ExcLimit!$B$8) ->  | G56: =IF(B56="","",IF(D56=Index!$R$24,"",ExcLimit!$C$8)) ->  | H56: =IF(B56="","",ExcLimit!$D$8) ->  | I56: =IF(B56="","",ExcLimit!$E$8) ->  | J56: =IFERROR(VLOOKUP(B56,ExcCalc!O:S,2,FALSE),"") ->  | K56: =IFERROR(VLOOKUP(B56,ExcCalc!O:S,3,FALSE),"") ->  | L56: =IFERROR(VLOOKUP(B56,ExcCalc!O:S,4,FALSE),"") ->  | M56: =IFERROR(VLOOKUP(B56,ExcCalc!O:S,5,FALSE),"") -> 
B57: =IF(ISNUMBER('דיווח דיגומים'!B57),'דיווח דיגומים'!B57,"") ->  | C57: =IF(ISNUMBER('דיווח דיגומים'!B57),'דיווח דיגומים'!C57,"") ->  | D57: =IF('דיווח דיגומים'!E57="","",'דיווח דיגומים'!E57) ->  | E57: =IF(B57="","",IF(VLOOKUP(B57,WQ_UnitID!B:C,2,FALSE)=0,"",VLOOKUP(B57,WQ_UnitID!B:C,2,FALSE))) ->  | F57: =IF(B57="","",ExcLimit!$B$8) ->  | G57: =IF(B57="","",IF(D57=Index!$R$24,"",ExcLimit!$C$8)) ->  | H57: =IF(B57="","",ExcLimit!$D$8) ->  | I57: =IF(B57="","",ExcLimit!$E$8) ->  | J57: =IFERROR(VLOOKUP(B57,ExcCalc!O:S,2,FALSE),"") ->  | K57: =IFERROR(VLOOKUP(B57,ExcCalc!O:S,3,FALSE),"") ->  | L57: =IFERROR(VLOOKUP(B57,ExcCalc!O:S,4,FALSE),"") ->  | M57: =IFERROR(VLOOKUP(B57,ExcCalc!O:S,5,FALSE),"") -> 
B58: =IF(ISNUMBER('דיווח דיגומים'!B58),'דיווח דיגומים'!B58,"") ->  | C58: =IF(ISNUMBER('דיווח דיגומים'!B58),'דיווח דיגומים'!C58,"") ->  | D58: =IF('דיווח דיגומים'!E58="","",'דיווח דיגומים'!E58) ->  | E58: =IF(B58="","",IF(VLOOKUP(B58,WQ_UnitID!B:C,2,FALSE)=0,"",VLOOKUP(B58,WQ_UnitID!B:C,2,FALSE))) ->  | F58: =IF(B58="","",ExcLimit!$B$8) ->  | G58: =IF(B58="","",IF(D58=Index!$R$24,"",ExcLimit!$C$8)) ->  | H58: =IF(B58="","",ExcLimit!$D$8) ->  | I58: =IF(B58="","",ExcLimit!$E$8) ->  | J58: =IFERROR(VLOOKUP(B58,ExcCalc!O:S,2,FALSE),"") ->  | K58: =IFERROR(VLOOKUP(B58,ExcCalc!O:S,3,FALSE),"") ->  | L58: =IFERROR(VLOOKUP(B58,ExcCalc!O:S,4,FALSE),"") ->  | M58: =IFERROR(VLOOKUP(B58,ExcCalc!O:S,5,FALSE),"") -> 
B59: =IF(ISNUMBER('דיווח דיגומים'!B59),'דיווח דיגומים'!B59,"") ->  | C59: =IF(ISNUMBER('דיווח דיגומים'!B59),'דיווח דיגומים'!C59,"") ->  | D59: =IF('דיווח דיגומים'!E59="","",'דיווח דיגומים'!E59) ->  | E59: =IF(B59="","",IF(VLOOKUP(B59,WQ_UnitID!B:C,2,FALSE)=0,"",VLOOKUP(B59,WQ_UnitID!B:C,2,FALSE))) ->  | F59: =IF(B59="","",ExcLimit!$B$8) ->  | G59: =IF(B59="","",IF(D59=Index!$R$24,"",ExcLimit!$C$8)) ->  | H59: =IF(B59="","",ExcLimit!$D$8) ->  | I59: =IF(B59="","",ExcLimit!$E$8) ->  | J59: =IFERROR(VLOOKUP(B59,ExcCalc!O:S,2,FALSE),"") ->  | K59: =IFERROR(VLOOKUP(B59,ExcCalc!O:S,3,FALSE),"") ->  | L59: =IFERROR(VLOOKUP(B59,ExcCalc!O:S,4,FALSE),"") ->  | M59: =IFERROR(VLOOKUP(B59,ExcCalc!O:S,5,FALSE),"") -> 
B60: =IF(ISNUMBER('דיווח דיגומים'!B60),'דיווח דיגומים'!B60,"") ->  | C60: =IF(ISNUMBER('דיווח דיגומים'!B60),'דיווח דיגומים'!C60,"") ->  | D60: =IF('דיווח דיגומים'!E60="","",'דיווח דיגומים'!E60) ->  | E60: =IF(B60="","",IF(VLOOKUP(B60,WQ_UnitID!B:C,2,FALSE)=0,"",VLOOKUP(B60,WQ_UnitID!B:C,2,FALSE))) ->  | F60: =IF(B60="","",ExcLimit!$B$8) ->  | G60: =IF(B60="","",IF(D60=Index!$R$24,"",ExcLimit!$C$8)) ->  | H60: =IF(B60="","",ExcLimit!$D$8) ->  | I60: =IF(B60="","",ExcLimit!$E$8) ->  | J60: =IFERROR(VLOOKUP(B60,ExcCalc!O:S,2,FALSE),"") ->  | K60: =IFERROR(VLOOKUP(B60,ExcCalc!O:S,3,FALSE),"") ->  | L60: =IFERROR(VLOOKUP(B60,ExcCalc!O:S,4,FALSE),"") ->  | M60: =IFERROR(VLOOKUP(B60,ExcCalc!O:S,5,FALSE),"") -> 
B61: =IF(ISNUMBER('דיווח דיגומים'!B61),'דיווח דיגומים'!B61,"") ->  | C61: =IF(ISNUMBER('דיווח דיגומים'!B61),'דיווח דיגומים'!C61,"") ->  | D61: =IF('דיווח דיגומים'!E61="","",'דיווח דיגומים'!E61) ->  | E61: =IF(B61="","",IF(VLOOKUP(B61,WQ_UnitID!B:C,2,FALSE)=0,"",VLOOKUP(B61,WQ_UnitID!B:C,2,FALSE))) ->  | F61: =IF(B61="","",ExcLimit!$B$8) ->  | G61: =IF(B61="","",IF(D61=Index!$R$24,"",ExcLimit!$C$8)) ->  | H61: =IF(B61="","",ExcLimit!$D$8) ->  | I61: =IF(B61="","",ExcLimit!$E$8) ->  | J61: =IFERROR(VLOOKUP(B61,ExcCalc!O:S,2,FALSE),"") ->  | K61: =IFERROR(VLOOKUP(B61,ExcCalc!O:S,3,FALSE),"") ->  | L61: =IFERROR(VLOOKUP(B61,ExcCalc!O:S,4,FALSE),"") ->  | M61: =IFERROR(VLOOKUP(B61,ExcCalc!O:S,5,FALSE),"") -> 
B62: =IF(ISNUMBER('דיווח דיגומים'!B62),'דיווח דיגומים'!B62,"") ->  | C62: =IF(ISNUMBER('דיווח דיגומים'!B62),'דיווח דיגומים'!C62,"") ->  | D62: =IF('דיווח דיגומים'!E62="","",'דיווח דיגומים'!E62) ->  | E62: =IF(B62="","",IF(VLOOKUP(B62,WQ_UnitID!B:C,2,FALSE)=0,"",VLOOKUP(B62,WQ_UnitID!B:C,2,FALSE))) ->  | F62: =IF(B62="","",ExcLimit!$B$8) ->  | G62: =IF(B62="","",IF(D62=Index!$R$24,"",ExcLimit!$C$8)) ->  | H62: =IF(B62="","",ExcLimit!$D$8) ->  | I62: =IF(B62="","",ExcLimit!$E$8) ->  | J62: =IFERROR(VLOOKUP(B62,ExcCalc!O:S,2,FALSE),"") ->  | K62: =IFERROR(VLOOKUP(B62,ExcCalc!O:S,3,FALSE),"") ->  | L62: =IFERROR(VLOOKUP(B62,ExcCalc!O:S,4,FALSE),"") ->  | M62: =IFERROR(VLOOKUP(B62,ExcCalc!O:S,5,FALSE),"") -> 
B63: =IF(ISNUMBER('דיווח דיגומים'!B63),'דיווח דיגומים'!B63,"") ->  | C63: =IF(ISNUMBER('דיווח דיגומים'!B63),'דיווח דיגומים'!C63,"") ->  | D63: =IF('דיווח דיגומים'!E63="","",'דיווח דיגומים'!E63) ->  | E63: =IF(B63="","",IF(VLOOKUP(B63,WQ_UnitID!B:C,2,FALSE)=0,"",VLOOKUP(B63,WQ_UnitID!B:C,2,FALSE))) ->  | F63: =IF(B63="","",ExcLimit!$B$8) ->  | G63: =IF(B63="","",IF(D63=Index!$R$24,"",ExcLimit!$C$8)) ->  | H63: =IF(B63="","",ExcLimit!$D$8) ->  | I63: =IF(B63="","",ExcLimit!$E$8) ->  | J63: =IFERROR(VLOOKUP(B63,ExcCalc!O:S,2,FALSE),"") ->  | K63: =IFERROR(VLOOKUP(B63,ExcCalc!O:S,3,FALSE),"") ->  | L63: =IFERROR(VLOOKUP(B63,ExcCalc!O:S,4,FALSE),"") ->  | M63: =IFERROR(VLOOKUP(B63,ExcCalc!O:S,5,FALSE),"") -> 
B64: =IF(ISNUMBER('דיווח דיגומים'!B64),'דיווח דיגומים'!B64,"") ->  | C64: =IF(ISNUMBER('דיווח דיגומים'!B64),'דיווח דיגומים'!C64,"") ->  | D64: =IF('דיווח דיגומים'!E64="","",'דיווח דיגומים'!E64) ->  | E64: =IF(B64="","",IF(VLOOKUP(B64,WQ_UnitID!B:C,2,FALSE)=0,"",VLOOKUP(B64,WQ_UnitID!B:C,2,FALSE))) ->  | F64: =IF(B64="","",ExcLimit!$B$8) ->  | G64: =IF(B64="","",IF(D64=Index!$R$24,"",ExcLimit!$C$8)) ->  | H64: =IF(B64="","",ExcLimit!$D$8) ->  | I64: =IF(B64="","",ExcLimit!$E$8) ->  | J64: =IFERROR(VLOOKUP(B64,ExcCalc!O:S,2,FALSE),"") ->  | K64: =IFERROR(VLOOKUP(B64,ExcCalc!O:S,3,FALSE),"") ->  | L64: =IFERROR(VLOOKUP(B64,ExcCalc!O:S,4,FALSE),"") ->  | M64: =IFERROR(VLOOKUP(B64,ExcCalc!O:S,5,FALSE),"") -> 
B65: =IF(ISNUMBER('דיווח דיגומים'!B65),'דיווח דיגומים'!B65,"") ->  | C65: =IF(ISNUMBER('דיווח דיגומים'!B65),'דיווח דיגומים'!C65,"") ->  | D65: =IF('דיווח דיגומים'!E65="","",'דיווח דיגומים'!E65) ->  | E65: =IF(B65="","",IF(VLOOKUP(B65,WQ_UnitID!B:C,2,FALSE)=0,"",VLOOKUP(B65,WQ_UnitID!B:C,2,FALSE))) ->  | F65: =IF(B65="","",ExcLimit!$B$8) ->  | G65: =IF(B65="","",IF(D65=Index!$R$24,"",ExcLimit!$C$8)) ->  | H65: =IF(B65="","",ExcLimit!$D$8) ->  | I65: =IF(B65="","",ExcLimit!$E$8) ->  | J65: =IFERROR(VLOOKUP(B65,ExcCalc!O:S,2,FALSE),"") ->  | K65: =IFERROR(VLOOKUP(B65,ExcCalc!O:S,3,FALSE),"") ->  | L65: =IFERROR(VLOOKUP(B65,ExcCalc!O:S,4,FALSE),"") ->  | M65: =IFERROR(VLOOKUP(B65,ExcCalc!O:S,5,FALSE),"") -> 
B66: =IF(ISNUMBER('דיווח דיגומים'!B66),'דיווח דיגומים'!B66,"") ->  | C66: =IF(ISNUMBER('דיווח דיגומים'!B66),'דיווח דיגומים'!C66,"") ->  | D66: =IF('דיווח דיגומים'!E66="","",'דיווח דיגומים'!E66) ->  | E66: =IF(B66="","",IF(VLOOKUP(B66,WQ_UnitID!B:C,2,FALSE)=0,"",VLOOKUP(B66,WQ_UnitID!B:C,2,FALSE))) ->  | F66: =IF(B66="","",ExcLimit!$B$8) ->  | G66: =IF(B66="","",IF(D66=Index!$R$24,"",ExcLimit!$C$8)) ->  | H66: =IF(B66="","",ExcLimit!$D$8) ->  | I66: =IF(B66="","",ExcLimit!$E$8) ->  | J66: =IFERROR(VLOOKUP(B66,ExcCalc!O:S,2,FALSE),"") ->  | K66: =IFERROR(VLOOKUP(B66,ExcCalc!O:S,3,FALSE),"") ->  | L66: =IFERROR(VLOOKUP(B66,ExcCalc!O:S,4,FALSE),"") ->  | M66: =IFERROR(VLOOKUP(B66,ExcCalc!O:S,5,FALSE),"") -> 
B67: =IF(ISNUMBER('דיווח דיגומים'!B67),'דיווח דיגומים'!B67,"") ->  | C67: =IF(ISNUMBER('דיווח דיגומים'!B67),'דיווח דיגומים'!C67,"") ->  | D67: =IF('דיווח דיגומים'!E67="","",'דיווח דיגומים'!E67) ->  | E67: =IF(B67="","",IF(VLOOKUP(B67,WQ_UnitID!B:C,2,FALSE)=0,"",VLOOKUP(B67,WQ_UnitID!B:C,2,FALSE))) ->  | F67: =IF(B67="","",ExcLimit!$B$8) ->  | G67: =IF(B67="","",IF(D67=Index!$R$24,"",ExcLimit!$C$8)) ->  | H67: =IF(B67="","",ExcLimit!$D$8) ->  | I67: =IF(B67="","",ExcLimit!$E$8) ->  | J67: =IFERROR(VLOOKUP(B67,ExcCalc!O:S,2,FALSE),"") ->  | K67: =IFERROR(VLOOKUP(B67,ExcCalc!O:S,3,FALSE),"") ->  | L67: =IFERROR(VLOOKUP(B67,ExcCalc!O:S,4,FALSE),"") ->  | M67: =IFERROR(VLOOKUP(B67,ExcCalc!O:S,5,FALSE),"") -> 
B68: =IF(ISNUMBER('דיווח דיגומים'!B68),'דיווח דיגומים'!B68,"") ->  | C68: =IF(ISNUMBER('דיווח דיגומים'!B68),'דיווח דיגומים'!C68,"") ->  | D68: =IF('דיווח דיגומים'!E68="","",'דיווח דיגומים'!E68) ->  | E68: =IF(B68="","",IF(VLOOKUP(B68,WQ_UnitID!B:C,2,FALSE)=0,"",VLOOKUP(B68,WQ_UnitID!B:C,2,FALSE))) ->  | F68: =IF(B68="","",ExcLimit!$B$8) ->  | G68: =IF(B68="","",IF(D68=Index!$R$24,"",ExcLimit!$C$8)) ->  | H68: =IF(B68="","",ExcLimit!$D$8) ->  | I68: =IF(B68="","",ExcLimit!$E$8) ->  | J68: =IFERROR(VLOOKUP(B68,ExcCalc!O:S,2,FALSE),"") ->  | K68: =IFERROR(VLOOKUP(B68,ExcCalc!O:S,3,FALSE),"") ->  | L68: =IFERROR(VLOOKUP(B68,ExcCalc!O:S,4,FALSE),"") ->  | M68: =IFERROR(VLOOKUP(B68,ExcCalc!O:S,5,FALSE),"") -> 
B69: =IF(ISNUMBER('דיווח דיגומים'!B69),'דיווח דיגומים'!B69,"") ->  | C69: =IF(ISNUMBER('דיווח דיגומים'!B69),'דיווח דיגומים'!C69,"") ->  | D69: =IF('דיווח דיגומים'!E69="","",'דיווח דיגומים'!E69) ->  | E69: =IF(B69="","",IF(VLOOKUP(B69,WQ_UnitID!B:C,2,FALSE)=0,"",VLOOKUP(B69,WQ_UnitID!B:C,2,FALSE))) ->  | F69: =IF(B69="","",ExcLimit!$B$8) ->  | G69: =IF(B69="","",IF(D69=Index!$R$24,"",ExcLimit!$C$8)) ->  | H69: =IF(B69="","",ExcLimit!$D$8) ->  | I69: =IF(B69="","",ExcLimit!$E$8) ->  | J69: =IFERROR(VLOOKUP(B69,ExcCalc!O:S,2,FALSE),"") ->  | K69: =IFERROR(VLOOKUP(B69,ExcCalc!O:S,3,FALSE),"") ->  | L69: =IFERROR(VLOOKUP(B69,ExcCalc!O:S,4,FALSE),"") ->  | M69: =IFERROR(VLOOKUP(B69,ExcCalc!O:S,5,FALSE),"") -> 
B70: =IF(ISNUMBER('דיווח דיגומים'!B70),'דיווח דיגומים'!B70,"") ->  | C70: =IF(ISNUMBER('דיווח דיגומים'!B70),'דיווח דיגומים'!C70,"") ->  | D70: =IF('דיווח דיגומים'!E70="","",'דיווח דיגומים'!E70) ->  | E70: =IF(B70="","",IF(VLOOKUP(B70,WQ_UnitID!B:C,2,FALSE)=0,"",VLOOKUP(B70,WQ_UnitID!B:C,2,FALSE))) ->  | F70: =IF(B70="","",ExcLimit!$B$8) ->  | G70: =IF(B70="","",IF(D70=Index!$R$24,"",ExcLimit!$C$8)) ->  | H70: =IF(B70="","",ExcLimit!$D$8) ->  | I70: =IF(B70="","",ExcLimit!$E$8) ->  | J70: =IFERROR(VLOOKUP(B70,ExcCalc!O:S,2,FALSE),"") ->  | K70: =IFERROR(VLOOKUP(B70,ExcCalc!O:S,3,FALSE),"") ->  | L70: =IFERROR(VLOOKUP(B70,ExcCalc!O:S,4,FALSE),"") ->  | M70: =IFERROR(VLOOKUP(B70,ExcCalc!O:S,5,FALSE),"") -> 
B71: =IF(ISNUMBER('דיווח דיגומים'!B71),'דיווח דיגומים'!B71,"") ->  | C71: =IF(ISNUMBER('דיווח דיגומים'!B71),'דיווח דיגומים'!C71,"") ->  | D71: =IF('דיווח דיגומים'!E71="","",'דיווח דיגומים'!E71) ->  | E71: =IF(B71="","",IF(VLOOKUP(B71,WQ_UnitID!B:C,2,FALSE)=0,"",VLOOKUP(B71,WQ_UnitID!B:C,2,FALSE))) ->  | F71: =IF(B71="","",ExcLimit!$B$8) ->  | G71: =IF(B71="","",IF(D71=Index!$R$24,"",ExcLimit!$C$8)) ->  | H71: =IF(B71="","",ExcLimit!$D$8) ->  | I71: =IF(B71="","",ExcLimit!$E$8) ->  | J71: =IFERROR(VLOOKUP(B71,ExcCalc!O:S,2,FALSE),"") ->  | K71: =IFERROR(VLOOKUP(B71,ExcCalc!O:S,3,FALSE),"") ->  | L71: =IFERROR(VLOOKUP(B71,ExcCalc!O:S,4,FALSE),"") ->  | M71: =IFERROR(VLOOKUP(B71,ExcCalc!O:S,5,FALSE),"") -> 
B72: =IF(ISNUMBER('דיווח דיגומים'!B72),'דיווח דיגומים'!B72,"") ->  | C72: =IF(ISNUMBER('דיווח דיגומים'!B72),'דיווח דיגומים'!C72,"") ->  | D72: =IF('דיווח דיגומים'!E72="","",'דיווח דיגומים'!E72) ->  | E72: =IF(B72="","",IF(VLOOKUP(B72,WQ_UnitID!B:C,2,FALSE)=0,"",VLOOKUP(B72,WQ_UnitID!B:C,2,FALSE))) ->  | F72: =IF(B72="","",ExcLimit!$B$8) ->  | G72: =IF(B72="","",IF(D72=Index!$R$24,"",ExcLimit!$C$8)) ->  | H72: =IF(B72="","",ExcLimit!$D$8) ->  | I72: =IF(B72="","",ExcLimit!$E$8) ->  | J72: =IFERROR(VLOOKUP(B72,ExcCalc!O:S,2,FALSE),"") ->  | K72: =IFERROR(VLOOKUP(B72,ExcCalc!O:S,3,FALSE),"") ->  | L72: =IFERROR(VLOOKUP(B72,ExcCalc!O:S,4,FALSE),"") ->  | M72: =IFERROR(VLOOKUP(B72,ExcCalc!O:S,5,FALSE),"") -> 
B73: =IF(ISNUMBER('דיווח דיגומים'!B73),'דיווח דיגומים'!B73,"") ->  | C73: =IF(ISNUMBER('דיווח דיגומים'!B73),'דיווח דיגומים'!C73,"") ->  | D73: =IF('דיווח דיגומים'!E73="","",'דיווח דיגומים'!E73) ->  | E73: =IF(B73="","",IF(VLOOKUP(B73,WQ_UnitID!B:C,2,FALSE)=0,"",VLOOKUP(B73,WQ_UnitID!B:C,2,FALSE))) ->  | F73: =IF(B73="","",ExcLimit!$B$8) ->  | G73: =IF(B73="","",IF(D73=Index!$R$24,"",ExcLimit!$C$8)) ->  | H73: =IF(B73="","",ExcLimit!$D$8) ->  | I73: =IF(B73="","",ExcLimit!$E$8) ->  | J73: =IFERROR(VLOOKUP(B73,ExcCalc!O:S,2,FALSE),"") ->  | K73: =IFERROR(VLOOKUP(B73,ExcCalc!O:S,3,FALSE),"") ->  | L73: =IFERROR(VLOOKUP(B73,ExcCalc!O:S,4,FALSE),"") ->  | M73: =IFERROR(VLOOKUP(B73,ExcCalc!O:S,5,FALSE),"") -> 
B74: =IF(ISNUMBER('דיווח דיגומים'!B74),'דיווח דיגומים'!B74,"") ->  | C74: =IF(ISNUMBER('דיווח דיגומים'!B74),'דיווח דיגומים'!C74,"") ->  | D74: =IF('דיווח דיגומים'!E74="","",'דיווח דיגומים'!E74) ->  | E74: =IF(B74="","",IF(VLOOKUP(B74,WQ_UnitID!B:C,2,FALSE)=0,"",VLOOKUP(B74,WQ_UnitID!B:C,2,FALSE))) ->  | F74: =IF(B74="","",ExcLimit!$B$8) ->  | G74: =IF(B74="","",IF(D74=Index!$R$24,"",ExcLimit!$C$8)) ->  | H74: =IF(B74="","",ExcLimit!$D$8) ->  | I74: =IF(B74="","",ExcLimit!$E$8) ->  | J74: =IFERROR(VLOOKUP(B74,ExcCalc!O:S,2,FALSE),"") ->  | K74: =IFERROR(VLOOKUP(B74,ExcCalc!O:S,3,FALSE),"") ->  | L74: =IFERROR(VLOOKUP(B74,ExcCalc!O:S,4,FALSE),"") ->  | M74: =IFERROR(VLOOKUP(B74,ExcCalc!O:S,5,FALSE),"") -> 
B75: =IF(ISNUMBER('דיווח דיגומים'!B75),'דיווח דיגומים'!B75,"") ->  | C75: =IF(ISNUMBER('דיווח דיגומים'!B75),'דיווח דיגומים'!C75,"") ->  | D75: =IF('דיווח דיגומים'!E75="","",'דיווח דיגומים'!E75) ->  | E75: =IF(B75="","",IF(VLOOKUP(B75,WQ_UnitID!B:C,2,FALSE)=0,"",VLOOKUP(B75,WQ_UnitID!B:C,2,FALSE))) ->  | F75: =IF(B75="","",ExcLimit!$B$8) ->  | G75: =IF(B75="","",IF(D75=Index!$R$24,"",ExcLimit!$C$8)) ->  | H75: =IF(B75="","",ExcLimit!$D$8) ->  | I75: =IF(B75="","",ExcLimit!$E$8) ->  | J75: =IFERROR(VLOOKUP(B75,ExcCalc!O:S,2,FALSE),"") ->  | K75: =IFERROR(VLOOKUP(B75,ExcCalc!O:S,3,FALSE),"") ->  | L75: =IFERROR(VLOOKUP(B75,ExcCalc!O:S,4,FALSE),"") ->  | M75: =IFERROR(VLOOKUP(B75,ExcCalc!O:S,5,FALSE),"") -> 
B76: =IF(ISNUMBER('דיווח דיגומים'!B76),'דיווח דיגומים'!B76,"") ->  | C76: =IF(ISNUMBER('דיווח דיגומים'!B76),'דיווח דיגומים'!C76,"") ->  | D76: =IF('דיווח דיגומים'!E76="","",'דיווח דיגומים'!E76) ->  | E76: =IF(B76="","",IF(VLOOKUP(B76,WQ_UnitID!B:C,2,FALSE)=0,"",VLOOKUP(B76,WQ_UnitID!B:C,2,FALSE))) ->  | F76: =IF(B76="","",ExcLimit!$B$8) ->  | G76: =IF(B76="","",IF(D76=Index!$R$24,"",ExcLimit!$C$8)) ->  | H76: =IF(B76="","",ExcLimit!$D$8) ->  | I76: =IF(B76="","",ExcLimit!$E$8) ->  | J76: =IFERROR(VLOOKUP(B76,ExcCalc!O:S,2,FALSE),"") ->  | K76: =IFERROR(VLOOKUP(B76,ExcCalc!O:S,3,FALSE),"") ->  | L76: =IFERROR(VLOOKUP(B76,ExcCalc!O:S,4,FALSE),"") ->  | M76: =IFERROR(VLOOKUP(B76,ExcCalc!O:S,5,FALSE),"") -> 
B77: =IF(ISNUMBER('דיווח דיגומים'!B77),'דיווח דיגומים'!B77,"") ->  | C77: =IF(ISNUMBER('דיווח דיגומים'!B77),'דיווח דיגומים'!C77,"") ->  | D77: =IF('דיווח דיגומים'!E77="","",'דיווח דיגומים'!E77) ->  | E77: =IF(B77="","",IF(VLOOKUP(B77,WQ_UnitID!B:C,2,FALSE)=0,"",VLOOKUP(B77,WQ_UnitID!B:C,2,FALSE))) ->  | F77: =IF(B77="","",ExcLimit!$B$8) ->  | G77: =IF(B77="","",IF(D77=Index!$R$24,"",ExcLimit!$C$8)) ->  | H77: =IF(B77="","",ExcLimit!$D$8) ->  | I77: =IF(B77="","",ExcLimit!$E$8) ->  | J77: =IFERROR(VLOOKUP(B77,ExcCalc!O:S,2,FALSE),"") ->  | K77: =IFERROR(VLOOKUP(B77,ExcCalc!O:S,3,FALSE),"") ->  | L77: =IFERROR(VLOOKUP(B77,ExcCalc!O:S,4,FALSE),"") ->  | M77: =IFERROR(VLOOKUP(B77,ExcCalc!O:S,5,FALSE),"") -> 
B78: =IF(ISNUMBER('דיווח דיגומים'!B78),'דיווח דיגומים'!B78,"") ->  | C78: =IF(ISNUMBER('דיווח דיגומים'!B78),'דיווח דיגומים'!C78,"") ->  | D78: =IF('דיווח דיגומים'!E78="","",'דיווח דיגומים'!E78) ->  | E78: =IF(B78="","",IF(VLOOKUP(B78,WQ_UnitID!B:C,2,FALSE)=0,"",VLOOKUP(B78,WQ_UnitID!B:C,2,FALSE))) ->  | F78: =IF(B78="","",ExcLimit!$B$8) ->  | G78: =IF(B78="","",IF(D78=Index!$R$24,"",ExcLimit!$C$8)) ->  | H78: =IF(B78="","",ExcLimit!$D$8) ->  | I78: =IF(B78="","",ExcLimit!$E$8) ->  | J78: =IFERROR(VLOOKUP(B78,ExcCalc!O:S,2,FALSE),"") ->  | K78: =IFERROR(VLOOKUP(B78,ExcCalc!O:S,3,FALSE),"") ->  | L78: =IFERROR(VLOOKUP(B78,ExcCalc!O:S,4,FALSE),"") ->  | M78: =IFERROR(VLOOKUP(B78,ExcCalc!O:S,5,FALSE),"") -> 
B79: =IF(ISNUMBER('דיווח דיגומים'!B79),'דיווח דיגומים'!B79,"") ->  | C79: =IF(ISNUMBER('דיווח דיגומים'!B79),'דיווח דיגומים'!C79,"") ->  | D79: =IF('דיווח דיגומים'!E79="","",'דיווח דיגומים'!E79) ->  | E79: =IF(B79="","",IF(VLOOKUP(B79,WQ_UnitID!B:C,2,FALSE)=0,"",VLOOKUP(B79,WQ_UnitID!B:C,2,FALSE))) ->  | F79: =IF(B79="","",ExcLimit!$B$8) ->  | G79: =IF(B79="","",IF(D79=Index!$R$24,"",ExcLimit!$C$8)) ->  | H79: =IF(B79="","",ExcLimit!$D$8) ->  | I79: =IF(B79="","",ExcLimit!$E$8) ->  | J79: =IFERROR(VLOOKUP(B79,ExcCalc!O:S,2,FALSE),"") ->  | K79: =IFERROR(VLOOKUP(B79,ExcCalc!O:S,3,FALSE),"") ->  | L79: =IFERROR(VLOOKUP(B79,ExcCalc!O:S,4,FALSE),"") ->  | M79: =IFERROR(VLOOKUP(B79,ExcCalc!O:S,5,FALSE),"") -> 
B80: =IF(ISNUMBER('דיווח דיגומים'!B80),'דיווח דיגומים'!B80,"") ->  | C80: =IF(ISNUMBER('דיווח דיגומים'!B80),'דיווח דיגומים'!C80,"") ->  | D80: =IF('דיווח דיגומים'!E80="","",'דיווח דיגומים'!E80) ->  | E80: =IF(B80="","",IF(VLOOKUP(B80,WQ_UnitID!B:C,2,FALSE)=0,"",VLOOKUP(B80,WQ_UnitID!B:C,2,FALSE))) ->  | F80: =IF(B80="","",ExcLimit!$B$8) ->  | G80: =IF(B80="","",IF(D80=Index!$R$24,"",ExcLimit!$C$8)) ->  | H80: =IF(B80="","",ExcLimit!$D$8) ->  | I80: =IF(B80="","",ExcLimit!$E$8) ->  | J80: =IFERROR(VLOOKUP(B80,ExcCalc!O:S,2,FALSE),"") ->  | K80: =IFERROR(VLOOKUP(B80,ExcCalc!O:S,3,FALSE),"") ->  | L80: =IFERROR(VLOOKUP(B80,ExcCalc!O:S,4,FALSE),"") ->  | M80: =IFERROR(VLOOKUP(B80,ExcCalc!O:S,5,FALSE),"") -> 
B81: =IF(ISNUMBER('דיווח דיגומים'!B81),'דיווח דיגומים'!B81,"") ->  | C81: =IF(ISNUMBER('דיווח דיגומים'!B81),'דיווח דיגומים'!C81,"") ->  | D81: =IF('דיווח דיגומים'!E81="","",'דיווח דיגומים'!E81) ->  | E81: =IF(B81="","",IF(VLOOKUP(B81,WQ_UnitID!B:C,2,FALSE)=0,"",VLOOKUP(B81,WQ_UnitID!B:C,2,FALSE))) ->  | F81: =IF(B81="","",ExcLimit!$B$8) ->  | G81: =IF(B81="","",IF(D81=Index!$R$24,"",ExcLimit!$C$8)) ->  | H81: =IF(B81="","",ExcLimit!$D$8) ->  | I81: =IF(B81="","",ExcLimit!$E$8) ->  | J81: =IFERROR(VLOOKUP(B81,ExcCalc!O:S,2,FALSE),"") ->  | K81: =IFERROR(VLOOKUP(B81,ExcCalc!O:S,3,FALSE),"") ->  | L81: =IFERROR(VLOOKUP(B81,ExcCalc!O:S,4,FALSE),"") ->  | M81: =IFERROR(VLOOKUP(B81,ExcCalc!O:S,5,FALSE),"") -> 
B82: =IF(ISNUMBER('דיווח דיגומים'!B82),'דיווח דיגומים'!B82,"") ->  | C82: =IF(ISNUMBER('דיווח דיגומים'!B82),'דיווח דיגומים'!C82,"") ->  | D82: =IF('דיווח דיגומים'!E82="","",'דיווח דיגומים'!E82) ->  | E82: =IF(B82="","",IF(VLOOKUP(B82,WQ_UnitID!B:C,2,FALSE)=0,"",VLOOKUP(B82,WQ_UnitID!B:C,2,FALSE))) ->  | F82: =IF(B82="","",ExcLimit!$B$8) ->  | G82: =IF(B82="","",IF(D82=Index!$R$24,"",ExcLimit!$C$8)) ->  | H82: =IF(B82="","",ExcLimit!$D$8) ->  | I82: =IF(B82="","",ExcLimit!$E$8) ->  | J82: =IFERROR(VLOOKUP(B82,ExcCalc!O:S,2,FALSE),"") ->  | K82: =IFERROR(VLOOKUP(B82,ExcCalc!O:S,3,FALSE),"") ->  | L82: =IFERROR(VLOOKUP(B82,ExcCalc!O:S,4,FALSE),"") ->  | M82: =IFERROR(VLOOKUP(B82,ExcCalc!O:S,5,FALSE),"") -> 
B83: =IF(ISNUMBER('דיווח דיגומים'!B83),'דיווח דיגומים'!B83,"") ->  | C83: =IF(ISNUMBER('דיווח דיגומים'!B83),'דיווח דיגומים'!C83,"") ->  | D83: =IF('דיווח דיגומים'!E83="","",'דיווח דיגומים'!E83) ->  | E83: =IF(B83="","",IF(VLOOKUP(B83,WQ_UnitID!B:C,2,FALSE)=0,"",VLOOKUP(B83,WQ_UnitID!B:C,2,FALSE))) ->  | F83: =IF(B83="","",ExcLimit!$B$8) ->  | G83: =IF(B83="","",IF(D83=Index!$R$24,"",ExcLimit!$C$8)) ->  | H83: =IF(B83="","",ExcLimit!$D$8) ->  | I83: =IF(B83="","",ExcLimit!$E$8) ->  | J83: =IFERROR(VLOOKUP(B83,ExcCalc!O:S,2,FALSE),"") ->  | K83: =IFERROR(VLOOKUP(B83,ExcCalc!O:S,3,FALSE),"") ->  | L83: =IFERROR(VLOOKUP(B83,ExcCalc!O:S,4,FALSE),"") ->  | M83: =IFERROR(VLOOKUP(B83,ExcCalc!O:S,5,FALSE),"") -> 
B84: =IF(ISNUMBER('דיווח דיגומים'!B84),'דיווח דיגומים'!B84,"") ->  | C84: =IF(ISNUMBER('דיווח דיגומים'!B84),'דיווח דיגומים'!C84,"") ->  | D84: =IF('דיווח דיגומים'!E84="","",'דיווח דיגומים'!E84) ->  | E84: =IF(B84="","",IF(VLOOKUP(B84,WQ_UnitID!B:C,2,FALSE)=0,"",VLOOKUP(B84,WQ_UnitID!B:C,2,FALSE))) ->  | F84: =IF(B84="","",ExcLimit!$B$8) ->  | G84: =IF(B84="","",IF(D84=Index!$R$24,"",ExcLimit!$C$8)) ->  | H84: =IF(B84="","",ExcLimit!$D$8) ->  | I84: =IF(B84="","",ExcLimit!$E$8) ->  | J84: =IFERROR(VLOOKUP(B84,ExcCalc!O:S,2,FALSE),"") ->  | K84: =IFERROR(VLOOKUP(B84,ExcCalc!O:S,3,FALSE),"") ->  | L84: =IFERROR(VLOOKUP(B84,ExcCalc!O:S,4,FALSE),"") ->  | M84: =IFERROR(VLOOKUP(B84,ExcCalc!O:S,5,FALSE),"") -> 
B85: =IF(ISNUMBER('דיווח דיגומים'!B85),'דיווח דיגומים'!B85,"") ->  | C85: =IF(ISNUMBER('דיווח דיגומים'!B85),'דיווח דיגומים'!C85,"") ->  | D85: =IF('דיווח דיגומים'!E85="","",'דיווח דיגומים'!E85) ->  | E85: =IF(B85="","",IF(VLOOKUP(B85,WQ_UnitID!B:C,2,FALSE)=0,"",VLOOKUP(B85,WQ_UnitID!B:C,2,FALSE))) ->  | F85: =IF(B85="","",ExcLimit!$B$8) ->  | G85: =IF(B85="","",IF(D85=Index!$R$24,"",ExcLimit!$C$8)) ->  | H85: =IF(B85="","",ExcLimit!$D$8) ->  | I85: =IF(B85="","",ExcLimit!$E$8) ->  | J85: =IFERROR(VLOOKUP(B85,ExcCalc!O:S,2,FALSE),"") ->  | K85: =IFERROR(VLOOKUP(B85,ExcCalc!O:S,3,FALSE),"") ->  | L85: =IFERROR(VLOOKUP(B85,ExcCalc!O:S,4,FALSE),"") ->  | M85: =IFERROR(VLOOKUP(B85,ExcCalc!O:S,5,FALSE),"") -> 
B86: =IF(ISNUMBER('דיווח דיגומים'!B86),'דיווח דיגומים'!B86,"") ->  | C86: =IF(ISNUMBER('דיווח דיגומים'!B86),'דיווח דיגומים'!C86,"") ->  | D86: =IF('דיווח דיגומים'!E86="","",'דיווח דיגומים'!E86) ->  | E86: =IF(B86="","",IF(VLOOKUP(B86,WQ_UnitID!B:C,2,FALSE)=0,"",VLOOKUP(B86,WQ_UnitID!B:C,2,FALSE))) ->  | F86: =IF(B86="","",ExcLimit!$B$8) ->  | G86: =IF(B86="","",IF(D86=Index!$R$24,"",ExcLimit!$C$8)) ->  | H86: =IF(B86="","",ExcLimit!$D$8) ->  | I86: =IF(B86="","",ExcLimit!$E$8) ->  | J86: =IFERROR(VLOOKUP(B86,ExcCalc!O:S,2,FALSE),"") ->  | K86: =IFERROR(VLOOKUP(B86,ExcCalc!O:S,3,FALSE),"") ->  | L86: =IFERROR(VLOOKUP(B86,ExcCalc!O:S,4,FALSE),"") ->  | M86: =IFERROR(VLOOKUP(B86,ExcCalc!O:S,5,FALSE),"") -> 
B87: =IF(ISNUMBER('דיווח דיגומים'!B87),'דיווח דיגומים'!B87,"") ->  | C87: =IF(ISNUMBER('דיווח דיגומים'!B87),'דיווח דיגומים'!C87,"") ->  | D87: =IF('דיווח דיגומים'!E87="","",'דיווח דיגומים'!E87) ->  | E87: =IF(B87="","",IF(VLOOKUP(B87,WQ_UnitID!B:C,2,FALSE)=0,"",VLOOKUP(B87,WQ_UnitID!B:C,2,FALSE))) ->  | F87: =IF(B87="","",ExcLimit!$B$8) ->  | G87: =IF(B87="","",IF(D87=Index!$R$24,"",ExcLimit!$C$8)) ->  | H87: =IF(B87="","",ExcLimit!$D$8) ->  | I87: =IF(B87="","",ExcLimit!$E$8) ->  | J87: =IFERROR(VLOOKUP(B87,ExcCalc!O:S,2,FALSE),"") ->  | K87: =IFERROR(VLOOKUP(B87,ExcCalc!O:S,3,FALSE),"") ->  | L87: =IFERROR(VLOOKUP(B87,ExcCalc!O:S,4,FALSE),"") ->  | M87: =IFERROR(VLOOKUP(B87,ExcCalc!O:S,5,FALSE),"") -> 
B88: =IF(ISNUMBER('דיווח דיגומים'!B88),'דיווח דיגומים'!B88,"") ->  | C88: =IF(ISNUMBER('דיווח דיגומים'!B88),'דיווח דיגומים'!C88,"") ->  | D88: =IF('דיווח דיגומים'!E88="","",'דיווח דיגומים'!E88) ->  | E88: =IF(B88="","",IF(VLOOKUP(B88,WQ_UnitID!B:C,2,FALSE)=0,"",VLOOKUP(B88,WQ_UnitID!B:C,2,FALSE))) ->  | F88: =IF(B88="","",ExcLimit!$B$8) ->  | G88: =IF(B88="","",IF(D88=Index!$R$24,"",ExcLimit!$C$8)) ->  | H88: =IF(B88="","",ExcLimit!$D$8) ->  | I88: =IF(B88="","",ExcLimit!$E$8) ->  | J88: =IFERROR(VLOOKUP(B88,ExcCalc!O:S,2,FALSE),"") ->  | K88: =IFERROR(VLOOKUP(B88,ExcCalc!O:S,3,FALSE),"") ->  | L88: =IFERROR(VLOOKUP(B88,ExcCalc!O:S,4,FALSE),"") ->  | M88: =IFERROR(VLOOKUP(B88,ExcCalc!O:S,5,FALSE),"") -> 
B89: =IF(ISNUMBER('דיווח דיגומים'!B89),'דיווח דיגומים'!B89,"") ->  | C89: =IF(ISNUMBER('דיווח דיגומים'!B89),'דיווח דיגומים'!C89,"") ->  | D89: =IF('דיווח דיגומים'!E89="","",'דיווח דיגומים'!E89) ->  | E89: =IF(B89="","",IF(VLOOKUP(B89,WQ_UnitID!B:C,2,FALSE)=0,"",VLOOKUP(B89,WQ_UnitID!B:C,2,FALSE))) ->  | F89: =IF(B89="","",ExcLimit!$B$8) ->  | G89: =IF(B89="","",IF(D89=Index!$R$24,"",ExcLimit!$C$8)) ->  | H89: =IF(B89="","",ExcLimit!$D$8) ->  | I89: =IF(B89="","",ExcLimit!$E$8) ->  | J89: =IFERROR(VLOOKUP(B89,ExcCalc!O:S,2,FALSE),"") ->  | K89: =IFERROR(VLOOKUP(B89,ExcCalc!O:S,3,FALSE),"") ->  | L89: =IFERROR(VLOOKUP(B89,ExcCalc!O:S,4,FALSE),"") ->  | M89: =IFERROR(VLOOKUP(B89,ExcCalc!O:S,5,FALSE),"") -> 
B90: =IF(ISNUMBER('דיווח דיגומים'!B90),'דיווח דיגומים'!B90,"") ->  | C90: =IF(ISNUMBER('דיווח דיגומים'!B90),'דיווח דיגומים'!C90,"") ->  | D90: =IF('דיווח דיגומים'!E90="","",'דיווח דיגומים'!E90) ->  | E90: =IF(B90="","",IF(VLOOKUP(B90,WQ_UnitID!B:C,2,FALSE)=0,"",VLOOKUP(B90,WQ_UnitID!B:C,2,FALSE))) ->  | F90: =IF(B90="","",ExcLimit!$B$8) ->  | G90: =IF(B90="","",IF(D90=Index!$R$24,"",ExcLimit!$C$8)) ->  | H90: =IF(B90="","",ExcLimit!$D$8) ->  | I90: =IF(B90="","",ExcLimit!$E$8) ->  | J90: =IFERROR(VLOOKUP(B90,ExcCalc!O:S,2,FALSE),"") ->  | K90: =IFERROR(VLOOKUP(B90,ExcCalc!O:S,3,FALSE),"") ->  | L90: =IFERROR(VLOOKUP(B90,ExcCalc!O:S,4,FALSE),"") ->  | M90: =IFERROR(VLOOKUP(B90,ExcCalc!O:S,5,FALSE),"") -> 
B91: =IF(ISNUMBER('דיווח דיגומים'!B91),'דיווח דיגומים'!B91,"") ->  | C91: =IF(ISNUMBER('דיווח דיגומים'!B91),'דיווח דיגומים'!C91,"") ->  | D91: =IF('דיווח דיגומים'!E91="","",'דיווח דיגומים'!E91) ->  | E91: =IF(B91="","",IF(VLOOKUP(B91,WQ_UnitID!B:C,2,FALSE)=0,"",VLOOKUP(B91,WQ_UnitID!B:C,2,FALSE))) ->  | F91: =IF(B91="","",ExcLimit!$B$8) ->  | G91: =IF(B91="","",IF(D91=Index!$R$24,"",ExcLimit!$C$8)) ->  | H91: =IF(B91="","",ExcLimit!$D$8) ->  | I91: =IF(B91="","",ExcLimit!$E$8) ->  | J91: =IFERROR(VLOOKUP(B91,ExcCalc!O:S,2,FALSE),"") ->  | K91: =IFERROR(VLOOKUP(B91,ExcCalc!O:S,3,FALSE),"") ->  | L91: =IFERROR(VLOOKUP(B91,ExcCalc!O:S,4,FALSE),"") ->  | M91: =IFERROR(VLOOKUP(B91,ExcCalc!O:S,5,FALSE),"") -> 
B92: =IF(ISNUMBER('דיווח דיגומים'!B92),'דיווח דיגומים'!B92,"") ->  | C92: =IF(ISNUMBER('דיווח דיגומים'!B92),'דיווח דיגומים'!C92,"") ->  | D92: =IF('דיווח דיגומים'!E92="","",'דיווח דיגומים'!E92) ->  | E92: =IF(B92="","",IF(VLOOKUP(B92,WQ_UnitID!B:C,2,FALSE)=0,"",VLOOKUP(B92,WQ_UnitID!B:C,2,FALSE))) ->  | F92: =IF(B92="","",ExcLimit!$B$8) ->  | G92: =IF(B92="","",IF(D92=Index!$R$24,"",ExcLimit!$C$8)) ->  | H92: =IF(B92="","",ExcLimit!$D$8) ->  | I92: =IF(B92="","",ExcLimit!$E$8) ->  | J92: =IFERROR(VLOOKUP(B92,ExcCalc!O:S,2,FALSE),"") ->  | K92: =IFERROR(VLOOKUP(B92,ExcCalc!O:S,3,FALSE),"") ->  | L92: =IFERROR(VLOOKUP(B92,ExcCalc!O:S,4,FALSE),"") ->  | M92: =IFERROR(VLOOKUP(B92,ExcCalc!O:S,5,FALSE),"") -> 
B93: =IF(ISNUMBER('דיווח דיגומים'!B93),'דיווח דיגומים'!B93,"") ->  | C93: =IF(ISNUMBER('דיווח דיגומים'!B93),'דיווח דיגומים'!C93,"") ->  | D93: =IF('דיווח דיגומים'!E93="","",'דיווח דיגומים'!E93) ->  | E93: =IF(B93="","",IF(VLOOKUP(B93,WQ_UnitID!B:C,2,FALSE)=0,"",VLOOKUP(B93,WQ_UnitID!B:C,2,FALSE))) ->  | F93: =IF(B93="","",ExcLimit!$B$8) ->  | G93: =IF(B93="","",IF(D93=Index!$R$24,"",ExcLimit!$C$8)) ->  | H93: =IF(B93="","",ExcLimit!$D$8) ->  | I93: =IF(B93="","",ExcLimit!$E$8) ->  | J93: =IFERROR(VLOOKUP(B93,ExcCalc!O:S,2,FALSE),"") ->  | K93: =IFERROR(VLOOKUP(B93,ExcCalc!O:S,3,FALSE),"") ->  | L93: =IFERROR(VLOOKUP(B93,ExcCalc!O:S,4,FALSE),"") ->  | M93: =IFERROR(VLOOKUP(B93,ExcCalc!O:S,5,FALSE),"") -> 
